Workbook

Sheet Tab Descriptions
A5: Tab Name | C5: Description/Purpose | E5: Where Used in Model
A7: Selected Data | C7: - Provides a snapshot of certain information (proceedings, revenue requirements (RRQs), rates and residential bills) developed or provided in the model. | E7: N/A
A9: Notes | C9: - Identifies where the model differs from PG&E's filing quality rate models used for rate setting. | E9: N/A
A11: Instructions | C11: - Provides user instructions for running the "basic" model, validating the results of the illustrative "typical customer" bill against a bill insert and Hypothetical RRQ modeling. | E11: N/A
A13: Summary | C13: - Provides illustrative bundled residential, small commercial, medium commercial, large commercial, other commercial and industrial, agriculture and system average rates, total illustrative system average rates, and illustrative bundled (1), essential usage (2) and typical (3) bundled residential/ small commercial customer average bills based on user input fields selected on this tab. - User input fields allow users to select the year, baseline region, CA climate credit inclusion, "typical" residential average usage and the pending proceedings to be included in the rates and bill calculations shown on this tab. - Provides various assumptions utilized in the calculation of rates and bills on this tab. (1) Illustrative bills are based on the recorded average monthly usage for calendar year 2024. (2) Essential usage is defined in D.20-07-032, as using the baseline or Tier 1 rate and the baseline quantity to calculate the essential usage bill. (3) Typical usage is as used by PG&E in its various applications considered to be 500 kWh. It can be changed by the user by entering different value into I4. | E13: Selected Data
A15: Authorized Rev Req | C15: Lists all approved proceedings and the RRQs by revenue recovery mechanism currently in rates broken out by rate change. | E15: Incremental Rev Req
A17: Incremental Rev Req | C17: Lists all approved proceedings with their associated yearly RRQ as well as pending proceedings with their anticipated yearly RRQs. Existing proceedings that have pending RRQs lists the incremental change in columns L-O. | E17: Selected Data, Summary, Incremental Rev Req, SAR and RAR, SAR and RAR (B-1), SAR and RAR (Medium), SAR and RAR (Large), SAR and RAR (Other), SAR and RAR (AG)
A19: SAR and RAR | C19: - Lists the various allocations by RRQ type. - Identifies the RRQ type (i.e. Distribution, Transmission, Public Purpose Program, etc.). - Identifies the percentage of the total allocated RRQ that is allocated to the residential customer class. - Identifies the percentage of the RRQ allocated to the residential customer class that is bundled. - Identifies the percentage of the total allocated RRQ that is bundled. - Provides forecasted yearly revenue for both residential and total system sales. - Calculates bundled residential average rates, total residential average rates, bundled system average rates and total system average rates. | E19: Summary, Res Bill Impact, SAR RAR (B-1), SAR and RAR (Medium), SAR and RAR (Large), SAR and RAR (Other), SAR and RAR (AG)
A21: Res Bill Impact | C21: - Calculates the rates and bills shown in the Summary tab using the following information found on this tab: ~ present, illustrative proposed authorized and illustrative proposed with pending proceedings rates for non-CARE and CARE customers. ~ current baseline quantities. ~ recorded average monthly usage by climate zone and season. ~ percent of non-CARE usage in each climate zone and percent of CARE usage in each climate zone (used to calculate "all climate zone" bills). | E21: Summary
A23: SAR and RAR (B-1) | C23: - Lists the various allocations by RRQ type. - Identifies the RRQ type (i.e. Distribution, Transmission, Public Purpose Program, etc.). - Identifies the percentage of the total allocated RRQ that is allocated to the B-1 customer class. - Identifies the percentage of the RRQ allocated to the B-1 customer class that is bundled. - Identifies the percentage of the total allocated RRQ that is bundled. - Provides forecasted yearly revenue for both B-1 and total system sales. - Calculates bundled B-1 average rates, total B-1 average rates, bundled system average rates and total system average rates. | E23: Summary, Bill Impact (B-1)
A25: Bill Impact (B-1) | C25: - Calculates the rates and bills shown in the Summary tab using the following information found on this tab: ~ present, illustrative proposed authorized and illustrative proposed with pending proceedings rates for select B-1 customers. ~ recorded average monthly usage by season and time-of-use periods. | E25: Summary
A27: Hypothetical Summary | C27: - Provides hypothetical illustrative bundled residential, small commercial and system average rates, total illustrative system average rates, and illustrative bundled (1), essential usage (2) and typical (3) bundled residential/ small commercial customer average bills based on user input fields selected on this tab. - User input fields allow users to select the year, baseline region, CA climate credit inclusion, "typical" residential average usage and hypothetical revenue requirements to be included in the rates and bill calculations shown on this tab. - Provides various assumptions utilized in the calculation of rates and bills on this tab. (1) Illustrative bills are based on the recorded average monthly usage for calendar year 2024. (2) Essential usage is defined in D.20-07-032, as using the baseline or Tier 1 rate and the baseline quantity to calculate the essential usage bill. (3) Typical usage is as used by PG&E in its various applications considered to be 500 kWh. It can be changed by the user by entering different value into D3. | E27: N/A

Sheet Selected Data
A1: Summary of Selected Data
Q2: Revenue
Q3: Requirement
Q4: $000
A5: 1 | B5: Current total system-level revenue requirement that is used for defining the reporting threshold: | Q5: ='Incremental Rev Req'!C5 -> 19079592.83
B6: A | C6: One-percent reporting threshold | Q6: =Q5*0.01 -> 190795.9283
A8: 2 | B8: List of currently open proceedings that exceed the threshold for use of the affordability metrics (proceedings shaded gray filed prior to D.22-08-023):
B9: A | C9: A.25-11-001 | D9: Kincade and Dixie AB1054 Wildfire Cost Review and Recovery Proceeding | Q9: ='Incremental Rev Req'!I137+'Incremental Rev Req'!I138 -> 317953.2329
B10: B | C10: ='Incremental Rev Req'!C109 -> A.23-12-001 | D10: ='Incremental Rev Req'!B109 -> 2023 WMCE | Q10: =SUM('Incremental Rev Req'!H109:H111) -> 873469.1043
B11: C | C11: A.23-06-008 | D11: ='Incremental Rev Req'!B114 -> Wildfire Gas and Safety Costs | Q11: ='Incremental Rev Req'!H114+'Incremental Rev Req'!H115 -> 205874.6913
B12: D | C12: A.24-09-015 | D12: TRRRMA | Q12: =SUM('Incremental Rev Req'!H116:H117) -> 266271.5096
B13: E | C13: A.24-11-009 | D13: 2024 WMCE | Q13: =SUM('Incremental Rev Req'!H120:H122) -> 170072.3954
B14: F | C14: A.25-03-010 | D14: 2026 Cost of Capital | Q14: ='Incremental Rev Req'!H123+'Incremental Rev Req'!H124 -> 351252.9153
B15: G | C15: A.25-05-011 | D15: 2026 ERRA Forecast | Q15: =SUM('Incremental Rev Req'!H125:H133) -> 2841109.887
B16: H | C16: A.25-05-009 | D16: 2027 GRC Phase 1 | Q16: =SUM('Incremental Rev Req'!I134:I136) -> 10944835.2
B17: I | C17: A.25-03-015 | D17: DCPP Extended Operations 2026 Forecast | Q17: ='Incremental Rev Req'!H142 -> 219469.4769
B18: J | C18: ER24-96-000 | D18: TO Tariff BA Adjustments | Q18: ='Incremental Rev Req'!H147 -> 251906.0775
B19: K | C19: ER24-96-000 | D19: TO Base Retail Revenue Requirement | Q19: ='Incremental Rev Req'!H148 -> 2567712.901
A21: 3 | B21: List of currently open proceedings for which affordability metrics have been filed:
B22: A | C22: =C9 -> A.25-11-001 | D22: Kincade and Dixie AB1054 Wildfire Cost Review and Recovery Proceeding | Q22: =Q9 -> 317953.2329
B23: B | C23: A.23-12-001 | D23: 2023 WMCE | Q23: =Q10 -> 873469.1043
B24: C | C24: A.23-06-008 | D24: Wildfire Gas and Safety Costs | Q24: =Q11 -> 205874.6913
B25: D | C25: =C12 -> A.24-09-015 | D25: TRRRMA | Q25: =Q12 -> 266271.5096
B26: E | C26: A.24-11-009 | D26: 2024 WMCE | Q26: 170072.3954
B27: F | C27: A.25-03-010 | D27: 2026 Cost of Capital | Q27: 351252.9153
B28: G | C28: A.25-05-011 | D28: 2026 ERRA Forecast | Q28: 2841109.887
B29: H | C29: A.25-05-009 | D29: 2027 GRC Phase 1 | Q29: 10944835.2
B30: I
A32: 4 | B32: List of currently open proceedings that do not exceed the threshold for use of the affordability metrics (proceedings shaded gray filed prior to D.22-08-023):
B33: A | C33: A.24-03-011 | D33: Gas AMI | Q33: =SUM('Incremental Rev Req'!H112:H113) -> 41047.48218
B34: B | C34: A.24-10-014 | D34: Billing Modernization | Q34: =SUM('Incremental Rev Req'!H118:H119) -> 45193.24203
B35: C | C35: A.25-06-024 | D35: Income Qualified Program Bridge Funding | Q35: ='Incremental Rev Req'!I143 -> 18245.09659
A37: 5 | B37: Total system-level revenue requirement if all pending revenue were granted in full: requests were granted in full
B38: A | C38: Current 2025 | Q38: ='Incremental Rev Req'!C5 -> 19079592.83
B39: B | C39: YE 2025 | Q39: ='Incremental Rev Req'!S122 -> 19079592.69
B40: C | C40: YE 2026 | Q40: ='Incremental Rev Req'!T122 -> 20222279.3
B41: D | C41: YE 2027 | Q41: ='Incremental Rev Req'!U122 -> 19789770.8
B42: E | C42: YE 2028 | Q42: ='Incremental Rev Req'!V122 -> 20371526.32
A44: 6 | B44: Bundled residential average rate (RAR) if all pending revenue were granted in full (from Cost and Rate Tracker (CRT) as submitted by utility): | R44: cents/kWh
B45: A | C45: Current 2025 | R45: 35.65670968
B46: B | C46: =C39 -> YE 2025 | R46: 35.04414911
B47: C | C47: =C40 -> YE 2026 | R47: 32.40669137
B48: D | C48: =C41 -> YE 2027 | R48: 31.67312614
B49: E | C49: =C42 -> YE 2028 | R49: 32.35949774
A51: 7 | B51: Bundled residential average monthly bill corresponding to RAR above for typical customer in climate zone X using 500 kWh (from CRT as submitted by utility): | S51: Non-CARE | T51: CARE
B52: A | C52: Current 2025 | S52: 210.0126712 | T52: 125.9128787
B53: B | C53: =C39 -> YE 2025 | S53: 208.6214063 | T53: 125.0541399
B54: C | C54: =C40 -> YE 2026 | S54: 190.4978142 | T54: 113.8676058
B55: D | C55: =C41 -> YE 2027 | S55: 186.1658508 | T55: 111.1937619
B56: E | C56: =C42 -> YE 2028 | S56: 190.219119 | T56: 113.6955851
A58: 8 | B58: Bundled small commercial average rate (B-1) if all pending revenue were granted in full (from Cost and Rate Tracker (CRT) as submitted by utility): | R58: cents/kWh
B59: A | C59: Current 2025 | R59: 43.25557099
B60: B | C60: =C39 -> YE 2025 | R60: 43.48673099
B61: C | C61: =C40 -> YE 2026 | R61: 40.44001768
B62: D | C62: =C41 -> YE 2027 | R62: 39.20327488
B63: E | C63: =C42 -> YE 2028 | R63: 40.1941348
A65: 9 | B65: Bundled small commercial average monthly bill corresponding to B-1 rate above for typical customer by NAICS (from CRT as submitted by utility): | S65: NAICS 531 | T65: NAICS 621 | U65: NAICS 722
B66: A | C66: Current 2025 | S66: 428.728087 | T66: 526.599715 | U66: 1322.961845
B67: B | C67: =C39 -> YE 2025 | S67: 433.2644041 | T67: 532.1886735 | U67: 1337.09549
B68: C | C68: =C40 -> YE 2026 | S68: 402.1041649 | T68: 493.7977754 | U68: 1240.010617
B69: D | C69: =C41 -> YE 2027 | S69: 389.9123559 | T69: 478.7768863 | U69: 1202.025022
B70: E | C70: =C42 -> YE 2028 | S70: 399.6802517 | T70: 490.811399 | U70: 1232.458515

Sheet Notes
A2: Cost and Rate Tracking Tool Notes
A3: 1. The Quarterly Tracker performs high-level rate and bill calculation estimates, which will not produce rate or bill impacts that match PG&E’s filing-quality models.
A4: 2. The forecast assumes perfect ratemaking, and does not include balancing account balances beyond the current year.
A5: 3. Different rate components use simplified allocations that may not reflect actual revenue allocation and rate design.
A6: 4. For future years, the revenue requirements and rate impacts represent what would be in effect at the end of the year (e.g. December).

Sheet Instructions
A1: INSTRUCTIONS TO RUN "BASIC" MODEL
B4: The "non-hypothetical" portion of this model produces illustrative rates and illustrative residential bill calculations based on selected user inputs.
B5: PLEASE DO NOT INSERT ROWS OR COLUMNS INTO THE SUMMARY
B6: To run the "non-hypothetical" portion of the model:
B8: 1. | C8: User drop down selections are highlighted in yellow.
B9: 2. | C9: In cell D3 of the "Summary" tab, from the dropdown choices, select the year for which illustrative rate impacts are desired (ILLUSTRATION 1).
B10: 3. | C10: In cell D4, select, from the dropdown choices, the baseline territory for which illustrative bill impacts are desired.
B11: 4. | C11: In the "Pending Proceedings" section beginning on line 7, indicate whether the RRQ associated with the proceeding should be included in the illustrative bill impact analysis
C12: by selecting from the dropdown choices in column D, a "Y" or "N" where "Y" means to include the RRQ in the analysis and "N" means to not include the RRQ in the analysis (ILLUSTRATION 1A).
B13: 5. | C13: In cell I3, select Y to include the California Climate Credit in Rates or N to exclude it.
B14: 6. | C14: In cell I4 type in the Typical residential average usage kWh/month
B15: 7. | C15: If your excel is not set for automatic calculations, make sure to hit F9 to refresh caluclations. This will give the updated outputs to the basic model using the assumptions selected in yellow on the "Summary" tab.
B16: 8. | C16: The outputs will be in rows 30-116. Residential outputs are in rows 30-98 and Small Commercial outputs are in rows 102-116.
B17: 9. | C17: An example of the outputs for Residential Average Bundled Rates and the Typical Customer Basic Bundled Residential Monthly Average Bills can be seen in ILLUSTRATION 1B.
C19: ILLUSTRATION 1A: | G19: 2 | H19: 3 | I19: 4
O22: 5
O23: 6
C42: Illustration 1B:
A58: VALIDATING THE RESULTS OF THE ILLUSTRATIVE "TYPICAL CUSTOMER" BILL AGAINST A BILL INSERT
B60: 1. | C60: The model is set up to accept separate "typical" residential kWh for Non-CARE and CARE customers. (Illustration 2)
B61: 2. | C61: Ensure that only the revenue requirement being evaluated is included in the impact.
B62: 3. | C62: This hypothetical tab uses currently adopted sales forecasts. It does not forecast for other years.
C64: Illustration 2
O68: 1
A77: Hypothetical RRQ Modeling
B79: This tool is available for users to run high level illustritive rate and bill impacts. The user input sections are highlighted yellow.
B80: 1. | C80: In cell D3 of the "Hypothetical Summary" tab, type in the "Typical" residential average usage kWh/month (Illustration 3).
B81: 2. | C81: In cell D4 of the "Hypothetical Summary" tab, select, from the dropdown choices, the baseline territory for which illustrative bill impacts are desired (Illustration 3).
B82: 3. | C82: In cell D5 of the "Hypothetical Summary" tab, select Y to include the California Climate Credit or N to exclude it (Illustration 3).
B83: 4. | C83: In the "Hypothetical Summary" tab there are spaces in column D7:D19 for the user to enther their own RRQs into the desired recovery mechanism (Illustration 3).
C84: *Input revenue ammounts in the thousands
B85: 5. | C85: The updated Revenue Requirements will populate all of the "Hypothetical" tabs with new proposed rate and billing information.
B86: 6. | C86: The results of the RRQ impacts are summarized on the "Hypothetical Summary" tab and more detailed calculations can be found in the other hypothetical tabs.
C87: ILLUSTRATION 3 | H87: 1 | I87: 2 | J87: 3

Sheet Summary
B2: Inputs: | J2: Assumptions:
C3: ="Rate Impact for Year ("&'Incremental Rev Req'!$G$9&" - "&'Incremental Rev Req'!$J$9&")" -> Rate Impact for Year (2025 - 2028) | D3: 2025 | H3: Include CA Climate Credit in Rates | I3: Y | J3: Current Effective Rates | L3: 2025-09-01
C4: Baseline Region - (Residential bill) | D4: X - Warm | H4: Typical residential average usage kWh/month | I4: 500 | J4: Sales Forecast | L4: =D3 -> 2025
J5: Summer season | L5: 4 | M5: months
J6: Winter Season | L6: 8 | M6: months
B7: Pending Proceedings | D7: Include in Impact (Y) | E7: Applicable Year(s) | J7: Residential bill calculated using | L7: Schedule E-1, Single Family
B8: Wildfire Gas and Safety Costs | D8: Y | E8: 2024-2025 | J8: Residential Bi-annual Climate Credit | L8: -58.22662846 | P8: Essential Use - | Q8: Essential Use -
B9: 2023 WMCE | D9: Y | E9: 2024-2026 | N9: Basic | O9: All Electric | P9: Basic | Q9: All Electric
B10: 2024 WMCE | D10: Y | E10: 2026-2027 | J10: Non-CARE bill impact calculated with average summer usage of | N10: =IF($D$4="ALL",SUMPRODUCT('Res Bill Impact'!Q$22:Q$31,'Res Bill Impact'!$U$22:$U$31),VLOOKUP(D$4,'Res Bill Impact'!$P$22:$T$31,2,FALSE)) -> 481.75 | O10: =IF($D$4="ALL",SUMPRODUCT('Res Bill Impact'!Y$22:Y$31,'Res Bill Impact'!$AC$22:$AC$31),VLOOKUP($D$4,'Res Bill Impact'!$X$22:$AB$31,2,FALSE)) -> 463 | P10: =VLOOKUP($D$4,'Res Bill Impact'!$H$22:$J$31,2,FALSE) -> 298.2875 | Q10: =VLOOKUP($D$4,'Res Bill Impact'!$L$22:$N$31,2,FALSE) -> 258.71875 | R10: kWh per month
B11: Gas AMI | D11: Y | E11: 2024-2026 | J11: Non-CARE bill impact calculated with average winter usage of | N11: =IF($D$4="ALL",SUMPRODUCT('Res Bill Impact'!R$22:R$31,'Res Bill Impact'!$U$22:$U$31),VLOOKUP(D$4,'Res Bill Impact'!$P$22:$T$31,3,FALSE)) -> 402.875 | O11: =IF($D$4="ALL",SUMPRODUCT('Res Bill Impact'!Y$22:Y$31,'Res Bill Impact'!$AC$22:$AC$31),VLOOKUP($D$4,'Res Bill Impact'!$X$22:$AB$31,3,FALSE)) -> 462.875 | P11: =VLOOKUP($D$4,'Res Bill Impact'!$H$22:$J$31,3,FALSE) -> 295.24375 | Q11: =VLOOKUP($D$4,'Res Bill Impact'!$L$22:$N$31,3,FALSE) -> 444.3875 | R11: kWh per month
B12: Vegetation Management Securitization | D12: Y | E12: 2025-2026 | J12: Non-CARE bill impact calculated with average annual usage of | N12: =(N10*4)+(N11*8) -> 5150 | O12: =(O10*4)+(O11*8) -> 5555 | P12: =(P10*4)+(P11*8) -> 3555.1 | Q12: =(Q10*4)+(Q11*8) -> 4589.975 | R12: kWh per year
B13: TRRRMA | D13: Y | E13: 2026 | J13: CARE bill impact calculated with average summer usage of | N13: =IF(D$4="ALL",SUMPRODUCT('Res Bill Impact'!S$22:S$31,'Res Bill Impact'!$V$22:$V$31),VLOOKUP(D$4,'Res Bill Impact'!$P$22:$T$31,4,FALSE)) -> 438.25 | O13: =IF($D$4="ALL",SUMPRODUCT('Res Bill Impact'!Y$22:Y$31,'Res Bill Impact'!$AD$22:$AD$31),VLOOKUP($D$4,'Res Bill Impact'!$X$22:$AB$31,4,FALSE)) -> 413.5 | P13: =P10 -> 298.2875 | Q13: 258.71875 | R13: kWh per month
B14: Billing Modernization | D14: Y | E14: 2026-2027 | J14: CARE bill impact calculated with average winter usage of | N14: =IF($D$4="ALL",SUMPRODUCT('Res Bill Impact'!T$22:T$31,'Res Bill Impact'!$V$22:$V$31),VLOOKUP(D$4,'Res Bill Impact'!$P$22:$T$31,5,FALSE)) -> 381.625 | O14: =IF($D$4="ALL",SUMPRODUCT('Res Bill Impact'!Y$22:Y$31,'Res Bill Impact'!$AD$22:$AD$31),VLOOKUP($D$4,'Res Bill Impact'!$X$22:$AB$31,5,FALSE)) -> 438.75 | P14: 295.24375 | Q14: 444.3875 | R14: kWh per month
B15: 2026 Cost of Capital | D15: Y | E15: 2026-2028 | J15: CARE bill impact calculated with average annual usage of | N15: =(N13*4)+(N14*8) -> 4806 | O15: =(O13*4)+(O14*8) -> 5164 | P15: 3555.1 | Q15: 4589.975 | R15: kWh per year
B16: DCPP Extended Operations 2026 Forecast | D16: Y | E16: 2026 | J16: Average monthly usage is for all customers (Non-CARE and CARE) based on seasonal usage in | P16: =LEFT('Res Bill Impact'!P19,4) -> 2024
B17: 2026 ERRA Forecast | D17: Y | E17: 2026
B18: 2027 GRC Phase 1 | D18: Y | E18: 2027
B19: Income Qualified Program Bridge Funding | D19: Y | E19: 2027
B20: Kincade and Dixie AB1054 Wildfire Cost Review and Recovery Proceeding | D20: Y | E20: 2019-2030
B21: TO Tariff BA Adjustments | D21: Y | E21: 2026
B22: TO Base Retail Revenue Requirement | D22: Y | E22: 2026
B29: Outputs:
D30: (A) | E30: (B) | F30: (C) | G30: (D) | H30: (D)/(A) | I30: (D)/(B) | J30: (D)/(C) | N30: (A) | O30: (B) | P30: (C) | Q30: (D) | R30: (D)/(A) | S30: (D)/(B) | T30: (D)/(C)
B31: Bundled Average Rates - ¢/kWh | L31: Total System (Bundled and Unbundled) Average Rates - ¢/kWh
B32: Customer Group | D32: 2025-01-01 | E32: =L3 -> 2025-09-01 | F32: =$D$3&" Authorized" -> 2025 Authorized | G32: =$D$3&" w/Pending" -> 2025 w/Pending | H32: ="% Change over "&TEXT(D32,"mm/d/yyy") -> % Change over 01/1/2025 | I32: ="% Change over "&TEXT(L3,"mm/d/yyy") -> % Change over 09/1/2025 | J32: % Change over Authorized | L32: Customer Group | N32: =$D$32 -> 2025-01-01 | O32: =$E$32 -> 2025-09-01 | P32: =$D$3&" Authorized" -> 2025 Authorized | Q32: =$D$3&" w/Pending" -> 2025 w/Pending | R32: =$H$32 -> % Change over 01/1/2025 | S32: =$I$32 -> % Change over 09/1/2025 | T32: % Change over Authorized
B33: Residential | D33: =IF($I$3="Y", 'SAR and RAR'!AB45, 'SAR and RAR'!AC45) -> 35.876527 | E33: =IF($I$3="Y", 'SAR and RAR'!AB50, 'SAR and RAR'!AC50) -> 35.65670968 | F33: ='SAR and RAR'!$H$28 -> 35.04414911 | G33: ='SAR and RAR'!$I$28 -> 35.04414911 | H33: =$G33/D33-1 -> -0.02320118368 | I33: -0.0171793916 | J33: =$G33/F33-1 -> 0 | L33: Total Residential (RAR) | N33: =IF($I$3="Y", 'SAR and RAR'!AE45, 'SAR and RAR'!AF45) -> 28.12908243 | O33: =IF($I$3="Y", 'SAR and RAR'!AE50, 'SAR and RAR'!AF50) -> 27.88626544 | P33: ='SAR and RAR'!$R$28 -> 28.20369323 | Q33: ='SAR and RAR'!$S$28 -> 28.20369323 | R33: =$Q33/N33-1 -> 0.002652443299 | S33: 0.01138294373 | T33: 0
C34: Small Commercial (B-1) | D34: =IF($I$3="Y", 'SAR and RAR (B-1)'!AB47,'SAR and RAR (B-1)'!AC47) -> 43.574454 | E34: =IF($I$3="Y", 'SAR and RAR (B-1)'!AB52,'SAR and RAR (B-1)'!AC52) -> 43.25557099 | F34: ='SAR and RAR (B-1)'!H28 -> 43.48673099 | G34: ='SAR and RAR (B-1)'!I28 -> 43.48673099 | H34: -0.002013175065 | I34: 0.005344051509 | J34: 0 | M34: Small Commercial (B-1) | N34: =IF($I$3="Y",'SAR and RAR (B-1)'!AE47,'SAR and RAR (B-1)'!AF47) -> 33.61059084 | O34: =IF($I$3="Y", 'SAR and RAR (B-1)'!AE52,'SAR and RAR (B-1)'!AF52) -> 33.29168706 | P34: ='SAR and RAR (B-1)'!R28 -> 33.43408584 | Q34: ='SAR and RAR (B-1)'!S28 -> 33.43408584 | R34: -0.005251469545 | S34: 0.004277307466 | T34: 0
B35: System | D35: =IF($I$3="Y", 'SAR and RAR'!AB46, 'SAR and RAR'!AC46) -> 35.04098349 | E35: =IF($I$3="Y", 'SAR and RAR'!AB51, 'SAR and RAR'!AC51) -> 34.77817042 | F35: ='SAR and RAR'!$H$29 -> 34.47663517 | G35: ='SAR and RAR'!$I$29 -> 34.47663517 | H35: -0.01610537904 | I35: -0.008670244842 | J35: =$G35/F35-1 -> 0 | L35: Total System (SAR) | N35: =IF($I$3="Y", 'SAR and RAR'!AE46, 'SAR and RAR'!AF46) -> 25.25800684 | O35: =IF($I$3="Y", 'SAR and RAR'!AE51, 'SAR and RAR'!AF51) -> 24.98704194 | P35: ='SAR and RAR'!$R$29 -> 24.99257457 | Q35: ='SAR and RAR'!$S$29 -> 24.99257457 | R35: =$Q35/N35-1 -> -0.01050883651 | S35: =$Q35/O35-1 -> 0.0002214201367 | T35: =$Q35/P35-1 -> 0
B38: Basic Bundled Residential Monthly Average Bills | L38: All-Electric Bundled Residential Monthly Average Bills
D39: =$D$32 -> 2025-01-01 | E39: =$E$32 -> 2025-09-01 | F39: =$D$3&" Authorized" -> 2025 Authorized | G39: =$D$3&" w/Pending" -> 2025 w/Pending | H39: =$H$32 -> % Change over 01/1/2025 | I39: =$I$32 -> % Change over 09/1/2025 | J39: % Change over Authorized | N39: =$D$32 -> 2025-01-01 | O39: =$E$32 -> 2025-09-01 | P39: =$D$3&" Authorized" -> 2025 Authorized | Q39: =$D$3&" w/Pending" -> 2025 w/Pending | R39: =$H$32 -> % Change over 01/1/2025 | S39: =$I$32 -> % Change over 09/1/2025 | T39: % Change over Authorized
B40: Non-CARE | D40: =((D47*4)+(D54*8)+($L$8*2))/12 -> 175.9560715 | E40: 174.6537936 | F40: 173.4864237 | G40: 173.4864237 | H40: =$G40/D40-1 -> -0.01403559276 | I40: -0.006683908002 | J40: =$G40/F40-1 -> 0 | L40: Non-CARE | N40: =((N47*4)+(N54*8)+($L$8*2))/12 -> 184.1774272 | O40: 182.8047785 | P40: 181.585796 | Q40: 181.585796 | R40: =$Q40/N40-1 -> -0.0140713838 | S40: -0.006668220244 | T40: 0
B41: CARE | D41: 95.44169792 | E41: 95.06070559 | F41: 94.39732499 | G41: 94.39732499 | H41: -0.0109425226 | I41: -0.006978494369 | J41: 0 | L41: CARE | N41: 99.29405484 | O41: 98.90482344 | P41: 98.2171016 | Q41: 98.2171016 | R41: -0.01084609991 | S41: -0.006953370036 | T41: 0
B42: Total | D42: =((D49*4)+(D56*8)+($L$8*2))/12 -> 155.32584 | E42: =((E49*4)+(E56*8)+($L$8*2))/12 -> 154.2596235 | F42: =((F49*4)+(F56*8)+($L$8*2))/12 -> 153.221391 | G42: =((G49*4)+(G56*8)+($L$8*2))/12 -> 153.221391 | H42: -0.01354860853 | I42: -0.006730422902 | J42: 0 | L42: Total | N42: =((N49*4)+(N56*8)+($L$8*2))/12 -> 162.4277253 | O42: =((O49*4)+(O56*8)+($L$8*2))/12 -> 161.307058 | P42: =((P49*4)+(P56*8)+($L$8*2))/12 -> 160.2242006 | Q42: =((Q49*4)+(Q56*8)+($L$8*2))/12 -> 160.2242006 | R42: -0.0135661857 | S42: -0.006713019195 | T42: 0
D44: 2 | E44: 4 | F44: 6 | G44: 8 | N44: 2 | O44: 4 | P44: 6 | Q44: 8
B45: Basic Bundled Residential Monthly Average Bills - Summer | L45: All-Electric Bundled Residential Monthly Average Bills - Summer
D46: =$D$32 -> 2025-01-01 | E46: =$E$32 -> 2025-09-01 | F46: =$D$3&" Authorized" -> 2025 Authorized | G46: =$D$3&" w/Pending" -> 2025 w/Pending | H46: =$H$32 -> % Change over 01/1/2025 | I46: =$I$32 -> % Change over 09/1/2025 | J46: % Change over Authorized | N46: =$D$32 -> 2025-01-01 | O46: =$E$32 -> 2025-09-01 | P46: =$D$3&" Authorized" -> 2025 Authorized | Q46: =$D$3&" w/Pending" -> 2025 w/Pending | R46: =$H$32 -> % Change over 01/1/2025 | S46: =$I$32 -> % Change over 09/1/2025 | T46: % Change over Authorized
B47: Non-CARE | D47: =VLOOKUP($D$4,'Res Bill Impact'!$B$38:$J$48,D44,FALSE) -> 211.8816594 | E47: =VLOOKUP($D$4,'Res Bill Impact'!$B$38:$J$48,E44,FALSE) -> 210.4023754 | F47: =VLOOKUP($D$4,'Res Bill Impact'!$B$38:$J$48,F44,FALSE) -> 209.0700921 | G47: =VLOOKUP($D$4,'Res Bill Impact'!$B$38:$J$48,G44,FALSE) -> 209.0700921 | H47: =$G47/D47-1 -> -0.01326951703 | I47: -0.006332073583 | J47: =$G47/F47-1 -> 0 | L47: Non-CARE | N47: =VLOOKUP($D$4,'Res Bill Impact'!$L$38:$T$48,N44,FALSE) -> 206.4687647 | O47: =VLOOKUP($D$4,'Res Bill Impact'!$L$38:$T$48,O44,FALSE) -> 205.0328223 | P47: =VLOOKUP($D$4,'Res Bill Impact'!$L$38:$T$48,P44,FALSE) -> 203.7345394 | Q47: =VLOOKUP($D$4,'Res Bill Impact'!$L$38:$T$48,Q44,FALSE) -> 203.7345394 | R47: =$Q47/N47-1 -> -0.01324280351 | S47: -0.006332073583 | T47: 0
B48: CARE | D48: =VLOOKUP($D$4,'Res Bill Impact'!$B$54:$J$64,D44,FALSE) -> 116.762897 | E48: =VLOOKUP($D$4,'Res Bill Impact'!$B$54:$J$64,E44,FALSE) -> 116.3373601 | F48: =VLOOKUP($D$4,'Res Bill Impact'!$B$54:$J$64,F44,FALSE) -> 115.6007034 | G48: =VLOOKUP($D$4,'Res Bill Impact'!$B$54:$J$64,G44,FALSE) -> 115.6007034 | H48: -0.009953449485 | I48: -0.006332073583 | J48: 0 | L48: CARE | N48: =VLOOKUP($D$4,'Res Bill Impact'!$L$54:$T$64,N44,FALSE) -> 111.6657537 | O48: =VLOOKUP($D$4,'Res Bill Impact'!$L$54:$T$64,O44,FALSE) -> 111.2566732 | P48: =VLOOKUP($D$4,'Res Bill Impact'!$L$54:$T$64,P44,FALSE) -> 110.5521878 | Q48: =VLOOKUP($D$4,'Res Bill Impact'!$L$54:$T$64,Q44,FALSE) -> 110.5521878 | R48: -0.009972314007 | S48: -0.006332073583 | T48: 0
B49: Total | D49: =D47*(1-'SAR and RAR'!$AB$16)+D48*'SAR and RAR'!$AB$16 -> 187.5093392 | E49: =E47*(1-'SAR and RAR'!$AB$16)+E48*'SAR and RAR'!$AB$16 -> 186.3000573 | F49: =F47*(1-'SAR and RAR'!$AB$16)+F48*'SAR and RAR'!$AB$16 -> 185.1203916 | G49: =G47*(1-'SAR and RAR'!$AB$16)+G48*'SAR and RAR'!$AB$16 -> 185.1203916 | H49: -0.01274041917 | I49: -0.006332073583 | J49: 0 | L49: Total | N49: =N47*(1-'SAR and RAR'!$AB$16)+N48*'SAR and RAR'!$AB$16 -> 182.1773497 | O49: =O47*(1-'SAR and RAR'!$AB$16)+O48*'SAR and RAR'!$AB$16 -> 181.0045205 | P49: =P47*(1-'SAR and RAR'!$AB$16)+P48*'SAR and RAR'!$AB$16 -> 179.8583866 | Q49: =Q47*(1-'SAR and RAR'!$AB$16)+Q48*'SAR and RAR'!$AB$16 -> 179.8583866 | R49: -0.01272915141 | S49: -0.006332073583 | T49: 0
D51: 3 | E51: 5 | F51: 7 | G51: 9 | N51: 3 | O51: 5 | P51: 7 | Q51: 9
B52: Basic Bundled Residential Monthly Average Bills - Winter | L52: All-Electric Bundled Residential Monthly Average Bills - Winter
D53: =$D$32 -> 2025-01-01 | E53: =$E$32 -> 2025-09-01 | F53: =$D$3&" Authorized" -> 2025 Authorized | G53: =$D$3&" w/Pending" -> 2025 w/Pending | H53: =$H$32 -> % Change over 01/1/2025 | I53: =$I$32 -> % Change over 09/1/2025 | J53: % Change over Authorized | N53: =$D$32 -> 2025-01-01 | O53: =$E$32 -> 2025-09-01 | P53: =$D$3&" Authorized" -> 2025 Authorized | Q53: =$D$3&" w/Pending" -> 2025 w/Pending | R53: =$H$32 -> % Change over 01/1/2025 | S53: =$I$32 -> % Change over 09/1/2025 | T53: % Change over Authorized
B54: Non-CARE | D54: =VLOOKUP($D$4,'Res Bill Impact'!$B$38:$J$48,D51,FALSE) -> 172.5499347 | E54: =VLOOKUP($D$4,'Res Bill Impact'!$B$38:$J$48,E51,FALSE) -> 171.3361599 | F54: =VLOOKUP($D$4,'Res Bill Impact'!$B$38:$J$48,F51,FALSE) -> 170.2512467 | G54: =VLOOKUP($D$4,'Res Bill Impact'!$B$38:$J$48,G51,FALSE) -> 170.2512467 | H54: =$G54/D54-1 -> -0.01332187118 | I54: -0.006332073583 | J54: =$G54/F54-1 -> 0 | L54: Non-CARE | N54: =VLOOKUP($D$4,'Res Bill Impact'!$L$38:$T$48,N51,FALSE) -> 187.5884156 | O54: =VLOOKUP($D$4,'Res Bill Impact'!$L$38:$T$48,O51,FALSE) -> 186.2474137 | P54: =VLOOKUP($D$4,'Res Bill Impact'!$L$38:$T$48,P51,FALSE) -> 185.0680814 | Q54: =VLOOKUP($D$4,'Res Bill Impact'!$L$38:$T$48,Q51,FALSE) -> 185.0680814 | R54: =$Q54/N54-1 -> -0.01343544723 | S54: -0.006332073583 | T54: 0
B55: CARE | D55: =VLOOKUP($D$4,'Res Bill Impact'!$B$54:$J$64,D51,FALSE) -> 99.3377555 | E55: =VLOOKUP($D$4,'Res Bill Impact'!$B$54:$J$64,E51,FALSE) -> 98.97903543 | F55: =VLOOKUP($D$4,'Res Bill Impact'!$B$54:$J$64,F51,FALSE) -> 98.35229289 | G55: =VLOOKUP($D$4,'Res Bill Impact'!$B$54:$J$64,G51,FALSE) -> 98.35229289 | H55: -0.009920322856 | I55: -0.006332073583 | J55: 0 | L55: CARE | N55: =VLOOKUP($D$4,'Res Bill Impact'!$L$54:$T$64,N51,FALSE) -> 107.6648625 | O55: =VLOOKUP($D$4,'Res Bill Impact'!$L$54:$T$64,O51,FALSE) -> 107.2855557 | P55: =VLOOKUP($D$4,'Res Bill Impact'!$L$54:$T$64,P51,FALSE) -> 106.6062156 | Q55: =VLOOKUP($D$4,'Res Bill Impact'!$L$54:$T$64,Q51,FALSE) -> 106.6062156 | R55: -0.009832798312 | S55: -0.006332073583 | T55: 0
B56: Total | D56: =D54*(1-'SAR and RAR'!$AB$16)+D55*'SAR and RAR'!$AB$16 -> 153.7907475 | E56: =E54*(1-'SAR and RAR'!$AB$16)+E55*'SAR and RAR'!$AB$16 -> 152.7960637 | F56: =F54*(1-'SAR and RAR'!$AB$16)+F55*'SAR and RAR'!$AB$16 -> 151.8285478 | G56: =G54*(1-'SAR and RAR'!$AB$16)+G55*'SAR and RAR'!$AB$16 -> 151.8285478 | H56: -0.01275889313 | I56: -0.006332073583 | J56: 0 | L56: Total | N56: =N54*(1-'SAR and RAR'!$AB$16)+N55*'SAR and RAR'!$AB$16 -> 167.1095703 | O56: =O54*(1-'SAR and RAR'!$AB$16)+O55*'SAR and RAR'!$AB$16 -> 166.0149839 | P56: =P54*(1-'SAR and RAR'!$AB$16)+P55*'SAR and RAR'!$AB$16 -> 164.9637648 | Q56: =Q54*(1-'SAR and RAR'!$AB$16)+Q55*'SAR and RAR'!$AB$16 -> 164.9637648 | R56: -0.01284070977 | S56: -0.006332073583 | T56: 0
B59: Essential Use Basic Bundled Residential Monthly Average Bills | L59: Essential Use All-Electric Bundled Residential Monthly Average Bills
D60: =$D$32 -> 2025-01-01 | E60: =$E$32 -> 2025-09-01 | F60: =$D$3&" Authorized" -> 2025 Authorized | G60: =$D$3&" w/Pending" -> 2025 w/Pending | H60: =$H$32 -> % Change over 01/1/2025 | I60: =$I$32 -> % Change over 09/1/2025 | J60: % Change over Authorized | N60: =$D$32 -> 2025-01-01 | O60: =$E$32 -> 2025-09-01 | P60: =$D$3&" Authorized" -> 2025 Authorized | Q60: =$D$3&" w/Pending" -> 2025 w/Pending | R60: =$H$32 -> % Change over 01/1/2025 | S60: =$I$32 -> % Change over 09/1/2025 | T60: % Change over Authorized
B61: Basic Essential Use - Non-CARE | D61: =((D68*4)+(D75*8)+($L$8*2))/12 -> 109.1603304 | E61: 108.3080597 | F61: 107.5607959 | G61: 107.5607959 | H61: =$G61/D61-1 -> -0.01465307543 | I61: -0.006899429477 | J61: =$G61/F61-1 -> 0 | L61: All-Electric Essential Use - Non-CARE | N61: =((N68*4)+(N75*8)+($L$8*2))/12 -> 143.761376 | O61: 142.6610128 | P61: 141.6962236 | Q61: 141.6962236 | R61: =$Q61/N61-1 -> -0.01436514138 | S61: -0.006762809457 | T61: 0
B62: Basic Essential Use - CARE | D62: 62.99439434 | E62: 62.73827397 | F62: 62.27956138 | G62: 62.27956138 | H62: -0.01134756456 | I62: -0.007311526987 | J62: =$G62/F62-1 -> 0 | L62: All-Electric Essential Use - CARE | N62: 84.15672569 | O62: 83.82604973 | P62: 83.2338078 | Q62: 83.2338078 | R62: -0.01096665638 | S62: -0.007065129908 | T62: 0
B63: Total | D63: =((D70*4)+(D77*8)+($L$8*2))/12 -> 97.33121337 | E63: =((E70*4)+(E77*8)+($L$8*2))/12 -> 96.63169449 | F63: =((F70*4)+(F77*8)+($L$8*2))/12 -> 95.95836627 | G63: =((G70*4)+(G77*8)+($L$8*2))/12 -> 95.95836627 | H63: -0.01410490067 | I63: -0.006967985189 | J63: 0 | L63: Total | N63: =((N70*4)+(N77*8)+($L$8*2))/12 -> 128.4888516 | O63: =((O70*4)+(O77*8)+($L$8*2))/12 -> 127.5857057 | P63: =((P70*4)+(P77*8)+($L$8*2))/12 -> 126.7163744 | Q63: =((Q70*4)+(Q77*8)+($L$8*2))/12 -> 126.7163744 | R63: -0.01379479404 | S63: -0.006813704465 | T63: 0
D65: 2 | E65: 4 | F65: 6 | G65: 8 | N65: 2 | O65: 4 | P65: 6 | Q65: 8
B66: Essential Use Basic Bundled Residential Monthly Average Bills - Summer | L66: Essential Use All-Electric Bundled Residential Monthly Average Bills - Summer
D67: =$D$32 -> 2025-01-01 | E67: =$E$32 -> 2025-09-01 | F67: =$D$3&" Authorized" -> 2025 Authorized | G67: =$D$3&" w/Pending" -> 2025 w/Pending | H67: =$H$32 -> % Change over 01/1/2025 | I67: =$I$32 -> % Change over 09/1/2025 | J67: % Change over Authorized | N67: =$D$32 -> 2025-01-01 | O67: =$E$32 -> 2025-09-01 | P67: =$D$3&" Authorized" -> 2025 Authorized | Q67: =$D$3&" w/Pending" -> 2025 w/Pending | R67: =$H$32 -> % Change over 01/1/2025 | S67: =$I$32 -> % Change over 09/1/2025 | T67: % Change over Authorized
B68: Basic Essential Use - Non-CARE | D68: =VLOOKUP($D$4,'Res Bill Impact'!$B$70:$J$80,D65,FALSE) -> 119.6789108 | E68: =VLOOKUP($D$4,'Res Bill Impact'!$B$70:$J$80,E65,FALSE) -> 118.8208025 | F68: =VLOOKUP($D$4,'Res Bill Impact'!$B$70:$J$80,F65,FALSE) -> 118.0684205 | G68: =VLOOKUP($D$4,'Res Bill Impact'!$B$70:$J$80,G65,FALSE) -> 118.0684205 | H68: =$G68/D68-1 -> -0.01345675911 | I68: -0.006332073583 | J68: =$G68/F68-1 -> 0 | L68: All-Electric Essential Use - Non-CARE | N68: =VLOOKUP($D$4,'Res Bill Impact'!$L$70:$T$80,N65,FALSE) -> 103.8031369 | O68: =VLOOKUP($D$4,'Res Bill Impact'!$L$70:$T$80,O65,FALSE) -> 103.0588593 | P68: =VLOOKUP($D$4,'Res Bill Impact'!$L$70:$T$80,P65,FALSE) -> 102.4062831 | Q68: =VLOOKUP($D$4,'Res Bill Impact'!$L$70:$T$80,Q65,FALSE) -> 102.4062831 | R68: =$Q68/N68-1 -> -0.01345675911 | S68: -0.006332073583 | T68: 0
B69: Basic Essential Use - CARE | D69: =VLOOKUP($D$4,'Res Bill Impact'!$B$86:$J$96,D65,FALSE) -> 73.19676963 | E69: =VLOOKUP($D$4,'Res Bill Impact'!$B$86:$J$96,E65,FALSE) -> 72.938895 | F69: =VLOOKUP($D$4,'Res Bill Impact'!$B$86:$J$96,F65,FALSE) -> 72.47704055 | G69: =VLOOKUP($D$4,'Res Bill Impact'!$B$86:$J$96,G65,FALSE) -> 72.47704055 | H69: -0.009832798312 | I69: -0.006332073583 | J69: 0 | L69: All-Electric Essential Use - CARE | N69: =VLOOKUP($D$4,'Res Bill Impact'!$L$86:$T$96,N65,FALSE) -> 63.48699406 | O69: =VLOOKUP($D$4,'Res Bill Impact'!$L$86:$T$96,O65,FALSE) -> 63.2633273 | P69: =VLOOKUP($D$4,'Res Bill Impact'!$L$86:$T$96,P65,FALSE) -> 62.86273925 | Q69: =VLOOKUP($D$4,'Res Bill Impact'!$L$86:$T$96,Q65,FALSE) -> 62.86273925 | R69: -0.009832798312 | S69: -0.006332073583 | T69: 0
B70: Total | D70: =D68*(1-'SAR and RAR'!$AB$16)+D69*'SAR and RAR'!$AB$16 -> 107.7687723 | E70: =E68*(1-'SAR and RAR'!$AB$16)+E69*'SAR and RAR'!$AB$16 -> 107.0644622 | F70: =F68*(1-'SAR and RAR'!$AB$16)+F69*'SAR and RAR'!$AB$16 -> 106.3865222 | G70: =G68*(1-'SAR and RAR'!$AB$16)+G69*'SAR and RAR'!$AB$16 -> 106.3865222 | H70: -0.01282607316 | I70: -0.006332073583 | J70: 0 | L70: Total | N70: =N68*(1-'SAR and RAR'!$AB$16)+N69*'SAR and RAR'!$AB$16 -> 93.47291479 | O70: =O68*(1-'SAR and RAR'!$AB$16)+O69*'SAR and RAR'!$AB$16 -> 92.86203357 | P70: =P68*(1-'SAR and RAR'!$AB$16)+P69*'SAR and RAR'!$AB$16 -> 92.27402434 | Q70: =Q68*(1-'SAR and RAR'!$AB$16)+Q69*'SAR and RAR'!$AB$16 -> 92.27402434 | R70: -0.01282607316 | S70: -0.006332073583 | T70: 0
D72: 3 | E72: 5 | F72: 7 | G72: 9 | N72: 3 | O72: 5 | P72: 7 | Q72: 9
B73: Essential Use Basic Bundled Residential Monthly Average Bills - Winter | L73: Essential Use All-Electric Bundled Residential Monthly Average Bills - Winter
D74: =$D$32 -> 2025-01-01 | E74: =$E$32 -> 2025-09-01 | F74: =$D$3&" Authorized" -> 2025 Authorized | G74: =$D$3&" w/Pending" -> 2025 w/Pending | H74: =$H$32 -> % Change over 01/1/2025 | I74: =$I$32 -> % Change over 09/1/2025 | J74: % Change over Authorized | N74: =$D$32 -> 2025-01-01 | O74: =$E$32 -> 2025-09-01 | P74: =$D$3&" Authorized" -> 2025 Authorized | Q74: =$D$3&" w/Pending" -> 2025 w/Pending | R74: =$H$32 -> % Change over 01/1/2025 | S74: =$I$32 -> % Change over 09/1/2025 | T74: % Change over Authorized
B75: Basic Essential Use - Non-CARE | D75: =VLOOKUP($D$4,'Res Bill Impact'!$B$70:$J$80,D72,FALSE) -> 118.4576974 | E75: =VLOOKUP($D$4,'Res Bill Impact'!$B$70:$J$80,E72,FALSE) -> 117.6083454 | F75: =VLOOKUP($D$4,'Res Bill Impact'!$B$70:$J$80,F72,FALSE) -> 116.8636407 | G75: =VLOOKUP($D$4,'Res Bill Impact'!$B$70:$J$80,G72,FALSE) -> 116.8636407 | H75: =$G75/D75-1 -> -0.01345675911 | I75: -0.006332073583 | J75: =$G75/F75-1 -> 0 | L75: All-Electric Essential Use - Non-CARE | N75: =VLOOKUP($D$4,'Res Bill Impact'!$L$70:$T$80,N72,FALSE) -> 178.2971528 | O75: =VLOOKUP($D$4,'Res Bill Impact'!$L$70:$T$80,O72,FALSE) -> 177.0187466 | P75: =VLOOKUP($D$4,'Res Bill Impact'!$L$70:$T$80,P72,FALSE) -> 175.8978509 | Q75: =VLOOKUP($D$4,'Res Bill Impact'!$L$70:$T$80,Q72,FALSE) -> 175.8978509 | R75: =$Q75/N75-1 -> -0.01345675911 | S75: -0.006332073583 | T75: 0
B76: Basic Essential Use - CARE | D76: =VLOOKUP($D$4,'Res Bill Impact'!$B$86:$J$96,D72,FALSE) -> 72.44986381 | E76: =VLOOKUP($D$4,'Res Bill Impact'!$B$86:$J$96,E72,FALSE) -> 72.19462056 | F76: =VLOOKUP($D$4,'Res Bill Impact'!$B$86:$J$96,F72,FALSE) -> 71.73747891 | G76: =VLOOKUP($D$4,'Res Bill Impact'!$B$86:$J$96,G72,FALSE) -> 71.73747891 | H76: -0.009832798312 | I76: -0.006332073583 | J76: 0 | L76: All-Electric Essential Use - CARE | N76: =VLOOKUP($D$4,'Res Bill Impact'!$L$86:$T$96,N72,FALSE) -> 109.0482486 | O76: =VLOOKUP($D$4,'Res Bill Impact'!$L$86:$T$96,O72,FALSE) -> 108.6640681 | P76: =VLOOKUP($D$4,'Res Bill Impact'!$L$86:$T$96,P72,FALSE) -> 107.9759992 | Q76: =VLOOKUP($D$4,'Res Bill Impact'!$L$86:$T$96,Q72,FALSE) -> 107.9759992 | R76: -0.009832798312 | S76: -0.006332073583 | T76: 0
B77: Total | D77: =D75*(1-'SAR and RAR'!$AB$16)+D76*'SAR and RAR'!$AB$16 -> 106.669091 | E77: =E75*(1-'SAR and RAR'!$AB$16)+E76*'SAR and RAR'!$AB$16 -> 105.9719677 | F77: =F75*(1-'SAR and RAR'!$AB$16)+F76*'SAR and RAR'!$AB$16 -> 105.3009454 | G77: =G75*(1-'SAR and RAR'!$AB$16)+G76*'SAR and RAR'!$AB$16 -> 105.3009454 | H77: -0.01282607316 | I77: -0.006332073583 | J77: 0 | L77: Total | N77: =N75*(1-'SAR and RAR'!$AB$16)+N76*'SAR and RAR'!$AB$16 -> 160.5534772 | O77: =O75*(1-'SAR and RAR'!$AB$16)+O76*'SAR and RAR'!$AB$16 -> 159.5041988 | P77: =P75*(1-'SAR and RAR'!$AB$16)+P76*'SAR and RAR'!$AB$16 -> 158.4942065 | Q77: =Q75*(1-'SAR and RAR'!$AB$16)+Q76*'SAR and RAR'!$AB$16 -> 158.4942065 | R77: -0.01282607316 | S77: -0.006332073583 | T77: 0
B80: Typical Customer Basic Bundled Residential Monthly Average Bills | L80: Typical Customer All-Electric Bundled Residential Monthly Average Bills
D81: =$D$32 -> 2025-01-01 | E81: =$E$32 -> 2025-09-01 | F81: =$D$3&" Authorized" -> 2025 Authorized | G81: =$D$3&" w/Pending" -> 2025 w/Pending | H81: =$H$32 -> % Change over 01/1/2025 | I81: =$I$32 -> % Change over 09/1/2025 | J81: % Change over Authorized | N81: =$D$32 -> 2025-01-01 | O81: =$E$32 -> 2025-09-01 | P81: =$D$3&" Authorized" -> 2025 Authorized | Q81: =$D$3&" w/Pending" -> 2025 w/Pending | R81: =$H$32 -> % Change over 01/1/2025 | S81: =$I$32 -> % Change over 09/1/2025 | T81: % Change over Authorized
B82: =$I$4&"kWh Monthly Usage - Non-CARE" -> 500kWh Monthly Usage - Non-CARE | D82: =((D89*4)+(D96*8)+($L$8*2))/12 -> 211.5547798 | E82: 210.0126712 | F82: 208.6214063 | G82: =((G89*4)+(G96*8)+($L$8*2))/12 -> 208.6214063 | H82: =$G82/D82-1 -> -0.01386578707 | I82: =$G82/E82-1 -> -0.006624671242 | J82: =$G82/F82-1 -> 0 | L82: =$I$4&"kWh Monthly Usage - Non-CARE" -> 500kWh Monthly Usage - Non-CARE | N82: =((N89*4)+(N96*8)+($L$8*2))/12 -> 200.9898869 | O82: 199.5008439 | P82: 198.1761407 | Q82: 198.1761407 | R82: =$Q82/N82-1 -> -0.01399944182 | S82: -0.0066400884 | T82: 0
B83: =$I$4&"kWh Monthly Usage - CARE" -> 500kWh Monthly Usage - CARE | D83: 126.4130629 | E83: 125.9128787 | F83: 125.0541399 | G83: 125.0541399 | H83: =$G83/D83-1 -> -0.01074986254 | I83: =$G83/E83-1 -> -0.006820103216 | J83: =$G83/F83-1 -> 0 | L83: =$I$4&"kWh Monthly Usage - CARE" -> 500kWh Monthly Usage - CARE | N83: 119.5456219 | O83: 119.080191 | P83: 118.2647172 | Q83: 118.2647172 | R83: -0.01071477716 | S83: -0.006848105809 | T83: 0
B84: Total | D84: =((D91*4)+(D98*8)+($L$8*2))/12 -> 189.7388822 | E84: =((E91*4)+(E98*8)+($L$8*2))/12 -> 188.4637463 | F84: =((F91*4)+(F98*8)+($L$8*2))/12 -> 187.2089308 | G84: =((G91*4)+(G98*8)+($L$8*2))/12 -> 187.2089308 | H84: =$G84/D84-1 -> -0.01333385861 | I84: =$G84/E84-1 -> -0.006658126828 | J84: 0 | L84: Total | N84: =((N91*4)+(N98*8)+($L$8*2))/12 -> 180.1213889 | O84: =((O91*4)+(O98*8)+($L$8*2))/12 -> 178.8946265 | P84: =((P91*4)+(P98*8)+($L$8*2))/12 -> 177.7004033 | Q84: =((Q91*4)+(Q98*8)+($L$8*2))/12 -> 177.7004033 | R84: -0.01344085574 | S84: -0.0066755675 | T84: 0
D86: 2 | E86: 4 | F86: 6 | G86: 8 | N86: 2 | O86: 4 | P86: 6 | Q86: 8
B87: Typical Customer Basic Bundled Residential Monthly Average Bills - Summer | L87: Typical Customer All-Electric Bundled Residential Monthly Average Bills - Summer
D88: =$D$32 -> 2025-01-01 | E88: =$E$32 -> 2025-09-01 | F88: =$D$3&" Authorized" -> 2025 Authorized | G88: =$D$3&" w/Pending" -> 2025 w/Pending | H88: =$H$32 -> % Change over 01/1/2025 | I88: =$I$32 -> % Change over 09/1/2025 | J88: % Change over Authorized | N88: =$D$32 -> 2025-01-01 | O88: =$E$32 -> 2025-09-01 | P88: =$D$3&" Authorized" -> 2025 Authorized | Q88: =$D$3&" w/Pending" -> 2025 w/Pending | R88: =$H$32 -> % Change over 01/1/2025 | S88: =$I$32 -> % Change over 09/1/2025 | T88: % Change over Authorized
B89: =$I$4&"kWh Monthly Usage - Non-CARE" -> 500kWh Monthly Usage - Non-CARE | D89: =VLOOKUP($D$4,'Res Bill Impact'!$B$102:$J$112,D86,FALSE) -> 221.0535619 | E89: =VLOOKUP($D$4,'Res Bill Impact'!$B$102:$J$112,E86,FALSE) -> 219.5124862 | F89: =VLOOKUP($D$4,'Res Bill Impact'!$B$102:$J$112,F86,FALSE) -> 218.122517 | G89: =VLOOKUP($D$4,'Res Bill Impact'!$B$102:$J$112,G86,FALSE) -> 218.122517 | H89: =$G89/D89-1 -> -0.01325943289 | I89: -0.006332073583 | J89: =$G89/F89-1 -> 0 | L89: =$I$4&"kWh Monthly Usage - Non-CARE" -> 500kWh Monthly Usage - Non-CARE | N89: =VLOOKUP($D$4,'Res Bill Impact'!$L$102:$T$112,N86,FALSE) -> 206.8683625 | O89: =VLOOKUP($D$4,'Res Bill Impact'!$L$102:$T$112,O86,FALSE) -> 205.3985367 | P89: =VLOOKUP($D$4,'Res Bill Impact'!$L$102:$T$112,P86,FALSE) -> 204.097938 | Q89: =VLOOKUP($D$4,'Res Bill Impact'!$L$102:$T$112,Q86,FALSE) -> 204.097938 | R89: =$Q89/N89-1 -> -0.01339220968 | S89: -0.006332073583 | T89: 0
B90: =$I$4&"kWh Monthly Usage - CARE" -> 500kWh Monthly Usage - CARE | D90: =VLOOKUP($D$4,'Res Bill Impact'!$B$117:$J$127,D86,FALSE) -> 135.9838195 | E90: =VLOOKUP($D$4,'Res Bill Impact'!$B$117:$J$127,E86,FALSE) -> 135.4843118 | F90: =VLOOKUP($D$4,'Res Bill Impact'!$B$117:$J$127,F86,FALSE) -> 134.6264152 | G90: =VLOOKUP($D$4,'Res Bill Impact'!$B$117:$J$127,G86,FALSE) -> 134.6264152 | H90: -0.009982101917 | I90: -0.006332073583 | J90: 0 | L90: =$I$4&"kWh Monthly Usage - CARE" -> 500kWh Monthly Usage - CARE | N90: =VLOOKUP($D$4,'Res Bill Impact'!$L$117:$T$127,N86,FALSE) -> 126.76309 | O90: =VLOOKUP($D$4,'Res Bill Impact'!$L$117:$T$127,O86,FALSE) -> 126.3102446 | P90: =VLOOKUP($D$4,'Res Bill Impact'!$L$117:$T$127,P86,FALSE) -> 125.5104388 | Q90: =VLOOKUP($D$4,'Res Bill Impact'!$L$117:$T$127,Q86,FALSE) -> 125.5104388 | R90: -0.009881829099 | S90: -0.006332073583 | T90: 0
B91: Total | D91: =D89*(1-'SAR and RAR'!$AB$16)+D90*'SAR and RAR'!$AB$16 -> 199.2561063 | E91: =E89*(1-'SAR and RAR'!$AB$16)+E90*'SAR and RAR'!$AB$16 -> 197.981912 | F91: =F89*(1-'SAR and RAR'!$AB$16)+F90*'SAR and RAR'!$AB$16 -> 196.728276 | G91: =G89*(1-'SAR and RAR'!$AB$16)+G90*'SAR and RAR'!$AB$16 -> 196.728276 | H91: -0.01268633794 | I91: -0.006332073583 | J91: 0 | L91: Total | N91: =N89*(1-'SAR and RAR'!$AB$16)+N90*'SAR and RAR'!$AB$16 -> 186.3429551 | O91: =O89*(1-'SAR and RAR'!$AB$16)+O90*'SAR and RAR'!$AB$16 -> 185.1337106 | P91: =P89*(1-'SAR and RAR'!$AB$16)+P90*'SAR and RAR'!$AB$16 -> 183.9614303 | Q91: =Q89*(1-'SAR and RAR'!$AB$16)+Q90*'SAR and RAR'!$AB$16 -> 183.9614303 | R91: -0.01278033184 | S91: -0.006332073583 | T91: 0
D93: 3 | E93: 5 | F93: 7 | G93: 9 | N93: 3 | O93: 5 | P93: 7 | Q93: 9
B94: Typical Customer Basic Bundled Residential Monthly Average Bills - Winter | L94: Typical Customer All-Electric Bundled Residential Monthly Average Bills - Winter
D95: =$D$32 -> 2025-01-01 | E95: =$E$32 -> 2025-09-01 | F95: =$D$3&" Authorized" -> 2025 Authorized | G95: =$D$3&" w/Pending" -> 2025 w/Pending | H95: =$H$32 -> % Change over 01/1/2025 | I95: =$I$32 -> % Change over 09/1/2025 | J95: % Change over Authorized | N95: =$D$32 -> 2025-01-01 | O95: =$E$32 -> 2025-09-01 | P95: =$D$3&" Authorized" -> 2025 Authorized | Q95: =$D$3&" w/Pending" -> 2025 w/Pending | R95: =$H$32 -> % Change over 01/1/2025 | S95: =$I$32 -> % Change over 09/1/2025 | T95: % Change over Authorized
B96: =$I$4&"kWh Monthly Usage - Non-CARE" -> 500kWh Monthly Usage - Non-CARE | D96: =VLOOKUP($D$4,'Res Bill Impact'!$B$102:$J$112,D93,FALSE) -> 221.3620459 | E96: =VLOOKUP($D$4,'Res Bill Impact'!$B$102:$J$112,E93,FALSE) -> 219.8194208 | F96: =VLOOKUP($D$4,'Res Bill Impact'!$B$102:$J$112,F93,FALSE) -> 218.4275081 | G96: =VLOOKUP($D$4,'Res Bill Impact'!$B$102:$J$112,G93,FALSE) -> 218.4275081 | H96: =$G96/D96-1 -> -0.01325673446 | I96: -0.006332073583 | J96: =$G96/F96-1 -> 0 | L96: =$I$4&"kWh Monthly Usage - Non-CARE" -> 500kWh Monthly Usage - Non-CARE | N96: =VLOOKUP($D$4,'Res Bill Impact'!$L$102:$T$112,N93,FALSE) -> 212.6073063 | O96: =VLOOKUP($D$4,'Res Bill Impact'!$L$102:$T$112,O93,FALSE) -> 211.1086547 | P96: =VLOOKUP($D$4,'Res Bill Impact'!$L$102:$T$112,P93,FALSE) -> 209.7718991 | Q96: =VLOOKUP($D$4,'Res Bill Impact'!$L$102:$T$112,Q93,FALSE) -> 209.7718991 | R96: =$Q96/N96-1 -> -0.01333635777 | S96: -0.006332073583 | T96: 0
B97: =$I$4&"kWh Monthly Usage - CARE" -> 500kWh Monthly Usage - CARE | D97: =VLOOKUP($D$4,'Res Bill Impact'!$B$117:$J$127,D93,FALSE) -> 136.1843417 | E97: =VLOOKUP($D$4,'Res Bill Impact'!$B$117:$J$127,E93,FALSE) -> 135.6838193 | F97: =VLOOKUP($D$4,'Res Bill Impact'!$B$117:$J$127,F93,FALSE) -> 134.8246593 | G97: =VLOOKUP($D$4,'Res Bill Impact'!$B$117:$J$127,G93,FALSE) -> 134.8246593 | H97: -0.009984131684 | I97: -0.006332073583 | J97: 0 | L97: =$I$4&"kWh Monthly Usage - CARE" -> 500kWh Monthly Usage - CARE | N97: =VLOOKUP($D$4,'Res Bill Impact'!$L$117:$T$127,N93,FALSE) -> 130.493545 | O97: =VLOOKUP($D$4,'Res Bill Impact'!$L$117:$T$127,O93,FALSE) -> 130.0218213 | P97: =VLOOKUP($D$4,'Res Bill Impact'!$L$117:$T$127,P93,FALSE) -> 129.1985135 | Q97: =VLOOKUP($D$4,'Res Bill Impact'!$L$117:$T$127,Q93,FALSE) -> 129.1985135 | R97: -0.009924103547 | S97: -0.006332073583 | T97: 0
B98: Total | D98: =D96*(1-'SAR and RAR'!$AB$16)+D97*'SAR and RAR'!$AB$16 -> 199.5369273 | E98: =E96*(1-'SAR and RAR'!$AB$16)+E97*'SAR and RAR'!$AB$16 -> 198.2613205 | F98: =F96*(1-'SAR and RAR'!$AB$16)+F97*'SAR and RAR'!$AB$16 -> 197.0059153 | G98: =G96*(1-'SAR and RAR'!$AB$16)+G97*'SAR and RAR'!$AB$16 -> 197.0059153 | H98: -0.01268442902 | I98: -0.006332073583 | J98: 0 | L98: Total | N98: =N96*(1-'SAR and RAR'!$AB$16)+N97*'SAR and RAR'!$AB$16 -> 191.567263 | O98: =O96*(1-'SAR and RAR'!$AB$16)+O97*'SAR and RAR'!$AB$16 -> 190.3317415 | P98: =P96*(1-'SAR and RAR'!$AB$16)+P97*'SAR and RAR'!$AB$16 -> 189.126547 | Q98: =Q96*(1-'SAR and RAR'!$AB$16)+Q97*'SAR and RAR'!$AB$16 -> 189.126547 | R98: -0.01274077819 | S98: -0.006332073583 | T98: 0
B100: Small Commercial Monthly Average Bills
D101: =$D$32 -> 2025-01-01 | E101: =$E$32 -> 2025-09-01 | F101: =$D$3&" Authorized" -> 2025 Authorized | G101: =$D$3&" w/Pending" -> 2025 w/Pending | H101: % Change over 01/1/2023 | I101: =I32 -> % Change over 09/1/2025 | J101: % Change over Authorized
B102: NAICS 531 | D102: =('Bill Impact (B-1)'!C33*4+'Bill Impact (B-1)'!D33*8)/12 -> 431.8657987 | E102: =('Bill Impact (B-1)'!E33*4+'Bill Impact (B-1)'!F33*8)/12 -> 428.728087 | F102: =('Bill Impact (B-1)'!G33*4+'Bill Impact (B-1)'!H33*8)/12 -> 433.2644041 | G102: =('Bill Impact (B-1)'!I33*4+'Bill Impact (B-1)'!J33*8)/12 -> 433.2644041 | H102: =$G102/D102-1 -> 0.003238518384 | I102: 0.01058087208 | J102: =$G102/F102-1 -> 0
B103: NAICS 621 | D103: =('Bill Impact (B-1)'!C34*4+'Bill Impact (B-1)'!D34*8)/12 -> 530.4655252 | E103: =('Bill Impact (B-1)'!E34*4+'Bill Impact (B-1)'!F34*8)/12 -> 526.599715 | F103: =('Bill Impact (B-1)'!G34*4+'Bill Impact (B-1)'!H34*8)/12 -> 532.1886735 | G103: =('Bill Impact (B-1)'!I34*4+'Bill Impact (B-1)'!J34*8)/12 -> 532.1886735 | H103: 0.003248370095 | I103: 0.01061329583 | J103: 0
B104: NAICS 722 | D104: =('Bill Impact (B-1)'!C35*4+'Bill Impact (B-1)'!D35*8)/12 -> 1332.737904 | E104: =('Bill Impact (B-1)'!E35*4+'Bill Impact (B-1)'!F35*8)/12 -> 1322.961845 | F104: =('Bill Impact (B-1)'!G35*4+'Bill Impact (B-1)'!H35*8)/12 -> 1337.09549 | G104: =('Bill Impact (B-1)'!I35*4+'Bill Impact (B-1)'!J35*8)/12 -> 1337.09549 | H104: 0.003269649614 | I104: 0.01068333549 | J104: 0
B106: Small Commercial Monthly Average Bills - Summer
D107: =$D$32 -> 2025-01-01 | E107: =$E$32 -> 2025-09-01 | F107: =$D$3&" Authorized" -> 2025 Authorized | G107: =$D$3&" w/Pending" -> 2025 w/Pending | H107: % Change over 01/1/2023 | I107: =I32 -> % Change over 09/1/2025 | J107: % Change over Authorized
B108: NAICS 531 | D108: ='Bill Impact (B-1)'!C33 -> 497.1077164 | E108: ='Bill Impact (B-1)'!E33 -> 493.6860715 | F108: ='Bill Impact (B-1)'!G33 -> 498.6328823 | G108: ='Bill Impact (B-1)'!I33 -> 498.6328823 | H108: =$G108/D108-1 -> 0.003068079237 | I108: 0.01002015462 | J108: =$G108/F108-1 -> 0
B109: NAICS 621 | D109: ='Bill Impact (B-1)'!C34 -> 663.6905542 | E109: ='Bill Impact (B-1)'!E34 -> 659.0953675 | F109: ='Bill Impact (B-1)'!G34 -> 665.7388153 | G109: ='Bill Impact (B-1)'!I34 -> 665.7388153 | H109: 0.003086168732 | I109: 0.01007964567 | J109: 0
B110: NAICS 722 | D110: ='Bill Impact (B-1)'!C35 -> 1657.299057 | E110: ='Bill Impact (B-1)'!E35 -> 1645.814442 | F110: ='Bill Impact (B-1)'!G35 -> 1662.418216 | G110: ='Bill Impact (B-1)'!I35 -> 1662.418216 | H110: 0.003088856356 | I110: 0.0100884849 | J110: 0
B112: Small Commercial Monthly Average Bills - Winter
D113: =$D$32 -> 2025-01-01 | E113: =$E$32 -> 2025-09-01 | F113: =$D$3&" Authorized" -> 2025 Authorized | G113: =$D$3&" w/Pending" -> 2025 w/Pending | H113: % Change over 01/1/2023 | I113: =I32 -> % Change over 09/1/2025 | J113: % Change over Authorized
B114: NAICS 531 | D114: ='Bill Impact (B-1)'!D33 -> 399.2448399 | E114: ='Bill Impact (B-1)'!F33 -> 396.2490948 | F114: ='Bill Impact (B-1)'!H33 -> 400.580165 | G114: ='Bill Impact (B-1)'!J33 -> 400.580165 | H114: =$G114/D114-1 -> 0.003344626976 | I114: 0.01093017054 | J114: =$G114/F114-1 -> 0
B115: NAICS 621 | D115: ='Bill Impact (B-1)'!D34 -> 463.8530107 | E115: ='Bill Impact (B-1)'!F34 -> 460.3518887 | F115: ='Bill Impact (B-1)'!H34 -> 465.4136027 | G115: ='Bill Impact (B-1)'!J34 -> 465.4136027 | H115: 0.00336441064 | I115: 0.01099531484 | J115: 0
B116: NAICS 722 | D116: ='Bill Impact (B-1)'!D35 -> 1170.457328 | E116: ='Bill Impact (B-1)'!F35 -> 1161.535547 | F116: ='Bill Impact (B-1)'!H35 -> 1174.434127 | G116: ='Bill Impact (B-1)'!J35 -> 1174.434127 | H116: 0.003397645949 | I116: 0.01110476628 | J116: 0

Sheet Authorized Rev Req
A2: Annual Period 2025
A3: Reporting Date: September 1, 2025
B5: January 1, 2024 | C5: March 1, 2024 | D5: April 1, 2024 | E5: July 1, 2024 | F5: September 1, 2024 | G5: October 1, 2024 | H5: January 1, 2025 | I5: March 1, 2025 | J5: September 1, 2025 | K5: January 1, 2024 | L5: March 1, 2024 | M5: April 1, 2024 | N5: July 1, 2024 | O5: September 1, 2024 | P5: October 1, 2024 | Q5: January 1, 2025 | R5: March 1, 2025 | S5: September 1, 2025
B6: 7116-E | C6: 7191-E | D6: 7227-E | E6: 7307-E | F6: 7366-E | G6: 7382-E | H6: 7469-E | I6: 7516-E | J6: 7684-E | K6: =B6 -> 7116-E | L6: =C6 -> 7191-E | M6: 7227-E | N6: 7307-E | O6: 7366-E | P6: 7382-E | Q6: 7469-E | R6: 7516-E | S6: 7684-E
A7: Filing Description | T7: Revenue Recovery Mechanism | U7: Balancing Account
A8: Safety Affordability Reliability Proceedings
A9: General Rate Case | B9: D.23-11-069 | C9: =B9 -> D.23-11-069 | D9: =B9 -> D.23-11-069 | E9: =C9 -> D.23-11-069 | F9: =E9 -> D.23-11-069 | G9: D.23-11-069 | H9: D.23-11-069 | I9: =H9 -> D.23-11-069 | J9: =I9 -> D.23-11-069 | K9: 7331840.8 | L9: =K9 -> 7331840.8 | M9: 7331840.8 | N9: 7331840.8 | O9: 7331840.8 | P9: 7331840.8 | Q9: 6884278.167 | R9: =Q9 -> 6884278.167 | S9: =R9 -> 6884278.167 | T9: Distribution | U9: =IF(RIGHT(A9,1)="*","Y","N") -> N
A10: General Rate Case (Distribution - Wildfire) | B10: D.23-11-069 | C10: D.23-11-069 | D10: D.23-11-069 | E10: D.23-11-069 | F10: D.23-11-069 | G10: D.23-11-069 | H10: D.23-11-069 | I10: =H10 -> D.23-11-069 | J10: D.23-11-069 | K10: 904.6838228 | L10: 904.6838228 | M10: 904.6838228 | N10: 904.6838228 | O10: 904.6838228 | P10: 904.6838228 | Q10: 978572.4143 | R10: 978572.4143 | S10: =R10 -> 978572.4143 | T10: Distribution (Wildfire) | U10: N
A11: General Rate Case - DRAM* | B11: Preliminary Statement CZ | C11: Preliminary Statement CZ | D11: Preliminary Statement CZ | E11: Preliminary Statement CZ | F11: Preliminary Statement CZ | G11: Preliminary Statement CZ | H11: Preliminary Statement CZ | I11: D.23-11-069 | J11: D.23-11-069 | K11: 882975.7077 | L11: 882975.7077 | M11: 882975.7077 | N11: 882975.7077 | O11: 882975.7077 | P11: 882975.7077 | Q11: 1523645.792 | R11: 1523645.792 | S11: 1523645.792 | T11: Distribution | U11: Y
A12: 2023 GRC Late Implementation | B12: D.23-11-069 | C12: D.23-11-069 | D12: D.23-11-069 | E12: D.23-11-069 | F12: D.23-11-069 | G12: D.23-11-069 | H12: D.23-11-069 | I12: =H12 -> D.23-11-069 | J12: D.23-11-069 | K12: 872096.7104 | L12: 872096.7104 | M12: 872096.7104 | N12: 872096.7104 | O12: 872096.7104 | P12: 872096.7104 | Q12: 872096.7104 | R12: 872096.7104 | S12: 872096.7104 | T12: Distribution | U12: N
A13: 2023 GRC Track II | B13: D.23-01-005 | C13: D.23-01-005 | D13: D.23-01-005 | E13: D.23-01-005 | F13: D.23-01-005 | G13: D.23-01-005 | H13: D.23-01-005 | I13: D.23-01-005 | J13: D.23-01-005 | K13: 8928.685025 | L13: 8928.685025 | M13: 8928.685025 | N13: 8928.685025 | O13: 8928.685025 | P13: 8928.685025 | Q13: 8940.069099 | R13: 8940.069099 | S13: 8940.069099 | T13: Distribution | U13: N
A14: 2023 GRC Self-Insurance | B14: D.23-01-005 | C14: D.23-01-005 | D14: D.23-01-005 | E14: D.23-01-005 | F14: D.23-01-005 | G14: D.23-01-005 | H14: n/a | I14: n/a | J14: n/a | K14: 404008.1263 | L14: 404008.1263 | M14: 404008.1263 | N14: 404008.1263 | O14: 404008.1263 | P14: 404008.1263 | Q14: 0 | R14: 0 | S14: 0 | T14: Distribution | U14: N
A15: General Rate Case | B15: D.23-11-069 | C15: D.23-11-069 | D15: D.23-11-069 | E15: D.23-11-069 | F15: D.23-11-069 | G15: D.23-11-069 | H15: D.23-11-069 | I15: D.23-11-069 | J15: D.23-11-069 | K15: 2264591.366 | L15: 2264591.366 | M15: 2264591.366 | N15: 2264591.366 | O15: 2264591.366 | P15: 2264591.366 | Q15: 1850084.372 | R15: 1850084.372 | S15: 1850084.372 | T15: PCIA | U15: N
A16: 2023 GRC Late Implementation | B16: D.23-11-069 | C16: D.23-11-069 | D16: D.23-11-069 | E16: D.23-11-069 | F16: D.23-11-069 | G16: D.23-11-069 | H16: D.23-11-069 | I16: D.23-11-069 | J16: D.23-11-069 | K16: -993.7272372 | L16: -993.7272372 | M16: -993.7272372 | N16: -993.7272372 | O16: -993.7272372 | P16: -993.7272372 | Q16: -993.7272372 | R16: -993.7272372 | S16: -993.7272372 | T16: PCIA | U16: N
A17: Pension Contribution | B17: AL 4568-G-B/6492-E-B | C17: AL 4568-G-B/6492-E-B | D17: AL 4568-G-B/6492-E-B | E17: AL 4568-G-B/6492-E-B | F17: AL 4568-G-B/6492-E-B | G17: AL 4568-G-B/6492-E-B | H17: AL 4880-G/7216-E | I17: AL 4880-G/7216-E | J17: AL 4880-G/7216-E | K17: 66013.95167 | L17: =K17 -> 66013.95167 | M17: 66013.95167 | N17: 71556.24213 | O17: =N17 -> 71556.24213 | P17: 71556.24213 | Q17: 71556.30161 | R17: 71556.30161 | S17: 81329.47402 | T17: Distribution | U17: N
A18: Pension Contribution * | B18: AL 4568-G-B/6492-E-B | C18: AL 4568-G-B/6492-E-B | D18: AL 4568-G-B/6492-E-B | E18: AL 4568-G-B/6492-E-B | F18: AL 4568-G-B/6492-E-B | G18: AL 4568-G-B/6492-E-B | H18: AL 4568-G-B/6492-E-B | I18: AL 4568-G-B/6492-E-B | J18: AL 4568-G-B/6492-E-B | K18: -0.0594814309 | L18: -0.0594814309 | M18: -0.0594814309 | N18: =M18 -> -0.0594814309 | O18: -0.0594814309 | P18: -0.0594814309 | Q18: -0.0001316276 | R18: -0.0001316276 | S18: -0.0001316276 | T18: Distribution | U18: Y
A19: Pension Contribution | B19: AL 4568-G-B/6492-E-B | C19: AL 4568-G-B/6492-E-B | D19: AL 4568-G-B/6492-E-B | E19: AL 4568-G-B/6492-E-B | F19: AL 4568-G-B/6492-E-B | G19: AL 4568-G-B/6492-E-B | H19: AL 4568-G-B/6492-E-B | I19: AL 4568-G-B/6492-E-B | J19: AL 4568-G-B/6492-E-B | K19: 40840.81063 | L19: 40840.81063 | M19: 40840.81063 | N19: 40840.81063 | O19: 40840.81063 | P19: 40840.81063 | Q19: 39491.61322 | R19: 39491.61322 | S19: 39491.61322 | T19: PCIA | U19: N
A20: Department of Energy Litigation Proceeds | B20: D.23-11-069 | C20: D.23-11-069 | D20: D.23-11-069 | E20: D.23-11-069 | F20: D.23-11-069 | G20: D.23-11-069 | H20: D.23-11-069 | I20: D.23-11-069 | J20: D.23-11-069 | K20: -1828 | L20: -1828 | M20: -1828 | N20: -1828 | O20: -1828 | P20: -1828 | Q20: -1939 | R20: -1939 | S20: -1939 | T20: PCIA | U20: N
A21: ERRA | B21: D.23-12-022 | C21: D.23-12-022 | D21: D.23-12-022 | E21: D.23-12-022 | F21: D.23-12-022 | G21: D.23-12-022 | H21: D.23-12-022 | I21: D.23-12-022 | J21: D.23-12-022 | K21: 4421013.272 | L21: 4421013.272 | M21: 4421013.272 | N21: 4421013.272 | O21: 4421013.272 | P21: 4421013.272 | Q21: 4499559.067 | R21: 4499559.067 | S21: 4499559.067 | T21: Generation | U21: N
A22: ERRA | B22: D.23-12-022 | C22: D.23-12-022 | D22: D.23-12-022 | E22: D.23-12-022 | F22: D.23-12-022 | G22: D.23-12-022 | H22: D.23-12-022 | I22: D.23-12-022 | J22: D.23-12-022 | K22: -1895054.417 | L22: -1895054.417 | M22: -1895054.417 | N22: -1895054.417 | O22: -1895054.417 | P22: -1895054.417 | Q22: -2331331.023 | R22: -2331331.023 | S22: -2331331.023 | T22: PCIA | U22: N
A23: ERRA * | B23: n/a | C23: n/a | D23: n/a | E23: n/a | F23: n/a | G23: n/a | H23: n/a | I23: n/a | J23: n/a | K23: 0 | L23: 0 | M23: 0 | N23: 0 | O23: 0 | P23: 0 | Q23: =P23 -> 0 | R23: 0 | S23: 0 | T23: Generation | U23: Y
A24: ERRA Trigger Adjustment | B24: D.23-12-022 | C24: D.23-12-022 | D24: D.23-12-022 | E24: D.23-12-022 | F24: D.23-12-022 | G24: D.23-12-022 | H24: n/a | I24: n/a | J24: n/a | K24: 315549.5541 | L24: 315549.5541 | M24: 315549.5541 | N24: -256000 | O24: -256000 | P24: -256000 | Q24: 0 | R24: 0 | S24: 0 | T24: Generation | U24: N
A25: PABA/PUBA * | B25: D.23-12-022 | C25: D.23-12-022 | D25: D.23-12-022 | E25: D.23-12-022 | F25: D.23-12-022 | G25: D.23-12-022 | H25: n/a | I25: n/a | J25: n/a | K25: 11483.85946 | L25: 11483.85946 | M25: 11483.85946 | N25: =M25 -> 11483.85946 | O25: 11483.85946 | P25: 11483.85946 | Q25: 0 | R25: 0 | S25: 0 | T25: PCIA | U25: Y
A26: VAMOMA * | B26: D.23-12-022 | C26: D.23-12-022 | D26: D.23-12-022 | E26: D.23-12-022 | F26: D.23-12-022 | G26: D.23-12-022 | H26: Electric Preliminary HS | I26: Electric Preliminary HS | J26: Electric Preliminary HS | K26: 904.6838228 | L26: 904.6838228 | M26: 904.6838228 | N26: 904.6838228 | O26: 904.6838228 | P26: 904.6838228 | Q26: 636.0636591 | R26: 636.0636591 | S26: 636.0636591 | T26: PCIA | U26: Y
A27: ERBBA * | B27: Preliminary Statement DT | C27: Preliminary Statement DT | D27: Preliminary Statement DT | E27: Preliminary Statement DT | F27: Preliminary Statement DT | G27: Preliminary Statement DT | H27: Preliminary Statement DT | I27: Preliminary Statement DT | J27: Preliminary Statement DT | K27: -2005.964495 | L27: -2005.964495 | M27: -2005.964495 | N27: -2005.964495 | O27: -2005.964495 | P27: -2005.964495 | Q27: 699.2769705 | R27: 699.2769705 | S27: 699.2769705 | T27: ECRA | U27: Y
A28: CTC | B28: D.23-12-022 | C28: D.23-12-022 | D28: D.23-12-022 | E28: D.23-12-022 | F28: D.23-12-022 | G28: D.23-12-022 | H28: D.24-12-038 | I28: D.24-12-038 | J28: D.24-12-038 | K28: 14630.40303 | L28: 14630.40303 | M28: 14630.40303 | N28: 14630.40303 | O28: 14630.40303 | P28: 14630.40303 | Q28: -28147.51293 | R28: -28147.51293 | S28: -28147.51293 | T28: CTC | U28: N
A29: CTC/MTCBA * | B29: D.23-12-022 | C29: D.23-12-022 | D29: D.23-12-022 | E29: D.23-12-022 | F29: =E29 -> D.23-12-022 | G29: D.23-12-022 | H29: Electric Preliminary Statement Part CQ | I29: Electric Preliminary Statement Part CQ | J29: Electric Preliminary Statement Part CQ | K29: 60966.13068 | L29: 60966.13068 | M29: 60966.13068 | N29: 60966.13068 | O29: 60966.13068 | P29: 60966.13068 | Q29: -23567.04161 | R29: -23567.04161 | S29: -23567.04161 | T29: CTC | U29: Y
A30: Cost Allocation Mechanism | B30: D.23-12-022 | C30: D.23-12-022 | D30: D.23-12-022 | E30: D.23-12-022 | F30: D.23-12-022 | G30: D.23-12-022 | H30: D.24-12-038 | I30: D.24-12-038 | J30: D.24-12-038 | K30: 378526.5176 | L30: 378526.5176 | M30: 378526.5176 | N30: 378526.5176 | O30: 378526.5176 | P30: 378526.5176 | Q30: 373939.2224 | R30: 373939.2224 | S30: 373939.2224 | T30: NSGC | U30: N
A31: Cost Allocation Mechanism/NSGBA * | B31: D.23-12-022 | C31: D.23-12-022 | D31: D.23-12-022 | E31: D.23-12-022 | F31: D.23-12-022 | G31: D.23-12-022 | H31: Electric Preliminary Statement Part FS | I31: Electric Preliminary Statement Part FS | J31: Electric Preliminary Statement Part FS | K31: 64270.12386 | L31: 64270.12386 | M31: 64270.12386 | N31: 64270.12386 | O31: 64270.12386 | P31: 64270.12386 | Q31: -48400.20623 | R31: -48400.20623 | S31: -48400.20623 | T31: NSGC | U31: Y
A32: 2020 WMCE | B32: D.23-02-017 | C32: D.23-02-017 | D32: D.23-02-017 | E32: D.23-02-017 | F32: D.23-02-017 | G32: D.23-02-017 | H32: D.23-02-017 | I32: n/a | J32: n/a | K32: 319987.2119 | L32: 319987.2119 | M32: 319987.2119 | N32: 319987.2119 | O32: 319987.2119 | P32: 319987.2119 | Q32: 320389.1723 | R32: 0 | S32: 0 | T32: Distribution (Wildfire) | U32: N
A33: Cost of Capital | B33: n/a | C33: AL 4813-G/7046-E | D33: =C33 -> AL 4813-G/7046-E | E33: AL 4813-G/7046-E | F33: AL 4813-G/7046-E | G33: AL 4813-G/7046-E | H33: D.24-10-008/ AL 7423-E | I33: =H33 -> D.24-10-008/ AL 7423-E | J33: D.24-10-008/ AL 7423-E | K33: 0 | L33: 168344.3826 | M33: =L33 -> 168344.3826 | N33: 168344.3826 | O33: 168344.3826 | P33: 168344.3826 | Q33: 127793.2874 | R33: =Q33 -> 127793.2874 | S33: 127793.2874 | T33: Distribution | U33: N
A34: Cost of Capital | B34: n/a | C34: AL 4813-G/7046-E | D34: AL 4813-G/7046-E | E34: AL 4813-G/7046-E | F34: AL 4813-G/7046-E | G34: AL 4813-G/7046-E | H34: AL 4813-G/7046-E/ D.24-10-008/ AL 7423-E | I34: =H34 -> AL 4813-G/7046-E/ D.24-10-008/ AL 7423-E | J34: AL 4813-G/7046-E/ D.24-10-008/ AL 7423-E | K34: 0 | L34: 31649.30943 | M34: 31649.30943 | N34: 31649.30943 | O34: 31649.30943 | P34: 31649.30943 | Q34: 16480.83006 | R34: =Q34 -> 16480.83006 | S34: 16480.83006 | T34: PCIA | U34: N
A35: Cost of Capital | B35: n/a | C35: AL 4813-G/7046-E | D35: AL 4813-G/7046-E | E35: AL 4813-G/7046-E | F35: AL 4813-G/7046-E | G35: AL 4813-G/7046-E | H35: n/a | I35: n/a | J35: n/a | K35: 0 | L35: 1090.344478 | M35: 1090.344478 | N35: 1090.344478 | O35: 1090.344478 | P35: 1090.344478 | Q35: 0.145187099 | R35: =Q35 -> 0.145187099 | S35: 0.145187099 | T35: Generation | U35: N
A36: Cost of Capital | B36: n/a | C36: AL 4813-G/7046-E | D36: AL 4813-G/7046-E | E36: AL 4813-G/7046-E | F36: AL 4813-G/7046-E | G36: AL 4813-G/7046-E | H36: n/a | I36: =H36 -> n/a | J36: n/a | K36: 0 | L36: 1553.656516 | M36: 1553.656516 | N36: 1553.656516 | O36: 1553.656516 | P36: 1553.656516 | R36: =Q36 -> 0 | S36: 0 | T36: NSGC | U36: N
A37: Risk Transfer Balancing Account* | B37: D.23-01-005 , D.23-11-069 | C37: =B37 -> D.23-01-005 , D.23-11-069 | D37: =B37 -> D.23-01-005 , D.23-11-069 | E37: =C37 -> D.23-01-005 , D.23-11-069 | F37: D.23-01-005 , D.23-11-069 | G37: D.23-01-005 , D.23-11-069 | H37: n/a | I37: n/a | J37: n/a | K37: 75377.01356 | L37: =K37 -> 75377.01356 | M37: 75377.01356 | N37: 75377.01356 | O37: =N37 -> 75377.01356 | P37: 75377.01356 | Q37: 0 | R37: =Q37 -> 0 | S37: 0 | T37: Distribution | U37: Y
A38: Diablo Canyon Retirement | B38: D.18-01-022 | C38: D.18-01-022 | D38: D.18-01-022 | E38: D.18-01-022 | F38: D.18-01-022 | G38: D.18-01-022 | H38: D.18-01-022 | I38: D.18-01-022 | J38: D.18-01-022 | K38: 11760.78598 | L38: 11760.78598 | M38: 11760.78598 | N38: 11760.78598 | O38: 11760.78598 | P38: 11760.78598 | Q38: 11760.78598 | R38: 3003.624296 | S38: 3003.624296 | T38: NDC | U38: N
A39: Diablo Canyon Retirement | B39: D.18-01-022 | C39: D.18-01-022 | D39: D.18-01-022 | E39: D.18-01-022 | F39: D.18-01-022 | G39: D.18-01-022 | H39: D.18-01-022 | I39: D.18-01-022 | J39: D.18-01-022 | K39: 53191.92678 | L39: 53191.92678 | M39: 53191.92678 | N39: 53191.92678 | O39: 53191.92678 | P39: 53191.92678 | Q39: 2359.1716 | R39: =Q39 -> 2359.1716 | S39: 2359.1716 | T39: PCIA | U39: N
A40: Nuclear Decommissioning (NDCTP) | B40: n/a | C40: n/a | D40: n/a | E40: ((='[IN_RRQ_TABLE.xlsx]Table 2 for AL'!$H$91/1000)+175353.55945386 | F40: ((='[IN_RRQ_TABLE.xlsx]Table 2 for AL'!$H$91/1000)+175353.55945386 | G40: ((='[IN_RRQ_TABLE.xlsx]Table 2 for AL'!$H$91/1000)+175353.55945386 | H40: n/a | I40: n/a | J40: n/a | K40: 0 | L40: 0 | M40: 0 | N40: 0 | O40: 0 | P40: 0 | Q40: =P40 -> 0 | R40: 0 | S40: 0 | T40: NDC | U40: N
A41: Nuclear Decommissioning (NDCTP) * | B41: Preliminary Statement DB | C41: Preliminary Statement DB | D41: Preliminary Statement DB | E41: Preliminary Statement DB | F41: Preliminary Statement DB | G41: Preliminary Statement DB | H41: Preliminary Statement DB | I41: Preliminary Statement DB | J41: Preliminary Statement DB | K41: -220833.7078 | L41: -220833.7078 | M41: -220833.7078 | N41: -220833.7078 | O41: -220833.7078 | P41: -220833.7078 | Q41: -22022.57567 | R41: -22022.57567 | S41: -22022.57567 | T41: NDC | U41: =IF(RIGHT(A41,1)="*","Y","N") -> Y
A42: Hazardous Substance Materials (HSM) * | B42: Preliminary Statement S | C42: Preliminary Statement S | D42: Preliminary Statement S | E42: Preliminary Statement S | F42: Preliminary Statement S | G42: Preliminary Statement S | H42: Preliminary Statement S | I42: Preliminary Statement S | J42: Preliminary Statement S | K42: 45960.39236 | L42: 45960.39236 | M42: 45960.39236 | N42: 45960.39236 | O42: 45960.39236 | P42: 45960.39236 | Q42: 41390.12781 | R42: 41390.12781 | S42: 41390.12781 | T42: Distribution (Wildfire) | U42: Y
A43: NTBA * | B43: Preliminary Statement ET | C43: Preliminary Statement ET | D43: Preliminary Statement ET | E43: Preliminary Statement ET | F43: Preliminary Statement ET | G43: Preliminary Statement ET | H43: Preliminary Statement ET | I43: Preliminary Statement ET | J43: Preliminary Statement ET | K43: -486.583276 | L43: -486.583276 | M43: -486.583276 | N43: -486.583276 | O43: -486.583276 | P43: -486.583276 | Q43: -221.0196449 | R43: -221.0196449 | S43: -221.0196449 | T43: Distribution | U43: Y
A44: Wildfire Fund Charge (formerly known as DWR Bond) | B44: D.23-11-090 | C44: D.23-11-090 | D44: D.23-11-090 | E44: D.23-11-090 | F44: D.23-11-090 | G44: D.23-11-090 | H44: D.24-12-001 | I44: D.24-12-001 | J44: D.24-12-001 | K44: 393053.029 | L44: 393053.029 | M44: 393053.029 | N44: 393053.029 | O44: 393053.029 | P44: 393053.029 | Q44: 412561.5555 | R44: 412561.5555 | S44: 412561.5555 | T44: DWR BC | U44: N
A45: DWR Franchise Fees | B45: CPUC Code 6350-6354 | C45: CPUC Code 6350-6354 | D45: CPUC Code 6350-6354 | E45: CPUC Code 6350-6354 | F45: CPUC Code 6350-6354 | G45: CPUC Code 6350-6354 | H45: CPUC Code 6350-6354 | I45: CPUC Code 6350-6354 | J45: CPUC Code 6350-6354 | K45: 2821.728 | L45: 2821.728 | M45: 2821.728 | N45: 2821.728 | O45: 2821.728 | P45: 2821.728 | Q45: 2958.066353 | R45: 2958.066353 | S45: 2958.066353 | T45: Generation | U45: N
A46: IRPCMA* | B46: Electric Preliminary Statement Part HJ | C46: Electric Preliminary Statement Part HJ | D46: Electric Preliminary Statement Part HJ | E46: Electric Preliminary Statement Part HJ | F46: Electric Preliminary Statement Part HJ | G46: Electric Preliminary Statement Part HJ | H46: Electric Preliminary Statement Part HJ | I46: Electric Preliminary Statement Part HJ | J46: Electric Preliminary Statement Part HJ | K46: 864.7709247 | L46: 864.7709247 | M46: 864.7709247 | N46: 864.7709247 | O46: 864.7709247 | P46: 864.7709247 | Q46: 1360.394331 | R46: 1360.394331 | S46: 1360.394331 | T46: Distribution | U46: Y
A47: Wildfire Gas Safety Costs IRR | B47: D.24-03-006 | C47: n/a | D47: D.24-03-006 | E47: D.24-03-006 | F47: D.24-03-006 | G47: D.24-03-006 | H47: D.24-03-006 | I47: D.24-03-006 | J47: D.24-03-006 | K47: 0 | L47: 0 | M47: 408416.683 | N47: 408416.683 | O47: 408416.683 | P47: 408416.683 | Q47: 153156.2561 | R47: 153156.2561 | S47: 0 | T47: Distribution (Wildfire) | U47: N
A48: Wildfire Gas Safety Costs IRR | B48: D.24-03-006 | C48: n/a | D48: D.24-03-006 | E48: D.24-03-006 | F48: D.24-03-006 | G48: D.24-03-006 | H48: D.24-03-006 | I48: D.24-03-006 | J48: D.24-03-006 | L48: 0 | M48: 6144.318041 | N48: 6144.318041 | O48: 6144.318041 | P48: 6144.318041 | Q48: 2304.119265 | R48: 2304.119265 | S48: 0 | T48: Distribution | U48: N
A49: VMBA | B49: n/a | C49: =B49 -> n/a | D49: n/a | E49: n/a | F49: =E49 -> n/a | G49: n/a | H49: n/a | I49: n/a | J49: n/a | K49: 0 | L49: =K49 -> 0 | M49: 0 | N49: 0 | O49: 0 | P49: 0 | Q49: =P49 -> 0 | R49: 0 | S49: 0 | T49: Distribution | U49: N
A50: VMBA (Distribution - Wildfire) | B50: n/a | C50: n/a | D50: n/a | E50: n/a | F50: n/a | G50: n/a | H50: n/a | I50: n/a | J50: n/a | K50: 0 | L50: 0 | M50: 0 | N50: 0 | O50: 0 | P50: 0 | Q50: =P50 -> 0 | R50: 0 | S50: 0 | T50: Distribution (Wildfire) | U50: N
A51: WMBA | B51: n/a | C51: n/a | D51: n/a | E51: n/a | F51: n/a | G51: n/a | H51: AL 7413-E | I51: AL 7413-E | J51: AL 7413-E | K51: 0 | L51: 0 | M51: 0 | N51: 0 | O51: 0 | P51: 0 | Q51: -200072.086 | R51: -200072.086 | S51: -200072.086 | T51: Distribution (Wildfire) | U51: N
A52: AB 1054 Securitization - FO 1 | B52: D.21-06-030, AL 6390-E | C52: D.21-06-030, AL 7106-E | D52: =C52 -> D.21-06-030, AL 7106-E | E52: D.21-06-030, AL 7106-E | F52: D.21-06-030, AL 7106-E | G52: D.21-06-030, AL 7106-E | H52: D.21-06-030, AL 7106-E | I52: D.21-06-030, AL 7106-E | J52: D.21-06-030, AL 7106-E | K52: 22478.5984 | L52: 65887.47887 | M52: =L52 -> 65887.47887 | N52: 65887.47887 | O52: 65887.47887 | P52: 65887.47887 | Q52: 65206.36408 | R52: 39502.88041 | S52: 39502.88041 | T52: WHC | U52: N
A53: AB 1054 Securitization - FO 1 | B53: D.21-06-030, AL 6390-E | C53: =B53 -> D.21-06-030, AL 6390-E | D53: D.21-06-030, AL 6390-E | E53: D.21-06-030, AL 6390-E | F53: D.21-06-030, AL 6390-E | G53: D.21-06-030, AL 6390-E | H53: D.21-06-030, AL 6390-E | I53: D.21-06-030, AL 6390-E | J53: D.21-06-030, AL 6390-E | K53: -277.6121614 | L53: =K53 -> -277.6121614 | M53: =L53 -> -277.6121614 | N53: -277.6121614 | O53: -277.6121614 | P53: -277.6121614 | Q53: 694.7304934 | R53: =Q53 -> 694.7304934 | S53: 694.7304934 | T53: Distribution (Wildfire) | U53: N
A54: AB 1054 Securitization - FO 2 | B54: D.22-08-004, AL 6769-E | C54: D.22-08-004, AL 7126-E | D54: D.22-08-004, AL 7126-E | E54: D.22-08-004, AL 7126-E | F54: D.22-08-004, AL 7126-E | G54: D.22-08-004, AL 7126-E | H54: D.22-08-004, AL 7126-E | I54: D.22-08-004, AL 7126-E | J54: D.22-08-004, AL 7126-E | K54: 123775.1333 | L54: 55096.69204 | M54: =L54 -> 55096.69204 | N54: 55096.69204 | O54: 55096.69204 | P54: 55096.69204 | Q54: 54553.09781 | R54: 66437.36008 | S54: 66437.36008 | T54: WHC | U54: N
A55: AB 1054 Securitization - FO 2 | B55: D.22-08-004, AL 6769-E | C55: =B55 -> D.22-08-004, AL 6769-E | D55: D.22-08-004, AL 6769-E | E55: D.22-08-004, AL 6769-E | F55: D.22-08-004, AL 6769-E | G55: D.22-08-004, AL 6769-E | H55: D.22-08-004, AL 6769-E | I55: D.22-08-004, AL 6769-E | J55: D.22-08-004, AL 6769-E | K55: -13674.58297 | L55: =K55 -> -13674.58297 | M55: =L55 -> -13674.58297 | N55: -13674.58297 | O55: -13674.58297 | P55: -13674.58297 | Q55: -6788.351187 | R55: =Q55 -> -6788.351187 | S55: -6788.351187 | T55: Distribution (Wildfire) | U55: N
A56: AB 1054 Securitization - FO 3 | B56: n/a | C56: n/a | D56: n/a | E56: n/a | F56: D.24-02-011, D.21-05-015 | G56: =F56 -> D.24-02-011, D.21-05-015 | H56: D.24-02-011, D.21-05-015 | I56: D.24-02-011, D.21-05-015 | J56: D.24-02-011, D.21-05-015 | K56: 0 | L56: =K56 -> 0 | M56: 0 | N56: 0 | O56: 175353.618 | P56: =O56 -> 175353.618 | Q56: 173452.081 | R56: 173400.6251 | S56: 92172.43724 | T56: WHC | U56: N
A57: Assembly Bill (AB) 1054 Financing Order (FO) #3 (2025) | B57: n/a | C57: n/a | D57: n/a | E57: n/a | F57: n/a | G57: n/a | H57: n/a | I57: D.24-02-011 | J57: D.24-02-011 | K57: 0 | L57: 0 | M57: 0 | N57: 0 | O57: 0 | P57: 0 | Q57: -76060.25726 | R57: =Q57 -> -76060.25726 | S57: -76060.25726 | T57: Distribution (Wildfire) | U57: N
A58: Assembly Bill (AB) 1054 Financing Order (FO) #3 2020 WMCE & 2020 GRC Adjustment | B58: n/a | C58: n/a | D58: n/a | E58: n/a | F58: n/a | G58: n/a | H58: n/a | I58: D.24-02-011 | J58: D.24-02-011 | K58: 0 | L58: 0 | M58: 0 | N58: 0 | O58: 0 | P58: 0 | Q58: 12431.12421 | R58: 12431.12421 | S58: 12431.12421 | T58: Distribution (Wildfire) | U58: N
A59: Assembly Bill (AB) 1054 Financing Order (FO) #3 Securitization* | B59: n/a | C59: n/a | D59: n/a | E59: n/a | F59: n/a | G59: n/a | H59: n/a | I59: D.24-02-011, AL 7336-E | J59: D.24-02-011, AL 7336-E | K59: 0 | L59: 0 | M59: 0 | N59: 0 | O59: 0 | P59: 0 | Q59: -57785.41704 | R59: -57785.41704 | S59: -57785.41704 | T59: Distribution (Wildfire) | U59: Y
A60: Assembly Bill (AB) 1054 Financing Order (FO) #3 Emergency Reliability OIR | B60: D.21-03-056, D.21-12-015 | C60: =B60 -> D.21-03-056, D.21-12-015 | D60: D.21-03-056, D.21-12-015 | E60: D.21-03-056, D.21-12-015 | F60: D.21-03-056, D.21-12-015 | G60: D.21-03-056, D.21-12-015 | H60: n/a | I60: n/a | J60: n/a | K60: 1324.73095 | L60: =K60 -> 1324.73095 | M60: 1324.73095 | N60: 1324.73095 | O60: 1324.73095 | P60: 1324.73095 | Q60: 0 | R60: 0 | S60: 0 | T60: Distribution | U60: N
A61: Section 851 Application to Sell The SF General Office Complex | B61: D.21-08-027 | C61: D.21-08-027 | D61: D.21-08-027 | E61: D.21-08-027 | F61: D.21-08-027 | G61: D.21-08-027 | H61: D.21-08-027 | I61: =H61 -> D.21-08-027 | J61: D.21-08-027 | K61: -38657.65875 | L61: -38657.65875 | M61: -38657.65875 | N61: -38657.65875 | O61: -38657.65875 | P61: -38657.65875 | Q61: -39916.95776 | R61: -39916.95776 | S61: -39916.95776 | T61: Distribution | U61: N
A62: Section 851 Application to Sell The SF General Office Complex | B62: D.21-08-027 | C62: D.21-08-027 | D62: D.21-08-027 | E62: D.21-08-027 | F62: D.21-08-027 | G62: D.21-08-027 | H62: D.21-08-027 | I62: D.21-08-027 | J62: D.21-08-027 | K62: -6566.064593 | L62: -6566.064593 | M62: -6566.064593 | N62: -6566.064593 | O62: -6566.064593 | P62: -6566.064593 | Q62: -21650.50209 | R62: -21650.50209 | S62: -21650.50209 | T62: PCIA | U62: N
A63: Risk Transfer Balancing Account | B63: n/a | C63: n/a | D63: n/a | E63: n/a | F63: n/a | G63: n/a | H63: n/a | I63: n/a | J63: n/a | K63: 76163.62436 | L63: 76163.62436 | M63: 76163.62436 | N63: 76163.62436 | O63: 76163.62436 | P63: 76163.62436 | Q63: 38485.89289 | R63: 38485.89289 | S63: 38485.89289 | T63: PCIA | U63: N
A64: Residential Uncollectibles Balancing Account (RUBA) | B64: n/a | C64: n/a | D64: n/a | E64: n/a | F64: n/a | G64: n/a | H64: Electric Preliminary Statement Part IM | I64: Electric Preliminary Statement Part IM | J64: Electric Preliminary Statement Part IM | K64: 41793.58471 | L64: 41793.58471 | M64: 41793.58471 | N64: 41793.58471 | O64: 41793.58471 | P64: 41793.58471 | Q64: 29940.31916 | R64: 29940.31916 | S64: 29940.31916 | T64: PCIA | U64: N
A65: 2018 CEMA | B65: n/a | C65: n/a | D65: n/a | E65: n/a | F65: n/a | G65: n/a | H65: n/a | I65: n/a | J65: n/a | L65: 0 | M65: 0 | N65: 0 | O65: 0 | P65: 0 | Q65: =P65 -> 0 | R65: 0 | S65: 0 | T65: Distribution (Wildfire) | U65: N
A66: Excess Tax | B66: n/a | C66: n/a | D66: n/a | E66: n/a | F66: n/a | G66: n/a | H66: n/a | I66: n/a | J66: n/a | L66: 0 | M66: 0 | N66: 0 | O66: 0 | P66: 0 | Q66: =P66 -> 0 | R66: 0 | S66: 0 | T66: Distribution | U66: N
A67: 2022 WMCE IRR | B67: D.23-06-004 | C67: =B67 -> D.23-06-004 | D67: D.23-06-004 | E67: n/a | F67: =E67 -> n/a | G67: n/a | H67: n/a | I67: n/a | J67: n/a | K67: 761676.9891 | L67: =K67 -> 761676.9891 | M67: 761676.9891 | N67: 0 | O67: =N67 -> 0 | P67: 0 | Q67: =P67 -> 0 | R67: 0 | S67: 0 | T67: Distribution (Wildfire) | U67: N
A68: 2022 WMCE IRR | B68: D.23-06-004 | C68: D.23-06-004 | D68: D.23-06-004 | E68: n/a | F68: n/a | G68: n/a | H68: n/a | I68: n/a | J68: n/a | K68: 342430.0109 | L68: 342430.0109 | M68: 342430.0109 | N68: 0 | O68: 0 | P68: 0 | Q68: =P68 -> 0 | R68: 0 | S68: 0 | T68: Distribution | U68: N
A69: 2021 WMCE | B69: D.23-08-027 | C69: D.23-08-027 | D69: D.23-08-027 | E69: =D69 -> D.23-08-027 | F69: D.23-08-027 | G69: D.23-08-027 | H69: D.23-08-027 | I69: D.23-08-027 | J69: D.23-08-027 | K69: 347680.9452 | L69: 347680.9452 | M69: 347680.9452 | N69: =M69 -> 347680.9452 | O69: 347680.9452 | P69: 347680.9452 | Q69: 348275.3243 | R69: 348275.3243 | S69: 0 | T69: Distribution (Wildfire) | U69: N
A70: 2021 WMCE | B70: D.23-08-027 | C70: D.23-08-027 | D70: D.23-08-027 | E70: =D70 -> D.23-08-027 | F70: D.23-08-027 | G70: D.23-08-027 | H70: D.23-08-027 | I70: D.23-08-027 | J70: D.23-08-027 | K70: 15954.28372 | L70: 15954.28372 | M70: 15954.28372 | N70: =M70 -> 15954.28372 | O70: 15954.28372 | P70: 15954.28372 | Q70: 15823.53951 | R70: 15823.53951 | S70: 0 | T70: Distribution | U70: N
A71: 2021 WMCE (VMBA) | B71: n/a | C71: n/a | D71: n/a | E71: n/a | F71: n/a | G71: n/a | H71: n/a | I71: D.24-12-075 | J71: =I71 -> D.24-12-075 | P71: 0 | Q71: 0 | R71: 142061.9376 | S71: 142061.9376 | T71: Distribution (Wildfire) | U71: N
A72: 2021 WMCE (VMBA) | B72: n/a | C72: n/a | D72: n/a | E72: n/a | F72: n/a | G72: n/a | H72: n/a | I72: D.24-12-075 | J72: =I72 -> D.24-12-075 | P72: 0 | Q72: 0 | R72: 360737.044 | S72: 360737.044 | T72: Distribution | U72: N
A73: 2023 WMCE IRR | B73: n/a | C73: =B73 -> n/a | D73: n/a | E73: n/a | F73: n/a | G73: D.24-09-003 | H73: D.24-09-003 | I73: =H73 -> D.24-09-003 | J73: D.24-09-003 | K73: 0 | L73: 0 | M73: 0 | N73: 0 | O73: 0 | P73: 596778.8059 | Q73: 597531.2378 | R73: =Q73 -> 597531.2378 | S73: 597531.2378 | T73: Distribution (Wildfire) | U73: =IF(RIGHT(A73,1)="*","Y","N") -> N
A74: 2023 WMCE IRR | B74: n/a | C74: n/a | D74: n/a | E74: n/a | F74: n/a | G74: D.24-09-003 | H74: D.24-09-003 | I74: D.24-09-003 | J74: D.24-09-003 | K74: 0 | L74: 0 | M74: 0 | N74: 0 | O74: 0 | P74: 154449.6346 | Q74: 154644.3681 | R74: 154644.3681 | S74: =R74 -> 154644.3681 | T74: Distribution | U74: N
A75: Overhead and Underground Maintenance Balancing Account* | B75: n/a | C75: n/a | D75: n/a | E75: n/a | F75: n/a | G75: n/a | H75: Electric Preliminary Statement Part JZ | I75: Electric Preliminary Statement Part JZ | J75: Electric Preliminary Statement Part JZ | K75: 0 | L75: 0 | M75: 0 | N75: 0 | O75: 0 | P75: 0 | Q75: 121317.7212 | R75: 121317.7212 | S75: 121317.7212 | T75: Distribution | U75: Y
A76: Critical Operating Equipment Cable Replacement BA* | B76: n/a | C76: n/a | D76: n/a | E76: n/a | F76: n/a | G76: n/a | H76: Electric Preliminary Statement Part KA | I76: Electric Preliminary Statement Part KA | J76: Electric Preliminary Statement Part KA | K76: 0 | L76: 0 | M76: 0 | N76: 0 | O76: 0 | P76: 0 | Q76: 4478.240602 | R76: 4478.240602 | S76: 4478.240602 | T76: Distribution | U76: Y
A77: MSCSA* | B77: n/a | C77: n/a | D77: n/a | E77: n/a | F77: n/a | G77: n/a | H77: Electric Preliminary Statement Part JD | I77: Electric Preliminary Statement Part JD | J77: Electric Preliminary Statement Part JD | K77: 0 | L77: 0 | M77: 0 | N77: 0 | O77: 0 | P77: 0 | Q77: 5.485087311 | R77: 5.485087311 | S77: 5.485087311 | T77: Distribution | U77: Y
A78: Microgrids Memorandum Account - Microgrids Incentive Program | B78: n/a | C78: n/a | D78: n/a | E78: n/a | F78: n/a | G78: n/a | H78: D.23-04-034/ AL 6962-E | I78: D.23-04-034/ AL 6962-E | J78: D.23-04-034/ AL 6962-E | K78: 0 | L78: 0 | M78: 0 | N78: 0 | O78: 0 | P78: 0 | Q78: 482.2622635 | R78: 482.2622635 | S78: 482.2622635 | T78: Distribution (Wildfire) | U78: N
A79: Oakland General Office (OGO) Purchase | B79: n/a | C79: n/a | D79: n/a | E79: n/a | F79: n/a | G79: n/a | H79: D.24-08-009/ AL 7371-E | I79: D.24-08-009/ AL 7371-E | J79: D.24-08-009/ AL 7371-E | K79: 0 | L79: 0 | M79: 0 | N79: 0 | O79: 0 | P79: 0 | Q79: 141576.8519 | R79: 141576.8519 | S79: 141576.8519 | T79: Distribution | U79: N
A80: Oakland General Office (OGO) Purchase | H80: D.24-08-009/ AL 7371-E | I80: D.24-08-009/ AL 7371-E | J80: D.24-08-009/ AL 7371-E | Q80: 68189.67389 | R80: 68189.67389 | S80: 68189.67389 | T80: PCIA | U80: N
A81: Subtotal Safety Affordability Reliability | K81: =SUM(K9:K70) -> 17595461.77 | L81: =SUM(L9:L70) -> 17772829.9 | M81: =SUM(M9:M70) -> 18187390.9 | N81: =SUM(N9:N70) -> 16517276.64 | O81: =SUM(O9:O70) -> 16692630.25 | P81: =SUM(P9:P74) -> 17443858.7 | Q81: =SUM(Q9:Q80) -> 17164205.62 | R81: =SUM(R9:R80) -> 17323987.59 | S81: =SUM(S9:S80) -> 16732973.33
S82: 0
A83: Public Policy Proceedings | S83: 0
A84: AB 32: Cap & Trade/GHG (Electric Procurement) | B84: D.23-12-022 | C84: =B84 -> D.23-12-022 | D84: =C84 -> D.23-12-022 | E84: =D84 -> D.23-12-022 | F84: =E84 -> D.23-12-022 | G84: =F84 -> D.23-12-022 | H84: D.24-12-038 | I84: =H84 -> D.24-12-038 | J84: D.24-12-038 | K84: -689321.0839 | L84: =K84 -> -689321.0839 | M84: =L84 -> -689321.0839 | N84: =M84 -> -689321.0839 | O84: =N84 -> -689321.0839 | P84: =O84 -> -689321.0839 | Q84: -721064.798 | R84: =Q84 -> -721064.798 | S84: -721064.798 | T84: GHG Revenue | U84: =IF(RIGHT(A84,1)="*","Y","N") -> N
A85: SGIP | B85: D.20-01-021, AL 5857-E | C85: D.20-01-021, AL 5857-E | D85: D.20-01-021, AL 5857-E | E85: =D85 -> D.20-01-021, AL 5857-E | F85: =E85 -> D.20-01-021, AL 5857-E | G85: =F85 -> D.20-01-021, AL 5857-E | H85: n/a | I85: n/a | J85: n/a | K85: 59877.17638 | L85: 59877.17638 | M85: =L85 -> 59877.17638 | N85: =M85 -> 59877.17638 | O85: =N85 -> 59877.17638 | P85: =O85 -> 59877.17638 | Q85: 0 | R85: 0 | S85: 0 | T85: Public Purpose Program | U85: N
A86: California Hub for Energy Efficiency Financing (CHEEF) | B86: n/a | C86: n/a | D86: n/a | E86: n/a | F86: n/a | G86: n/a | H86: n/a | I86: n/a | J86: n/a | K86: 0 | L86: 0 | M86: 0 | N86: 0 | O86: 0 | P86: 0 | Q86: =P86 -> 0 | R86: 0 | S86: 0 | T86: Public Purpose Program | U86: N
A87: CPUC Fee | B87: Res. M-4870 | C87: Res. M-4870 | D87: Res. M-4870 | E87: Res. M-4870 | F87: Res. M-4870 | G87: Res. M-4870 | H87: Res. M-4874 | I87: Res. M-4874 | J87: Res. M-4874 | K87: 79240.989 | L87: 79240.989 | M87: 79240.989 | N87: 79240.989 | O87: 79240.989 | P87: 79240.989 | Q87: 61836.06675 | R87: 61836.06675 | S87: 61836.06675 | T87: Distribution | U87: N
A88: EV Infrastructure Program/TEBA * | B88: Electric Preliminary Statement Part HH | C88: Electric Preliminary Statement Part HH | D88: Electric Preliminary Statement Part HH | E88: Electric Preliminary Statement Part HH | F88: Electric Preliminary Statement Part HH | G88: Electric Preliminary Statement Part HH | H88: Electric Preliminary Statement Part HH | I88: Electric Preliminary Statement Part HH | J88: Electric Preliminary Statement Part HH | K88: -29079.79772 | L88: -29079.79772 | M88: -29079.79772 | N88: =M88 -> -29079.79772 | O88: -29079.79772 | P88: -29079.79772 | Q88: -33471.16451 | R88: -33471.16451 | S88: -33471.16451 | T88: Distribution | U88: Y
A89: Alternative Fuel Vehicle - SB 350 Application | B89: D.18-05-040, D.19-11-017, D.19-09-006, D.20-12-029, D.22-08-024 | C89: D.18-05-040, D.19-11-017, D.19-09-006, D.20-12-029, D.22-08-024 | D89: D.18-05-040, D.19-11-017, D.19-09-006, D.20-12-029, D.22-08-024 | E89: D.18-05-040, D.19-11-017, D.19-09-006, D.20-12-029, D.22-08-024 | F89: D.18-05-040, D.19-11-017, D.19-09-006, D.20-12-029, D.22-08-024 | G89: D.18-05-040, D.19-11-017, D.19-09-006, D.20-12-029, D.22-08-024 | H89: D.18-05-040, D.19-11-017, D.19-09-006, D.20-12-029, D.22-08-024 | I89: D.18-05-040, D.19-11-017, D.19-09-006, D.20-12-029, D.22-08-024 | J89: D.18-05-040, D.19-11-017, D.19-09-006, D.20-12-029, D.22-08-024 | K89: 47917.91 | L89: 47917.91 | M89: 47917.91 | N89: =M89 -> 47917.91 | O89: 47917.91 | P89: 47917.91 | Q89: 34990.183 | R89: 34990.183 | S89: 34990.183 | T89: Distribution | U89: N
A90: CEEIA* | B90: Electric Preliminary Statement Part P | C90: Electric Preliminary Statement Part P | D90: Electric Preliminary Statement Part P | E90: Electric Preliminary Statement Part P | F90: Electric Preliminary Statement Part P | G90: Electric Preliminary Statement Part P | H90: Electric Preliminary Statement Part P | I90: Electric Preliminary Statement Part P | J90: Electric Preliminary Statement Part P | K90: -46.21830949 | L90: -46.21830949 | M90: -46.21830949 | N90: -46.21830949 | O90: -46.21830949 | P90: -46.21830949 | Q90: -36.3737726 | R90: -36.3737726 | S90: -36.3737726 | T90: Public Purpose Program | U90: Y
A91: Residential Rate Reform Memorandum Account (RRRMA) | B91: n/a | C91: n/a | D91: n/a | E91: n/a | F91: n/a | G91: n/a | H91: n/a | I91: n/a | J91: n/a | K91: 0 | L91: 0 | M91: 0 | N91: 0 | O91: 0 | P91: 0 | Q91: =P91 -> 0 | R91: 0 | S91: 0 | T91: Distribution | U91: N
A92: Demand Response | B92: D.23-12-005 | C92: D.23-12-005 | D92: D.23-12-005 | E92: D.23-12-005 | F92: D.23-12-005 | G92: D.23-12-005 | H92: D.23-12-005 | I92: D.23-12-005 | J92: D.23-12-005 | K92: 197658.9589 | L92: 197658.9589 | M92: 197658.9589 | N92: 197658.9589 | O92: 197658.9589 | P92: 197658.9589 | Q92: 199909.9238 | R92: 199909.9238 | S92: 199909.9238 | T92: Distribution | U92: N
A93: Integrated Demand Side Management (IDSM) | B93: n/a | C93: n/a | D93: n/a | E93: n/a | F93: n/a | G93: n/a | H93: n/a | I93: n/a | J93: n/a | L93: 0 | M93: 0 | N93: 0 | O93: 0 | P93: 0 | Q93: =P93 -> 0 | R93: 0 | S93: 0 | T93: Distribution | U93: N
A94: FERABA * | B94: Preliminary Statement DX | C94: Preliminary Statement DX | D94: Preliminary Statement DX | E94: Preliminary Statement DX | F94: Preliminary Statement DX | G94: Preliminary Statement DX | H94: Preliminary Statement DX | I94: Preliminary Statement DX | J94: Preliminary Statement DX | K94: 21093.03038 | L94: 21093.03038 | M94: 21093.03038 | N94: 21093.03038 | O94: 21093.03038 | P94: 21093.03038 | Q94: 24656.10216 | R94: 24656.10216 | S94: 24656.10216 | T94: Distribution | U94: Y
A95: DREBA (Incentives and Operations subaccounts) * | B95: Preliminary Statement EC | C95: Preliminary Statement EC | D95: Preliminary Statement EC | E95: Preliminary Statement EC | F95: Preliminary Statement EC | G95: Preliminary Statement EC | H95: Preliminary Statement EC | I95: Preliminary Statement EC | J95: Preliminary Statement EC | K95: -24482.49375 | L95: -24482.49375 | M95: -24482.49375 | N95: -24482.49375 | O95: -24482.49375 | P95: -24482.49375 | Q95: -315283.2131 | R95: -315283.2131 | S95: -315283.2131 | T95: Distribution | U95: Y
A96: MHPBA * | B96: Preliminary Statement GH | C96: Preliminary Statement GH | D96: Preliminary Statement GH | E96: Preliminary Statement GH | F96: Preliminary Statement GH | G96: Preliminary Statement GH | H96: Preliminary Statement GH | I96: Preliminary Statement GH | J96: Preliminary Statement GH | K96: 17475.57843 | L96: 17475.57843 | M96: 17475.57843 | N96: 17475.57843 | O96: 17475.57843 | P96: 17475.57843 | Q96: 21076.82873 | R96: 21076.82873 | S96: 21076.82873 | T96: Distribution | U96: Y
A97: MEBA * | B97: Preliminary Statement GJ | C97: Preliminary Statement GJ | D97: Preliminary Statement GJ | E97: Preliminary Statement GJ | F97: Preliminary Statement GJ | G97: Preliminary Statement GJ | H97: Preliminary Statement GJ | I97: Preliminary Statement GJ | J97: Preliminary Statement GJ | K97: 4352.281192 | L97: 4352.281192 | M97: 4352.281192 | N97: 4352.281192 | O97: 4352.281192 | P97: 4352.281192 | Q97: 156914.3787 | R97: 156914.3787 | S97: 156914.3787 | T97: Distribution | U97: Y
A98: MGBA * | B98: Preliminary Statement IT | C98: Preliminary Statement IT | D98: Preliminary Statement IT | E98: Preliminary Statement IT | F98: Preliminary Statement IT | G98: Preliminary Statement IT | H98: Preliminary Statement IT | I98: Preliminary Statement IT | J98: Preliminary Statement IT | K98: 1403.786522 | L98: 1403.786522 | M98: 1403.786522 | N98: 1403.786522 | O98: 1403.786522 | P98: 1403.786522 | Q98: 2934.034817 | R98: 2934.034817 | S98: 2934.034817 | T98: Distribution (Wildfire) | U98: Y
A99: SGMA (Compressed Air Energy Storage) * | B99: Preliminary Statement FD | C99: Preliminary Statement FD | D99: Preliminary Statement FD | E99: Preliminary Statement FD | F99: Preliminary Statement FD | G99: Preliminary Statement FD | H99: n/a | I99: n/a | J99: n/a | K99: 725.7780283 | L99: 725.7780283 | M99: 725.7780283 | N99: 725.7780283 | O99: 725.7780283 | P99: 725.7780283 | Q99: 0 | R99: 0 | S99: 0 | T99: Distribution | U99: Y
A100: PPPRAM * | B100: Preliminary Statement DA | C100: Preliminary Statement DA | D100: Preliminary Statement DA | E100: Preliminary Statement DA | F100: Preliminary Statement DA | G100: Preliminary Statement DA | H100: Preliminary Statement DA | I100: =H100 -> Preliminary Statement DA | J100: Preliminary Statement DA | K100: -72626.59756 | L100: -72626.59756 | M100: -72626.59756 | N100: -72626.59756 | O100: -72626.59756 | P100: -72626.59756 | Q100: -81304.27141 | R100: -81304.27141 | S100: -81304.27141 | T100: Public Purpose Program | U100: Y
A101: CARE Administration | B101: D.21-06-015 | C101: D.21-06-015 | D101: D.21-06-015 | E101: D.21-06-015 | F101: D.21-06-015 | G101: D.21-06-015 | H101: D.21-06-015 | I101: D.21-06-015 | J101: D.21-06-015 | K101: 11256.48 | L101: 11256.48 | M101: 11256.48 | N101: 11256.48 | O101: 11256.48 | P101: 11256.48 | Q101: 11555.36 | R101: 11555.36 | S101: 11555.36 | T101: Public Purpose Program | U101: N
A102: CARE Administration * | B102: Preliminary Statement M | C102: Preliminary Statement M | D102: Preliminary Statement M | E102: Preliminary Statement M | F102: Preliminary Statement M | G102: Preliminary Statement M | H102: Preliminary Statement M | I102: Preliminary Statement M | J102: Preliminary Statement M | K102: -23400.68992 | L102: -23400.68992 | M102: -23400.68992 | N102: -23400.68992 | O102: -23400.68992 | P102: -23400.68992 | Q102: -245541.4421 | R102: -245541.4421 | S102: -245541.4421 | T102: Public Purpose Program | U102: Y
A103: EPIC (Electric Program Investment Charge) | B103: D.20-08-042 | C103: D.20-08-042 | D103: D.20-08-042 | E103: D.20-08-042 | F103: D.20-08-042 | G103: D.20-08-042 | H103: D.21-11-028 | I103: D.21-11-028 | J103: D.21-11-028 | K103: 93732.73395 | L103: 93732.73395 | M103: 93732.73395 | N103: 93732.73395 | O103: 93732.73395 | P103: 93732.73395 | Q103: 93845.4162 | R103: 93845.4162 | S103: 93845.4162 | T103: Public Purpose Program | U103: N
A104: EPIC (Electric Program Investment Charge) * | B104: Preliminary Statement FY | C104: Preliminary Statement FY | D104: Preliminary Statement FY | E104: Preliminary Statement FY | F104: Preliminary Statement FY | G104: Preliminary Statement FY | H104: Preliminary Statement FU | I104: Preliminary Statement FU | J104: Preliminary Statement FU | K104: 5947.954227 | L104: 5947.954227 | M104: 5947.954227 | N104: 5947.954227 | O104: 5947.954227 | P104: 5947.954227 | Q104: 3938.112191 | R104: 3938.112191 | S104: 3938.112191 | T104: Public Purpose Program | U104: Y
A105: ESA (Energy Savings Assistance) | B105: D.21-06-015 | C105: D.21-06-015 | D105: D.21-06-015 | E105: D.21-06-015 | F105: D.21-06-015 | G105: D.21-06-015 | H105: D.21-06-015 | I105: D.21-06-015 | J105: D.21-06-015 | K105: 91031.31 | L105: 91031.31 | M105: 91031.31 | N105: 91031.31 | O105: 91031.31 | P105: 91031.31 | Q105: 90694.046 | R105: 90694.046 | S105: 90694.046 | T105: Public Purpose Program | U105: N
A106: ESA Unspent Funds | B106: D.21-06-015 | C106: D.21-06-015 | D106: D.21-06-015 | E106: D.21-06-015 | F106: D.21-06-015 | G106: D.21-06-015 | H106: D.21-06-015 | I106: D.21-06-015 | J106: D.21-06-015 | K106: -26000 | L106: -26000 | M106: -26000 | N106: -26000 | O106: -26000 | P106: -26000 | Q106: -8000 | R106: -8000 | S106: -8000 | T106: Public Purpose Program | U106: N
A107: Energy Efficiency/PPPRAM | B107: D.23-06-055/ AL 7047-E | C107: D.23-06-055/ AL 7047-E | D107: D.23-06-055/ AL 7047-E | E107: D.23-06-055/ AL 7047-E | F107: D.23-06-055/ AL 7047-E | G107: D.23-06-055/ AL 7047-E | H107: D.23-06-055/ AL 7047-E | I107: D.23-06-055/ AL 7047-E | J107: D.23-06-055/ AL 7047-E | K107: 120736.8739 | L107: 120736.8739 | M107: =L107 -> 120736.8739 | N107: 120736.8739 | O107: 120736.8739 | P107: 120736.8739 | Q107: 120736.8739 | R107: 120736.8739 | S107: 120736.8739 | T107: Public Purpose Program | U107: N
A108: Energy Efficiency/PEERAM | B108: D.23-06-055/ AL 7047-E | C108: D.23-06-055/ AL 7047-E | D108: =C108 -> D.23-06-055/ AL 7047-E | E108: D.23-06-055/ AL 7047-E | F108: D.23-06-055/ AL 7047-E | G108: D.23-06-055/ AL 7047-E | H108: D.23-06-055/ AL 7047-E | I108: D.23-06-055/ AL 7047-E | J108: D.23-06-055/ AL 7047-E | K108: 101774.1433 | L108: 101774.1433 | M108: 38268.101 | N108: 38268.101 | O108: 38268.101 | P108: 38268.101 | Q108: 80748.49284 | R108: 80748.49284 | S108: 80748.49284 | T108: Public Purpose Program | U108: N
A109: PEERAM * | B109: Preliminary Statement EF | C109: Preliminary Statement EF | D109: =C109 -> Preliminary Statement EF | E109: Preliminary Statement EF | F109: Preliminary Statement EF | G109: Preliminary Statement EF | H109: Preliminary Statement EF | I109: Preliminary Statement EF | J109: Preliminary Statement EF | K109: 23844.55857 | L109: 23844.55857 | M109: =L109 -> 23844.55857 | N109: 23844.55857 | O109: 23844.55857 | P109: 23844.55857 | Q109: -9535.083097 | R109: -9535.083097 | S109: -9535.083097 | T109: Public Purpose Program | U109: Y
A110: Market Transformation Administrator | B110: D.19-12-021, AL 4674-G/6747-E /AL RI-CalMTA-2 | C110: D.19-12-021, AL 4674-G/6747-E /AL RI-CalMTA-2 | D110: =C110 -> D.19-12-021, AL 4674-G/6747-E /AL RI-CalMTA-2 | E110: D.19-12-021, AL 4674-G/6747-E /AL RI-CalMTA-2 | F110: D.19-12-021, AL 4674-G/6747-E /AL RI-CalMTA-2 | G110: D.19-12-021, AL 4674-G/6747-E /AL RI-CalMTA-2 | H110: D.19-12-021 / Advice RI-CalMTA-3 | I110: D.19-12-021 / Advice RI-CalMTA-3 | J110: D.19-12-021 / Advice RI-CalMTA-3 | K110: 0 | L110: 0 | M110: 7213.3715 | N110: =M110 -> 7213.3715 | O110: 7213.3715 | P110: 7213.3715 | Q110: 7223.722688 | R110: 7223.722688 | S110: 7223.722688 | T110: Public Purpose Program | U110: N
A111: Demand Response Auction Mechanism | B111: n/a | C111: n/a | D111: =C111 -> n/a | E111: n/a | F111: n/a | G111: n/a | H111: n/a | I111: n/a | J111: n/a | K111: 0 | L111: 0 | M111: =L111 -> 0 | N111: 0 | O111: 0 | P111: 0 | Q111: =P111 -> 0 | R111: 0 | S111: 0 | T111: Distribution | U111: N
A112: EV Pilot for Schools and Parks | B112: n/a | C112: n/a | D112: n/a | E112: n/a | F112: n/a | G112: n/a | H112: n/a | I112: n/a | J112: n/a | K112: 0 | L112: 0 | M112: =L112 -> 0 | N112: 0 | O112: 0 | P112: 0 | Q112: =P112 -> 0 | R112: 0 | S112: 0 | T112: Distribution | U112: N
A113: AB 841 School Energy Efficiency Stimulus Program | B113: n/a | C113: n/a | D113: n/a | E113: n/a | F113: n/a | G113: n/a | H113: n/a | I113: n/a | J113: n/a | K113: 0 | L113: 0 | M113: 0 | N113: 0 | O113: 0 | P113: 0 | Q113: =P113 -> 0 | R113: 0 | S113: 0 | T113: Public Purpose Program | U113: N
A114: Tree Mortality | B114: D.23-12-022 | C114: D.23-12-022 | D114: D.23-12-022 | E114: D.23-12-022 | F114: D.23-12-022 | G114: D.23-12-022 | H114: D.24-12-038 | I114: D.24-12-038 | J114: D.24-12-038 | K114: 23165.27158 | L114: 23165.27158 | M114: 23165.27158 | N114: 23165.27158 | O114: 23165.27158 | P114: 23165.27158 | Q114: 35334.0525 | R114: 35334.0525 | S114: 35334.0525 | T114: Public Purpose Program | U114: N
A115: Tree Mortality* | B115: D.23-12-022 | C115: D.23-12-022 | D115: D.23-12-022 | E115: D.23-12-022 | F115: D.23-12-022 | G115: D.23-12-022 | H115: D.24-12-038 | I115: D.24-12-038 | J115: D.24-12-038 | K115: -2834.545641 | L115: -2834.545641 | M115: -2834.545641 | N115: -2834.545641 | O115: -2834.545641 | P115: -2834.545641 | Q115: 11673.64815 | R115: 11673.64815 | S115: 11673.64815 | T115: Public Purpose Program | U115: Y
A116: CSIBA* | B116: AL 7028-E | C116: AL 7028-E | D116: AL 7028-E | E116: AL 7028-E | F116: AL 7028-E | G116: AL 7028-E | H116: Electric Preliminary Statement Part EO | I116: Electric Preliminary Statement Part EO | J116: Electric Preliminary Statement Part EO | K116: -54219.76837 | L116: -54219.76837 | M116: -54219.76837 | N116: -54219.76837 | O116: -54219.76837 | P116: -54219.76837 | Q116: -9.318130433 | R116: -9.318130433 | S116: -9.318130433 | T116: Public Purpose Program | U116: Y
A117: PIPP* | B117: Electric Preliminary Statement Part JM | C117: Electric Preliminary Statement Part JM | D117: Electric Preliminary Statement Part JM | E117: Electric Preliminary Statement Part JM | F117: Electric Preliminary Statement Part JM | G117: Electric Preliminary Statement Part JM | H117: Electric Preliminary Statement Part JM | I117: Electric Preliminary Statement Part JM | J117: Electric Preliminary Statement Part JM | K117: 2856.617215 | L117: 2856.617215 | M117: 2856.617215 | N117: 2856.617215 | O117: 2856.617215 | P117: 2856.617215 | Q117: 3954.635443 | R117: 3954.635443 | S117: 3954.635443 | T117: Public Purpose Program | U117: Y
A118: Residential Uncollectibles Balancing Account (RUBA)* | B118: Electric Preliminary Statement Part IM | C118: Electric Preliminary Statement Part IM | D118: Electric Preliminary Statement Part IM | E118: Electric Preliminary Statement Part IM | F118: Electric Preliminary Statement Part IM | G118: Electric Preliminary Statement Part IM | H118: Electric Preliminary Statement Part IM | I118: Electric Preliminary Statement Part IM | J118: Electric Preliminary Statement Part IM | K118: 282433.5969 | L118: 282433.5969 | M118: 282433.5969 | N118: 282433.5969 | O118: 282433.5969 | P118: 282433.5969 | Q118: 182850.9952 | R118: 182850.9952 | S118: 182850.9952 | T118: Public Purpose Program | U118: Y
A119: BioMat | B119: D.23-12-022 | C119: D.23-12-022 | D119: D.23-12-022 | E119: D.23-12-022 | F119: D.23-12-022 | G119: D.23-12-022 | H119: D.24-12-038 | I119: D.24-12-038 | J119: D.24-12-038 | K119: 14061.23071 | L119: 14061.23071 | M119: 14061.23071 | N119: 14061.23071 | O119: 14061.23071 | P119: 14061.23071 | Q119: 3567.343271 | R119: 3567.343271 | S119: 3567.343271 | T119: Public Purpose Program | U119: N
A120: BioMat* | B120: Electric Preliminary Statement Part IJ | C120: Electric Preliminary Statement Part IJ | D120: Electric Preliminary Statement Part IJ | E120: Electric Preliminary Statement Part IJ | F120: Electric Preliminary Statement Part IJ | G120: Electric Preliminary Statement Part IJ | H120: Electric Preliminary Statement Part IJ | I120: Electric Preliminary Statement Part IJ | J120: Electric Preliminary Statement Part IJ | K120: -7066.937468 | L120: -7066.937468 | M120: -7066.937468 | N120: -7066.937468 | O120: -7066.937468 | P120: -7066.937468 | Q120: -7539.097433 | R120: -7539.097433 | S120: -7539.097433 | T120: Public Purpose Program | U120: Y
A121: Non-Vintaged PCIA | B121: D.23-12-022 | C121: D.23-12-022 | D121: D.23-12-022 | E121: D.23-12-022 | F121: D.23-12-022 | G121: D.23-12-022 | H121: D.24-12-038 | I121: D.24-12-038 | J121: D.24-12-038 | K121: -475.8328155 | L121: -475.8328155 | M121: -475.8328155 | N121: -475.8328155 | O121: -475.8328155 | P121: -475.8328155 | Q121: -1476.326671 | R121: -1476.326671 | S121: -1476.326671 | T121: Public Purpose Program | U121: N
A122: Non-Vintaged PCIA * | B122: Electric Preliminary Statement Part HM | C122: Electric Preliminary Statement Part HM | D122: Electric Preliminary Statement Part HM | E122: Electric Preliminary Statement Part HM | F122: Electric Preliminary Statement Part HM | G122: Electric Preliminary Statement Part HM | H122: Electric Preliminary Statement Part HM | I122: Electric Preliminary Statement Part HM | J122: Electric Preliminary Statement Part HM | K122: 2664.833914 | L122: 2664.833914 | M122: 2664.833914 | N122: 2664.833914 | O122: 2664.833914 | P122: 2664.833914 | Q122: -552.3170433 | R122: -552.3170433 | S122: -552.3170433 | T122: Public Purpose Program | U122: Y
A123: DAC-GT | B123: D.23-12-022 | C123: D.23-12-022 | D123: D.23-12-022 | E123: D.23-12-022 | F123: D.23-12-022 | G123: D.23-12-022 | H123: D.24-12-038 | I123: D.24-12-038 | J123: D.24-12-038 | K123: 13908.018 | L123: 13908.018 | M123: 13908.018 | N123: 13908.018 | O123: 13908.018 | P123: 13908.018 | Q123: 16260.33661 | R123: 16260.33661 | S123: 16260.33661 | T123: Public Purpose Program | U123: N
A124: WNDRR * | B124: Preliminary Statement JH | C124: Preliminary Statement JH | D124: Preliminary Statement JH | E124: Preliminary Statement JH | F124: Preliminary Statement JH | G124: Preliminary Statement JH | H124: Preliminary Statement JH | I124: Preliminary Statement JH | J124: Preliminary Statement JH | K124: 2820.116494 | L124: 2820.116494 | M124: 2820.116494 | N124: 2820.116494 | O124: 2820.116494 | P124: 2820.116494 | Q124: 1665.963188 | R124: 1665.963188 | S124: 1665.963188 | T124: Public Purpose Program | U124: Y
A125: DWR Refund | B125: n/a | C125: n/a | D125: n/a | E125: n/a | F125: n/a | G125: n/a | H125: n/a | I125: n/a | J125: n/a | K125: 0 | L125: 0 | M125: 0 | N125: 0 | O125: 0 | P125: 0 | Q125: 0 | R125: 0 | S125: 0 | T125: DWR BC | U125: N
A126: Summer Reliability OIR | B126: n/a | C126: n/a | D126: n/a | E126: n/a | F126: n/a | G126: n/a | H126: n/a | I126: n/a | J126: n/a | K126: 0 | L126: 0 | M126: 0 | N126: 0 | O126: 0 | P126: 0 | Q126: =P126 -> 0 | R126: 0 | S126: 0 | T126: Public Purpose Program | U126: N
A127: DCPP Extended Operations 2025 Forecast | B127: n/a | C127: n/a | D127: n/a | E127: n/a | F127: n/a | G127: n/a | H127: D.24-12- 033 | I127: =H127 -> D.24-12- 033 | J127: D.24-12- 033 | P127: 0 | Q127: 365364.5204 | R127: 365364.5204 | S127: 365364.5204 | T127: Public Purpose Program | U127: N
A128: Unspent for EE | B128: n/a | C128: n/a | D128: n/a | E128: n/a | F128: n/a | G128: n/a | H128: AL 7407-E | I128: =H128 -> AL 7407-E | J128: AL 7407-E | Q128: -22374.489 | R128: =Q128 -> -22374.489 | S128: -22374.489 | T128: Public Purpose Program | U128: N
A129: Unspent funds and accrued interest for EPIC | B129: n/a | C129: n/a | D129: n/a | E129: n/a | F129: n/a | G129: n/a | H129: D.18-01-008 | I129: =H129 -> D.18-01-008 | J129: D.18-01-008 | Q129: -30507.54453 | R129: -30507.54453 | S129: -30507.54453 | T129: Public Purpose Program | U129: N
A130: Concurrent Application System Balancing Account - PPCBA* | B130: n/a | C130: n/a | D130: n/a | E130: n/a | F130: n/a | G130: n/a | H130: Electric Preliminary Statement Part JV | I130: =H130 -> Electric Preliminary Statement Part JV | J130: Electric Preliminary Statement Part JV | Q130: 104.4412037 | R130: 104.4412037 | S130: 104.4412037 | T130: Public Purpose Program | U130: Y
S131: 0
S132: 0
A133: Subtotal Public Policy | K133: =SUM(K84:K126) -> 290425.2622 | L133: 290425.2622 | M133: 234132.5914 | N133: 234132.5914 | O133: 234132.5914 | P133: =SUM(P84:P126) -> 234132.5914 | Q133: =SUM(Q84:Q131) -> 55140.03889 | R133: =SUM(R84:R130) -> 55140.03889 | S133: =SUM(S84:S130) -> 55140.03889
S134: 0
A135: Non-CPUC Jurisdictional Proceedings | S135: 0
A136: TO | B136: ER24-96-000 | C136: ER24-96-000 | D136: =C136 -> ER24-96-000 | E136: ER24-96-000 | F136: ER24-96-000 | G136: ER24-96-000 | H136: ER24-96-000 | I136: =H136 -> ER24-96-000 | J136: =I136 -> ER24-96-000 | K136: 2830225.687 | L136: 2788799.641 | M136: =L136 -> 2788799.641 | N136: =M136 -> 2788799.641 | O136: =N136 -> 2788799.641 | P136: =O136 -> 2788799.641 | Q136: 2903023.385 | R136: =Q136 -> 2903023.385 | S136: 2903023.385 | T136: Transmission | U136: =IF(RIGHT(A136,1)="*","Y","N") -> N
A137: TACBAA | B137: ER23-595-000 | C137: ER24-599-000 | D137: =C137 -> ER24-599-000 | E137: ER24-599-000 | F137: =E137 -> ER24-599-000 | G137: ER24-599-000 | H137: ER24-599-000 | I137: =H137 -> ER24-599-000 | J137: ER24-599-000 | K137: 482469.045 | L137: 370049.0735 | M137: =L137 -> 370049.0735 | N137: 370049.0735 | O137: =N137 -> 370049.0735 | P137: =O137 -> 370049.0735 | Q137: 360149.1017 | R137: 585052.3383 | S137: 585052.3383 | T137: FERC BAs | U137: =IF(RIGHT(A137,1)="*","Y","N") -> N
A138: TRBAA | B138: ER23-2968-000 | C138: =B138 -> ER23-2968-000 | D138: ER23-2968-000 | E138: ER23-2968-000 | F138: ER23-2968-000 | G138: ER23-2968-000 | H138: ER23-2968-000 | I138: =H138 -> ER23-2968-000 | J138: ER23-2968-000 | K138: -494836.599 | L138: =K138 -> -494836.599 | M138: -494836.599 | N138: -494836.599 | O138: -494836.599 | P138: =O138 -> -494836.599 | Q138: -362428.5264 | R138: =Q138 -> -362428.5264 | S138: =R138 -> -362428.5264 | T138: FERC BAs | U138: =IF(RIGHT(A138,1)="*","Y","N") -> N
A139: RSBA | B139: ER23-2968-000 | C139: =B139 -> ER23-2968-000 | D139: ER23-2968-000 | E139: ER23-2968-000 | F139: ER23-2968-000 | G139: ER23-2968-000 | H139: ER23-2968-000 | I139: =H139 -> ER23-2968-000 | J139: ER23-2968-000 | K139: 6868.193893 | L139: =K139 -> 6868.193893 | M139: 6868.193893 | N139: 6868.193893 | O139: 6868.193893 | P139: =O139 -> 6868.193893 | Q139: 18138.17745 | R139: =Q139 -> 18138.17745 | S139: 18138.17745 | T139: FERC BAs | U139: =IF(RIGHT(A139,1)="*","Y","N") -> N
A140: EUCRA | B140: ER23-2968-000 | C140: =B140 -> ER23-2968-000 | D140: ER23-2968-000 | E140: ER23-2968-000 | F140: ER23-2968-000 | G140: ER23-2968-000 | H140: ER23-2968-000 | I140: =H140 -> ER23-2968-000 | J140: ER23-2968-000 | K140: 0 | L140: =K140 -> 0 | M140: =L140 -> 0 | N140: -7636.477633 | O140: -7636.477633 | P140: =O140 -> -7636.477633 | Q140: -852305.9149 | R140: =Q140 -> -852305.9149 | S140: -852305.9149 | T140: FERC BAs | U140: =IF(RIGHT(A140,1)="*","Y","N") -> N
A141: Subtotal Non-CPUC Jurisidictional | K141: =SUM(K136:K140) -> 2824726.327 | L141: 2670880.31 | M141: 2670880.31 | N141: 2663243.832 | O141: 2663243.832 | P141: =SUM(P136:P140) -> 2663243.832 | Q141: =SUM(Q136:Q140) -> 2066576.222 | R141: =SUM(R136:R140) -> 2291479.459 | S141: =SUM(S136:S140) -> 2291479.459
S142: 0
A143: Total Authorized Revenue | K143: =K81+K133+K141 -> 20710613.36 | L143: 20734135.47 | M143: 21092403.8 | N143: 19414653.06 | O143: 19590006.68 | P143: 20341235.12 | Q143: =Q81+Q133+Q141 -> 19285921.88 | R143: =R81+R133+R141 -> 19670607.09 | S143: =S81+S133+S141 -> 19079592.83
K144: 20710613.36 | L144: 20734135.47 | M144: 21092403.8 | N144: 19414653.12 | O144: 19590007.12 | P144: 20341235.56 | Q144: 19285921.74 | R144: 19670606.94 | S144: 19079592.69
K145: =K143-K144 -> 0.0009084157646 | L145: 0.0009084157646 | M145: 0.0009084157646 | N145: =N143-N144 -> -0.05857302621 | O145: -0.4405461401 | P145: -0.4405461363 | Q145: 0.1451871023 | R145: 0.1451870985 | S145: 0.1450554766
A149: Notes:
A150: January 1, 2024 Rate Change (AL 7116-E) trued up the balancing accounts in the AET and implemented various authorized RRQs.
A151: March 1, 2024 Rate Change (AL 7191-E) implemented the TACBAA, Securitzation True-ups, TO21 correction Cost of Capital Adjustment Mechanism.
A152: April 1,2024 Rate Change (7227-E) EE True-up AL, Energy Efficient Market Transformation RRQ, Wildfire & Gas Safety Costs
A153: July 1, 2024 Rate Change (7307-E) implemented the End 2022 WMCE IRR, End 2023 ERRA Trigger Adjustment, 2024 Pension Advice Letter, TO21 Refund through ECRBA
A154: September 1, 2024 Rate Change (7366-E) Implemented AB 1054 FO3, Adjusted Rate Neutral Recovery Bond Charge and Recovery Bond Credit, Correction to AG-5B Generation Rates
A155: October 1, 2024 Rate Change (7382-E) Implemented 2023 WMCE IRR
A156: January 1, 2025 Rate Change(AL 7469-E) trued up the balancing accounts in the AET and implemented various authorized RRQs.
A157: March 1, 2025 Rate Change AL(7516-E) Implemented 2021 WMCE VMBA, Adjusted TACBAA , and Minimum Bill
A158: September 1, 2025 Rate Change AL(7684-E) Implemented the Pension contribution and the WHC True-up, and the end of WGSC IRR and 2021 WMCE non-IRR recovery

Sheet Incremental Rev Req
B2: ='Authorized Rev Req'!A2 -> Annual Period 2025
B3: ='Authorized Rev Req'!A3 -> Reporting Date: September 1, 2025
B5: Current Revenue Requirement ($000): | C5: ='Authorized Rev Req'!S143 -> 19079592.83
B6: Current Revenue Requirement Effective: | C6: ='Authorized Rev Req'!J5 -> September 1, 2025
B7: Approved Application(s), Implemented Since Jan 1 or To Be Implemented
B8: Filing Description | D8: Authority for Revenue Requirement | E8: 2025 Authorized Revenue Requirement ($000) | F8: Revenue Recovery Mechanism | K8: Existing or New Item (if existing, use delta from prior for rate impact) | R8: Authorized
B9: Safety Affordability Reliability Proceedings | G9: 2025 | H9: =G9+1 -> 2026 | I9: =H9+1 -> 2027 | J9: =I9+1 -> 2028 | S9: =G9 -> 2025 | T9: =H9 -> 2026 | U9: =I9 -> 2027 | V9: =J9 -> 2028
B10: General Rate Case | D10: D.23-11-069 | E10: ='Authorized Rev Req'!R9 -> 6884278.167 | F10: Distribution | G10: =E10 -> 6884278.167 | H10: 7465284.418 | I10: =H10 -> 7465284.418 | J10: 7465284.418 | K10: Existing | R10: Generation | S10: =SUMIF($F$10:$F$101,$R10,G$10:G$101) -> 4502517.133 | T10: =SUMIF($F$10:$F$101,$R10,H$10:H$101) -> 4488203.533 | U10: =SUMIF($F$10:$F$101,$R10,I$10:I$101) -> 4502517.133 | V10: =SUMIF($F$10:$F$101,$R10,J$10:J$101) -> 4502517.133
B11: General Rate Case (Distribution - Wildfire) | D11: D.23-11-069 | E11: ='Authorized Rev Req'!R10 -> 978572.4143 | F11: Distribution (Wildfire) | G11: =E11 -> 978572.4143 | H11: =G11 -> 978572.4143 | I11: 978572.4143 | J11: 978572.4143 | K11: Existing | R11: NSGC | S11: 325539.0162 | T11: 373939.2224 | U11: 373939.2224 | V11: 373939.2224
B12: General Rate Case | D12: D.23-11-069 | E12: ='Authorized Rev Req'!R15 -> 1850084.372 | F12: PCIA | G12: =E12 -> 1850084.372 | H12: 1205677.183 | I12: 1205677.183 | J12: 1205677.183 | K12: Existing | R12: Distribution | S12: 10392694.73 | T12: =SUMIF($F$10:$F$101,$R12,H$10:H$101) -> 9327572.453 | U12: 8349946.574 | V12: 8349946.574
B13: 2023 General Rate Case Late Implementation | D13: D.23-11-069 | E13: ='Authorized Rev Req'!R12 -> 872096.7104 | F13: Distribution | G13: 872096.7104 | H13: 0 | I13: 0 | J13: 0 | K13: New | R13: GHG Revenue | S13: -721064.798 | T13: -721064.798 | U13: -721064.798 | V13: -721064.798
B14: 2023 General Rate Case Late Implementation | D14: D.23-11-069 | E14: ='Authorized Rev Req'!R16 -> -993.7272372 | F14: PCIA | G14: -993.7272372 | H14: 0 | I14: 0 | J14: 0 | K14: New | R14: CTC | S14: -51714.55454 | T14: -28147.51293 | U14: -28147.51293 | V14: -28147.51293
R15: NDC | S15: -19018.95137 | T15: -2265.738219 | U15: 0 | V15: 0
B16: Pension Contribution | D16: AL 7535-E, D.23-11-069 | E16: ='Authorized Rev Req'!S17 -> 81329.47402 | F16: Distribution | G16: 81329.47415 | H16: =G16 -> 81329.47415 | I16: 81329.47415 | J16: 81329.47415 | K16: Existing | R16: Public Purpose Program | S16: 622641.6966 | T16: 858285.313 | U16: 771838.7868 | V16: 771838.7868
B17: Pension Contribution | D17: AL 7535-E, D.23-11-069 | E17: ='Authorized Rev Req'!R19 -> 39491.61322 | F17: PCIA | G17: =E17 -> 39491.61322 | H17: 30252.38844 | I17: 30252.38844 | J17: 30252.38844 | K17: Existing | R17: DWR BC | S17: 412561.5555 | T17: 412561.5555 | U17: 412561.5555 | V17: 412561.5555
B18: 2023 General Rate Case Track 2 | D18: D.23-11-069 | E18: ='Authorized Rev Req'!R13 -> 8940.069099 | F18: Distribution | G18: =E18 -> 8940.069099 | H18: 0 | I18: 0 | J18: 0 | K18: New | R18: ECRA | S18: 699.2769705 | T18: 1655.942927 | U18: 0 | V18: 0
B19: Department of Energy Litigation Proceeds | D19: D.23-11-069 | E19: ='Authorized Rev Req'!R20 -> -1939 | F19: PCIA | G19: -1939 | H19: =G19 -> -1939 | I19: -1939 | J19: =I19 -> -1939 | K19: Existing | R19: Transmission | S19: 2903023.385 | T19: 2890994.585 | U19: 2903023.385 | V19: 2903023.385
B20: ERRA Forecast | D20: D.23-12-022 | E20: ='Authorized Rev Req'!R21 -> 4499559.067 | F20: Generation | G20: 4499559.067 | H20: 4499559.067 | I20: 4499559.067 | J20: =I20 -> 4499559.067 | K20: Existing | R20: FERC BAs | S20: -611543.9256 | T20: 240761.9893 | U20: 240761.9893 | V20: 240761.9893
B21: ERRA Forecast | D21: D.23-12-022 | E21: ='Authorized Rev Req'!R22 -> -2331331.023 | F21: PCIA | G21: -2331331.023 | H21: -2331331.023 | I21: -2331331.023 | J21: =I21 -> -2331331.023 | K21: Existing | R21: PCIA | S21: -310246.3151 | T21: -1087523.254 | U21: -1078908.305 | V21: -1078908.305
B22: Competition Transition Charge | D22: D.23-12-022 | E22: ='Authorized Rev Req'!R28 -> -28147.51293 | F22: CTC | G22: -28147.51293 | H22: =G22 -> -28147.51293 | I22: -28147.51293 | J22: =I22 -> -28147.51293 | K22: Existing | R22: WHC | S22: 198112.6777 | T22: 198112.6777 | U22: 198112.6777 | V22: 198112.6777
B23: Cost Allocation Mechanism | D23: D.23-12-022 | E23: ='Authorized Rev Req'!R30 -> 373939.2224 | F23: NSGC | G23: 373939.2224 | H23: 373939.2224 | I23: 373939.2224 | J23: =I23 -> 373939.2224 | K23: Existing | R23: Distribution (Wildfire) | S23: 1435391.758 | T23: 954415.3261 | U23: 972478.7936 | V23: 972478.7936
B24: Diablo Canyon Retirement | D24: ='Authorized Rev Req'!C38 -> D.18-01-022 | E24: ='Authorized Rev Req'!R38 -> 3003.624296 | F24: NDC | G24: 3003.624296 | H24: 0 | I24: 0 | J24: 0 | K24: Existing | R24: Total | S24: =SUM(S10:S23) -> 19079592.69 | T24: =SUM(T10:T23) -> 17907501.29 | U24: =SUM(U10:U23) -> 16897059.5 | V24: =SUM(V10:V23) -> 16897059.5
B25: Diablo Canyon Retirement | D25: ='Authorized Rev Req'!C39 -> D.18-01-022 | E25: ='Authorized Rev Req'!R39 -> 2359.1716 | F25: PCIA | G25: 2359.1716 | H25: 0 | I25: 0 | J25: 0 | K25: Existing
B26: Cost of Capital | D26: AL 4813-G/7046-E, D.24-10-008 | E26: ='Authorized Rev Req'!R33 -> 127793.2874 | F26: Distribution | G26: =E26 -> 127793.2874 | H26: 128462.5226 | I26: =H26 -> 128462.5226 | J26: =I26 -> 128462.5226 | K26: Existing
B27: Cost of Capital | D27: AL 4813-G/7046-E, D.24-10-008 | E27: ='Authorized Rev Req'!R34 -> 16480.83006 | F27: PCIA | G27: =E27 -> 16480.83006 | H27: 18432.14635 | I27: =H27 -> 18432.14635 | J27: 18432.14635 | K27: Existing
B28: Wildfire Fund Charge | D28: D.21-12-006, D.23-11-090 | E28: ='Authorized Rev Req'!R44 -> 412561.5555 | F28: DWR BC | G28: =E28 -> 412561.5555 | H28: =G28 -> 412561.5555 | I28: 412561.5555 | J28: 412561.5555 | K28: Existing
B29: DWR Franchise Fees | D29: ='Authorized Rev Req'!C45 -> CPUC Code 6350-6354 | E29: ='Authorized Rev Req'!R45 -> 2958.066353 | F29: Generation | G29: =E29 -> 2958.066353 | H29: 2958.066353 | I29: 2958.066353 | J29: 2958.066353 | K29: Existing
B30: Wildfire Gas Safety Costs IRR | D30: D.24-03-006 | E30: ='Authorized Rev Req'!S47 -> 0 | F30: Distribution (Wildfire) | G30: 0 | H30: 0 | I30: 0 | J30: 0 | K30: New
B31: Wildfire Gas Safety Costs IRR | D31: D.24-03-006 | E31: ='Authorized Rev Req'!S48 -> 0 | F31: Distribution | G31: 0 | H31: 0 | I31: 0 | J31: 0 | K31: New
B32: Wildfire Mitigation Balancing Account (WMBA) | D32: ='Authorized Rev Req'!C51 -> n/a | E32: ='Authorized Rev Req'!R51 -> -200072.086 | F32: Distribution (Wildfire) | G32: =E32 -> -200072.086 | H32: 0 | I32: 0 | J32: 0 | K32: Existing
B33: ECNBIMA
B34: Vegetation Management Balancing Account (VMBA) | D34: ='Authorized Rev Req'!C49 -> n/a | E34: ='Authorized Rev Req'!R49 -> 0 | F34: Distribution | G34: =E34 -> 0 | H34: 0 | I34: 0 | J34: 0 | K34: Existing
B35: Vegetation Management Balancing Account (VMBA) (Distribution - Wildfire) | D35: ='Authorized Rev Req'!C50 -> n/a | E35: ='Authorized Rev Req'!R50 -> 0 | F35: Distribution (Wildfire) | G35: 0 | H35: 0 | I35: 0 | J35: 0 | K35: Existing
B36: AB 1054 Securitization - FO 1 | D36: ='Authorized Rev Req'!C52 -> D.21-06-030, AL 7106-E | E36: ='Authorized Rev Req'!R52 -> 39502.88041 | F36: WHC | G36: 39502.88041 | H36: =G36 -> 39502.88041 | I36: =H36 -> 39502.88041 | J36: =I36 -> 39502.88041 | K36: Existing
B37: AB 1054 Securitization - FO 1 | D37: ='Authorized Rev Req'!C53 -> D.21-06-030, AL 6390-E | E37: ='Authorized Rev Req'!R53 -> 694.7304934 | F37: Distribution (Wildfire) | G37: 694.7304934 | H37: =G37 -> 694.7304934 | I37: 694.7304934 | J37: =I37 -> 694.7304934 | K37: Existing
B38: AB 1054 Securitization - FO 2 | D38: ='Authorized Rev Req'!C54 -> D.22-08-004, AL 7126-E | E38: ='Authorized Rev Req'!R54 -> 66437.36008 | F38: WHC | G38: 66437.36008 | H38: 66437.36008 | I38: 66437.36008 | J38: =I38 -> 66437.36008 | K38: Existing
B39: AB 1054 Securitization - FO 2 | D39: ='Authorized Rev Req'!C55 -> D.22-08-004, AL 6769-E | E39: ='Authorized Rev Req'!R55 -> -6788.351187 | F39: Distribution (Wildfire) | G39: -6788.351187 | H39: -6788.351187 | I39: -6788.351187 | J39: =I39 -> -6788.351187 | K39: Existing
B40: AB 1054 Securitization - FO 3 | D40: D.24-02-011, D.21-05-015 | E40: ='Authorized Rev Req'!S56 -> 92172.43724 | F40: WHC | G40: 92172.43724 | H40: =G40 -> 92172.43724 | I40: =H40 -> 92172.43724 | J40: =I40 -> 92172.43724 | K40: New
B41: Emergency Reliability OIR | D41: ='Authorized Rev Req'!C60 -> D.21-03-056, D.21-12-015 | E41: ='Authorized Rev Req'!R60 -> 0 | F41: Distribution | G41: =E41 -> 0 | H41: 0 | I41: 0 | J41: 0 | K41: Existing
B42: Section 851 Application to Sell The SF General Office Complex | D42: ='Authorized Rev Req'!C61 -> D.21-08-027 | E42: ='Authorized Rev Req'!R61 -> -39916.95776 | F42: Distribution | G42: =E42 -> -39916.95776 | H42: =G42 -> -39916.95776 | I42: 0 | J42: 0 | K42: Existing
B43: Section 851 Application to Sell The SF General Office Complex | D43: ='Authorized Rev Req'!C62 -> D.21-08-027 | E43: ='Authorized Rev Req'!R62 -> -21650.50209 | F43: PCIA | G43: =E43 -> -21650.50209 | H43: -22823.38706 | I43: 0 | J43: 0 | K43: Existing
B44: Residential Uncollectibles Balancing Account | D44: AL 7066-E | E44: ='Authorized Rev Req'!R64 -> 29940.31916 | F44: PCIA | G44: =E44 -> 29940.31916 | H44: 0 | I44: 0 | J44: 0 | K44: Existing
B45: Risk Transfer Balancing Account | D45: D.20-12-005, AL 7066-E | E45: 0 | F45: Distribution | G45: 0 | H45: 0 | I45: 0 | J45: 0 | K45: Existing
B46: Risk Transfer Balancing Account | D46: D.20-12-005, AL 7066-E | E46: ='Authorized Rev Req'!R63 -> 38485.89289 | F46: PCIA | G46: 38485.89289 | H46: 0 | I46: 0 | J46: 0 | K46: Existing
B47: 2021 WMCE | D47: D.23-08-027 | E47: ='Authorized Rev Req'!S70 -> 0 | F47: ='Authorized Rev Req'!T68 -> Distribution | G47: 0 | H47: 0 | I47: 0 | J47: 0 | K47: New
B48: 2021 WMCE | D48: D.23-08-027 | E48: ='Authorized Rev Req'!S69 -> 0 | F48: Distribution (Wildfire) | G48: 0 | H48: 0 | I48: 0 | J48: 0 | K48: New
B49: 2021 WMCE (VMBA) | D49: D.24-12-075 | E49: ='Authorized Rev Req'!R72 -> 360737.044 | F49: Distribution | G49: =E49 -> 360737.044 | H49: 0 | I49: 0 | J49: 0 | K49: New
B50: 2021 WMCE (VMBA) | D50: D.24-12-075 | E50: ='Authorized Rev Req'!R71 -> 142061.9376 | F50: Distribution (Wildfire) | G50: 142061.9376 | H50: 0 | I50: 0 | J50: 0 | K50: New
B51: 2022 WMCE | D51: D.25-09-008 | E51: 0 | F51: Distribution (Wildfire) | G51: 0 | H51: 12027.58509 | I51: 0 | J51: 0 | K51: New
B52: 2022 WMCE | D52: D.25-09-008 | E52: 0 | F52: PCIA | G52: 0 | H52: 4806.215069 | I52: 0 | J52: 0 | K52: New
B53: 2023 WMCE IRR | D53: D.24-09-003 | E53: ='Authorized Rev Req'!R73 -> 597531.2378 | F53: Distribution (Wildfire) | G53: 597531.2378 | H53: 0 | I53: 0 | J53: 0 | K53: New
B54: 2023 WMCE IRR | D54: D.24-09-003 | E54: ='Authorized Rev Req'!R74 -> 154644.3681 | F54: Distribution | G54: 154644.3681 | H54: 0 | I54: 0 | J54: 0 | K54: New
B55: OGO PFM | D55: D.24-08-009 | E55: ='Authorized Rev Req'!Q79 -> 141576.8519 | F55: Distribution | G55: 141576.8519 | H55: 48907.60309 | I55: 0 | J55: 0 | K55: New
B56: OGO PFM | D56: D.24-08-009 | E56: ='Authorized Rev Req'!R80 -> 68189.67389 | F56: PCIA | G56: 68189.67389 | H56: 9402.223123 | I56: 0 | J56: 0 | K56: New
B57: Assembly Bill (AB) 1054 Financing Order (FO) #3 (2025) | D57: D.24-02-011 | E57: ='Authorized Rev Req'!R57 -> -76060.25726 | F57: Distribution (Wildfire) | G57: =E57 -> -76060.25726 | H57: -74475.45584 | I57: 0 | J57: 0 | K57: New
B58: Assembly Bill (AB) 1054 Financing Order (FO) #3 2020 WMCE & 2020 GRC Adjustment | D58: D.24-02-011 | E58: ='Authorized Rev Req'!R58 -> 12431.12421 | F58: Distribution (Wildfire) | G58: =E58 -> 12431.12421 | H58: 0 | I58: 0 | J58: 0 | K58: New
B59: GRC Capacity Phase (ECNBIMA)(SB410) | D59: D.24-07-008/D.25-08-036 | E59: 0 | F59: Distribution | G59: 0 | H59: 96099.79524 | I59: 463000 | J59: =I59 -> 463000 | K59: New
B62: Public Policy Proceedings
B63: AB 32: Cap & Trade/GHG (ERRA Forecast) | D63: D.23-12-022 | E63: ='Authorized Rev Req'!R84 -> -721064.798 | F63: GHG Revenue | G63: =E63 -> -721064.798 | H63: =G63 -> -721064.798 | I63: -721064.798 | J63: =I63 -> -721064.798 | K63: Existing
B64: Tree Mortality (ERRA Forecast) | D64: D.23-12-022 | E64: ='Authorized Rev Req'!R114 -> 35334.0525 | F64: Public Purpose Program | G64: 35334.0525 | H64: 35334.0525 | I64: 35334.0525 | J64: =I64 -> 35334.0525 | K64: Existing
B65: CPUC Fee | D65: Res. M-4870 | E65: ='Authorized Rev Req'!R87 -> 61836.06675 | F65: Distribution | G65: 61836.06675 | H65: 76117.97802 | I65: 76117.97802 | J65: 76117.97802 | K65: Existing
B66: Energy Efficiency/PPPRAM | D66: ='Authorized Rev Req'!C107 -> D.23-06-055/ AL 7047-E | E66: ='Authorized Rev Req'!R107 -> 120736.8739 | F66: Public Purpose Program | G66: 120736.8739 | H66: =G66 -> 120736.8739 | I66: 120736.8739 | J66: 120736.8739 | K66: Existing
B67: Energy Efficiency/PEERAM | D67: ='Authorized Rev Req'!C108 -> D.23-06-055/ AL 7047-E | E67: ='Authorized Rev Req'!R108 -> 80748.49284 | F67: Public Purpose Program | G67: =E67 -> 80748.49284 | H67: 70907.13243 | I67: 70907.13243 | J67: 70907.13243 | K67: Existing
B68: Demand Response | D68: D.23-12-005 | E68: ='Authorized Rev Req'!R92 -> 199909.9238 | F68: Distribution | G68: 199909.9238 | H68: 111052.1811 | I68: 111052.1811 | J68: 111052.1811 | K68: Existing
B69: Alternative Fuel Vehicle - SB 350 Application (aka Transportation Electrification) | D69: ='Authorized Rev Req'!C89 -> D.18-05-040, D.19-11-017, D.19-09-006, D.20-12-029, D.22-08-024 | E69: ='Authorized Rev Req'!R89 -> 34990.183 | F69: Distribution | G69: =E69 -> 34990.183 | H69: 24700 | I69: =H69 -> 24700 | J69: =I69 -> 24700 | K69: Existing
B70: Non-Wildfire Liability Insurance | D70: D.25-03-008 /AL 5057-G/7575-E | E70: 0 | F70: Distribution | G70: 0 | H70: 26342.4 | I70: 0 | J70: 0 | K70: New
B71: Non-Wildfire Liability Insurance | D71: D.25-03-008 /AL 5057-G/7575-E | E71: 0 | F71: Generation | G71: 0 | H71: -14313.6 | I71: 0 | J71: 0 | K71: New
B72: Non-Wildfire Liability Insurance | D72: D.25-03-008 /AL 5057-G/7575-E | E72: 0 | F72: Transmission | G72: 0 | H72: -12028.8 | I72: 0 | J72: 0 | K72: New
J73: 0
B74: ESA (Energy Savings Assistance) | D74: ='Authorized Rev Req'!C105 -> D.21-06-015 | E74: ='Authorized Rev Req'!R105 -> 90694.046 | F74: Public Purpose Program | G74: =E74 -> 90694.046 | H74: 90585.031 | I74: =H74 -> 90585.031 | J74: 90585.031 | K74: Existing
B75: ESA Unspent Funds | D75: ='Authorized Rev Req'!C106 -> D.21-06-015 | E75: ='Authorized Rev Req'!R106 -> -8000 | F75: Public Purpose Program | G75: =E75 -> -8000 | H75: 0 | I75: 0 | J75: 0 | K75: New
B76: CARE Administration | D76: ='Authorized Rev Req'!C101 -> D.21-06-015 | E76: ='Authorized Rev Req'!R101 -> 11555.36 | F76: Public Purpose Program | G76: =E76 -> 11555.36 | H76: 11830.16 | I76: 11830.16 | J76: 11830.16 | K76: Existing
B77: EPIC (Electric Program Investment Charge) | D77: ='Authorized Rev Req'!C103 -> D.20-08-042 | E77: ='Authorized Rev Req'!R103 -> 93845.4162 | F77: Public Purpose Program | G77: =E77 -> 93845.4162 | H77: 74990 | I77: 74990 | J77: 74990 | K77: Existing
B78: BioMat | D78: D.23-12-022 | E78: ='Authorized Rev Req'!R119 -> 3567.343271 | F78: Public Purpose Program | G78: 3567.343271 | H78: =G78 -> 3567.343271 | I78: 3567.343271 | J78: 3567.343271 | K78: Existing
B79: Non-Vintaged PCIA | D79: D.23-12-022 | E79: ='Authorized Rev Req'!R121 -> -1476.326671 | F79: Public Purpose Program | G79: -1476.326671 | H79: -1476.326671 | I79: -1476.326671 | J79: -1476.326671 | K79: Existing
B80: DAC-GT | D80: D.23-12-022 | E80: ='Authorized Rev Req'!R123 -> 16260.33661 | F80: Public Purpose Program | G80: 16260.33661 | H80: =G80 -> 16260.33661 | I80: 0 | J80: 0 | K80: Existing
K81: Existing
B82: Market Transformation Administrator | D82: D.19-12-021, AL 4674-G/6747-E /AL RI-CalMTA-2 | E82: ='Authorized Rev Req'!R110 -> 7223.722688 | F82: Public Purpose Program | G82: =E82 -> 7223.722688 | H82: =G82 -> 7223.722688 | I82: 0 | J82: 0 | K82: Existing
B83: DCPP Extended Operations 2025 Forecast | D83: D.24-12-033 | E83: ='Authorized Rev Req'!R127 -> 365364.5204 | F83: Public Purpose Program | G83: =E83 -> 365364.5204 | H83: =G83 -> 365364.5204 | I83: =H83 -> 365364.5204 | J83: 365364.5204 | K83: New
B84: Microgrids Memorandum Account - Microgrids Incentive Program | D84: D.23-04-034/ AL 6962-E | E84: ='Authorized Rev Req'!R78 -> 482.2622635 | F84: Distribution (Wildfire) | G84: =E84 -> 482.2622635 | H84: 0 | I84: 0 | J84: 0 | K84: New
B85: Unspent for EE | D85: AL 7407-E | E85: ='Authorized Rev Req'!R128 -> -22374.489 | F85: Public Purpose Program | G85: =E85 -> -22374.489 | H85: 0 | I85: 0 | J85: 0 | K85: New
B86: Unspent funds and accrued interest for EPIC | D86: D.18-01-008 | E86: ='Authorized Rev Req'!R129 -> -30507.54453 | F86: Public Purpose Program | G86: =E86 -> -30507.54453 | H86: 0 | I86: 0 | J86: 0 | K86: New
B88: Balancing Accounts
B89: Generation | D89: AL 6505-E | E89: =SUMIFS('Authorized Rev Req'!$R:$R,'Authorized Rev Req'!$T:$T,F89,'Authorized Rev Req'!$U:$U,"Y") -> 0 | F89: Generation | G89: =E89 -> 0 | K89: Existing
B90: Distribution | D90: AL 6505-E / AL 7066-E | E90: =SUMIFS('Authorized Rev Req'!$R:$R,'Authorized Rev Req'!$T:$T,F90,'Authorized Rev Req'!$U:$U,"Y") -> 1504479.546 | F90: Distribution | G90: =E90 -> 1504479.546 | H90: 1309193.039 | I90: 0 | J90: 0 | K90: Existing
B91: Distribution (Wildfire) | D91: AL 6505-E / AL 7066-E | E91: =SUMIFS('Authorized Rev Req'!$R:$R,'Authorized Rev Req'!$T:$T,F91,'Authorized Rev Req'!$U:$U,"Y") -> -13461.25441 | F91: Distribution (Wildfire) | G91: =E91 -> -13461.25441 | H91: 44384.40329 | I91: 0 | J91: 0 | K91: Existing
B92: NSGC | D92: AL 6505-E | E92: =SUMIFS('Authorized Rev Req'!$R:$R,'Authorized Rev Req'!$T:$T,F92,'Authorized Rev Req'!$U:$U,"Y") -> -48400.20623 | F92: NSGC | G92: -48400.20623 | H92: 0 | I92: 0 | J92: 0 | K92: Existing
B93: Public Purpose Program | D93: AL 6505-E / AL 7066-E | E93: =SUMIFS('Authorized Rev Req'!$R:$R,'Authorized Rev Req'!$T:$T,F93,'Authorized Rev Req'!$U:$U,"Y") -> -140330.1076 | F93: Public Purpose Program | G93: -140330.1076 | H93: 62962.46689 | I93: 0 | J93: 0 | K93: Existing
B94: NDC | D94: AL 6505-E / AL 7066-E | E94: =SUMIFS('Authorized Rev Req'!$R:$R,'Authorized Rev Req'!$T:$T,F94,'Authorized Rev Req'!$U:$U,"Y") -> -22022.57567 | F94: NDC | G94: -22022.57567 | H94: -2265.738219 | I94: 0 | J94: 0 | K94: Existing
B95: ECRA | D95: AL 6505-E / AL 7066-E | E95: =SUMIFS('Authorized Rev Req'!$R:$R,'Authorized Rev Req'!$T:$T,F95,'Authorized Rev Req'!$U:$U,"Y") -> 699.2769705 | F95: ECRA | G95: 699.2769705 | H95: 1655.942927 | I95: 0 | J95: 0 | K95: Existing
B96: CTC | D96: AL 6505-E | E96: =SUMIFS('Authorized Rev Req'!$R:$R,'Authorized Rev Req'!$T:$T,F96,'Authorized Rev Req'!$U:$U,"Y") -> -23567.04161 | F96: CTC | G96: -23567.04161 | H96: 0 | I96: 0 | J96: 0 | K96: Existing
B97: PCIA | D97: AL 6505-E | E97: =SUMIFS('Authorized Rev Req'!$R:$R,'Authorized Rev Req'!$T:$T,F97,'Authorized Rev Req'!$U:$U,"Y") -> 636.0636591 | F97: PCIA | G97: 636.0636591 | H97: 0 | I97: 0 | J97: 0 | K97: Existing
B99: Non-CPUC Jurisdictional Proceedings
B100: TO - Formula Rate | D100: ='Authorized Rev Req'!C136 -> ER24-96-000 | E100: ='Authorized Rev Req'!R136 -> 2903023.385 | F100: Transmission | G100: =E100 -> 2903023.385 | H100: =G100 -> 2903023.385 | I100: 2903023.385 | J100: 2903023.385 | K100: Existing
B101: Transmission Balancing Accounts | D101: ER24-599-000 / ER23-2968-000, ER25-15-000/ AL 7426-E, AL 7151-E | E101: =SUM('Authorized Rev Req'!R137:R140) -> -611543.9256 | F101: FERC BAs | G101: =E101 -> -611543.9256 | H101: =G101-'Authorized Rev Req'!R140 -> 240761.9893 | I101: 240761.9893 | J101: 240761.9893 | K101: Existing
B103: Total Approved, Implemented Since Jan 1 or To Be Implemented | E103: =SUM(E10:E102) -> 19079592.69 | G103: =SUM(G10:G101) -> 19079592.69 | H103: =SUM(H10:H101) -> 17907501.29 | I103: =SUM(I10:I101) -> 16897059.5 | J103: =SUM(J10:J101) -> 16897059.5
E104: =E103-C5 -> -0.1451871023
B106: Pending Application(s), Not Yet Approved | R106: Authorized + Pending
B107: Filing Description | C107: Proceeding/Filing | D107: Basis of Revenue Requirement Forecast: Application Amended Application, Ammended Testimony, Proposed Settlement Agreement, Proposed Decision | E107: 2025 Proposed Revenue Requirement ($000) | F107: Proposed Revenue Recovery Mechanism | K107: Existing or New Item (if existing, use delta from prior for rate impact) | L107: Change in Projected Authorized Revenue Requirement ($000) for Rate Impact - Breakout by Year (if cell is shaded grey, rate impact is not presently determinable) | S107: =L108 -> 2025 | T107: =M108 -> 2026 | U107: =N108 -> 2027 | V107: =O108 -> 2028
B108: Safety Affordability Reliability Proceedings | G108: =G9 -> 2025 | H108: =G108+1 -> 2026 | I108: =H108+1 -> 2027 | J108: =I108+1 -> 2028 | L108: =G9 -> 2025 | M108: =L108+1 -> 2026 | N108: =M108+1 -> 2027 | O108: =N108+1 -> 2028 | R108: Generation | S108: =SUM(S10,SUMIFS(L$109:L$149,$F$109:$F$149,$R108,$P$109:$P$149,"y")) -> 4502517.133 | T108: =SUM(T10,SUMIFS(M$109:M$149,$F$109:$F$149,$R108,$P$109:$P$149,"y")) -> 2965051.821 | U108: 3013964.401 | V108: 2979401.898
B109: 2023 WMCE | C109: A.23-12-001 | D109: PG&E Prepared Testimony, Table 14-3 less IRR | E109: 0 | F109: Distribution (Wildfire) | G109: 0 | H109: 687635.3553 | J109: 0 | K109: New | L109: =G109 -> 0 | M109: =H109 -> 687635.3553 | N109: =I109-I53 -> 0 | O109: =J109 -> 0 | P109: Y | R109: NSGC | S109: =SUM(S11,SUMIFS(L$109:L$149,$F$109:$F$149,$R109,$P$109:$P$149,"y")) -> 325539.0162 | T109: 413621.1665 | U109: 413621.1665 | V109: 413621.1665
B110: 2023 WMCE | C110: A.23-12-001 | D110: PG&E Prepared Testimony, Table 14-3 | E110: =G110 -> 0 | F110: PCIA | G110: 0 | H110: 7429.614025 | J110: 0 | K110: New | L110: 0 | M110: 7429.614025 | N110: =I110 -> 0 | O110: 0 | P110: Y | R110: Distribution | S110: 10392694.73 | T110: 9891764.575 | U110: 9703914.308 | V110: 10077538.75
B111: 2023 WMCE | C111: A.23-12-001 | D111: PG&E Prepared Testimony, Table 14-3 less IRR | E111: 0 | F111: Distribution | H111: 178404.135 | J111: 0 | K111: New | L111: 0 | M111: 178404.135 | N111: =I111-I54 -> 0 | O111: 0 | P111: Y | R111: GHG Revenue | S111: -721064.798 | T111: -475276.501 | U111: -475276.501 | V111: -475276.501
B112: Gas AMI | C112: A.24-03-011 | D112: Application, WP 5-1 include RF&U | E112: 0 | F112: Distribution | H112: 31541.03016 | J112: 0 | K112: New | L112: 0 | M112: 31541.03016 | N112: 0 | O112: 0 | P112: =VLOOKUP(B112,Summary!$B$8:$E$26,3,FALSE) -> Y | R112: CTC | S112: -51714.55454 | T112: 26575.27899 | U112: 26575.27899 | V112: 26575.27899
B113: Gas AMI | C113: A.24-03-011 | D113: Application, WP 5-1 include RF&U | E113: 0 | F113: PCIA | H113: 9506.452017 | J113: 0 | K113: New | L113: 0 | M113: 9506.452017 | N113: 0 | O113: 0 | P113: =VLOOKUP(B113,Summary!$B$8:$E$26,3,FALSE) -> Y | R113: NDC | S113: -19018.95137 | T113: -2265.738219 | U113: 0 | V113: 0
B114: Wildfire Gas and Safety Costs | C114: A.23-06-008 | D114: Application, Table 1 & IRR PD for TY 2024 | E114: 0 | F114: Distribution (Wildfire) | H114: 169268.2883 | I114: 0 | J114: 0 | K114: Existing | L114: =G114 -> 0 | M114: 169268.2883 | N114: 0 | O114: 0 | P114: =VLOOKUP(B114,Summary!$B$8:$E$26,3,FALSE) -> Y | R114: Public Purpose Program | S114: 622641.6966 | T114: 722284.9309 | U114: 774617.1802 | V114: 781733.4482
B115: Wildfire Gas and Safety Costs | C115: A.23-06-008 | D115: Application, Table 1 | E115: 0 | F115: PCIA | H115: 36606.40298 | I115: 0 | J115: 0 | K115: Existing | L115: 0 | M115: 36606.40298 | N115: 0 | O115: 0 | P115: =VLOOKUP(B115,Summary!$B$8:$E$26,3,FALSE) -> Y | R115: DWR BC | S115: 412561.5555 | T115: 412561.5555 | U115: 412561.5555 | V115: 412561.5555
B116: TRRRMA | C116: A.24-09-015 | D116: Application, Table 2 | E116: =G116 -> 0 | F116: Distribution | G116: 0 | H116: 158581.7964 | I116: 0 | J116: 0 | K116: New | L116: 0 | M116: 158581.7964 | N116: 0 | O116: =J116 -> 0 | P116: =VLOOKUP(B116,Summary!$B$8:$E$26,3,FALSE) -> Y | R116: ECRA | S116: 699.2769705 | T116: 1655.942927 | U116: 0 | V116: 0
B117: TRRRMA | C117: A.24-09-015 | D117: Application, Table 2 | E117: =G117 -> 0 | F117: PCIA | G117: 0 | H117: 107689.7132 | I117: 0 | J117: 0 | K117: New | L117: 0 | M117: 107689.7132 | N117: 0 | O117: 0 | P117: =VLOOKUP(B117,Summary!$B$8:$E$26,3,FALSE) -> Y | R117: Transmission | S117: 2903023.385 | T117: 2555684.101 | U117: =SUM(U19,SUMIFS(N$109:N$149,$F$109:$F$149,$R117,$P$109:$P$149,"y")) -> 2903023.385 | V117: 2903023.385
B118: Billing Modernization | C118: A.24-10-014 | D118: Application, WP 7-1 | E118: =G118 -> 0 | F118: Distribution | G118: 0 | H118: 35860.5384 | I118: 34019.17284 | J118: 31781.76496 | K118: New | L118: 0 | M118: 35860.5384 | N118: 34019.17284 | O118: 31781.76496 | P118: =VLOOKUP(B118,Summary!$B$8:$E$26,3,FALSE) -> Y | R118: FERC BAs | S118: -611543.9256 | T118: 251906.0775 | U118: 240761.9893 | V118: 240761.9893
B119: Billing Modernization | C119: A.24-10-014 | D119: Application, WP 7-1 | E119: 0 | F119: PCIA | G119: 0 | H119: 9332.703624 | I119: 6533.409965 | J119: 6103.713952 | K119: New | L119: 0 | M119: 9332.703624 | N119: 6533.409965 | O119: 6103.713952 | P119: =VLOOKUP(B119,Summary!$B$8:$E$26,3,FALSE) -> Y | R119: PCIA | S119: -310246.3151 | T119: 1292825.537 | U119: 1436529.038 | V119: 1450107.429
B120: 2024 WMCE | C120: A.24-11-009 | D120: Application, Table 12-6 | E120: 0 | F120: Distribution | G120: 0 | H120: 8351.091341 | I120: 1575.634613 | J120: 1520.361552 | K120: New | L120: 0 | M120: 8351.091341 | N120: 1575.634613 | O120: =J120 -> 1520.361552 | P120: =VLOOKUP(B120,Summary!$B$8:$E$26,3,FALSE) -> Y | R120: WHC | S120: 198112.6777 | T120: 198112.6777 | U120: 198112.6777 | V120: 314666.836
B121: 2024 WMCE | C121: A.24-11-009 | D121: Application, Table 12-6 | E121: 0 | F121: Distribution (Wildfire) | G121: 0 | H121: 156458.9011 | I121: 29519.74178 | J121: 28484.19302 | K121: New | L121: 0 | M121: 156458.9011 | N121: 29519.74178 | O121: =J121 -> 28484.19302 | P121: =VLOOKUP(B121,Summary!$B$8:$E$26,3,FALSE) -> Y | R121: Distribution (Wildfire) | S121: 1435391.758 | T121: 1967777.871 | U121: 1141366.316 | V121: 1246811.088
B122: 2024 WMCE | C122: A.24-11-009 | D122: Application, Table 12-6 | E122: 0 | F122: PCIA | G122: 0 | H122: 5262.403038 | I122: 473.144236 | J122: 313.0179921 | K122: New | L122: =G122 -> 0 | M122: 5262.403038 | N122: 473.144236 | O122: 313.0179921 | P122: =VLOOKUP(B122,Summary!$B$8:$E$26,3,FALSE) -> Y | R122: Total | S122: =SUM(S108:S121) -> 19079592.69 | T122: =SUM(T108:T121) -> 20222279.3 | U122: =SUM(U108:U121) -> 19789770.8 | V122: =SUM(V108:V121) -> 20371526.32
B123: 2026 Cost of Capital | C123: A.25-03-010 | D123: Application, Page 16 | E123: 0 | F123: Distribution | G123: 0 | H123: 311457.0832 | I123: =H123 -> 311457.0832 | J123: 311457.0832 | K123: Existing | L123: 0 | M123: =H123-H26 -> 182994.5606 | N123: 182994.5606 | O123: 182994.5606 | P123: =VLOOKUP(B123,Summary!$B$8:$E$26,3,FALSE) -> Y
B124: 2026 Cost of Capital | C124: A.25-03-010 | D124: Application, Page 16 | E124: 0 | F124: Generation | G124: 0 | H124: 39795.83213 | I124: 39795.83213 | J124: 39795.83213 | K124: Existing | L124: 0 | M124: 21363.68577 | N124: 21363.68577 | O124: 21363.68577 | P124: =VLOOKUP(B124,Summary!$B$8:$E$26,3,FALSE) -> Y
B125: 2026 ERRA Forecast | C125: A.25-05-011 | D125: Testimony, Table 13-1 | E125: 0 | F125: NSGC | G125: 0 | H125: 413621.1665 | I125: 413621.1665 | J125: 413621.1665 | K125: Existing | L125: 0 | M125: =H125-H23 -> 39681.94406 | N125: =I125-I23 -> 39681.94406 | O125: =N125 -> 39681.94406 | P125: =VLOOKUP(B125,Summary!$B$8:$E$26,3,FALSE) -> Y
B126: 2026 ERRA Forecast | C126: A.25-05-011 | D126: Testimony, Table 13-1 | E126: 0 | F126: PCIA | G126: 0 | H126: 654.5550424 | I126: =H126 -> 654.5550424 | J126: 654.5550424 | K126: Existing | L126: 0 | M126: =H126-'Authorized Rev Req'!R26 -> 18.49138328 | N126: =M126 -> 18.49138328 | O126: 18.49138328 | P126: =VLOOKUP(B126,Summary!$B$8:$E$26,3,FALSE) -> Y
B127: 2026 ERRA Forecast | C127: A.25-05-011 | D127: Testimony, Table 13-1 | E127: 0 | F127: PCIA | G127: 0 | H127: -126828.0119 | I127: -126828.0119 | J127: -126828.0119 | K127: Existing | L127: 0 | M127: =H127-H21 -> 2204503.011 | N127: 2204503.011 | O127: 2204503.011 | P127: =VLOOKUP(B127,Summary!$B$8:$E$26,3,FALSE) -> Y
B128: 2026 ERRA Forecast | C128: A.25-05-011 | D128: Testimony, Table 13-1 | E128: 0 | F128: CTC | G128: 0 | H128: 26575.27899 | I128: 26575.27899 | J128: 26575.27899 | K128: Existing | L128: 0 | M128: 54722.79192 | N128: 54722.79192 | O128: 54722.79192 | P128: =VLOOKUP(B128,Summary!$B$8:$E$26,3,FALSE) -> Y
B129: 2026 ERRA Forecast | C129: A.25-05-011 | D129: Testimony, Table 13-1 | E129: 0 | F129: Generation | G129: 0 | H129: 2955043.669 | I129: 2955043.669 | J129: 2955043.669 | K129: Existing | L129: 0 | M129: =H129-H20 -> -1544515.397 | N129: =I129-I20 -> -1544515.397 | O129: =J129-J20 -> -1544515.397 | P129: =VLOOKUP(B129,Summary!$B$8:$E$26,3,FALSE) -> Y
B130: 2026 ERRA Forecast | C130: A.25-05-011 | D130: Testimony, Table 13-1 | E130: 0 | F130: Public Purpose Program | G130: 0 | H130: -7847.074645 | I130: -7847.074645 | J130: -7847.074645 | K130: Existing | L130: 0 | M130: =H130-H79 -> -6370.747974 | N130: =I130-I79 -> -6370.747974 | O130: =J130-J79 -> -6370.747974 | P130: =VLOOKUP(B130,Summary!$B$8:$E$26,3,FALSE) -> Y
B131: 2026 ERRA Forecast | C131: A.25-05-011 | D131: Testimony, Table 13-1 | E131: 0 | F131: Public Purpose Program | G131: 0 | H131: 41533.17324 | I131: 41533.17324 | J131: 41533.17324 | K131: Existing | L131: 0 | M131: =H131-H64 -> 6199.120741 | N131: =I131-I64 -> 6199.120741 | O131: =J131-J64 -> 6199.120741 | P131: =VLOOKUP(B131,Summary!$B$8:$E$26,3,FALSE) -> Y
B132: 2026 ERRA Forecast | C132: A.25-05-011 | D132: Testimony, Table 13-1 | E132: 0 | F132: Public Purpose Program | G132: 0 | H132: 13633.63189 | I132: 13633.63189 | J132: 13633.63189 | K132: Existing | L132: 0 | M132: =H132-H78 -> 10066.28862 | N132: =I132-I78 -> 10066.28862 | O132: =J132-J78 -> 10066.28862 | P132: =VLOOKUP(B132,Summary!$B$8:$E$26,3,FALSE) -> Y
B133: 2026 ERRA Forecast | C133: A.25-05-011 | D133: Testimony, Table 13-1 | E133: 0 | F133: GHG Revenue | G133: 0 | H133: -475276.501 | I133: -475276.501 | J133: -475276.501 | K133: Existing | L133: 0 | M133: =H133-H63 -> 245788.297 | N133: =I133-I63 -> 245788.297 | O133: =J133-J63 -> 245788.297 | P133: =VLOOKUP(B133,Summary!$B$8:$E$26,3,FALSE) -> Y
B134: 2027 GRC Phase 1 | C134: A.25-05-009 | D134: Application, Table 1 | E134: 0 | F134: PCIA | G134: 0 | H134: 0 | I134: 1509586.47 | J134: 1523754.683 | K134: Existing | L134: 0 | M134: =H134 -> 0 | N134: =I134-I12 -> 303909.2873 | O134: =J134-J12 -> 318077.5 | P134: =VLOOKUP(B134,Summary!$B$8:$E$26,3,FALSE) -> Y
B135: 2027 GRC Phase 1 | C135: A.25-05-009 | D135: Application, Table 1 | E135: 0 | F135: Distribution (Wildfire) | G135: 0 | H135: 0 | I135: 1117940.195 | J135: 1224420.515 | K135: Existing | L135: 0 | M135: 0 | N135: =I135-I11 -> 139367.7809 | O135: =J135-J11 -> 245848.1012 | P135: =VLOOKUP(B135,Summary!$B$8:$E$26,3,FALSE) -> Y
B136: 2027 GRC Phase 1 | C136: A.25-05-009 | D136: Application, Table 1 | E136: 0 | F136: Distribution | G136: 0 | H136: 0 | I136: 8317308.531 | J136: 8968275.345 | K136: Existing | L136: 0 | M136: 0 | N136: =I136-I10 -> 852024.1127 | O136: =J136-J10 -> 1502990.927 | P136: =VLOOKUP(B136,Summary!$B$8:$E$26,3,FALSE) -> Y
B137: Kincade and Dixie AB1054 Wildfire Cost Review and Recovery Proceeding | C137: A.25-11-001 | D137: Testimony, Table 7-14 | E137: 0 | F137: Distribution | G137: 0 | H137: 0 | I137: 283354.2529 | J137: 8304.559632 | K137: New | L137: 0 | M137: 0 | N137: =I137 -> 283354.2529 | O137: =J137 -> 8304.559632 | P137: =VLOOKUP(B137,Summary!$B$8:$E$26,3,FALSE) -> Y
B138: Kincade and Dixie AB1054 Wildfire Cost Review and Recovery Proceeding | C138: A.25-11-001 | D138: Testimony, Table 7-14 | E138: 0 | F138: Generation | G138: 0 | H138: 0 | I138: 34598.98 | J138: 36.47711874 | K138: New | L138: 0 | M138: 0 | N138: =I138 -> 34598.98 | O138: =J138 -> 36.47711874 | P138: =VLOOKUP(B138,Summary!$B$8:$E$26,3,FALSE) -> Y
B139: Kincade and Dixie AB1054 Wildfire Cost Review and Recovery Proceeding | C139: A.25-11-001 | D139: Testimony, Table 7-6 | E139: 0 | F139: WHC | G139: 0 | H139: 0 | I139: 0 | J139: 116554.1582 | K139: New | L139: =G139 -> 0 | M139: =H139 -> 0 | N139: =I139 -> 0 | O139: =J139 -> 116554.1582 | P139: =VLOOKUP(B139,Summary!$B$8:$E$26,3,FALSE) -> Y
B141: Public Policy Proceedings
B142: DCPP Extended Operations 2026 Forecast | C142: A.25-03-015 | D142: Application, Page 2 | E142: 0 | F142: Public Purpose Program | G142: =0 -> 0 | H142: 219469.4769 | I142: =0 -> 0 | J142: =0 -> 0 | K142: Existing | L142: 0 | M142: =H142-H83 -> -145895.0435 | N142: =I142 -> 0 | O142: =J142 -> 0 | P142: =VLOOKUP(B142,Summary!$B$8:$E$26,3,FALSE) -> Y
B143: Income Qualified Program Bridge Funding | C143: A.25-06-024 | D143: Application, Table 14, Table 18, and Table 21 | E143: 0 | F143: Public Purpose Program | G143: 0 | H143: 0 | I143: 18245.09659 | J143: 0 | K143: New | L143: 0 | M143: 0 | N143: -7116.268 | O143: 0 | P143: =VLOOKUP(B143,Summary!$B$8:$E$26,3,FALSE) -> Y
B146: Non-CPUC Jurisdictional Proceedings
B147: TO Tariff BA Adjustments | C147: ER24-96-000 | D147: AL 7762-E | E147: 0 | F147: FERC BAs | G147: 0 | H147: 251906.0775 | I147: 0 | J147: 0 | K147: Existing | L147: =G147 -> 0 | M147: =H147-H101 -> 11144.08818 | N147: =I147 -> 0 | O147: =J147 -> 0 | P147: =VLOOKUP(B147,Summary!$B$8:$E$26,3,FALSE) -> Y
B148: TO Base Retail Revenue Requirement | C148: ER24-96-000 | D148: Formula Rate Model, Tab 29 | E148: 0 | F148: Transmission | G148: 0 | H148: 2567712.901 | I148: 0 | J148: 0 | K148: Existing | L148: =G148 -> 0 | M148: =H148-H100 -> -335310.4838 | N148: 0 | O148: 0 | P148: =VLOOKUP(B148,Summary!$B$8:$E$26,3,FALSE) -> Y
B150: Total Pending, Filed but not Approved | E150: =SUM(E109:E148) -> 0 | G150: =SUM(G109:G148) -> 0 | H150: =SUM(H109:H148) -> 7833379.683 | I150: =SUM(I109:I148) -> 14545517.43 | J150: =SUM(J109:J148) -> 15101911.59 | L150: =SUM(L109:L148) -> 0 | M150: =SUM(M109:M148) -> 2346319.031 | N150: =SUM(N109:N148) -> 2892711.295 | O150: =SUM(O109:O148) -> 3474466.82
B154: 2021 RF&U | C154: 0.010869
B155: 2022 RF&U | C155: 0.010811
B156: 2024 RF&U | C156: 0.011245
B157: 2025 RF&U | C157: 0.01252
B158: 2026 RF&U | C158: 0.013604

Sheet SAR and RAR
C2: Revenue Change ($000)
C3: Authorized | D3: w/ Pending
B4: Generation | C4: =INDEX('Incremental Rev Req'!$R$9:$V$24,MATCH(B4,'Incremental Rev Req'!$R$9:$R$24,0),MATCH(Summary!$D$3,'Incremental Rev Req'!$R$9:$V$9,0)) -> 4502517.133 | D4: =INDEX('Incremental Rev Req'!$R$107:$V$122,MATCH(B4,'Incremental Rev Req'!$R$107:$R$122,0),MATCH(Summary!$D$3,'Incremental Rev Req'!$R$107:$V$107,0)) -> 4502517.133 | G4: Allocation
B5: NSGC | C5: =INDEX('Incremental Rev Req'!$R$9:$V$24,MATCH(B5,'Incremental Rev Req'!$R$9:$R$24,0),MATCH(Summary!$D$3,'Incremental Rev Req'!$R$9:$V$9,0)) -> 325539.0162 | D5: =INDEX('Incremental Rev Req'!$R$107:$V$122,MATCH(B5,'Incremental Rev Req'!$R$107:$R$122,0),MATCH(Summary!$D$3,'Incremental Rev Req'!$R$107:$V$107,0)) -> 325539.0162 | G5: Generation | H5: Distribution | I5: NDC | J5: PPPC | K5: NSGC | L5: Transmission | M5: CTC | N5: ECRA | O5: FERC BAs | P5: GHG Rev | Q5: DWRBC | R5: WHC | S5: PCIA | T5: Distribution (Wildfire)
B6: Distribution | C6: =INDEX('Incremental Rev Req'!$R$9:$V$24,MATCH(B6,'Incremental Rev Req'!$R$9:$R$24,0),MATCH(Summary!$D$3,'Incremental Rev Req'!$R$9:$V$9,0)) -> 10392694.73 | D6: =INDEX('Incremental Rev Req'!$R$107:$V$122,MATCH(B6,'Incremental Rev Req'!$R$107:$R$122,0),MATCH(Summary!$D$3,'Incremental Rev Req'!$R$107:$V$107,0)) -> 10392694.73 | F6: Residential | G6: =VLOOKUP(Summary!$D$3,$F$35:$T$38,G$33,FALSE) -> 0.4090066703 | H6: =VLOOKUP(Summary!$D$3,$F$35:$T$38,H$33,FALSE) -> 0.410340482 | I6: =VLOOKUP(Summary!$D$3,$F$35:$T$38,I$33,FALSE) -> 0.3376983711 | J6: =VLOOKUP(Summary!$D$3,$F$35:$T$38,J$33,FALSE) -> 0.3471319897 | K6: =VLOOKUP(Summary!$D$3,$F$35:$T$38,K$33,FALSE) -> 0.4665606931 | L6: =VLOOKUP(Summary!$D$3,$F$35:$T$38,L$33,FALSE) -> 0.4669269084 | M6: =VLOOKUP(Summary!$D$3,$F$35:$T$38,M$33,FALSE) -> 0.3666164112 | N6: =VLOOKUP(Summary!$D$3,$F$35:$T$38,N$33,FALSE) -> 0.3451080292 | O6: =VLOOKUP(Summary!$D$3,$F$35:$T$38,O$33,FALSE) -> 0.5110428467 | P6: =VLOOKUP(Summary!$D$3,$F$35:$T$38,P$33,FALSE) -> 0.8767643459 | Q6: =VLOOKUP(Summary!$D$3,$F$35:$T$38,Q$33,FALSE) -> 0.2711478062 | R6: =VLOOKUP(Summary!$D$3,$F$35:$T$38,R$33,FALSE) -> 0.3367928254 | S6: =VLOOKUP(Summary!$D$3,$F$35:$T$38,S$33,FALSE) -> 0.4672584499 | T6: =VLOOKUP(Summary!$D$3,$F$35:$T$38,T$33,FALSE) -> 0.3972330884
B7: GHG Revenue | C7: =INDEX('Incremental Rev Req'!$R$9:$V$24,MATCH(B7,'Incremental Rev Req'!$R$9:$R$24,0),MATCH(Summary!$D$3,'Incremental Rev Req'!$R$9:$V$9,0)) -> -721064.798 | D7: =INDEX('Incremental Rev Req'!$R$107:$V$122,MATCH(B7,'Incremental Rev Req'!$R$107:$R$122,0),MATCH(Summary!$D$3,'Incremental Rev Req'!$R$107:$V$107,0)) -> -721064.798
B8: CTC | C8: =INDEX('Incremental Rev Req'!$R$9:$V$24,MATCH(B8,'Incremental Rev Req'!$R$9:$R$24,0),MATCH(Summary!$D$3,'Incremental Rev Req'!$R$9:$V$9,0)) -> -51714.55454 | D8: =INDEX('Incremental Rev Req'!$R$107:$V$122,MATCH(B8,'Incremental Rev Req'!$R$107:$R$122,0),MATCH(Summary!$D$3,'Incremental Rev Req'!$R$107:$V$107,0)) -> -51714.55454 | G8: Revenue Change ($000) - System
B9: NDC | C9: =INDEX('Incremental Rev Req'!$R$9:$V$24,MATCH(B9,'Incremental Rev Req'!$R$9:$R$24,0),MATCH(Summary!$D$3,'Incremental Rev Req'!$R$9:$V$9,0)) -> -19018.95137 | D9: =INDEX('Incremental Rev Req'!$R$107:$V$122,MATCH(B9,'Incremental Rev Req'!$R$107:$R$122,0),MATCH(Summary!$D$3,'Incremental Rev Req'!$R$107:$V$107,0)) -> -19018.95137 | F9: Authorized | G9: Generation | H9: Distribution | I9: NDC | J9: Public Purpose Program | K9: NSGC | L9: Transmission | M9: CTC | N9: ECRA | O9: FERC BAs | P9: GHG Revenue | Q9: DWR BC | R9: WHC | S9: PCIA | T9: Distribution (Wildfire) | U9: Total
B10: Public Purpose Program | C10: =INDEX('Incremental Rev Req'!$R$9:$V$24,MATCH(B10,'Incremental Rev Req'!$R$9:$R$24,0),MATCH(Summary!$D$3,'Incremental Rev Req'!$R$9:$V$9,0)) -> 622641.6966 | D10: =INDEX('Incremental Rev Req'!$R$107:$V$122,MATCH(B10,'Incremental Rev Req'!$R$107:$R$122,0),MATCH(Summary!$D$3,'Incremental Rev Req'!$R$107:$V$107,0)) -> 622641.6966 | F10: Residential | G10: =G6*G11 -> 1841559.541 | H10: 4264543.366 | I10: -6422.668898 | J10: 216138.851 | K10: 151883.709 | L10: 1355499.734 | M10: -18959.40439 | N10: 241.3260972 | O10: -312525.1486 | P10: -632203.906 | Q10: 111865.1607 | R10: =R6*R11 -> 66722.92849 | S10: =S6*S11 -> -144965.2123 | T10: =T6*T11 -> 570185.101 | U10: =SUM(G10:T10) -> 7463563.377
B11: DWR BC | C11: =INDEX('Incremental Rev Req'!$R$9:$V$24,MATCH(B11,'Incremental Rev Req'!$R$9:$R$24,0),MATCH(Summary!$D$3,'Incremental Rev Req'!$R$9:$V$9,0)) -> 412561.5555 | D11: =INDEX('Incremental Rev Req'!$R$107:$V$122,MATCH(B11,'Incremental Rev Req'!$R$107:$R$122,0),MATCH(Summary!$D$3,'Incremental Rev Req'!$R$107:$V$107,0)) -> 412561.5555 | F11: Total System | G11: =VLOOKUP(G9,$B$4:$D$17,2,FALSE) -> 4502517.133 | H11: 10392694.73 | I11: -19018.95137 | J11: 622641.6966 | K11: 325539.0162 | L11: 2903023.385 | M11: -51714.55454 | N11: =VLOOKUP(N9,$B$4:$D$16,2,FALSE) -> 699.2769705 | O11: =VLOOKUP(O9,$B$4:$D$16,2,FALSE) -> -611543.9256 | P11: =VLOOKUP(P9,$B$4:$D$17,2,FALSE) -> -721064.798 | Q11: =VLOOKUP(Q9,$B$4:$D$17,2,FALSE) -> 412561.5555 | R11: =VLOOKUP(R9,$B$4:$D$17,2,FALSE) -> 198112.6777 | S11: =VLOOKUP(S9,$B$4:$D$17,2,FALSE) -> -310246.3151 | T11: =VLOOKUP(T9,$B$4:$D$17,2,FALSE) -> 1435391.758 | U11: =SUM(G11:T11) -> 19079592.69
B12: ECRA | C12: =INDEX('Incremental Rev Req'!$R$9:$V$24,MATCH(B12,'Incremental Rev Req'!$R$9:$R$24,0),MATCH(Summary!$D$3,'Incremental Rev Req'!$R$9:$V$9,0)) -> 699.2769705 | D12: =INDEX('Incremental Rev Req'!$R$107:$V$122,MATCH(B12,'Incremental Rev Req'!$R$107:$R$122,0),MATCH(Summary!$D$3,'Incremental Rev Req'!$R$107:$V$107,0)) -> 699.2769705 | F12: w/Pending
B13: Transmission | C13: =INDEX('Incremental Rev Req'!$R$9:$V$24,MATCH(B13,'Incremental Rev Req'!$R$9:$R$24,0),MATCH(Summary!$D$3,'Incremental Rev Req'!$R$9:$V$9,0)) -> 2903023.385 | D13: =INDEX('Incremental Rev Req'!$R$107:$V$122,MATCH(B13,'Incremental Rev Req'!$R$107:$R$122,0),MATCH(Summary!$D$3,'Incremental Rev Req'!$R$107:$V$107,0)) -> 2903023.385 | F13: Residential | G13: =G6*G14 -> 1841559.541 | H13: =H6*H14 -> 4264543.366 | I13: -6422.668898 | J13: 216138.851 | K13: 151883.709 | L13: 1355499.734 | M13: =M6*M14 -> -18959.40439 | N13: =N6*N14 -> 241.3260972 | O13: -312525.1486 | P13: -632203.906 | Q13: 111865.1607 | R13: =R6*R14 -> 66722.92849 | S13: =S6*S14 -> -144965.2123 | T13: =T6*T14 -> 570185.101 | U13: =SUM(G13:T13) -> 7463563.377
B14: FERC BAs | C14: =INDEX('Incremental Rev Req'!$R$9:$V$24,MATCH(B14,'Incremental Rev Req'!$R$9:$R$24,0),MATCH(Summary!$D$3,'Incremental Rev Req'!$R$9:$V$9,0)) -> -611543.9256 | D14: =INDEX('Incremental Rev Req'!$R$107:$V$122,MATCH(B14,'Incremental Rev Req'!$R$107:$R$122,0),MATCH(Summary!$D$3,'Incremental Rev Req'!$R$107:$V$107,0)) -> -611543.9256 | F14: Total System | G14: =VLOOKUP(G9,$B$4:$D$16,3,FALSE) -> 4502517.133 | H14: =VLOOKUP(H9,$B$4:$D$16,3,FALSE) -> 10392694.73 | I14: -19018.95137 | J14: 622641.6966 | K14: 325539.0162 | L14: 2903023.385 | M14: -51714.55454 | N14: 699.2769705 | O14: -611543.9256 | P14: -721064.798 | Q14: 412561.5555 | R14: 198112.6777 | S14: -310246.3151 | T14: =VLOOKUP(T9,$B$4:$D$17,3,FALSE) -> 1435391.758 | U14: =SUM(G14:T14) -> 19079592.69
B15: PCIA | C15: =INDEX('Incremental Rev Req'!$R$9:$V$24,MATCH(B15,'Incremental Rev Req'!$R$9:$R$24,0),MATCH(Summary!$D$3,'Incremental Rev Req'!$R$9:$V$9,0)) -> -310246.3151 | D15: =INDEX('Incremental Rev Req'!$R$107:$V$122,MATCH(B15,'Incremental Rev Req'!$R$107:$R$122,0),MATCH(Summary!$D$3,'Incremental Rev Req'!$R$107:$V$107,0)) -> -310246.3151 | AB15: Authorized | AC15: w/Pending
B16: WHC | C16: =INDEX('Incremental Rev Req'!$R$9:$V$24,MATCH(B16,'Incremental Rev Req'!$R$9:$R$24,0),MATCH(Summary!$D$3,'Incremental Rev Req'!$R$9:$V$9,0)) -> 198112.6777 | D16: =INDEX('Incremental Rev Req'!$R$107:$V$122,MATCH(B16,'Incremental Rev Req'!$R$107:$R$122,0),MATCH(Summary!$D$3,'Incremental Rev Req'!$R$107:$V$107,0)) -> 198112.6777 | U16: Authorized | W16: w/Pending | AA16: % of CARE Sales | AB16: =((VLOOKUP(Summary!$D$3,N51:O54,2,FALSE))-(VLOOKUP(Summary!$D$3,F51:G54,2,FALSE)))/(VLOOKUP(Summary!$D$3,N51:O54,2,FALSE)) -> 0.2562304171 | AC16: =AB16 -> 0.2562304171
B17: Distribution (Wildfire) | C17: =INDEX('Incremental Rev Req'!$R$9:$V$24,MATCH(B17,'Incremental Rev Req'!$R$9:$R$24,0),MATCH(Summary!$D$3,'Incremental Rev Req'!$R$9:$V$9,0)) -> 1435391.758 | D17: =INDEX('Incremental Rev Req'!$R$107:$V$122,MATCH(B17,'Incremental Rev Req'!$R$107:$R$122,0),MATCH(Summary!$D$3,'Incremental Rev Req'!$R$107:$V$107,0)) -> 1435391.758 | G17: Revenue Split - Bundled | U17: Bundled Revenue Change | W17: Bundled Revenue Change | AA17: CARE Line Item Discount | AB17: 0.35 | AC17: =AB17 -> 0.35
B18: Total | C18: =SUM(C4:C17) -> 19079592.69 | D18: =SUM(D4:D17) -> 19079592.69 | G18: Generation | H18: Distribution | I18: NDC | J18: PPPC | K18: NSGC | L18: Transmission | M18: CTC | N18: ECRA | O18: FERC BAs | P18: GHG Rev | Q18: DWRBC | R18: WHC | S18: PCIA | T18: Distribution (Wildfire) | U18: Total | V18: CARE Adj | W18: Total | X18: CARE Adj | AA18: CARE Discount | AB18: =SUM(H10:O10,S10:T10,G10/H19)*AB16*AB17 -> 977857.3629 | AC18: =SUM(H13:O13,S13:T13,G13/H19)*AB16*AB17 -> 977857.3629
F19: Residential | G19: =VLOOKUP(Summary!$D$3,$F$41:$Q$44,G$33,FALSE) -> 1 | H19: =VLOOKUP(Summary!$D$3,$F$41:$T$44,H$33,FALSE) -> 0.381421134 | I19: =VLOOKUP(Summary!$D$3,$F$41:$T$44,I$33,FALSE) -> 0.381421134 | J19: =VLOOKUP(Summary!$D$3,$F$41:$T$44,J$33,FALSE) -> 0.381421134 | K19: =VLOOKUP(Summary!$D$3,$F$41:$T$44,K$33,FALSE) -> 0.381421134 | L19: =VLOOKUP(Summary!$D$3,$F$41:$T$44,L$33,FALSE) -> 0.381421134 | M19: =VLOOKUP(Summary!$D$3,$F$41:$T$44,M$33,FALSE) -> 0.381421134 | N19: =VLOOKUP(Summary!$D$3,$F$41:$T$44,N$33,FALSE) -> 0.381421134 | O19: =VLOOKUP(Summary!$D$3,$F$41:$T$44,O$33,FALSE) -> 0.381421134 | P19: =VLOOKUP(Summary!$D$3,$F$41:$T$44,P$33,FALSE) -> 0.381421134 | Q19: =VLOOKUP(Summary!$D$3,$F$41:$T$44,Q$33,FALSE) -> 0.381421134 | R19: =VLOOKUP(Summary!$D$3,$F$41:$T$44,R$33,FALSE) -> 0.381421134 | S19: =VLOOKUP(Summary!$D$3,$F$41:$T$44,S$33,FALSE) -> 1.635871634 | T19: =VLOOKUP(Summary!$D$3,$F$41:$T$44,T$33,FALSE) -> 0.381421134 | U19: =SUMPRODUCT(G10:T10,G19:T19) -> 3804058.936 | V19: =U19-(($AB$18-$AB$21)*H19) -> 3537207.321 | W19: =SUMPRODUCT(G13:T13,G19:T19) -> 3804058.936 | X19: =W19-(($AC$18-$AC$21)*H19) -> 3537207.321 | AA19: non-CARE Residential Sales | AB19: =VLOOKUP(Summary!$D$3,$F$51:$G$54,2,FALSE) -> 19682427.31 | AC19: =AB19 -> 19682427.31
F20: Total System | G20: =VLOOKUP(Summary!$D$3,$F$45:$T$48,G$33,FALSE) -> 1 | H20: =VLOOKUP(Summary!$D$3,$F$45:$T$48,H$33,FALSE) -> 0.3432499007 | I20: =VLOOKUP(Summary!$D$3,$F$45:$T$48,I$33,FALSE) -> 0.3432499007 | J20: =VLOOKUP(Summary!$D$3,$F$45:$T$48,J$33,FALSE) -> 0.3432499007 | K20: =VLOOKUP(Summary!$D$3,$F$45:$T$48,K$33,FALSE) -> 0.3432499007 | L20: =VLOOKUP(Summary!$D$3,$F$45:$T$48,L$33,FALSE) -> 0.3432499007 | M20: =VLOOKUP(Summary!$D$3,$F$45:$T$48,M$33,FALSE) -> 0.3432499007 | N20: =VLOOKUP(Summary!$D$3,$F$45:$T$48,N$33,FALSE) -> 0.3432499007 | O20: =VLOOKUP(Summary!$D$3,$F$45:$T$48,O$33,FALSE) -> 0.3432499007 | P20: =VLOOKUP(Summary!$D$3,$F$45:$T$48,P$33,FALSE) -> 0.3432499007 | Q20: =VLOOKUP(Summary!$D$3,$F$45:$T$48,Q$33,FALSE) -> 0.3432499007 | R20: =VLOOKUP(Summary!$D$3,$F$45:$T$48,R$33,FALSE) -> 0.3432499007 | S20: =VLOOKUP(Summary!$D$3,$F$45:$T$48,S$33,FALSE) -> 1.864041541 | T20: =VLOOKUP(Summary!$D$3,$F$45:$T$48,T$33,FALSE) -> 0.3432499007 | U20: =SUMPRODUCT(G11:T11,G20:T20) -> 9034276.867 | V20: =U20 -> 9034276.867 | W20: =SUMPRODUCT(G14:T14,G20:T20) -> 9034276.867 | X20: =W20 -> 9034276.867 | AA20: non-exempt Sales | AB20: =VLOOKUP(Summary!$D$3,$F$55:$G$58,2,FALSE) -> 69174483.39 | AC20: =AB20 -> 69174483.39
AA21: Res CARE Surcharge | AB21: =AB18*AB19/AB20 -> 278232.746 | AC21: =AC18*AC19/AC20 -> 278232.746
F22: ="Notes: Allocation and bundled/unbundled split based on "&Summary!L4&" sales forecast" -> Notes: Allocation and bundled/unbundled split based on 2025 sales forecast | V22: Res GHG | W22: =P10*P19 -> -241135.9307 | X22: =P13*P19 -> -241135.9307
V23: Bundled Total System GHG | W23: =P11*P20 -> -247505.4203 | X23: =P14*P20 -> -247505.4203
AA25: 2025 | AI25: 2026
F26: Bundled | P26: System (Bundled and Unbundled) | AB26: 500000000 | AJ26: 500000000
F27: =Summary!D3&" Sales" -> 2025 Sales | G27: =TEXT(Summary!L3,"mm/d/yyyy")&" Avg Rates" -> 09/1/2025 Avg Rates | H27: Proposed Avg Rates (Authorized) | I27: Proposed Avg Rates (w/Pending) | J27: % Change (Authorized) | K27: % Change (w/Pending) | P27: =F27 -> 2025 Sales | Q27: =G27 -> 09/1/2025 Avg Rates | R27: Proposed Avg Rates (Authorized) | S27: Proposed Avg Rates (w/Pending) | T27: % Change (Authorized) | U27: % Change (w/Pending) | AA27: Distribution (Wildfire) Allocation | AB27: =(SUMIF('Authorized Rev Req'!T:T, "Distribution (Wildfire)", 'Authorized Rev Req'!R:R)+SUMIF('Authorized Rev Req'!T:T, "WHC", 'Authorized Rev Req'!R:R))*1000 -> 2216164204 | AI27: Distribution (Wildfire) Allocation | AJ27: =('Incremental Rev Req'!T121+'Incremental Rev Req'!T120)*1000 -> 2165890549
E28: Residential | F28: =VLOOKUP(Summary!$D$3,$J$51:$K$54,2,FALSE) -> 10093574.57 | G28: =IF(Summary!$I$3="Y",AB50,AC50) -> 35.65670968 | H28: =IF(Summary!$I$3="Y",V19/$F$28*100,SUM(V19-W22)/$F$28*100) -> 35.04414911 | I28: =IF(Summary!$I$3="Y",X19/$F$28*100,SUM(X19-X22)/$F$28*100) -> 35.04414911 | J28: =H28/G28-1 -> -0.0171793916 | K28: =I28/G28-1 -> -0.0171793916 | O28: Residential | P28: =VLOOKUP(Summary!$D$3,$N$51:$O$54,2,FALSE) -> 26463071.05 | Q28: =IF(Summary!$I$3="Y",AE50,AF50) -> 27.88626544 | R28: =IF(Summary!$I$3="Y",U10/P28*100,(U10-P10)/P28) -> 28.20369323 | S28: =IF(Summary!$I$3="Y",U13/P28*100,(U13-P13)/P28) -> 28.20369323 | T28: =R28/Q28-1 -> 0.01138294373 | U28: =S28/Q28-1 -> 0.01138294373
E29: Total System | F29: =VLOOKUP(Summary!$D$3,$J$55:$K$58,2,FALSE) -> 26204056.23 | G29: =IF(Summary!$I$3="Y",AB51,AC51) -> 34.77817042 | H29: =IF(Summary!$I$3="Y",V20/$F$29*100,SUM(V20-W23)/$F$29*100) -> 34.47663517 | I29: =IF(Summary!$I$3="Y",W20/$F$29*100,SUM(W20-X23)/$F$29*100) -> 34.47663517 | J29: =H29/G29-1 -> -0.008670244842 | K29: =I29/G29-1 -> -0.008670244842 | O29: Total System | P29: =VLOOKUP(Summary!$D$3,$N$55:$O$58,2,FALSE) -> 76341045.34 | Q29: =IF(Summary!$I$3="Y",AE51,AF51) -> 24.98704194 | R29: =IF(Summary!$I$3="Y",U11/P29*100,(U11-P11)/P29) -> 24.99257457 | S29: =IF(Summary!$I$3="Y",U14/P29*100,(U14-P14)/P29) -> 24.99257457 | T29: =R29/Q29-1 -> 0.0002214201367 | U29: =S29/Q29-1 -> 0.0002214201367 | AB29: Distribution | AC29: EPT | AE29: First 500M | AF29: After 500M | AJ29: Distribution | AK29: EPT | AM29: First 500M | AN29: After 500M
AA30: Res | AB30: 0.4668117998 | AC30: 0.378781425 | AE30: =AVERAGE(AB30:AC30) -> 0.4227966124 | AF30: =(0.125*AB30)+(0.875*AC30) -> 0.3897852218 | AI30: Res | AJ30: 0.4760999471 | AK30: 0.3736488051 | AM30: =AVERAGE(AJ30:AK30) -> 0.4248743761 | AN30: =(0.125*AJ30)+(0.875*AK30) -> 0.3864551978
AA31: B-1 | AB31: 0.1136282867 | AC31: 0.09326502357 | AI31: B-1 | AJ31: 0.105952459 | AK31: 0.09209130005
AA32: B-6/A-15 | AB32: 0.0313432068 | AC32: 0.02631508831 | AI32: B-6/A-15 | AJ32: 0.0332795684 | AK32: 0.02940337057
G33: 2 | H33: 3 | I33: 4 | J33: 5 | K33: 6 | L33: 7 | M33: 8 | N33: 9 | O33: 10 | P33: 11 | Q33: 12 | R33: 13 | S33: 14 | T33: 15 | AA33: B-10 | AB33: 0.09226022997 | AC33: 0.103221247 | AI33: B-10 | AJ33: 0.08804086161 | AK33: 0.1014553421
F34: Residential Allocator | G34: Generation | H34: Distribution | I34: NDC | J34: PPPC | K34: NSGC | L34: Transmission | M34: CTC | N34: ECRA | O34: FERC BAs | P34: GHG Rev | Q34: DWRBC | R34: WHC | S34: PCIA | T34: Distribution (Wildfire) | AA34: B-19 | AB34: 0.1443287247 | AC34: 0.1780883233 | AI34: B-19 | AJ34: 0.1460654497 | AK34: 0.1839727444
F35: 2025 | G35: 0.4090066703 | H35: 0.410340482 | I35: 0.3376983711 | J35: 0.3471319897 | K35: 0.4665606931 | L35: 0.4669269084 | M35: 0.3666164112 | N35: 0.3451080292 | O35: 0.5110428467 | P35: 0.8767643459 | Q35: 0.2711478062 | R35: 0.3367928254 | S35: 0.4672584499 | T35: =((AJ26*AE30)+((AB27-AB26)*(AF30)))/AB27 -> 0.3972330884 | AA35: Streetlights | AB35: 0.003507453892 | AC35: 0.003888497414 | AI35: Streetlights | AJ35: 0.003423604528 | AK35: 0.003959607662
F36: =F35+1 -> 2026 | G36: 0.4299186478 | H36: 0.4040388993 | I36: 0.3423954634 | J36: 0.3379567362 | K36: 0.4874984056 | L36: 0.4769142492 | M36: 0.3637498526 | N36: 0.3505113617 | O36: 0.3453059832 | P36: 0.8347238905 | Q36: 0.2723033134 | R36: 0.3383249039 | S36: 0.3492048251 | T36: =((AJ26*AM30)+((AJ27-AJ26)*(AN30)))/AJ27 -> 0.395324339 | AA36: Standby | AB36: 0.002024236095 | AC36: 0.004385175918 | AI36: Standby | AJ36: 0.001793496509 | AK36: 0.004038172426
F37: =F36+1 -> 2027 | G37: =G36 -> 0.4299186478 | H37: =H36 -> 0.4040388993 | I37: =I36 -> 0.3423954634 | J37: =J36 -> 0.3379567362 | K37: 0.4874984056 | L37: 0.4769142492 | M37: 0.3637498526 | N37: 0.3505113617 | O37: 0.3453059832 | P37: 0.8347238905 | Q37: 0.2723033134 | R37: =R36 -> 0.3383249039 | S37: =S36 -> 0.3492048251 | T37: =T36 -> 0.395324339 | AA37: AG | AB37: 0.09254234039 | AC37: 0.08354799747 | AI37: AG | AJ37: 0.08849536245 | AK37: 0.08067667803
F38: =F37+1 -> 2028 | G38: =G36 -> 0.4299186478 | H38: =H37 -> 0.4040388993 | I38: =I36 -> 0.3423954634 | J38: =J36 -> 0.3379567362 | K38: 0.4874984056 | L38: 0.4769142492 | M38: 0.3637498526 | N38: 0.3505113617 | O38: 0.3453059832 | P38: 0.8347238905 | Q38: 0.2723033134 | R38: =R36 -> 0.3383249039 | S38: =S36 -> 0.3492048251 | T38: =T37 -> 0.395324339 | AA38: B-20P | AB38: 0.03808547486 | AC38: 0.06442291628 | AI38: B-20P | AJ38: 0.03966768705 | AK38: 0.06786135255
AA39: B-20S | AB39: 0.01426254976 | AC39: 0.02052339672 | AI39: B-20S | AJ39: 0.01571260425 | AK39: 0.02270671214
F40: Revenue Split - Bundled | AA40: B-20T | AB40: 0.001205697076 | AC40: 0.04356090908 | AI40: B-20T | AJ40: 0.001468959346 | AK40: 0.04018591498
E41: Residential | F41: =F35 -> 2025 | G41: 1 | H41: =$K51/$O51 -> 0.381421134 | I41: 0.381421134 | J41: 0.381421134 | K41: 0.381421134 | L41: 0.381421134 | M41: 0.381421134 | N41: =$K51/$O51 -> 0.381421134 | O41: 0.381421134 | P41: 0.381421134 | Q41: 0.381421134 | R41: =$K51/$O51 -> 0.381421134 | S41: 1.635871634 | T41: =$K51/$O51 -> 0.381421134
E42: Residential | F42: =F36 -> 2026 | G42: 1 | H42: =$K52/$O52 -> 0.3886737228 | I42: =$K52/$O52 -> 0.3886737228 | J42: 0.3886737228 | K42: 0.3886737228 | L42: 0.3886737228 | M42: 0.3886737228 | N42: 0.3886737228 | O42: 0.3886737228 | P42: 0.3886737228 | Q42: 0.3886737228 | R42: 0.3886737228 | S42: -0.2622522721 | T42: 0.3886737228
E43: Residential | F43: =F37 -> 2027 | G43: =G42 -> 1 | H43: 0.3886737228 | I43: 0.3886737228 | J43: 0.3886737228 | K43: 0.3886737228 | L43: 0.3886737228 | M43: 0.3886737228 | N43: 0.3886737228 | O43: 0.3886737228 | P43: 0.3886737228 | Q43: 0.3886737228 | R43: 0.3886737228 | S43: -0.2622522721 | T43: =$K53/$O53 -> 0.3886737228 | AB43: 1/1/25 Bundled w/Credit | AC43: 1/1/25 Bundled w/out Credit | AE43: 1/1/25 System w/Credit | AF43: 1/1/25 System w/out Credit
E44: Residential | F44: =F38 -> 2028 | G44: =G42 -> 1 | H44: =H42 -> 0.3886737228 | I44: 0.3886737228 | J44: 0.3886737228 | K44: 0.3886737228 | L44: 0.3886737228 | M44: 0.3886737228 | N44: 0.3886737228 | O44: 0.3886737228 | P44: 0.3886737228 | Q44: 0.3886737228 | R44: =R42 -> 0.3886737228 | S44: =S43 -> -0.2622522721 | T44: 0.3886737228
E45: Total System | F45: =F41 -> 2025 | G45: 1 | H45: =$K55/$O55 -> 0.3432499007 | I45: 0.3432499007 | J45: 0.3432499007 | K45: 0.3432499007 | L45: 0.3432499007 | M45: 0.3432499007 | N45: 0.3432499007 | O45: 0.3432499007 | P45: 0.3432499007 | Q45: 0.3432499007 | R45: =$K55/$O55 -> 0.3432499007 | S45: 1.864041541 | T45: 0.3432499007 | AA45: Residential | AB45: 35.876527 | AC45: 38.03212458 | AD45: Residential | AE45: 28.12908243 | AF45: 30.51773164
E46: Total System | F46: =F42 -> 2026 | G46: 1 | H46: =$K56/$O56 -> 0.3288618654 | I46: =$K56/$O56 -> 0.3288618654 | J46: 0.3288618654 | K46: 0.3288618654 | L46: 0.3288618654 | M46: 0.3288618654 | N46: 0.3288618654 | O46: 0.3288618654 | P46: 0.3288618654 | Q46: 0.3288618654 | R46: 0.3288618654 | S46: -0.21224132 | T46: 0.3288618654 | AA46: System | AB46: 35.04098349 | AC46: 35.95033555 | AD46: Total System | AE46: 25.25800684 | AF46: 26.14276773
E47: Total System | F47: =F43 -> 2027 | G47: =G46 -> 1 | H47: 0.3288618654 | I47: 0.3288618654 | J47: 0.3288618654 | K47: 0.3288618654 | L47: 0.3288618654 | M47: 0.3288618654 | N47: 0.3288618654 | O47: 0.3288618654 | P47: 0.3288618654 | Q47: 0.3288618654 | R47: 0.3288618654 | S47: -0.21224132 | T47: =$K57/$O57 -> 0.3288618654
E48: Total System | F48: =F44 -> 2028 | G48: =G46 -> 1 | H48: =H46 -> 0.3288618654 | I48: 0.3288618654 | J48: 0.3288618654 | K48: 0.3288618654 | L48: 0.3288618654 | M48: 0.3288618654 | N48: 0.3288618654 | O48: 0.3288618654 | P48: 0.3288618654 | Q48: 0.3288618654 | R48: =R46 -> 0.3288618654 | S48: =S47 -> -0.21224132 | T48: =$K58/$O58 -> 0.3288618654 | AB48: 9/1/25 Bundled w/Credit | AC48: 9/1/25 Bundled w/out Credit | AE48: 9/1/25 System w/Credit | AF48: 9/1/25 System w/out Credit
F50: Non-CARE Sales | J50: Bundled Sales | N50: System Sales | AA50: Residential | AB50: 35.65670968 | AC50: 37.81230726 | AD50: Residential | AE50: 27.88626544 | AF50: 30.27491465
E51: Residential | F51: =F41 -> 2025 | G51: 19682427.31 | I51: Residential | J51: =F51 -> 2025 | K51: 10093574.57 | M51: Residential | N51: =F51 -> 2025 | O51: 26463071.05 | AA51: System | AB51: 34.77817042 | AC51: 35.68752248 | AD51: Total System | AE51: 24.98704194 | AF51: 25.87180283
E52: Residential | F52: =F42 -> 2026 | G52: 19358300.39 | I52: Residential | J52: =F52 -> 2026 | K52: 10313310.04 | M52: Residential | N52: =F52 -> 2026 | O52: 26534621.29
E53: Residential | F53: 2027 | G53: =G52 -> 19358300.39 | I53: Residential | J53: 2027 | K53: =K52 -> 10313310.04 | M53: Residential | N53: 2027 | O53: =O52 -> 26534621.29
E54: Residential | F54: 2028 | G54: =G53 -> 19358300.39 | I54: Residential | J54: 2028 | K54: =K53 -> 10313310.04 | M54: Residential | N54: 2028 | O54: =$O$53 -> 26534621.29
E55: Total System | F55: 2025 | G55: 69174483.39 | I55: Total System | J55: 2025 | K55: 26204056.23 | M55: Total System | N55: 2025 | O55: 76341045.34
E56: Total System | F56: 2026 | G56: 67795745.93 | I56: Total System | J56: 2026 | K56: 24784494.94 | M56: Total System | N56: 2026 | O56: 75364454.01
E57: Total System | F57: 2027 | G57: =G56 -> 67795745.93 | I57: Total System | J57: 2027 | K57: =K56 -> 24784494.94 | M57: Total System | N57: 2027 | O57: =O56 -> 75364454.01
E58: Total System | F58: 2028 | G58: =G57 -> 67795745.93 | I58: Total System | J58: 2028 | K58: =K57 -> 24784494.94 | M58: Total System | N58: 2028 | O58: =O57 -> 75364454.01
E60: Notes:
E62: 2025 Forecast: Adopted in D.24-12-038
E63: 2026 Forecast proposed in A.25-05-011
E64: 2027 Forecast: Set equal to the 2026
E65: 2028 Forecast: Set equal to the 2026

Sheet Res Bill Impact
E3: Schedule E-1 | P3: Schedule EL-1
E4: =Summary!D3 -> 2025 | F4: =Summary!L3 -> 2025-09-01 | G4: =Summary!L3 -> 2025-09-01 | H4: Proposed | I4: Proposed | J4: Proposed | K4: Proposed | P4: =E4 -> 2025 | Q4: =Summary!L3 -> 2025-09-01 | R4: =Summary!L3 -> 2025-09-01 | S4: Proposed | T4: Proposed | U4: Proposed | V4: Proposed
E5: Sales Forecast | F5: Rates | G5: Revenue | H5: Authorized Rates | I5: Authorized Revenue | J5: w/Pending Rates | K5: w/Pending Revenue | P5: Sales Forecast | Q5: Rates | R5: Revenue | S5: Authorized Rates | T5: Authorized Revenue | U5: w/Pending Rates | V5: w/Pending Revenue
D7: Baseline - Summer | E7: =HLOOKUP($E$4,$Y$38:$AB$42,2,FALSE) -> 1539742612 | F7: 0.3983432177 | G7: =F7*E7 -> 613346026.3 | H7: =(Y9/SUM(SUM(E7:E8),F9/F7*SUM(E9:E10),F11/F7*SUM(E11:E12),SUM(P7:P8)*(1+(Q7/F7-1)),SUM(P9:P10)*(1+(Q9/F9-1))*F9/F7,SUM(P11:P12)*(1+(Q11/F11-1))*F11/F7)) -> 0.3958208791 | I7: =E7*H7 -> 609462274.1 | J7: =(Y10/SUM(SUM(E7:E8),F9/F7*SUM(E9:E10),F11/F7*SUM(E11:E12),SUM(P7:P8)*(1+(Q7/F7-1)),SUM(P9:P10)*(1+(Q9/F9-1))*F9/F7,SUM(P11:P12)*(1+(Q11/F11-1))*F11/F7)) -> 0.3958208791 | K7: =E7*J7 -> 609462274.1 | O7: Baseline - Summer | P7: =HLOOKUP($E$4,$Y$49:$AB$53,2,FALSE) -> 917088578.4 | Q7: 0.244525483 | R7: =Q7*P7 -> 224251527.6 | S7: =H7*(1+(Q7/F7-1)) -> 0.2429771296 | T7: =P7*S7 -> 222831550.4 | U7: =J7*(1+(Q7/F7-1)) -> 0.2429771296 | V7: =P7*U7 -> 222831550.4 | X7: Bundled Residential Rev Req
D8: - Winter | E8: =HLOOKUP($E$4,$Y$38:$AB$42,3,FALSE) -> 2087811425 | F8: 0.3983432177 | G8: 831665520.9 | H8: =H7 -> 0.3958208791 | I8: 826399353.6 | J8: =J7 -> 0.3958208791 | K8: 826399353.6 | O8: - Winter | P8: =HLOOKUP($E$4,$Y$49:$AB$53,3,FALSE) -> 1518299195 | Q8: 0.244525483 | R8: 371262843.9 | S8: 0.2429771296 | T8: 368911980.2 | U8: 0.2429771296 | V8: 368911980.2 | X8: Current | Y8: =SUM(G7:G12)+SUM(R7:R12) -> 3802420458
D9: 101% - 400% of Baseline - Summer | E9: =HLOOKUP($E$4,$Y$38:$AB$42,4,FALSE) -> 1193550818 | F9: 0.4991841541 | G9: 595801655.2 | H9: =F9/F$7*H$7 -> 0.4960232833 | I9: 592028995.3 | J9: =F9/F$7*J$7 -> 0.4960232833 | K9: 592028995.3 | O9: 101% - 400% of Baseline - Summer | P9: =HLOOKUP($E$4,$Y$49:$AB$53,4,FALSE) -> 561993596.3 | Q9: 0.3100720916 | R9: 174258529.9 | S9: 0.3081086923 | T9: 173155112.1 | U9: 0.3081086923 | V9: 173155112.1 | X9: Proposed (Authorized) | Y9: =('SAR and RAR'!V19-('SAR and RAR'!P10*'SAR and RAR'!P19))*1000 -> 3778343252 | Z9: =Y9/Y8-1 -> -0.006332073583
D10: - Winter | E10: =HLOOKUP($E$4,$Y$38:$AB$42,5,FALSE) -> 1514443135 | F10: 0.4991841541 | G10: 755986015.1 | H10: =H9 -> 0.4960232833 | I10: 751199056 | J10: =J9 -> 0.4960232833 | K10: 751199056 | O10: - Winter | P10: =HLOOKUP($E$4,$Y$49:$AB$53,5,FALSE) -> 760624209 | Q10: 0.3100720916 | R10: 235848339.4 | S10: 0.3081086923 | T10: 234354930.4 | U10: 0.3081086923 | V10: 234354930.4 | X10: Proposed (w/Pending) | Y10: =('SAR and RAR'!X19-('SAR and RAR'!P13*'SAR and RAR'!P19))*1000 -> 3778343252 | Z10: =Y10/Y8-1 -> -0.006332073583 | AL10: 75546565
D11: 401% of Baseline - Summer | E11: =HLOOKUP($E$4,$Y$38:$AB$44,6,FALSE) -> 0 | F11: 0.4991841541 | G11: 0 | H11: =F11/F$7*H$7 -> 0.4960232833 | I11: 0 | J11: =F11/F$7*J$7 -> 0.4960232833 | K11: 0 | O11: 401% of Baseline - Summer | P11: =HLOOKUP($E$4,$Y$49:$AB$55,6,FALSE) -> 0 | Q11: 0.3100720916 | R11: 0 | S11: 0.3081086923 | T11: 0 | U11: 0.3081086923 | V11: 0
D12: - Winter | E12: =HLOOKUP($E$4,$Y$38:$AB$44,7,FALSE) -> 0 | F12: 0.4991841541 | G12: 0 | H12: =H11 -> 0.4960232833 | I12: 0 | J12: =J11 -> 0.4960232833 | K12: 0 | O12: - Winter | P12: =HLOOKUP($E$4,$Y$49:$AB$55,7,FALSE) -> 0 | Q12: 0.3100720916 | R12: 0 | S12: 0.3081086923 | T12: 0 | U12: 0.3081086923 | V12: 0
AL15: -627953562.8
P19: 2024 Recorded Average Monthly Usage (kWh) - Bundled/Basic/non-medical/non-FERA | X19: 2024 Recorded Average Monthly Usage (kWh) - Bundled/All Electric/non-medical/non-FERA
B20: SCHEDULE E-1 RATES ($/kWh) | E20: Proposed | F20: Proposed | H20: MONTHLY BASELINE QUANTITIES -BASIC (kWh) | L20: MONTHLY BASELINE QUANTITIES -ALL-ELECTRIC (kWh) | P20: Climate Zone | Q20: Summer | R20: Winter | S20: Summer | T20: Winter | U20: Sample Population Weight | X20: Climate Zone | Y20: Summer | Z20: Winter | AA20: Summer | AB20: Winter | AC20: Sample Population Weight
B21: Rates | C21: 2025-01-01 | D21: =Summary!L3 -> 2025-09-01 | E21: Authorized | F21: w/Pending | H21: Climate Zone | I21: Summer | J21: Winter | L21: Climate Zone | M21: Summer | N21: Winter | Q21: Non-CARE | S21: CARE | U21: Non-CARE | V21: CARE | Y21: Non-CARE | AA21: CARE | AC21: Non-CARE | AD21: CARE
B22: Tier 1 | C22: 0.40122 | D22: =F7 -> 0.3983432177 | E22: =H7 -> 0.3958208791 | F22: =J7 -> 0.3958208791 | H22: P - Hot | I22: =13.5*$R$33 -> 410.90625 | J22: =11*$R$33 -> 334.8125 | L22: P - Hot | M22: =15.2*$R$33 -> 462.65 | N22: =26*$R$33 -> 791.375 | P22: P - Hot | Q22: 570.5 | R22: 411.375 | S22: 645.25 | T22: 520.5 | U22: 0.04556940043 | V22: 0.02385333539 | X22: P - Hot | Y22: 624.5 | Z22: 556.375 | AA22: 716.25 | AB22: 717 | AC22: 0.2017889599 | AD22: 0.1854560745
B23: Tier 2 | C23: 0.50257 | D23: =F9 -> 0.4991841541 | E23: =H9 -> 0.4960232833 | F23: =J9 -> 0.4960232833 | H23: Q - Warm | I23: =9.8*$R$33 -> 298.2875 | J23: =11*$R$33 -> 334.8125 | L23: Q - Warm | M23: =8.5*$R$33 -> 258.71875 | N23: =26*$R$33 -> 791.375 | P23: Q - Warm | Q23: 379.25 | R23: 437.5 | S23: 352.75 | T23: 419 | U23: 0.0003245801591 | V23: 0.0001033668774 | X23: Q - Warm | Y23: 478 | Z23: 604.625 | AA23: 462.25 | AB23: 603.125 | AC23: 0.00128660591 | AD23: 0.0005359659824
H24: R - Hot | I24: =17.7*$R$33 -> 538.74375 | J24: =10.4*$R$33 -> 316.55 | L24: R - Hot | M24: =19.9*$R$33 -> 605.70625 | N24: =26.7*$R$33 -> 812.68125 | P24: R - Hot | Q24: 830.75 | R24: 409.75 | S24: 934.25 | T24: 448.625 | U24: 0.2800164289 | V24: 0.3781048696 | X24: R - Hot | Y24: 799.25 | Z24: 529.125 | AA24: 922.5 | AB24: 611.125 | AC24: 0.2527488248 | AD24: 0.3301476423
H25: S - Hot | I25: =15*$R$33 -> 456.5625 | J25: =10.2*$R$33 -> 310.4625 | L25: S - Hot | M25: =17.8*$R$33 -> 541.7875 | N25: =23.7*$R$33 -> 721.36875 | P25: S - Hot | Q25: 715 | R25: 409 | S25: 792.75 | T25: 446.375 | U25: 0.3631316909 | V25: 0.3077390366 | X25: S - Hot | Y25: 707.5 | Z25: 500.375 | AA25: 769.25 | AB25: 558.125 | AC25: 0.2541243835 | AD25: 0.2542818056
B26: SCHEDULE EL-1 ($/kWh) | E26: Proposed | F26: Proposed | H26: T - Cool | I26: =6.5*$R$33 -> 197.84375 | J26: =7.5*$R$33 -> 228.28125 | L26: T - Cool | M26: =7.1*$R$33 -> 216.10625 | N26: =12.9*$R$33 -> 392.64375 | P26: T - Cool | Q26: 260.5 | R26: 303 | S26: 266.25 | T26: 303.125 | U26: 0.04952293838 | V26: 0.02141044883 | X26: T - Cool | Y26: 292.25 | Z26: 369 | AA26: 269.25 | AB26: 338 | AC26: 0.03888612758 | AD26: 0.02639706492
B27: Rates | C27: =C21 -> 2025-01-01 | D27: =D21 -> 2025-09-01 | E27: Authorized | F27: w/Pending | H27: V - Cool | I27: =7.1*$R$33 -> 216.10625 | J27: =8.1*$R$33 -> 246.54375 | L27: V - Cool | M27: =10.4*$R$33 -> 316.55 | N27: =19.1*$R$33 -> 581.35625 | P27: V - Cool | Q27: 313.75 | R27: 367.5 | S27: 292 | T27: 349 | U27: 0.001733850701 | V27: 0.001240142813 | X27: V - Cool | Y27: 418.25 | Z27: 527.5 | AA27: 404.75 | AB27: 559.375 | AC27: 0.001976219341 | AD27: 0.001442074218
B28: Tier 1 | C28: 0.24539 | D28: =Q7 -> 0.244525483 | E28: =S7 -> 0.2429771296 | F28: =U7 -> 0.2429771296 | H28: W - Hot | I28: =19.2*$R$33 -> 584.4 | J28: =9.8*$R$33 -> 298.2875 | L28: W - Hot | M28: =22.4*$R$33 -> 681.8 | N28: =19*$R$33 -> 578.3125 | P28: W - Hot | Q28: 915.5 | R28: 376.875 | S28: 1012.25 | T28: 422.125 | U28: 0.1305703514 | V28: 0.2311361292 | X28: W - Hot | Y28: 914 | Z28: 439.875 | AA28: 1030.75 | AB28: 484.25 | AC28: 0.0703570767 | AD28: 0.1315293093
B29: Tier 2 | C29: 0.31127 | D29: =Q9 -> 0.3100720916 | E29: =S9 -> 0.3081086923 | F29: =U9 -> 0.3081086923 | H29: X - Warm | I29: =9.8*$R$33 -> 298.2875 | J29: =9.7*$R$33 -> 295.24375 | L29: X - Warm | M29: =8.5*$R$33 -> 258.71875 | N29: =14.6*$R$33 -> 444.3875 | P29: X - Warm | Q29: 481.75 | R29: 402.875 | S29: 438.25 | T29: 381.625 | U29: 0.1082595428 | V29: 0.03220034059 | X29: X - Warm | Y29: 463 | Z29: 462.875 | AA29: 413.5 | AB29: 438.75 | AC29: 0.06288504181 | AD29: 0.03974439457
H30: Y - Warm | I30: =10.5*$R$33 -> 319.59375 | J30: =11.1*$R$33 -> 337.85625 | L30: Y - Warm | M30: =12*$R$33 -> 365.25 | N30: =24*$R$33 -> 730.5 | P30: Y - Warm | Q30: 382 | R30: 326 | S30: 522 | T30: 516.25 | U30: 0.01918468588 | V30: 0.004155971788 | X30: Y - Warm | Y30: 376.75 | Z30: 360.5 | AA30: 603.25 | AB30: 670.75 | AC30: 0.1036520167 | AD30: 0.03000373103
H31: Z - Cool | I31: =5.9*$R$33 -> 179.58125 | J31: =7.8*$R$33 -> 237.4125 | L31: Z - Cool | M31: =6.7*$R$33 -> 203.93125 | N31: =15.7*$R$33 -> 477.86875 | P31: Z - Cool | Q31: 192.25 | R31: 173.125 | S31: 223.25 | T31: 239.5 | U31: 0.001686530452 | V31: 5.635832258e-05 | X31: Z - Cool | Y31: 202.25 | Z31: 172.625 | AA31: 348.25 | AB31: 451.375 | AC31: 0.01229474372 | AD31: 0.0004619375318
Q33: Daily to Monthly Conversion Factor | R33: =365.25/12 -> 30.4375
C35: Basic NON-CARE | M35: All Electric NON-CARE
C36: =$C$27 -> 2025-01-01 | E36: =$D$27 -> 2025-09-01 | G36: =$E$21 -> Authorized | I36: =$F$21 -> w/Pending | M36: =$C$27 -> 2025-01-01 | O36: =$D$27 -> 2025-09-01 | Q36: =$E$21 -> Authorized | S36: =$F$21 -> w/Pending
C37: Summer | D37: Winter | E37: Summer | F37: Winter | G37: Summer | H37: Winter | I37: Summer | J37: Winter | M37: Summer | N37: Winter | O37: Summer | P37: Winter | Q37: Summer | R37: Winter | S37: Summer | T37: Winter | AD37: E-1
B38: P - Hot | C38: =IF(I22<Q22,$C$22*I22+$C$23*(Q22-I22),$C$22*Q22) -> 245.0708366 | D38: =IF(J22<R22,$C$22*J22+$C$23*(R22-J22),$C$22*R22) -> 172.8114869 | E38: =IF(I22<Q22,$D$22*I22+$D$23*(Q22-I22),$D$22*Q22) -> 243.3483889 | F38: =IF(J22<R22,$D$22*J22+$D$23*(R22-J22),$D$22*R22) -> 171.5890754 | G38: =IF(I22<Q22,$E$22*I22+$E$23*(Q22-I22),$E$22*Q22) -> 241.807489 | H38: =IF(J22<R22,$E$22*J22+$E$23*(R22-J22),$E$22*R22) -> 170.5025607 | I38: =IF(I22<Q22, $F$22*I22+$F$23*(Q22-I22), $F$22*Q22) -> 241.807489 | J38: =IF(J22<R22, $F$22*J22+$F$23*(R22-J22), $F$22*R22) -> 170.5025607 | L38: P - Hot | M38: =IF(M22<Y22,$C$22*M22+$C$23*(Y22-M22),$C$22*Y22) -> 266.9653875 | N38: =IF(N22<Z22,$C$22*N22+$C$23*(Z22-N22),$C$22*Z22) -> 223.2287775 | O38: =IF(M22<Y22,$D$22*M22+$D$23*(Y22-M22),$D$22*Y22) -> 265.086445 | P38: =IF(N22<Z22,$D$22*N22+$D$23*(Z22-N22),$D$22*Z22) -> 221.6282077 | Q38: =IF(M22<Y22,$E$22*M22+$E$23*(Y22-M22),$E$22*Y22) -> 263.4078981 | R38: =IF(N22<Z22,$E$22*N22+$E$23*(Z22-N22),$E$22*Z22) -> 220.2248416 | S38: =IF(M22<Y22,$F$22*M22+$F$23*(Y22-M22),$F$22*Y22) -> 263.4078981 | T38: =IF(N22<Z22,$F$22*N22+$F$23*(Z22-N22),$F$22*Z22) -> 220.2248416 | W38: Non-CARE Tiered Sales | Y38: 2025 | Z38: =Y38+1 -> 2026 | AA38: =Z38+1 -> 2027 | AB38: =AA38+1 -> 2028 | AD38: 2025 | AE38: =AD38+1 -> 2026 | AF38: =AE38+1 -> 2027 | AG38: =AF38+1 -> 2028
B39: Q - Warm | C39: =IF(I23<Q23,C$22*I23+C$23*(Q23-I23),C$22*Q23) -> 160.3682344 | D39: =IF(J23<R23,$C$22*J23+$C$23*(R23-J23),$C$22*R23) -> 185.9411281 | E39: 159.2359996 | F39: 184.6302614 | G39: 158.2277056 | H39: 183.461169 | I39: 158.2277056 | J39: 183.461169 | L39: Q - Warm | M39: 214.0073147 | N39: 242.5876425 | O39: 212.5205846 | P39: 240.848268 | Q39: 211.1748887 | R39: 239.323199 | S39: 211.1748887 | T39: 239.323199 | W39: Tier 1 | X39: Summer | Y39: =SUM(AD39,AD44) -> 1539742612 | Z39: =SUM(AE39,AE44) -> 1452800430 | AA39: =$Z39 -> 1452800430 | AB39: 1452800430 | AD39: 893073758.1 | AE39: 794834958.9 | AF39: =AE39 -> 794834958.9 | AG39: 794834958.9
B40: R - Hot | C40: =IF(I24<Q24,C$22*I24+C$23*(Q24-I24),C$22*Q24) -> 362.9083484 | D40: 173.845715 | E40: 360.3698118 | F40: 172.6195087 | G40: 358.0879236 | H40: 171.5264693 | I40: 358.0879236 | J40: 171.5264693 | L40: R - Hot | M40: 340.2907441 | N40: 212.2955325 | O40: 337.8929497 | P40: 210.7733551 | Q40: 335.7533867 | R40: 209.4387227 | S40: 335.7533867 | T40: 209.4387227 | W40: Tier 1 | X40: Winter | Y40: =SUM(AD40,AD45) -> 2087811425 | Z40: 2191990575 | AA40: 2191990575 | AB40: 2191990575 | AD40: 1107988847 | AE40: 1096491638 | AF40: 1096491638 | AG40: 1096491638
B41: S - Hot | C41: 313.0649406 | D41: 174.0857556 | E41: 310.8764801 | F41: 172.8589898 | G41: 308.9079874 | H41: 171.764434 | I41: 308.9079874 | J41: 171.764434 | L41: S - Hot | M41: 300.6581119 | N41: 200.7604575 | O41: 298.5384302 | P41: 199.3209875 | Q41: 296.6480629 | R41: 198.0588724 | S41: 296.6480629 | T41: 198.0588724 | W41: Tier 2 | X41: Summer | Y41: =SUM(AD41,AD46) -> 1193550818 | Z41: =SUM(AE41,AE46) -> 1236691652 | AA41: 1236691652 | AB41: 1236691652 | AD41: 586688402.6 | AE41: 610276988 | AF41: 610276988 | AG41: 610276988
B42: T - Cool | C42: 110.8680209 | D42: 129.1424053 | E42: 110.0867231 | F42: 128.2327037 | G42: 109.3896459 | H42: 127.4207248 | I42: 109.3896459 | J42: 127.4207248 | L42: T - Cool | M42: 124.9737141 | N42: 148.05018 | O42: 124.0942124 | P42: 146.9886473 | Q42: 123.3084387 | R42: 146.0579044 | S42: 123.3084387 | T42: 146.0579044 | W42: Tier 2 | X42: Winter | Y42: 1514443135 | Z42: =SUM(AE42,AE47) -> 1347324889 | AA42: 1347324889 | AB42: 1347324889 | AD42: 524352230.6 | AE42: 484665397.9 | AF42: 484665397.9 | AG42: 484665397.9
B43: V - Cool | C43: 135.7789691 | D43: 159.7072659 | E43: 134.8266717 | F43: 158.588474 | G43: 133.9729393 | H43: 157.5842801 | I43: 133.9729393 | J43: 157.5842801 | L43: V - Cool | M43: 178.11756 | N43: 211.64355 | O43: 176.862574 | P43: 210.1260473 | Q43: 175.7426672 | R43: 208.7955137 | S43: 175.7426672 | T43: 208.7955137 | AD43: E-TOU-C
B44: W - Hot | C44: 400.873895 | D44: 159.1746306 | E44: 398.0716498 | F44: 158.0504373 | G44: 395.5510308 | H44: 157.0496503 | I44: 395.5510308 | J44: 157.0496503 | L44: W - Hot | M44: 390.24855 | N44: 176.4866475 | O44: 387.5009664 | P44: 175.2212229 | Q44: 385.0472818 | R44: 174.1117092 | S44: 385.0472818 | T44: 174.1117092 | AD44: 646668853.5 | AE44: 657965471.4 | AF44: =AE44 -> 657965471.4 | AG44: 657965471.4
B45: X - Warm | C45: 211.8816594 | D45: 172.5499347 | E45: 210.4023754 | F45: 171.3361599 | G45: 209.0700921 | H45: 170.2512467 | I45: 209.0700921 | J45: 170.2512467 | L45: X - Warm | M45: 206.4687647 | N45: 187.5884156 | O45: 205.0328223 | P45: 186.2474137 | Q45: 203.7345394 | R45: 185.0680814 | S45: 203.7345394 | T45: 185.0680814 | AD45: 979822577.7 | AE45: 1095498937 | AF45: 1095498937 | AG45: 1095498937
B46: Y - Warm | C46: 159.5909134 | D46: 130.79772 | E46: 158.4602138 | F46: 129.859889 | G46: 157.4568321 | H46: 129.0376066 | I46: 157.4568321 | J46: 129.0376066 | L46: Y - Warm | M46: 152.32516 | N46: 144.63981 | O46: 151.235478 | P46: 143.60273 | Q46: 150.2778439 | R46: 142.6934269 | S46: 150.2778439 | T46: 142.6934269 | AD46: 606862415 | AE46: 626414664.4 | AF46: 626414664.4 | AG46: 626414664.4
B47: Z - Cool | C47: =IF(I31<Q31,C$22*I31+C$23*(Q31-I31),C31*Q31) -> 78.41852281 | D47: 69.4612125 | E47: 77.85901221 | F47: 68.96316956 | G47: 77.36600322 | H47: 68.5264897 | I47: 77.36600322 | J47: 68.5264897 | L47: Z - Cool | M47: 81.146745 | N47: 69.2606025 | O47: 80.56491578 | P47: 68.76399795 | Q47: 80.0547728 | R47: 68.32857926 | S47: 80.0547728 | T47: 68.32857926 | AD47: 990090904.1 | AE47: 862659491.6 | AF47: 862659491.6 | AG47: 862659491.6
B48: ALL | C48: =SUMPRODUCT(C38:C47,$U$22:$U$31) -> 310.7242287 | D48: 168.5935258 | E48: 308.5508232 | F48: 167.4045484 | G48: 306.5970567 | H48: 166.3445305 | I48: 306.5970567 | J48: 166.3445305 | L48: ALL | M48: =SUMPRODUCT(M38:M47,$AC$22:$AC$31) -> 278.9974296 | N48: 196.265483 | O48: 277.0312715 | P48: 194.8584954 | Q48: 275.2770891 | R48: 193.624637 | S48: 275.2770891 | T48: 193.624637 | AD48: EL-1
W49: CARE Tiered Sales | Y49: =Y38 -> 2025 | Z49: =Z38 -> 2026 | AA49: =AA38 -> 2027 | AB49: =AB38 -> 2028 | AD49: 2025 | AE49: =AD49+1 -> 2026 | AF49: =AE49+1 -> 2027 | AG49: =AF49+1 -> 2028
W50: Tier 1 | X50: Summer | Y50: =SUM(AD50,AD55) -> 917088578.4 | Z50: =SUM(AE50,AE55) -> 910964982.8 | AA50: =$Z50 -> 910964982.8 | AB50: 910964982.8 | AD50: 704143500.4 | AE50: 659447431.6 | AF50: =AE50 -> 659447431.6 | AG50: 659447431.6
C51: Basic CARE | M51: All Electric CARE | W51: Tier 1 | X51: Winter | Y51: =SUM(AD51,AD56) -> 1518299195 | Z51: 1698591264 | AA51: 1698591264 | AB51: 1698591264 | AD51: 1205105239 | AE51: 1237511193 | AF51: 1237511193 | AG51: 1237511193
C52: =$C$27 -> 2025-01-01 | E52: =$D$27 -> 2025-09-01 | G52: =$E$21 -> Authorized | I52: =$F$21 -> w/Pending | M52: =$C$27 -> 2025-01-01 | O52: =$D$27 -> 2025-09-01 | Q52: =$E$21 -> Authorized | S52: =$F$21 -> w/Pending | W52: Tier 2 | X52: Summer | Y52: 561993596.3 | Z52: 708171358.6 | AA52: 708171358.6 | AB52: 708171358.6 | AD52: 404166203.4 | AE52: 481804702.4 | AF52: 481804702.4 | AG52: 481804702.4
C53: Summer | D53: Winter | E53: Summer | F53: Winter | G53: Summer | H53: Winter | I53: Summer | J53: Winter | M53: Summer | N53: Winter | O53: Summer | P53: Winter | Q53: Summer | R53: Winter | S53: Summer | T53: Winter | W53: Tier 2 | X53: Winter | Y53: 760624209 | Z53: 766750452.5 | AA53: 766750452.5 | AB53: 766750452.5 | AD53: 476226374.3 | AE53: 461109261 | AF53: 461109261 | AG53: 461109261
B54: P - Hot | C54: =IF(I22<S22,$C$28*I22+$C$29*(S22-I22),$C$28*S22) -> 173.7764638 | D54: =IF(J22<T22,$C$28*J22+$C$29*(T22-J22),$C$28*T22) -> 139.9585875 | E54: =IF(I22<S22,$D$28*I22+$D$29*(S22-I22),$D$28*S22) -> 173.140506 | F54: =IF(J22<T22,$D$28*J22+$D$29*(T22-J22),$D$28*T22) -> 139.4466998 | G54: =IF(I22<S22,$E$28*I22+$E$29*(S22-I22),$E$28*S22) -> 172.0441675 | H54: =IF(J22<T22,$E$28*J22+$E$29*(T22-J22),$E$28*T22) -> 138.563713 | I54: =IF(I22<S22,$F$28*I22+$F$29*(S22-I22),$F$28*S22) -> 172.0441675 | J54: =IF(J22<T22,$F$28*J22+$F$29*(T22-J22),$F$28*T22) -> 138.563713 | L54: P - Hot | M54: =IF(M22<AA22,$C$28*M22+$C$29*(AA22-M22),$C$28*AA22) -> 192.4677555 | N54: =IF(N22<AB22,$C$28*N22+$C$29*(AB22-N22),$C$28*AB22) -> 175.94463 | O54: =IF(M22<AA22,$D$28*M22+$D$29*(AA22-M22),$D$28*AA22) -> 191.7639971 | P54: =IF(N22<AB22,$D$28*N22+$D$29*(AB22-N22),$D$28*AB22) -> 175.3247713 | Q54: =IF(M22<AA22,$E$28*M22+$E$29*(AA22-M22),$E$28*AA22) -> 190.5497334 | R54: =IF(N22<AB22,$E$28*N22+$E$29*(AB22-N22),$E$28*AB22) -> 174.2146019 | S54: =IF(M22<AA22,$F$28*M22+$F$29*(AA22-M22),$F$28*AA22) -> 190.5497334 | T54: =IF(N22<AB22,$F$28*N22+$F$29*(AB22-N22),$F$28*AB22) -> 174.2146019 | AD54: EL-TOU-C
B55: Q - Warm | C55: 90.149312 | D55: 108.3646825 | E55: 89.82619629 | F55: 107.9743825 | G55: 89.25741021 | H55: 107.2906807 | I55: 89.25741021 | J55: 107.2906807 | L55: Q - Warm | M55: 126.8401663 | N55: 148.0008438 | O55: 126.3726877 | P55: 147.4794319 | Q55: 125.5724865 | R55: 146.5455813 | S55: 125.5724865 | T55: 146.5455813 | AD55: 212945078 | AE55: 251517551.2 | AF55: =AE55 -> 251517551.2 | AG55: 251517551.2
B56: R - Hot | C56: 255.3115592 | D56: 118.7891898 | E56: 254.3720259 | F56: 118.3573131 | G56: 252.7613235 | H56: 117.6078659 | I56: 252.7613235 | J56: 117.6078659 | L56: R - Hot | M56: 247.2426473 | N56: 149.9639638 | O56: 246.339514 | P56: 149.4356358 | Q56: 244.7796741 | R56: 148.4893983 | S56: 244.7796741 | T56: 148.4893983 | AD56: 313193956 | AE56: 461080071.6 | AF56: 461080071.6 | AG56: 461080071.6
B57: S - Hot | C57: 216.680955 | D57: 118.4898768 | E57: 215.8835271 | F57: 118.0586659 | G57: 214.5165367 | H57: 117.3111098 | I57: 214.5165367 | J57: 117.3111098 | L57: S - Hot | M57: 203.751487 | N57: 136.9582937 | O57: 203.0106232 | P57: 136.4757852 | Q57: 201.725145 | R57: 135.6116105 | S57: 201.725145 | T57: 135.6116105 | AD57: 157827392.9 | AE57: 226366656.2 | AF57: 226366656.2 | AG57: 226366656.2
B58: T - Cool | C58: 69.84169125 | D58: 79.31455 | E58: 69.58870754 | F58: 79.02754102 | G58: 69.14806672 | H58: 78.52713281 | I58: 69.14806672 | J58: 78.52713281 | L58: T - Cool | M58: 69.57236775 | N58: 82.94182 | O58: 69.32187887 | P58: 82.64961324 | Q58: 68.88292764 | R58: 82.12626981 | S58: 68.88292764 | T58: 82.12626981 | AD58: 284397834.7 | AE58: 305641191.5 | AF58: 305641191.5 | AG58: 305641191.5
B59: V - Cool | C59: 76.65376025 | D59: 92.39092775 | E59: 76.37601896 | F59: 92.05505328 | G59: 75.89240039 | H59: 91.47215391 | I59: 75.89240039 | J59: 91.47215391 | L59: V - Cool | M59: 105.1322185 | N59: 137.2650312 | O59: 104.7529001 | P59: 136.781442 | Q59: 104.089597 | R59: 135.9153319 | S59: 104.089597 | T59: 135.9153319
B60: W - Hot | C60: 276.5827855 | D60: 111.7436682 | E60: 275.5650367 | F60: 111.3374477 | G60: 273.8201386 | H60: 110.6324507 | I60: 273.8201386 | J60: 110.6324507 | L60: W - Hot | M60: 275.9245685 | N60: 118.8301075 | O60: 274.9171307 | P60: 118.4114651 | Q60: 273.1763352 | R60: 117.661675 | S60: 273.1763352 | T60: 117.661675
B61: X - Warm | C61: 116.762897 | D61: 99.3377555 | E61: 116.3373601 | F61: 98.97903543 | G61: 115.6007034 | H61: 98.35229289 | I61: 115.6007034 | J61: 98.35229289 | L61: X - Warm | M61: 111.6657537 | N61: 107.6648625 | O61: 111.2566732 | P61: 107.2855557 | Q61: 110.5521878 | R61: 106.6062156 | S61: 110.5521878 | T61: 106.6062156
B62: Y - Warm | C62: 141.4281037 | D62: 138.4351678 | E62: 140.9093454 | F62: 137.9293859 | G62: 140.017097 | H62: 137.0560069 | I62: 140.017097 | J62: 137.0560069 | L62: Y - Warm | M62: 163.7109575 | N62: 164.5953425 | O62: 163.1100905 | P62: 164.0154677 | Q62: 162.0772654 | R62: 162.9769097 | S62: 162.0772654 | T62: 162.9769097
B63: Z - Cool | C63: 57.66021475 | D63: 58.9084295 | E63: 57.45265254 | F63: 58.70068172 | G63: 57.08885812 | H63: 58.32898468 | I63: 57.08885812 | J63: 58.32898468 | L63: Z - Cool | M63: 94.96478675 | N63: 110.7629113 | O63: 94.61560407 | P63: 110.3726899 | Q63: 94.01649111 | R63: 109.6738019 | S63: 94.01649111 | T63: 109.6738019
B64: ALL | C64: =SUMPRODUCT(C54:C63,$V$22:$V$31) -> 237.2397028 | D64: =SUMPRODUCT(D54:D63,$V$22:$V$31) -> 116.1465113 | E64: 236.3669883 | F64: 115.7241472 | G64: 234.8702951 | H64: 114.9913734 | I64: 234.8702951 | J64: 114.9913734 | L64: ALL | M64: =SUMPRODUCT(M54:M63,$AD$22:$AD$31) -> 216.8733473 | N64: =SUMPRODUCT(N54:N63,$AD$22:$AD$31) -> 144.3312988 | O64: 216.08191 | P64: 143.8228149 | Q64: 214.7136635 | R64: 142.9121182 | S64: 214.7136635 | T64: 142.9121182
C67: Basic Essential Usage NON-CARE | M67: All-Electric Essential Usage NON-CARE
C68: =$C$27 -> 2025-01-01 | E68: =$D$27 -> 2025-09-01 | G68: =$E$21 -> Authorized | I68: =$F$21 -> w/Pending | M68: =$C$27 -> 2025-01-01 | O68: =$D$27 -> 2025-09-01 | Q68: =$E$21 -> Authorized | S68: =$F$21 -> w/Pending
C69: Summer | D69: Winter | E69: Summer | F69: Winter | G69: Summer | H69: Winter | I69: Summer | J69: Winter | M69: Summer | N69: Winter | O69: Summer | P69: Winter | Q69: Summer | R69: Winter | S69: Summer | T69: Winter
B70: P - Hot | C70: =C$22*I22 -> 164.8638056 | D70: =C$22*J22 -> 134.3334713 | E70: =D$22*I22 -> 163.6817178 | F70: =D$22*J22 -> 133.3702886 | G70: =E$22*I22 -> 162.6452731 | H70: =E$22*J22 -> 132.5257781 | I70: =F$22*I22 -> 162.6452731 | J70: =F$22*J22 -> 132.5257781 | L70: P - Hot | M70: =C$22*M22 -> 185.624433 | N70: =C$22*N22 -> 317.5154775 | O70: =D$22*M22 -> 184.2934897 | P70: =D$22*N22 -> 315.2388639 | Q70: =E$22*M22 -> 183.1265297 | R70: =E$22*N22 -> 313.2427482 | S70: =F$22*M22 -> 183.1265297 | T70: =F$22*N22 -> 313.2427482
B71: Q - Warm | C71: 119.6789108 | D71: 134.3334713 | E71: 118.8208025 | F71: 133.3702886 | G71: 118.0684205 | H71: 132.5257781 | I71: 118.0684205 | J71: 132.5257781 | L71: Q - Warm | M71: 103.8031369 | N71: 317.5154775 | O71: 103.0588593 | P71: 315.2388639 | Q71: 102.4062831 | R71: 313.2427482 | S71: 102.4062831 | T71: 313.2427482
B72: R - Hot | C72: 216.1547674 | D72: 127.006191 | E72: 214.6049189 | F72: 126.0955456 | G72: 213.2460247 | H72: 125.2970993 | I72: 213.2460247 | J72: 125.2970993 | L72: R - Hot | M72: 243.0214616 | N72: 326.0639711 | O72: 241.2789766 | P72: 323.7260641 | Q72: 239.7511804 | R72: 321.6762068 | S72: 239.7511804 | T72: 321.6762068
B73: S - Hot | C73: 183.1820063 | D73: 124.5637642 | E73: 181.8685753 | F73: 123.6706312 | G73: 180.7169701 | H73: 122.8875397 | I73: 180.7169701 | J73: 122.8875397 | L73: S - Hot | M73: 217.3759808 | N73: 289.4275699 | O73: 215.817376 | P73: 287.352349 | Q73: 214.4508045 | R73: 285.5328128 | S73: 214.4508045 | T73: 285.5328128
B74: T - Cool | C74: 79.37886938 | D74: 91.59100313 | E74: 78.80971597 | F74: 90.93428766 | G74: 78.31068705 | H74: 90.35848506 | I74: 78.31068705 | J74: 90.35848506 | L74: T - Cool | M74: 86.70614962 | N74: 157.5365254 | O74: 86.08445899 | P74: 156.4069748 | Q74: 85.53936586 | R74: 155.4165943 | S74: 85.53936586 | T74: 155.4165943
B75: V - Cool | C75: 86.70614962 | D75: 98.91828338 | E75: 86.08445899 | F75: 98.20903067 | G75: 85.53936586 | H75: 97.58716386 | I75: 85.53936586 | J75: 97.58716386 | L75: V - Cool | M75: 127.006191 | N75: 233.2517546 | O75: 126.0955456 | P75: 231.5793192 | Q75: 125.2970993 | R75: 230.112942 | S75: 125.2970993 | T75: 230.112942
B76: W - Hot | C76: 234.472968 | D76: 119.6789108 | E76: 232.7917764 | F76: 118.8208025 | G76: 231.3177218 | H76: 118.0684205 | I76: 231.3177218 | J76: 118.0684205 | L76: W - Hot | M76: 273.551796 | N76: 232.0305412 | O76: 271.5904058 | P76: 230.3668621 | Q76: 269.8706754 | R76: 228.9081622 | S76: 269.8706754 | T76: 228.9081622
B77: X - Warm | C77: 119.6789108 | D77: 118.4576974 | E77: 118.8208025 | F77: 117.6083454 | G77: 118.0684205 | H77: 116.8636407 | I77: 118.0684205 | J77: 116.8636407 | L77: X - Warm | M77: 103.8031369 | N77: 178.2971528 | O77: 103.0588593 | P77: 177.0187466 | Q77: 102.4062831 | R77: 175.8978509 | S77: 102.4062831 | T77: 175.8978509
B78: Y - Warm | C78: 128.2274044 | D78: 135.5546846 | E78: 127.3080027 | F78: 134.5827457 | G78: 126.5018791 | H78: 133.7305579 | I78: 126.5018791 | J78: 133.7305579 | L78: Y - Warm | M78: 146.545605 | N78: 293.09121 | O78: 145.4948603 | P78: 290.9897205 | Q78: 144.5735761 | R78: 289.1471522 | S78: 144.5735761 | T78: 289.1471522
B79: Z - Cool | C79: 72.05158913 | D79: 95.25464325 | E79: 71.53497296 | F79: 94.57165917 | G79: 71.08200825 | H79: 93.97282446 | I79: 71.08200825 | J79: 93.97282446 | L79: Z - Cool | M79: 81.82129613 | N79: 191.7304999 | O79: 81.23463031 | P79: 190.3557755 | Q79: 80.72024665 | R79: 189.1504287 | S79: 80.72024665 | T79: 189.1504287
B80: ALL | C80: =SUMPRODUCT(C70:C79,$U$22:$U$31) -> 184.8321999 | D80: 122.8812507 | E80: 183.506937 | F80: 122.0001815 | G80: 182.3449575 | H80: 121.2276674 | I80: 182.3449575 | J80: 121.2276674 | L80: ALL | M80: =SUMPRODUCT(M70:M79,$AC$22:$AC$31) -> 199.8467881 | N80: 287.3034524 | O80: 198.4138692 | P80: 285.2434617 | Q80: 197.157498 | R80: 283.4372791 | S80: 197.157498 | T80: 283.4372791
C83: Basic Essential Usage CARE | M83: All-Electric Essential Usage CARE
C84: =$C$27 -> 2025-01-01 | E84: =$D$27 -> 2025-09-01 | G84: =$E$21 -> Authorized | I84: =$F$21 -> w/Pending | M84: =$C$27 -> 2025-01-01 | O84: =$D$27 -> 2025-09-01 | Q84: =$E$21 -> Authorized | S84: =$F$21 -> w/Pending
C85: Summer | D85: Winter | E85: Summer | F85: Winter | G85: Summer | H85: Winter | I85: Summer | J85: Winter | M85: Summer | N85: Winter | O85: Summer | P85: Winter | Q85: Summer | R85: Winter | S85: Summer | T85: Winter
B86: P - Hot | C86: =C$28*I22 -> 100.8322847 | D86: =C$28*J22 -> 82.15963937 | E86: =D$28*I22 -> 100.4770492 | F86: =D$28*J22 -> 81.87018827 | G86: =E$28*I22 -> 99.84082117 | H86: =E$28*J22 -> 81.35178021 | I86: =F$28*I22 -> 99.84082117 | J86: =F$28*J22 -> 81.35178021 | L86: P - Hot | M86: =C$28*M22 -> 113.5296835 | N86: =C$28*N22 -> 194.1955113 | O86: =D$28*M22 -> 113.1297147 | P86: =D$28*N22 -> 193.5113541 | Q86: =E$28*M22 -> 112.413369 | R86: =E$28*N22 -> 192.286026 | S86: =F$28*M22 -> 112.413369 | T86: =F$28*N22 -> 192.286026
B87: Q - Warm | C87: 73.19676963 | D87: 82.15963937 | E87: 72.938895 | F87: 81.87018827 | G87: 72.47704055 | H87: 81.35178021 | I87: 72.47704055 | J87: 81.35178021 | L87: Q - Warm | M87: 63.48699406 | N87: 194.1955113 | O87: 63.2633273 | P87: 193.5113541 | Q87: 62.86273925 | R87: 192.286026 | S87: 62.86273925 | T87: 192.286026
B88: R - Hot | C88: 132.2023288 | D88: 77.6782045 | E88: 131.7365757 | F88: 77.40454164 | G88: 130.90241 | H88: 76.91441038 | I88: 130.90241 | J88: 76.91441038 | L88: R - Hot | M88: 148.6342567 | N88: 199.4238519 | O88: 148.1106133 | P88: 198.7212752 | Q88: 147.172766 | R88: 197.4629574 | S88: 147.172766 | T88: 197.4629574
B89: S - Hot | C89: 112.0358719 | D89: 76.18439288 | E89: 111.6411658 | F89: 75.91599276 | G89: 110.9342457 | H89: 75.43528711 | I89: 110.9342457 | J89: 75.43528711 | L89: S - Hot | M89: 132.9492346 | N89: 177.0166776 | O89: 132.4808501 | P89: 176.393042 | Q89: 131.6419716 | R89: 175.2761083 | S89: 131.6419716 | T89: 175.2761083
B90: T - Cool | C90: 48.54887781 | D90: 56.01793594 | E90: 48.37783852 | F90: 55.82058291 | G90: 48.07150649 | H90: 55.46712287 | I90: 48.07150649 | J90: 55.46712287 | L90: T - Cool | M90: 53.03031269 | N90: 96.35084981 | O90: 52.84348515 | P90: 96.01140261 | Q90: 52.50887632 | R90: 95.40345134 | S90: 52.50887632 | T90: 95.40345134
B91: V - Cool | C91: 53.03031269 | D91: 60.49937081 | E91: 52.84348515 | F91: 60.28622954 | G91: 52.50887632 | H91: 59.9044927 | I91: 52.50887632 | J91: 59.9044927 | L91: V - Cool | M91: 77.6782045 | N91: 142.6590102 | O91: 77.40454164 | P91: 142.1564178 | Q91: 76.91441038 | R91: 141.2562729 | S91: 76.91441038 | T91: 141.2562729
B92: W - Hot | C92: 143.405916 | D92: 73.19676963 | E92: 142.9006922 | F92: 72.938895 | G92: 141.9958346 | H92: 72.47704055 | I92: 141.9958346 | J92: 72.47704055 | L92: W - Hot | M92: 167.306902 | N92: 141.9121044 | O92: 166.7174743 | P92: 141.4121434 | Q92: 165.661807 | R92: 140.5167113 | S92: 165.661807 | T92: 140.5167113
B93: X - Warm | C93: 73.19676963 | D93: 72.44986381 | E93: 72.938895 | F93: 72.19462056 | G93: 72.47704055 | H93: 71.73747891 | I93: 72.47704055 | J93: 71.73747891 | L93: X - Warm | M93: 63.48699406 | N93: 109.0482486 | O93: 63.2633273 | P93: 108.6640681 | Q93: 62.86273925 | R93: 107.9759992 | S93: 62.86273925 | T93: 107.9759992
B94: Y - Warm | C94: 78.42511031 | D94: 82.90654519 | E94: 78.14881607 | F94: 82.61446271 | G94: 77.65397202 | H94: 82.09134185 | I94: 77.65397202 | J94: 82.09134185 | L94: Y - Warm | M94: 89.6286975 | N94: 179.257395 | O94: 89.31293266 | P94: 178.6258653 | Q94: 88.74739659 | R94: 177.4947932 | S94: 88.74739659 | T94: 177.4947932
B95: Z - Cool | C95: 44.06744294 | D95: 58.25865337 | E95: 43.91219189 | F95: 58.05340623 | G95: 43.63413666 | H95: 57.68580779 | I95: 43.63413666 | J95: 57.68580779 | L95: Z - Cool | M95: 50.04268944 | N95: 117.2642126 | O95: 49.8663874 | P95: 116.8510869 | Q95: 49.55062977 | R95: 116.1111772 | S95: 49.55062977 | T95: 116.1111772
B96: ALL | C96: =SUMPRODUCT(C86:C95,$V$22:$V$31) -> 123.8137918 | D96: =SUMPRODUCT(D86:D95,$V$22:$V$31) -> 75.65725899 | E96: 123.3775917 | F96: 75.39071599 | G96: 122.5963557 | H96: 74.91333643 | I96: 122.5963557 | J96: 74.91333643 | L96: ALL | M96: =SUMPRODUCT(M86:M95,$AD$22:$AD$31) -> 132.7198048 | N96: =SUMPRODUCT(N86:N95,$AD$22:$AD$31) -> 178.1515759 | O96: 132.2522286 | P96: 177.5239421 | Q96: 131.4147978 | R96: 176.3998474 | S96: 131.4147978 | T96: 176.3998474
B99: =Summary!I$4 -> 500 | C99: Basic Typical Non-CARE | L99: =Summary!I$4 -> 500 | M99: All Electric Typical Non-CARE
C100: =$C$27 -> 2025-01-01 | E100: =$D$27 -> 2025-09-01 | G100: =$E$21 -> Authorized | I100: =$F$21 -> w/Pending | M100: =$C$27 -> 2025-01-01 | O100: =$D$27 -> 2025-09-01 | Q100: =$E$21 -> Authorized | S100: =$F$21 -> w/Pending
C101: Summer | D101: Winter | E101: Summer | F101: Winter | G101: Summer | H101: Winter | I101: Summer | J101: Winter | M101: Summer | N101: Winter | O101: Summer | P101: Winter | Q101: Summer | R101: Winter | S101: Summer | T101: Winter
B102: P - Hot | C102: =$C$22*MIN(I22,$B$99)+IF($B$99-I22>0,$C$23*($B$99-I22)) -> 209.6396516 | D102: 217.3517531 | E102: =$D$22*MIN(I22,$B$99)+IF($B$99-I22>0,$D$23*($B$99-I22)) -> 208.155906 | F102: 215.829271 | G102: =$E$22*MIN(I22,$B$99)+IF($B$99-I22>0,$E$23*($B$99-I22)) -> 206.8378475 | H102: 214.4626242 | I102: =$F$22*MIN(I22,$B$99)+IF($B$99-I22>0,$F$23*($B$99-I22)) -> 206.8378475 | J102: 214.4626242 | L102: P - Hot | M102: =$C$22*MIN(S22,$B$99)+IF($B$99-S22>0,$C$23*($B$99-S22)) -> 200.61 | N102: =$C$22*MIN(T22,$B$99)+IF($B$99-T22>0,$C$23*($B$99-T22)) -> 200.61 | O102: =$D$22*MIN(S22,$B$99)+IF($B$99-S22>0,$D$23*($B$99-S22)) -> 199.1716088 | P102: 199.1716088 | Q102: =$E$22*MIN(S22,$B$99)+IF($B$99-S22>0,$E$23*($B$99-S22)) -> 197.9104396 | R102: 197.9104396 | S102: =$F$22*MIN(S22,$B$99)+IF($B$99-S22>0,$F$23*($B$99-S22)) -> 197.9104396 | T102: 197.9104396
B103: Q - Warm | C103: 221.0535619 | D103: 217.3517531 | E103: 219.5124862 | F103: 215.829271 | G103: 218.122517 | H103: 214.4626242 | I103: 218.122517 | J103: 214.4626242 | L103: Q - Warm | M103: =$C$22*MIN(S23,$B$99)+IF($B$99-S23>0,$C$23*($B$99-S23)) -> 215.5337875 | N103: 208.81935 | O103: 214.0204367 | P103: 207.3397247 | Q103: 212.6652436 | R103: 206.0268343 | S103: 212.6652436 | T103: 206.0268343
B104: R - Hot | C104: 200.61 | D104: 219.2026575 | E104: 199.1716088 | F104: 217.6708786 | G104: 197.9104396 | H104: 216.2925706 | I104: 197.9104396 | J104: 216.2925706 | L104: R - Hot | M104: 200.61 | N104: 205.8168563 | O104: 199.1716088 | P104: 204.3523119 | Q104: 197.9104396 | R104: 203.0583381 | S104: 197.9104396 | T104: 203.0583381
B105: S - Hot | C105: 205.0123906 | D105: 219.8196256 | E105: 203.551887 | F105: 218.2847478 | G105: 202.2629815 | H105: 216.9025527 | I105: 202.2629815 | J105: 216.9025527 | L105: S - Hot | M105: 200.61 | N105: 206.0448937 | O105: 199.1716088 | P105: 204.5792041 | Q105: 197.9104396 | R105: 203.2837935 | S105: 197.9104396 | T105: 203.2837935
B106: T - Cool | C106: 231.2335359 | D106: 228.1486953 | E106: 229.641328 | F106: 226.571982 | G106: 228.1872222 | H106: 225.1373116 | I106: 228.1872222 | J106: 225.1373116 | L106: T - Cool | M106: 224.3005625 | N106: 220.5632812 | O106: 222.7431777 | P106: 219.0246682 | Q106: 221.3327515 | R106: 217.6377879 | S106: 221.3327515 | T106: 217.6377879
B107: V - Cool | C107: 229.3826316 | D107: 226.2977909 | E107: 227.7997204 | F107: 224.7303744 | G107: 226.3572758 | H107: 223.3073652 | I107: 226.3572758 | J107: 223.3073652 | L107: V - Cool | M107: 221.6908 | N107: 215.91385 | O107: 220.1465236 | P107: 214.3985902 | Q107: 218.7525396 | R107: 213.0410026 | S107: 218.7525396 | T107: 213.0410026
B108: W - Hot | C108: 200.61 | D108: 221.0535619 | E108: 199.1716088 | F108: 219.5124862 | G108: 197.9104396 | H108: 218.122517 | I108: 197.9104396 | J108: 218.122517 | L108: W - Hot | M108: 200.61 | N108: 208.5026312 | O108: 199.1716088 | P108: 207.0245968 | Q108: 197.9104396 | R108: 205.7137018 | S108: 197.9104396 | T108: 205.7137018
B109: X - Warm | C109: 221.0535619 | D109: 221.3620459 | E109: 219.5124862 | F109: 219.8194208 | G109: 218.122517 | H109: 218.4275081 | I109: 218.122517 | J109: 218.4275081 | L109: X - Warm | M109: 206.8683625 | N109: 212.6073063 | O109: 205.3985367 | P109: 211.1086547 | Q109: 204.097938 | R109: 209.7718991 | S109: 204.097938 | T109: 209.7718991
B110: Y - Warm | C110: 218.8941734 | D110: 217.0432691 | E110: 217.363944 | F110: 215.5223364 | G110: 215.9875795 | H110: 214.1576331 | I110: 215.9875795 | J110: 214.1576331 | L110: Y - Warm | M110: 200.61 | N110: 200.61 | O110: 199.1716088 | P110: 199.1716088 | Q110: 197.9104396 | R110: 197.9104396 | S110: 197.9104396 | T110: 197.9104396
B111: Z - Cool | C111: 233.0844403 | D111: 227.2232431 | E111: 231.4829356 | F111: 225.6511782 | G111: 230.0171686 | H111: 224.2223384 | I111: 230.0171686 | J111: 224.2223384 | L111: Z - Cool | M111: 228.6586125 | N111: 227.011675 | O111: 227.079338 | P111: 225.4406728 | Q111: 225.6414549 | R111: 224.0131658 | S111: 225.6414549 | T111: 224.0131658
B112: ALL | C112: =SUMPRODUCT(C102:C111,$U$22:$U$31) -> 206.8119698 | D112: 220.2446362 | E112: 205.3424272 | F112: 218.7076236 | G112: 204.0421838 | H112: 217.3227509 | I112: 204.0421838 | J112: 217.3227509 | L112: ALL | M112: =SUMPRODUCT(M102:M111,$AC$22:$AC$31) -> 202.3305034 | N112: 205.758233 | O112: 200.8834705 | P112: 204.2939832 | Q112: 199.6114616 | R112: 203.0003786 | S112: 199.6114616 | T112: 203.0003786
B114: =Summary!I$4 -> 500 | C114: Basic Typical CARE | L114: =Summary!I$4 -> 500 | M114: All Electric Typical CARE
C115: =$C$27 -> 2025-01-01 | E115: =$D$27 -> 2025-09-01 | G115: =$E$21 -> Authorized | I115: =$F$21 -> w/Pending | M115: =$C$27 -> 2025-01-01 | O115: =$D$27 -> 2025-09-01 | Q115: =$E$21 -> Authorized | S115: =$F$21 -> w/Pending
C116: Summer | D116: Winter | E116: Summer | F116: Winter | G116: Summer | H116: Winter | I116: Summer | J116: Winter | M116: Summer | N116: Winter | O116: Summer | P116: Winter | Q116: Summer | R116: Winter | S116: Summer | T116: Winter
B117: P - Hot | C117: =$C$28*MIN(I22,$B$114)+IF($B$114-I22>0,$C$29*($B$114-I22)) -> 128.5644962 | D117: 133.5775525 | E117: =$D$28*MIN(I22,$B$114)+IF($B$114-I22>0,$D$29*($B$114-I22)) -> 128.1025347 | F117: 133.0902219 | G117: =$E$28*MIN(I22,$B$114)+IF($B$114-I22>0,$E$29*($B$114-I22)) -> 127.29138 | H117: 132.2474848 | I117: =$F$28*MIN(I22,$B$114)+IF($B$114-I22>0,$F$29*($B$114-I22)) -> 127.29138 | J117: 132.2474848 | L117: P - Hot | M117: =$C$28*MIN(S22,$B$114)+IF($B$114-S22>0,$C$29*($B$114-S22)) -> 122.695 | N117: 122.695 | O117: =$D$28*MIN(S22,$B$114)+IF($B$114-S22>0,$D$29*($B$114-S22)) -> 122.2627415 | P117: 122.2627415 | Q117: =$E$28*MIN(S22,$B$114)+IF($B$114-S22>0,$E$29*($B$114-S22)) -> 121.4885648 | R117: 121.4885648 | S117: =$F$28*MIN(S22,$B$114)+IF($B$114-S22>0,$F$29*($B$114-S22)) -> 121.4885648 | T117: 121.4885648
B118: Q - Warm | C118: 135.9838195 | D118: 133.5775525 | E118: 135.4843118 | F118: 133.0902219 | G118: 134.6264152 | H118: 132.2474848 | I118: 134.6264152 | J118: 132.2474848 | L118: Q - Warm | M118: 132.39583 | N118: 128.03128 | O118: 131.9144796 | P118: 127.5720168 | Q118: 131.0791874 | R118: 126.7642214 | S118: 131.0791874 | T118: 126.7642214
B119: R - Hot | C119: 122.695 | D119: 134.780686 | E119: 122.2627415 | F119: 134.2872668 | G119: 121.4885648 | H119: 133.43695 | I119: 121.4885648 | J119: 133.43695 | L119: R - Hot | M119: 122.695 | N119: 126.079585 | O119: 122.2627415 | P119: 125.6301985 | Q119: 121.4885648 | R119: 124.8346988 | S119: 121.4885648 | T119: 124.8346988
B120: S - Hot | C120: 125.5566625 | D120: 135.1817305 | E120: 125.1099223 | F120: 134.6862818 | G120: 124.3177171 | H120: 133.8334384 | I120: 124.3177171 | J120: 133.8334384 | L120: S - Hot | M120: 122.695 | N120: 126.227815 | O120: 122.2627415 | P120: 125.7776784 | Q120: 121.4885648 | R120: 124.9812449 | S120: 121.4885648 | T120: 124.9812449
B121: T - Cool | C121: 142.6010538 | D121: 140.5958313 | E121: 142.068059 | F121: 140.0729841 | G121: 141.1684736 | H121: 139.1860316 | I121: 141.1684736 | J121: 139.1860316 | L121: T - Cool | M121: 138.09445 | N121: 135.665125 | O121: 137.5842613 | P121: 135.1672301 | Q121: 136.7130676 | R121: 134.3113412 | S121: 136.7130676 | T121: 134.3113412
B122: V - Cool | C122: 141.3979202 | D122: 139.3926977 | E122: 140.871014 | F122: 138.8759391 | G122: 139.9790084 | H122: 137.9965665 | I122: 139.9790084 | J122: 137.9965665 | L122: V - Cool | M122: 136.39804 | N122: 132.64288 | O122: 135.8964361 | P122: 132.1602794 | Q122: 135.0359299 | R122: 131.3234308 | S122: 135.0359299 | T122: 131.3234308
B123: W - Hot | C123: 122.695 | D123: 135.9838195 | E123: 122.2627415 | F123: 135.4843118 | G123: 121.4885648 | H123: 134.6264152 | I123: 121.4885648 | J123: 134.6264152 | L123: W - Hot | M123: 122.695 | N123: 127.825405 | O123: 122.2627415 | P123: 127.3671836 | Q123: 121.4885648 | R123: 126.5606853 | S123: 121.4885648 | T123: 126.5606853
B124: X - Warm | C124: =$C$28*MIN(I29,$B$114)+IF($B$114-I29>0,$C$29*($B$114-I29)) -> 135.9838195 | D124: =$C$28*MIN(J29,$B$114)+IF($B$114-J29>0,$C$29*($B$114-J29)) -> 136.1843417 | E124: 135.4843118 | F124: 135.6838193 | G124: 134.6264152 | H124: 134.8246593 | I124: 134.6264152 | J124: 134.8246593 | L124: X - Warm | M124: 126.76309 | N124: 130.493545 | O124: 126.3102446 | P124: 130.0218213 | Q124: 125.5104388 | R124: 129.1985135 | S124: 125.5104388 | T124: 129.1985135
B125: Y - Warm | C125: 134.5801637 | D125: 133.3770303 | E125: 134.0877594 | F125: 132.8907144 | G125: 133.2387058 | H125: 132.0492406 | I125: 133.2387058 | J125: 132.0492406 | L125: Y - Warm | M125: 122.695 | N125: 122.695 | O125: 122.2627415 | P125: 122.2627415 | Q125: 121.4885648 | R125: 121.4885648 | S125: 121.4885648 | T125: 121.4885648
B126: Z - Cool | C126: 143.8041872 | D126: 139.9942645 | E126: 143.2651039 | F126: 139.4744616 | G126: 142.3579387 | H126: 138.591299 | I126: 142.3579387 | J126: 138.591299 | L126: Z - Cool | M126: 140.92729 | N126: 139.85674 | O126: 140.4027654 | P126: 139.337633 | Q126: 139.5137248 | R126: 138.4553369 | S126: 139.5137248 | T126: 138.4553369
B127: ALL | C127: =SUMPRODUCT(C117:C126,$V$22:$V$31) -> 124.6449064 | D127: =SUMPRODUCT(D117:D126,$V$22:$V$31) -> 135.3232504 | E127: 124.2027802 | F127: 134.8270856 | G127: 123.4163191 | H127: 133.9733506 | I127: 123.4163191 | J127: 133.9733506 | L127: ALL | M127: =SUMPRODUCT(M117:M126,$AD$22:$AD$31) -> 123.2965664 | N127: =SUMPRODUCT(N117:N126,$AD$22:$AD$31) -> 126.0629969 | O127: 122.8612636 | P127: 125.6136944 | Q127: 122.083297 | R127: 124.8182992 | S127: 122.083297 | T127: 124.8182992

Sheet SAR and RAR (B-1)
C2: Revenue Change ($000)
C3: Authorized | D3: w/ Pending
B4: Generation | C4: =INDEX('Incremental Rev Req'!$R$9:$V$24,MATCH(B4,'Incremental Rev Req'!$R$9:$R$24,0),MATCH(Summary!$D$3,'Incremental Rev Req'!$R$9:$V$9,0)) -> 4502517.133 | D4: =INDEX('Incremental Rev Req'!$R$107:$V$122,MATCH(B4,'Incremental Rev Req'!$R$107:$R$122,0),MATCH(Summary!$D$3,'Incremental Rev Req'!$R$107:$V$107,0)) -> 4502517.133 | G4: Allocation
B5: NSGC | C5: =INDEX('Incremental Rev Req'!$R$9:$V$24,MATCH(B5,'Incremental Rev Req'!$R$9:$R$24,0),MATCH(Summary!$D$3,'Incremental Rev Req'!$R$9:$V$9,0)) -> 325539.0162 | D5: =INDEX('Incremental Rev Req'!$R$107:$V$122,MATCH(B5,'Incremental Rev Req'!$R$107:$R$122,0),MATCH(Summary!$D$3,'Incremental Rev Req'!$R$107:$V$107,0)) -> 325539.0162 | G5: Generation | H5: Distribution | I5: NDC | J5: PPPC | K5: NSGC | L5: Transmission | M5: CTC | N5: ECRA | O5: FERC BAs | P5: GHG Rev | Q5: DWRBC | R5: WHC | S5: PCIA | T5: Distribution (Wildfire)
B6: Distribution | C6: =INDEX('Incremental Rev Req'!$R$9:$V$24,MATCH(B6,'Incremental Rev Req'!$R$9:$R$24,0),MATCH(Summary!$D$3,'Incremental Rev Req'!$R$9:$V$9,0)) -> 10392694.73 | D6: =INDEX('Incremental Rev Req'!$R$107:$V$122,MATCH(B6,'Incremental Rev Req'!$R$107:$R$122,0),MATCH(Summary!$D$3,'Incremental Rev Req'!$R$107:$V$107,0)) -> 10392694.73 | F6: B-1 | G6: =VLOOKUP(Summary!$D$3,$F$35:$T$38,G$33,FALSE) -> 0.06869387473 | H6: =VLOOKUP(Summary!$D$3,$F$35:$T$38,H$33,FALSE) -> 0.1136282867 | I6: =VLOOKUP(Summary!$D$3,$F$35:$T$38,I$33,FALSE) -> 0.07470619103 | J6: =VLOOKUP(Summary!$D$3,$F$35:$T$38,J$33,FALSE) -> 0.08422601712 | K6: =VLOOKUP(Summary!$D$3,$F$35:$T$38,K$33,FALSE) -> 0.0708380441 | L6: =VLOOKUP(Summary!$D$3,$F$35:$T$38,L$33,FALSE) -> 0.07188272742 | M6: =VLOOKUP(Summary!$D$3,$F$35:$T$38,M$33,FALSE) -> 0.07671731265 | N6: =VLOOKUP(Summary!$D$3,$F$35:$T$38,N$33,FALSE) -> 0.07633408418 | O6: =VLOOKUP(Summary!$D$3,$F$35:$T$38,O$33,FALSE) -> 0.07025056274 | P6: =VLOOKUP(Summary!$D$3,$F$35:$T$38,P$33,FALSE) -> 0.04767629561 | Q6: =VLOOKUP(Summary!$D$3,$F$35:$T$38,Q$33,FALSE) -> 0.0845106902 | R6: =VLOOKUP(Summary!$D$3,$F$35:$T$38,R$33,FALSE) -> 0.1039457368 | S6: =VLOOKUP(Summary!$D$3,$F$35:$T$38,S$33,FALSE) -> 0.04765537676 | T6: =VLOOKUP(Summary!$D$3,$F$35:$T$38,T$33,FALSE) -> 0.09753327846
B7: GHG Revenue | C7: =INDEX('Incremental Rev Req'!$R$9:$V$24,MATCH(B7,'Incremental Rev Req'!$R$9:$R$24,0),MATCH(Summary!$D$3,'Incremental Rev Req'!$R$9:$V$9,0)) -> -721064.798 | D7: =INDEX('Incremental Rev Req'!$R$107:$V$122,MATCH(B7,'Incremental Rev Req'!$R$107:$R$122,0),MATCH(Summary!$D$3,'Incremental Rev Req'!$R$107:$V$107,0)) -> -721064.798
B8: CTC | C8: =INDEX('Incremental Rev Req'!$R$9:$V$24,MATCH(B8,'Incremental Rev Req'!$R$9:$R$24,0),MATCH(Summary!$D$3,'Incremental Rev Req'!$R$9:$V$9,0)) -> -51714.55454 | D8: =INDEX('Incremental Rev Req'!$R$107:$V$122,MATCH(B8,'Incremental Rev Req'!$R$107:$R$122,0),MATCH(Summary!$D$3,'Incremental Rev Req'!$R$107:$V$107,0)) -> -51714.55454 | G8: Revenue Change ($000) - System
B9: NDC | C9: =INDEX('Incremental Rev Req'!$R$9:$V$24,MATCH(B9,'Incremental Rev Req'!$R$9:$R$24,0),MATCH(Summary!$D$3,'Incremental Rev Req'!$R$9:$V$9,0)) -> -19018.95137 | D9: =INDEX('Incremental Rev Req'!$R$107:$V$122,MATCH(B9,'Incremental Rev Req'!$R$107:$R$122,0),MATCH(Summary!$D$3,'Incremental Rev Req'!$R$107:$V$107,0)) -> -19018.95137 | F9: Authorized | G9: Generation | H9: Distribution | I9: NDC | J9: Public Purpose Program | K9: NSGC | L9: Transmission | M9: CTC | N9: ECRA | O9: FERC BAs | P9: GHG Revenue | Q9: DWR BC | R9: WHC | S9: PCIA | T9: Distribution (Wildfire) | U9: Total
B10: Public Purpose Program | C10: =INDEX('Incremental Rev Req'!$R$9:$V$24,MATCH(B10,'Incremental Rev Req'!$R$9:$R$24,0),MATCH(Summary!$D$3,'Incremental Rev Req'!$R$9:$V$9,0)) -> 622641.6966 | D10: =INDEX('Incremental Rev Req'!$R$107:$V$122,MATCH(B10,'Incremental Rev Req'!$R$107:$R$122,0),MATCH(Summary!$D$3,'Incremental Rev Req'!$R$107:$V$107,0)) -> 622641.6966 | F10: B-1 | G10: =G6*G11 -> 309295.3479 | H10: 1180904.097 | I10: -1420.833414 | J10: 52442.6302 | K10: 23060.54719 | L10: 208677.2386 | M10: -3967.401649 | N10: 53.37866713 | O10: -42961.30491 | P10: -34377.69847 | Q10: 34865.86181 | R10: 20592.96826 | S10: -14784.90503 | T10: 139998.464 | U10: =SUM(G10:T10) -> 1872378.39
B11: DWR BC | C11: =INDEX('Incremental Rev Req'!$R$9:$V$24,MATCH(B11,'Incremental Rev Req'!$R$9:$R$24,0),MATCH(Summary!$D$3,'Incremental Rev Req'!$R$9:$V$9,0)) -> 412561.5555 | D11: =INDEX('Incremental Rev Req'!$R$107:$V$122,MATCH(B11,'Incremental Rev Req'!$R$107:$R$122,0),MATCH(Summary!$D$3,'Incremental Rev Req'!$R$107:$V$107,0)) -> 412561.5555 | F11: Total System | G11: =VLOOKUP(G9,$B$4:$D$17,2,FALSE) -> 4502517.133 | H11: 10392694.73 | I11: -19018.95137 | J11: 622641.6966 | K11: 325539.0162 | L11: 2903023.385 | M11: -51714.55454 | N11: =VLOOKUP(N9,$B$4:$D$16,2,FALSE) -> 699.2769705 | O11: =VLOOKUP(O9,$B$4:$D$16,2,FALSE) -> -611543.9256 | P11: =VLOOKUP(P9,$B$4:$D$17,2,FALSE) -> -721064.798 | Q11: =VLOOKUP(Q9,$B$4:$D$17,2,FALSE) -> 412561.5555 | R11: =VLOOKUP(R9,$B$4:$D$17,2,FALSE) -> 198112.6777 | S11: =VLOOKUP(S9,$B$4:$D$17,2,FALSE) -> -310246.3151 | T11: =VLOOKUP(T9,$B$4:$D$17,2,FALSE) -> 1435391.758 | U11: =SUM(G11:T11) -> 19079592.69
B12: ECRA | C12: =INDEX('Incremental Rev Req'!$R$9:$V$24,MATCH(B12,'Incremental Rev Req'!$R$9:$R$24,0),MATCH(Summary!$D$3,'Incremental Rev Req'!$R$9:$V$9,0)) -> 699.2769705 | D12: =INDEX('Incremental Rev Req'!$R$107:$V$122,MATCH(B12,'Incremental Rev Req'!$R$107:$R$122,0),MATCH(Summary!$D$3,'Incremental Rev Req'!$R$107:$V$107,0)) -> 699.2769705 | F12: w/Pending
B13: Transmission | C13: =INDEX('Incremental Rev Req'!$R$9:$V$24,MATCH(B13,'Incremental Rev Req'!$R$9:$R$24,0),MATCH(Summary!$D$3,'Incremental Rev Req'!$R$9:$V$9,0)) -> 2903023.385 | D13: =INDEX('Incremental Rev Req'!$R$107:$V$122,MATCH(B13,'Incremental Rev Req'!$R$107:$R$122,0),MATCH(Summary!$D$3,'Incremental Rev Req'!$R$107:$V$107,0)) -> 2903023.385 | F13: B-1 | G13: =G6*G14 -> 309295.3479 | H13: 1180904.097 | I13: -1420.833414 | J13: 52442.6302 | K13: 23060.54719 | L13: 208677.2386 | M13: -3967.401649 | N13: 53.37866713 | O13: -42961.30491 | P13: -34377.69847 | Q13: 34865.86181 | R13: 20592.96826 | S13: -14784.90503 | T13: 139998.464 | U13: =SUM(G13:T13) -> 1872378.39
B14: FERC BAs | C14: =INDEX('Incremental Rev Req'!$R$9:$V$24,MATCH(B14,'Incremental Rev Req'!$R$9:$R$24,0),MATCH(Summary!$D$3,'Incremental Rev Req'!$R$9:$V$9,0)) -> -611543.9256 | D14: =INDEX('Incremental Rev Req'!$R$107:$V$122,MATCH(B14,'Incremental Rev Req'!$R$107:$R$122,0),MATCH(Summary!$D$3,'Incremental Rev Req'!$R$107:$V$107,0)) -> -611543.9256 | F14: Total System | G14: =VLOOKUP(G9,$B$4:$D$16,3,FALSE) -> 4502517.133 | H14: 10392694.73 | I14: -19018.95137 | J14: 622641.6966 | K14: 325539.0162 | L14: 2903023.385 | M14: -51714.55454 | N14: 699.2769705 | O14: -611543.9256 | P14: -721064.798 | Q14: 412561.5555 | R14: 198112.6777 | S14: -310246.3151 | T14: =VLOOKUP(T9,$B$4:$D$17,3,FALSE) -> 1435391.758 | U14: =SUM(G14:T14) -> 19079592.69
B15: PCIA | C15: =INDEX('Incremental Rev Req'!$R$9:$V$24,MATCH(B15,'Incremental Rev Req'!$R$9:$R$24,0),MATCH(Summary!$D$3,'Incremental Rev Req'!$R$9:$V$9,0)) -> -310246.3151 | D15: =INDEX('Incremental Rev Req'!$R$107:$V$122,MATCH(B15,'Incremental Rev Req'!$R$107:$R$122,0),MATCH(Summary!$D$3,'Incremental Rev Req'!$R$107:$V$107,0)) -> -310246.3151 | AB15: Authorized | AC15: w/Pending
B16: WHC | C16: =INDEX('Incremental Rev Req'!$R$9:$V$24,MATCH(B16,'Incremental Rev Req'!$R$9:$R$24,0),MATCH(Summary!$D$3,'Incremental Rev Req'!$R$9:$V$9,0)) -> 198112.6777 | D16: =INDEX('Incremental Rev Req'!$R$107:$V$122,MATCH(B16,'Incremental Rev Req'!$R$107:$R$122,0),MATCH(Summary!$D$3,'Incremental Rev Req'!$R$107:$V$107,0)) -> 198112.6777 | U16: Authorized | W16: w/Pending
B17: Distribution (Wildfire) | C17: =INDEX('Incremental Rev Req'!$R$9:$V$24,MATCH(B17,'Incremental Rev Req'!$R$9:$R$24,0),MATCH(Summary!$D$3,'Incremental Rev Req'!$R$9:$V$9,0)) -> 1435391.758 | D17: =INDEX('Incremental Rev Req'!$R$107:$V$122,MATCH(B17,'Incremental Rev Req'!$R$107:$R$122,0),MATCH(Summary!$D$3,'Incremental Rev Req'!$R$107:$V$107,0)) -> 1435391.758 | G17: Revenue Split - Bundled | U17: Bundled Revenue Change | W17: Bundled Revenue Change
B18: Total | C18: =SUM(C4:C17) -> 19079592.69 | D18: =SUM(D4:D17) -> 19079592.69 | G18: Generation | H18: Distribution | I18: NDC | J18: PPPC | K18: NSGC | L18: Transmission | M18: CTC | N18: ECRA | O18: FERC BAs | P18: GHG Rev | Q18: DWRBC | R18: WHC | S18: PCIA | T18: Distribution (Wildfire) | U18: Total | V18: CARE Adj | W18: Total | X18: CARE Adj | AA18: CARE Discount | AB18: ='SAR and RAR'!AB18 -> 977857.3629 | AC18: ='SAR and RAR'!AC18 -> 977857.3629
F19: B-1 | G19: =VLOOKUP(Summary!$D$3,$F$41:$Q$44,G$33,FALSE) -> 1 | H19: =VLOOKUP(Summary!$D$3,$F$41:$T$44,H$33,FALSE) -> 0.305553564 | I19: =VLOOKUP(Summary!$D$3,$F$41:$T$44,I$33,FALSE) -> 0.305553564 | J19: =VLOOKUP(Summary!$D$3,$F$41:$T$44,J$33,FALSE) -> 0.305553564 | K19: =VLOOKUP(Summary!$D$3,$F$41:$T$44,K$33,FALSE) -> 0.305553564 | L19: =VLOOKUP(Summary!$D$3,$F$41:$T$44,L$33,FALSE) -> 0.305553564 | M19: =VLOOKUP(Summary!$D$3,$F$41:$T$44,M$33,FALSE) -> 0.305553564 | N19: =VLOOKUP(Summary!$D$3,$F$41:$T$44,N$33,FALSE) -> 0.305553564 | O19: =VLOOKUP(Summary!$D$3,$F$41:$T$44,O$33,FALSE) -> 0.305553564 | P19: =VLOOKUP(Summary!$D$3,$F$41:$T$44,P$33,FALSE) -> 0.305553564 | Q19: =VLOOKUP(Summary!$D$3,$F$41:$T$44,Q$33,FALSE) -> 0.305553564 | R19: =VLOOKUP(Summary!$D$3,$F$41:$T$44,R$33,FALSE) -> 0.305553564 | S19: =VLOOKUP(Summary!$D$3,$F$41:$T$44,S$33,FALSE) -> 2.684858564 | T19: =VLOOKUP(Summary!$D$3,$F$41:$T$44,T$33,FALSE) -> 0.305553564 | U19: =SUMPRODUCT(G10:T10,G19:T19) -> 751723.1439 | V19: =U19+AB21*H19 -> 776980.2028 | W19: =SUMPRODUCT(G13:T13,G19:T19) -> 751723.1439 | X19: =W19+AC21*H19 -> 776980.2028 | AA19: B-1 Sales | AB19: =VLOOKUP(Summary!$D$3,$F$51:$O$54,10,FALSE) -> 5847440.853 | AC19: =AB19 -> 5847440.853
F20: Total System | G20: =VLOOKUP(Summary!$D$3,$F$45:$T$48,G$33,FALSE) -> 1 | H20: =VLOOKUP(Summary!$D$3,$F$45:$T$48,H$33,FALSE) -> 0.3432499007 | I20: =VLOOKUP(Summary!$D$3,$F$45:$T$48,I$33,FALSE) -> 0.3432499007 | J20: =VLOOKUP(Summary!$D$3,$F$45:$T$48,J$33,FALSE) -> 0.3432499007 | K20: =VLOOKUP(Summary!$D$3,$F$45:$T$48,K$33,FALSE) -> 0.3432499007 | L20: =VLOOKUP(Summary!$D$3,$F$45:$T$48,L$33,FALSE) -> 0.3432499007 | M20: =VLOOKUP(Summary!$D$3,$F$45:$T$48,M$33,FALSE) -> 0.3432499007 | N20: =VLOOKUP(Summary!$D$3,$F$45:$T$48,N$33,FALSE) -> 0.3432499007 | O20: =VLOOKUP(Summary!$D$3,$F$45:$T$48,O$33,FALSE) -> 0.3432499007 | P20: =VLOOKUP(Summary!$D$3,$F$45:$T$48,P$33,FALSE) -> 0.3432499007 | Q20: =VLOOKUP(Summary!$D$3,$F$45:$T$48,Q$33,FALSE) -> 0.3432499007 | R20: =VLOOKUP(Summary!$D$3,$F$45:$T$48,R$33,FALSE) -> 0.3432499007 | S20: =VLOOKUP(Summary!$D$3,$F$45:$T$48,S$33,FALSE) -> 1.864041541 | T20: =VLOOKUP(Summary!$D$3,$F$45:$T$48,T$33,FALSE) -> 0.3432499007 | U20: =SUMPRODUCT(G11:T11,G20:T20) -> 9034276.867 | V20: =U20 -> 9034276.867 | W20: =SUMPRODUCT(G14:T14,G20:T20) -> 9034276.867 | X20: =W20 -> 9034276.867 | AA20: non-exempt Sales | AB20: =VLOOKUP(Summary!$D$3,$F$55:$O$58,2,FALSE) -> 69174483.39 | AC20: =AB20 -> 69174483.39
AA21: B-1 CARE Surcharge | AB21: =AB18*AB19/AB20 -> 82660.00427 | AC21: =AC18*AC19/AC20 -> 82660.00427
F22: ="Notes: Allocation and bundled/unbundled split based on "&Summary!L4&" sales forecast" -> Notes: Allocation and bundled/unbundled split based on 2025 sales forecast | V22: B-1 GHG | W22: =P10*P19 -> -10504.22829 | X22: =P13*P19 -> -10504.22829
G23: =G10*G19 -> 309295.3479 | H23: =H10*H19 -> 360829.4556 | I23: -434.1407136 | J23: 16024.03256 | K23: 7046.232382 | L23: 63762.074 | M23: -1212.253714 | N23: 16.31004198 | O23: -13126.97983 | P23: =P10*P19 -> -10504.22829 | Q23: 10653.38834 | R23: 6292.254845 | S23: -39695.37889 | T23: 42777.02963 | V23: Bundled Total System GHG | W23: =P11*P20 -> -247505.4203 | X23: =P14*P20 -> -247505.4203
AA25: 2025 | AI25: 2026
F26: Bundled | P26: System (Bundled and Unbundled) | AB26: 500000000 | AJ26: 500000000
F27: =Summary!D3&" Sales" -> 2025 Sales | G27: =TEXT(Summary!L3,"mm/d/yyyy")&" Avg Rates" -> 09/1/2025 Avg Rates | H27: Proposed Avg Rates (Authorized) | I27: Proposed Avg Rates (w/Pending) | J27: % Change (Authorized) | K27: % Change (w/Pending) | P27: =F27 -> 2025 Sales | Q27: =G27 -> 09/1/2025 Avg Rates | R27: Proposed Avg Rates (Authorized) | S27: Proposed Avg Rates (w/Pending) | T27: % Change (Authorized) | U27: % Change (w/Pending) | AA27: Distribution (Wildfire) Allocation | AB27: =(SUMIF('Authorized Rev Req'!T:T, "Distribution (Wildfire)", 'Authorized Rev Req'!R:R)+SUMIF('Authorized Rev Req'!T:T, "WHC", 'Authorized Rev Req'!R:R))*1000 -> 2216164204 | AI27: Distribution (Wildfire) Allocation | AJ27: =('Incremental Rev Req'!T121+'Incremental Rev Req'!T120)*1000 -> 2165890549
E28: B-1 | F28: =VLOOKUP(Summary!$D$3,$J$51:$K$54,2,FALSE) -> 1786706.393 | G28: =IF(Summary!$I$3="Y", AB52,AC52 ) -> 43.25557099 | H28: =IF(Summary!$I$3="Y",V19/$F$28*100,SUM(V19-W22)/$F$28*100) -> 43.48673099 | I28: =IF(Summary!$I$3="Y",X19/$F$28*100,SUM(X19-X22)/$F$28*100) -> 43.48673099 | J28: =H28/G28-1 -> 0.005344051509 | K28: =I28/G28-1 -> 0.005344051509 | O28: B-1 | P28: =VLOOKUP(Summary!$D$3,$N$51:$O$54,2,FALSE) -> 5847440.853 | Q28: =IF(Summary!$I$3="Y", AE52,AF52 ) -> 33.29168706 | R28: =IF(Summary!$I$3="Y",(U10+AB21)/P28*100,(U10+AB21-P10)/P28) -> 33.43408584 | S28: =IF(Summary!$I$3="Y",(U13+AC21)/P28*100,(U13+AC21-P11)/P28) -> 33.43408584 | T28: =R28/Q28-1 -> 0.004277307466 | U28: =S28/Q28-1 -> 0.004277307466
E29: Total System | F29: =VLOOKUP(Summary!$D$3,$J$55:$K$58,2,FALSE) -> 26204056.23 | G29: =IF(Summary!$I$3="Y", AB53,AC53 ) -> 34.77817042 | H29: =IF(Summary!$I$3="Y",V20/$F$29*100,SUM(V20-W23)/$F$29*100) -> 34.47663517 | I29: =IF(Summary!$I$3="Y",W20/$F$29*100,SUM(W20-X23)/$F$29*100) -> 34.47663517 | J29: =H29/G29-1 -> -0.008670244842 | K29: =I29/G29-1 -> -0.008670244842 | O29: Total System | P29: =VLOOKUP(Summary!$D$3,$N$55:$O$58,2,FALSE) -> 76341045.34 | Q29: =IF(Summary!$I$3="Y", AE53,AF53 ) -> 24.98704194 | R29: =IF(Summary!$I$3="Y",(U11+AB21)/P29*100,(U11+AB21-P11)/P29) -> 25.10085185 | S29: =IF(Summary!$I$3="Y",(U14+AC21)/P29*100,(U14+AC21-P11)/P29) -> 25.10085185 | T29: =R29/Q29-1 -> 0.004554757238 | U29: =S29/Q29-1 -> 0.004554757238 | AB29: Distribution | AC29: EPT | AE29: First 500M | AF29: After 500M | AJ29: Distribution | AK29: EPT | AM29: First 500M | AN29: After 500M
AA30: Res | AB30: ='SAR and RAR'!AB30 -> 0.4668117998 | AC30: ='SAR and RAR'!AC30 -> 0.378781425 | AE30: =AVERAGE(AB31:AC31) -> 0.1034466551 | AF30: =(0.125*AB31)+(0.875*AC31) -> 0.09581043147 | AI30: Res | AJ30: ='SAR and RAR'!AJ30 -> 0.4760999471 | AK30: ='SAR and RAR'!AK30 -> 0.3736488051 | AM30: =AVERAGE(AJ31:AK31) -> 0.09902187955 | AN30: =(0.125*AJ31)+(0.875*AK31) -> 0.09382394493
AA31: B-1 | AB31: ='SAR and RAR'!AB31 -> 0.1136282867 | AC31: ='SAR and RAR'!AC31 -> 0.09326502357 | AI31: B-1 | AJ31: ='SAR and RAR'!AJ31 -> 0.105952459 | AK31: ='SAR and RAR'!AK31 -> 0.09209130005
AA32: B-6/A-15 | AB32: ='SAR and RAR'!AB32 -> 0.0313432068 | AC32: ='SAR and RAR'!AC32 -> 0.02631508831 | AI32: B-6/A-15 | AJ32: ='SAR and RAR'!AJ32 -> 0.0332795684 | AK32: ='SAR and RAR'!AK32 -> 0.02940337057
G33: 2 | H33: 3 | I33: 4 | J33: 5 | K33: 6 | L33: 7 | M33: 8 | N33: 9 | O33: 10 | P33: 11 | Q33: 12 | R33: 13 | S33: 14 | T33: 15 | AA33: B-10 | AB33: ='SAR and RAR'!AB33 -> 0.09226022997 | AC33: ='SAR and RAR'!AC33 -> 0.103221247 | AI33: B-10 | AJ33: ='SAR and RAR'!AJ33 -> 0.08804086161 | AK33: ='SAR and RAR'!AK33 -> 0.1014553421
F34: B-1 Allocator | G34: Generation | H34: Distribution | I34: NDC | J34: PPPC | K34: NSGC | L34: Transmission | M34: CTC | N34: ECRA | O34: FERC BAs | P34: GHG Rev | Q34: DWRBC | R34: WHC | S34: PCIA | T34: Distribution (Wildfire) | AA34: B-19 | AB34: ='SAR and RAR'!AB34 -> 0.1443287247 | AC34: ='SAR and RAR'!AC34 -> 0.1780883233 | AI34: B-19 | AJ34: ='SAR and RAR'!AJ34 -> 0.1460654497 | AK34: ='SAR and RAR'!AK34 -> 0.1839727444
F35: 2025 | G35: 0.06869387473 | H35: 0.1136282867 | I35: 0.07470619103 | J35: 0.08422601712 | K35: 0.0708380441 | L35: 0.07188272742 | M35: 0.07671731265 | N35: 0.07633408418 | O35: 0.07025056274 | P35: 0.04767629561 | Q35: 0.0845106902 | R35: 0.1039457368 | S35: 0.04765537676 | T35: =((AB26*AE30)+((AB27-AB26)*(AF30)))/AB27 -> 0.09753327846 | AA35: Streetlights | AB35: ='SAR and RAR'!AB35 -> 0.003507453892 | AC35: ='SAR and RAR'!AC35 -> 0.003888497414 | AI35: Streetlights | AJ35: ='SAR and RAR'!AJ35 -> 0.003423604528 | AK35: ='SAR and RAR'!AK35 -> 0.003959607662
F36: =F35+1 -> 2026 | G36: 0.06253505664 | H36: 0.105952459 | I36: 0.07133409609 | J36: 0.08313792749 | K36: 0.06651608511 | L36: 0.06723553632 | M36: 0.07373847673 | N36: 0.07299998484 | O36: 0.074003839 | P36: 0.04315335602 | Q36: 0.08138261036 | R36: 0.1002228993 | S36: 0.09354419048 | T36: =((AJ26*AM30)+((AJ27-AJ26)*(AN30)))/AJ27 -> 0.09502389813 | AA36: Standby | AB36: ='SAR and RAR'!AB36 -> 0.002024236095 | AC36: ='SAR and RAR'!AC36 -> 0.004385175918 | AI36: Standby | AJ36: ='SAR and RAR'!AJ36 -> 0.001793496509 | AK36: ='SAR and RAR'!AK36 -> 0.004038172426
F37: =F36+1 -> 2027 | G37: =G36 -> 0.06253505664 | H37: =H36 -> 0.105952459 | I37: 0.07133409609 | J37: 0.08313792749 | K37: 0.06651608511 | L37: 0.06723553632 | M37: 0.07373847673 | N37: 0.07299998484 | O37: 0.074003839 | P37: 0.04315335602 | Q37: 0.08138261036 | R37: 0.1002228993 | S37: 0.09354419048 | T37: 0.09502389813 | AA37: AG | AB37: ='SAR and RAR'!AB37 -> 0.09254234039 | AC37: ='SAR and RAR'!AC37 -> 0.08354799747 | AI37: AG | AJ37: ='SAR and RAR'!AJ37 -> 0.08849536245 | AK37: ='SAR and RAR'!AK37 -> 0.08067667803
F38: =F37+1 -> 2028 | G38: =G37 -> 0.06253505664 | H38: 0.105952459 | I38: 0.07133409609 | J38: 0.08313792749 | K38: 0.06651608511 | L38: 0.06723553632 | M38: 0.07373847673 | N38: 0.07299998484 | O38: 0.074003839 | P38: 0.04315335602 | Q38: 0.08138261036 | R38: 0.1002228993 | S38: 0.09354419048 | T38: 0.09502389813 | AA38: B-20P | AB38: ='SAR and RAR'!AB38 -> 0.03808547486 | AC38: ='SAR and RAR'!AC38 -> 0.06442291628 | AI38: B-20P | AJ38: ='SAR and RAR'!AJ38 -> 0.03966768705 | AK38: ='SAR and RAR'!AK38 -> 0.06786135255
AA39: B-20S | AB39: ='SAR and RAR'!AB39 -> 0.01426254976 | AC39: ='SAR and RAR'!AC39 -> 0.02052339672 | AI39: B-20S | AJ39: ='SAR and RAR'!AJ39 -> 0.01571260425 | AK39: ='SAR and RAR'!AK39 -> 0.02270671214
F40: Revenue Split - Bundled | AA40: B-20T | AB40: ='SAR and RAR'!AB40 -> 0.001205697076 | AC40: ='SAR and RAR'!AC40 -> 0.04356090908 | AI40: B-20T | AJ40: ='SAR and RAR'!AJ40 -> 0.001468959346 | AK40: ='SAR and RAR'!AK40 -> 0.04018591498
E41: B-1 | F41: =F35 -> 2025 | G41: 1 | H41: =$K51/$O51 -> 0.305553564 | I41: 0.305553564 | J41: 0.305553564 | K41: 0.305553564 | L41: 0.305553564 | M41: 0.305553564 | N41: 0.305553564 | O41: 0.305553564 | P41: 0.305553564 | Q41: 0.305553564 | R41: 0.305553564 | S41: 2.684858564 | T41: 0.305553564
E42: B-1 | F42: =F36 -> 2026 | G42: 1 | H42: =$K52/$O52 -> 0.2779460334 | I42: 0.2779460334 | J42: 0.2779460334 | K42: 0.2779460334 | L42: 0.2779460334 | M42: 0.2779460334 | N42: 0.2779460334 | O42: 0.2779460334 | P42: 0.2779460334 | Q42: 0.2779460334 | R42: 0.2779460334 | S42: -0.1417068657 | T42: 0.2779460334
E43: B-1 | F43: =F37 -> 2027 | G43: =G42 -> 1 | H43: 0.2779460334 | I43: 0.2779460334 | J43: 0.2779460334 | K43: 0.2779460334 | L43: 0.2779460334 | M43: 0.2779460334 | N43: 0.2779460334 | O43: 0.2779460334 | P43: 0.2779460334 | Q43: 0.2779460334 | R43: 0.2779460334 | S43: -0.1417068657 | T43: =$K53/$O53 -> 0.2779460334
E44: B-1 | F44: =F38 -> 2028 | G44: =G42 -> 1 | H44: 0.2779460334 | I44: 0.2779460334 | J44: 0.2779460334 | K44: 0.2779460334 | L44: 0.2779460334 | M44: 0.2779460334 | N44: 0.2779460334 | O44: 0.2779460334 | P44: 0.2779460334 | Q44: 0.2779460334 | R44: 0.2779460334 | S44: =S43 -> -0.1417068657 | T44: 0.2779460334
E45: Total System | F45: =F41 -> 2025 | G45: 1 | H45: =$K55/$O55 -> 0.3432499007 | I45: 0.3432499007 | J45: 0.3432499007 | K45: 0.3432499007 | L45: 0.3432499007 | M45: 0.3432499007 | N45: 0.3432499007 | O45: 0.3432499007 | P45: 0.3432499007 | Q45: 0.3432499007 | R45: 0.3432499007 | S45: 1.864041541 | T45: 0.3432499007 | AB45: 1/1/25 Bundled w/Credit | AC45: 1/1/25 Bundled w/out Credit | AE45: 1/1/25 System w/Credit | AF45: 1/1/25 System w/out Credit
E46: Total System | F46: =F42 -> 2026 | G46: 1 | H46: =$K56/$O56 -> 0.3288618654 | I46: 0.3288618654 | J46: 0.3288618654 | K46: 0.3288618654 | L46: 0.3288618654 | M46: 0.3288618654 | N46: 0.3288618654 | O46: 0.3288618654 | P46: 0.3288618654 | Q46: 0.3288618654 | R46: 0.3288618654 | S46: -0.21224132 | T46: 0.3288618654
E47: Total System | F47: =F43 -> 2027 | G47: =G46 -> 1 | H47: 0.3288618654 | I47: 0.3288618654 | J47: 0.3288618654 | K47: 0.3288618654 | L47: 0.3288618654 | M47: 0.3288618654 | N47: 0.3288618654 | O47: 0.3288618654 | P47: 0.3288618654 | Q47: 0.3288618654 | R47: 0.3288618654 | S47: -0.21224132 | T47: 0.3288618654 | AA47: B-1 | AB47: 43.574454 | AC47: 43.58006078 | AD47: B-1 | AE47: 33.61059084 | AF47: 33.61554491
E48: Total System | F48: =F44 -> 2028 | G48: =G46 -> 1 | H48: 0.3288618654 | I48: 0.3288618654 | J48: 0.3288618654 | K48: 0.3288618654 | L48: 0.3288618654 | M48: 0.3288618654 | N48: 0.3288618654 | O48: 0.3288618654 | P48: 0.3288618654 | Q48: 0.3288618654 | R48: 0.3288618654 | S48: =S47 -> -0.21224132 | T48: =$K58/$O58 -> 0.3288618654 | AA48: System | AB48: 35.04098349 | AC48: 35.95033555 | AD48: Total System | AE48: 25.25800684 | AF48: 26.14276773
F50: Non-CARE Sales | J50: Bundled Sales | N50: System Sales | AB50: ='SAR and RAR'!AB48 -> 9/1/25 Bundled w/Credit | AC50: ='SAR and RAR'!AC48 -> 9/1/25 Bundled w/out Credit | AE50: ='SAR and RAR'!AE48 -> 9/1/25 System w/Credit | AF50: ='SAR and RAR'!AF48 -> 9/1/25 System w/out Credit
E51: B-1 | F51: =F41 -> 2025 | G51: 5833702.056 | I51: B-1 | J51: =F51 -> 2025 | K51: 1786706.393 | M51: B-1 | N51: =F51 -> 2025 | O51: 5847440.853
E52: B-1 | F52: =F42 -> 2026 | G52: 5507104.612 | I52: B-1 | J52: =F52 -> 2026 | K52: 1534409.383 | M52: B-1 | N52: =F52 -> 2026 | O52: 5520529.88 | AA52: B-1 | AB52: 43.25557099 | AC52: 43.26117778 | AD52: B-1 | AE52: 33.29168706 | AF52: 33.29664113
E53: B-1 | F53: 2027 | G53: =$G$52 -> 5507104.612 | I53: B-1 | J53: 2027 | K53: =K52 -> 1534409.383 | M53: B-1 | N53: 2027 | O53: =O52 -> 5520529.88 | AA53: System | AB53: 34.77817042 | AC53: 35.68752248 | AD53: Total System | AE53: 24.98704194 | AF53: 25.87180283
E54: B-1 | F54: 2028 | G54: =$G$52 -> 5507104.612 | I54: B-1 | J54: 2028 | K54: =K53 -> 1534409.383 | M54: B-1 | N54: 2028 | O54: =O53 -> 5520529.88
E55: Total System | F55: 2025 | G55: ='SAR and RAR'!G55 -> 69174483.39 | I55: Total System | J55: 2025 | K55: ='SAR and RAR'!K55 -> 26204056.23 | M55: Total System | N55: 2025 | O55: ='SAR and RAR'!O55 -> 76341045.34
E56: Total System | F56: 2026 | G56: ='SAR and RAR'!G56 -> 67795745.93 | I56: Total System | J56: 2026 | K56: ='SAR and RAR'!K56 -> 24784494.94 | M56: Total System | N56: 2026 | O56: ='SAR and RAR'!O56 -> 75364454.01
E57: Total System | F57: 2027 | G57: ='SAR and RAR'!G57 -> 67795745.93 | I57: Total System | J57: 2027 | K57: ='SAR and RAR'!K57 -> 24784494.94 | M57: Total System | N57: 2027 | O57: ='SAR and RAR'!O57 -> 75364454.01
E58: Total System | F58: 2028 | G58: ='SAR and RAR'!G58 -> 67795745.93 | I58: Total System | J58: 2028 | K58: ='SAR and RAR'!K58 -> 24784494.94 | M58: Total System | N58: 2028 | O58: ='SAR and RAR'!O58 -> 75364454.01
E60: Notes:
E62: ='SAR and RAR'!E62 -> 2025 Forecast: Adopted in D.24-12-038
E63: 2026 Forecast proposed in A.25-05-011
E64: ='SAR and RAR'!E64 -> 2027 Forecast: Set equal to the 2026
E65: ='SAR and RAR'!E65 -> 2028 Forecast: Set equal to the 2026

Sheet Bill Impact (B-1)
E3: Schedule B-1
E4: =Summary!D3 -> 2025 | F4: =Summary!L3 -> 2025-09-01 | G4: =Summary!L3 -> 2025-09-01 | H4: Proposed | I4: Proposed | J4: Proposed | K4: Proposed
E5: Sales Forecast | F5: Rates | G5: Revenue | H5: Authorized Rates | I5: Authorized Revenue | J5: w/Pending Rates | K5: w/Pending Revenue
D7: Peak Summer | E7: =HLOOKUP($E$4,$Y$33:$AB$41,2,FALSE) -> 164227.7607 | F7: 0.5005 | G7: =F7*E7 -> 82195.99423 | H7: =F7+(I$15-SUM($G$7:$G$14))/SUM($E$7:$E$12) -> 0.5051119123 | I7: =H7*E7 -> 82953.39827 | J7: =F7+(K$15-SUM($G$7:$G$14))/SUM($E$7:$E$12) -> 0.5051119123 | K7: =J7*E7 -> 82953.39827
D8: Part-Peak Summer | E8: =HLOOKUP($E$4,$Y$33:$AB$41,3,FALSE) -> 114890.3743 | F8: 0.45127 | G8: 51846.57921 | H8: 0.4558819123 | I8: 52376.44355 | J8: 0.4558819123 | K8: 52376.44355
D9: Off-Peak Summer | E9: =HLOOKUP($E$4,$Y$33:$AB$41,4,FALSE) -> 378411.7672 | F9: 0.43046 | G9: 162891.1293 | H9: 0.4350719123 | I9: 164636.3312 | J9: 0.4350719123 | K9: 164636.3312
D10: Part-Peak Winter | E10: =HLOOKUP($E$4,$Y$33:$AB$41,5,FALSE) -> 259532.5288 | F10: 0.42508 | G10: 110322.0874 | H10: 0.4296919123 | I10: 111519.0286 | J10: 0.4296919123 | K10: 111519.0286
D11: Off-Peak Winter | E11: =HLOOKUP($E$4,$Y$33:$AB$41,6,FALSE) -> 773980.5022 | F11: 0.40896 | G11: 316527.0662 | H11: 0.4135719123 | I11: 320096.5964 | J11: 0.4135719123 | K11: 320096.5964
D12: Super Off-Peak Winter | E12: =HLOOKUP($E$4,$Y$33:$AB$41,7,FALSE) -> 91561.71018 | F12: 0.39254 | G12: 35941.63371 | H12: 0.3971519123 | I12: 36363.9083 | J12: 0.3971519123 | K12: 36363.9083
D14: Customers (Single-phase) | E14: =HLOOKUP($E$4,$Y$33:$AB$41,9,FALSE) -> 904.0742069 | F14: 0.32854 | G14: =F14*E14*365/12 -> 9034.496423 | H14: =F14 -> 0.32854 | I14: =H14*E14*365/12 -> 9034.496423 | J14: =H14 -> 0.32854 | K14: =J14*E14*365/12 -> 9034.496423
D15: Total Revenues | G15: =SUM(G7:G14) -> 768758.9864 | I15: ='SAR and RAR (B-1)'!V19 -> 776980.2028 | K15: ='SAR and RAR (B-1)'!X19 -> 776980.2028
P19: 2024 Recorded Data
B20: SCHEDULE B-1 ($/kWh) | E20: Proposed | F20: Proposed | P20: NAICS | Q20: Summer | T20: Winter
B21: Rates | C21: 2025-01-01 | D21: =Summary!L3 -> 2025-09-01 | E21: Authorized | F21: w/Pending | P21: kWh | Q21: Peak | R21: Part-Peak | S21: Off-Peak | T21: Peak | U21: Off-Peak | V21: Super Off-Peak | W21: Total
B22: Peak Summer | C22: 0.50369 | D22: =F7 -> 0.5005 | E22: =H7 -> 0.5051119123 | F22: =J7 -> 0.5051119123 | P22: NAICS 531 | Q22: 253.2600548 | R22: 203.2453506 | S22: 616.1105527 | T22: 210.698434 | U22: 655.0994948 | V22: 73.30712486 | W22: 2011.721012
B23: Part-Peak Summer | C23: 0.45446 | D23: 0.45127 | E23: 0.4558819123 | F23: 0.4558819123 | P23: NAICS 621 | Q23: 328.9124597 | R23: 287.4525769 | S23: 824.1323719 | T23: 221.5018138 | U23: 750.2864423 | V23: 125.7421358 | W23: 2538.0278
B24: Off-Peak Summer | C24: 0.43365 | D24: 0.43046 | E24: 0.4350719123 | F24: 0.4350719123 | P24: NAICS 722 | Q24: 1024.528348 | R24: 688.0103927 | S24: 1887.654178 | T24: 767.3092176 | U24: 1748.649726 | V24: 280.8376634 | W24: 6396.989525
B25: Part-Peak Winter | C25: 0.42827 | D25: 0.42508 | E25: 0.4296919123 | F25: 0.4296919123
B26: Off-Peak Winter | C26: 0.41215 | D26: 0.40896 | E26: 0.4135719123 | F26: 0.4135719123
B27: Super Off-Peak Winter | C27: 0.39573 | D27: 0.39254 | E27: 0.3971519123 | F27: 0.3971519123
B28: Customers (Single-phase) | C28: 0.32854 | D28: =F14 -> 0.32854 | E28: =H14 -> 0.32854 | F28: =J14 -> 0.32854
C30: B-1
C31: =C21 -> 2025-01-01 | E31: =D21 -> 2025-09-01 | G31: =_xlfn.TEXTJOIN(" ",TRUE,E20:E21) -> Proposed Authorized | I31: =_xlfn.TEXTJOIN(" ",TRUE,F20:F21) -> Proposed w/Pending
C32: Summer | D32: Winter | E32: Summer | F32: Winter | G32: Summer | H32: Winter | I32: Summer | J32: Winter
B33: NAICS 531 | C33: =SUM(SUM($C$22*$Q22,$C$23*$R22,$C$24*$S22),($C$28*365.25/12)) -> 497.1077164 | D33: =SUM(SUM($C$25*$T22,$C$26*$U22,$C$27*$V22),($C$28*365.25/12)) -> 399.2448399 | E33: =SUM(SUM($D$22*$Q22,$D$23*$R22,$D$24*$S22),($D$28*365.25/12)) -> 493.6860715 | F33: =SUM(SUM($D$25*$T22,$D$26*$U22,$D$27*$V22),($D$28*365.25/12)) -> 396.2490948 | G33: =SUM(SUM($E$22*$Q22,$E$23*$R22,$E$24*$S22),($E$28*365.25/12)) -> 498.6328823 | H33: =SUM(SUM($E$25*$T22,$E$26*$U22,$E$27*$V22),($E$28*365.25/12)) -> 400.580165 | I33: =SUM(SUM($F$22*$Q22,$F$23*$R22,$F$24*$S22),($F$28*365.25/12)) -> 498.6328823 | J33: =SUM(SUM($F$25*$T22,$F$26*$U22,$F$27*$V22),($F$28*365.25/12)) -> 400.580165 | W33: Non-CARE Sales | X33: B-1 | Y33: ='Res Bill Impact'!Y38 -> 2025 | Z33: =Y33+1 -> 2026 | AA33: =Z33+1 -> 2027 | AB33: =AA33+1 -> 2028
B34: NAICS 621 | C34: =SUM(SUM($C$22*$Q23,$C$23*$R23,$C$24*$S23),($C$28*365.25/12)) -> 663.6905542 | D34: =SUM(SUM($C$25*$T23,$C$26*$U23,$C$27*$V23),($C$28*365.25/12)) -> 463.8530107 | E34: =SUM(SUM($D$22*$Q23,$D$23*$R23,$D$24*$S23),($D$28*365.25/12)) -> 659.0953675 | F34: =SUM(SUM($D$25*$T23,$D$26*$U23,$D$27*$V23),($D$28*365.25/12)) -> 460.3518887 | G34: =SUM(SUM($E$22*$Q23,$E$23*$R23,$E$24*$S23),($E$28*365.25/12)) -> 665.7388153 | H34: =SUM(SUM($E$25*$T23,$E$26*$U23,$E$27*$V23),($E$28*365.25/12)) -> 465.4136027 | I34: =SUM(SUM($F$22*$Q23,$F$23*$R23,$F$24*$S23),($F$28*365.25/12)) -> 665.7388153 | J34: =SUM(SUM($F$25*$T23,$F$26*$U23,$F$27*$V23),($F$28*365.25/12)) -> 465.4136027 | V34: Summer | W34: Peak | X34: Peak | Y34: 164227.7607 | Z34: 148834.7834 | AA34: =$Z34 -> 148834.7834 | AB34: =$Z34 -> 148834.7834
B35: NAICS 722 | C35: =SUM(SUM($C$22*$Q24,$C$23*$R24,$C$24*$S24),($C$28*365.25/12)) -> 1657.299057 | D35: =SUM(SUM($C$25*$T24,$C$26*$U24,$C$27*$V24),($C$28*365.25/12)) -> 1170.457328 | E35: =SUM(SUM($D$22*$Q24,$D$23*$R24,$D$24*$S24),($D$28*365.25/12)) -> 1645.814442 | F35: =SUM(SUM($D$25*$T24,$D$26*$U24,$D$27*$V24),($D$28*365.25/12)) -> 1161.535547 | G35: =SUM(SUM($E$22*$Q24,$E$23*$R24,$E$24*$S24),($E$28*365.25/12)) -> 1662.418216 | H35: =SUM(SUM($E$25*$T24,$E$26*$U24,$E$27*$V24),($E$28*365.25/12)) -> 1174.434127 | I35: =SUM(SUM($F$22*$Q24,$F$23*$R24,$F$24*$S24),($F$28*365.25/12)) -> 1662.418216 | J35: =SUM(SUM($F$25*$T24,$F$26*$U24,$F$27*$V24),($F$28*365.25/12)) -> 1174.434127 | V35: Summer | W35: Part Peak | X35: Part Peak | Y35: 114890.3743 | Z35: 102570.0048 | AA35: =$Z35 -> 102570.0048 | AB35: 102570.0048
V36: Summer | W36: Off Peak | X36: Off Peak | Y36: 378411.7672 | Z36: 332682.5927 | AA36: 332682.5927 | AB36: 332682.5927
V37: Winter | W37: Peak | X37: Part Peak | Y37: 259532.5288 | Z37: 225107.5162 | AA37: 225107.5162 | AB37: 225107.5162
V38: Winter | W38: Off Peak | X38: Off Peak | Y38: 773980.5022 | Z38: 652003.8016 | AA38: 652003.8016 | AB38: 652003.8016
V39: Winter | W39: Super Off Peak | X39: Super Off | Y39: 91561.71018 | Z39: 69800.07941 | AA39: 69800.07941 | AB39: 69800.07941
V41: Customer | W41: Single-Phase | Y41: 904.0742069 | Z41: 824.4952424 | AA41: =$Z41 -> 824.4952424 | AB41: =$Z41 -> 824.4952424

Sheet Hypothetical Summary
B2: Inputs: | J2: Assumptions:
C3: Typical residential average usage kWh/month | D3: 500 | J3: Current Effective Rates | L3: 2025-09-01
C4: Baseline Region - (Residential bill) | D4: X - Warm | J4: Sales Forecast | L4: 2025
C5: Include CA Climate Credit in Rates | D5: Y | J5: Summer season | L5: 4 | M5: months
D6: Revenue Change (000s) | J6: Winter Season | L6: 8 | M6: months
C7: Generation | J7: Residential bill calculated using | L7: Schedule E-1, Single Family
C8: NSGC | J8: Residential Bi-annual Climate Credit | L8: -58.22662846
C9: Distribution | P9: Essential Use - Basic | Q9: Essential Use - All Electric
C10: GHG Revenue | N10: Basic | O10: All Electric
C11: CTC | J11: Non-CARE bill impact calculated with average summer usage of | N11: =IF($D$4="ALL",SUMPRODUCT('Hypothetical Res Bill Impact'!Q$22:Q$31,'Hypothetical Res Bill Impact'!$U$22:$U$31),VLOOKUP(D$4,'Hypothetical Res Bill Impact'!$P$22:$T$31,2,FALSE)) -> 481.75 | O11: =IF($D$4="ALL",SUMPRODUCT('Hypothetical Res Bill Impact'!Y$22:Y$31,'Hypothetical Res Bill Impact'!$AC$22:$AC$31),VLOOKUP($D$4,'Hypothetical Res Bill Impact'!$X$22:$AB$31,2,FALSE)) -> 463 | P11: =VLOOKUP($D$4,'Hypothetical Res Bill Impact'!$H$22:$J$31,2,FALSE) -> 298.2875 | Q11: =VLOOKUP($D$4,'Hypothetical Res Bill Impact'!$L$22:$N$31,2,FALSE) -> 258.71875 | R11: kWh per month
C12: NDC | J12: Non-CARE bill impact calculated with average winter usage of | N12: =IF($D$4="ALL",SUMPRODUCT('Hypothetical Res Bill Impact'!R$22:R$31,'Hypothetical Res Bill Impact'!$U$22:$U$31),VLOOKUP(D$4,'Hypothetical Res Bill Impact'!$P$22:$T$31,3,FALSE)) -> 402.875 | O12: =IF($D$4="ALL",SUMPRODUCT('Hypothetical Res Bill Impact'!Y$22:Y$31,'Hypothetical Res Bill Impact'!$AC$22:$AC$31),VLOOKUP($D$4,'Hypothetical Res Bill Impact'!$X$22:$AB$31,3,FALSE)) -> 462.875 | P12: =VLOOKUP($D$4,'Hypothetical Res Bill Impact'!$H$22:$J$31,3,FALSE) -> 295.24375 | Q12: =VLOOKUP($D$4,'Hypothetical Res Bill Impact'!$L$22:$N$31,3,FALSE) -> 444.3875 | R12: kWh per month
C13: Public Purpose Program | J13: Non-CARE bill impact calculated with average annual usage of | N13: =(N11*4)+(N12*8) -> 5150 | O13: =(O11*4)+(O12*8) -> 5555 | P13: =(P11*4)+(P12*8) -> 3555.1 | Q13: =(Q11*4)+(Q12*8) -> 4589.975 | R13: kWh per year
C14: DWR BC | J14: CARE bill impact calculated with average summer usage of | N14: =IF(D$4="ALL",SUMPRODUCT('Hypothetical Res Bill Impact'!S$22:S$31,'Hypothetical Res Bill Impact'!$V$22:$V$31),VLOOKUP(D$4,'Hypothetical Res Bill Impact'!$P$22:$T$31,4,FALSE)) -> 438.25 | O14: =IF($D$4="ALL",SUMPRODUCT('Hypothetical Res Bill Impact'!Y$22:Y$31,'Hypothetical Res Bill Impact'!$AD$22:$AD$31),VLOOKUP($D$4,'Hypothetical Res Bill Impact'!$X$22:$AB$31,4,FALSE)) -> 413.5 | P14: =P11 -> 298.2875 | Q14: 258.71875 | R14: kWh per month
C15: ECRA | J15: CARE bill impact calculated with average winter usage of | N15: =IF($D$4="ALL",SUMPRODUCT('Hypothetical Res Bill Impact'!T$22:T$31,'Hypothetical Res Bill Impact'!$V$22:$V$31),VLOOKUP(D$4,'Hypothetical Res Bill Impact'!$P$22:$T$31,5,FALSE)) -> 381.625 | O15: =IF($D$4="ALL",SUMPRODUCT('Hypothetical Res Bill Impact'!Y$22:Y$31,'Hypothetical Res Bill Impact'!$AD$22:$AD$31),VLOOKUP($D$4,'Hypothetical Res Bill Impact'!$X$22:$AB$31,5,FALSE)) -> 438.75 | P15: 295.24375 | Q15: 444.3875 | R15: kWh per month
C16: Transmission | J16: CARE bill impact calculated with average annual usage of | N16: =(N14*4)+(N15*8) -> 4806 | O16: =(O14*4)+(O15*8) -> 5164 | P16: 3555.1 | Q16: 4589.975 | R16: kWh per year
C17: FERC BAs | J17: Average monthly usage is for all customers (Non-CARE and CARE) based on seasonal usage in | P17: =LEFT('Res Bill Impact'!P19,4) -> 2024
C18: PCIA
C19: WHC
C20: Distribution (Wildfire)
C21: Total | D21: =SUM(D7:D20) -> 0
B22: Outputs: | D22: `
D23: (A) | E23: (B) | F23: (C) | G23: (C)/(A) | H23: (C)/(B) | L23: (A) | M23: (B) | N23: (C) | O23: (C)/(A) | P23: (C)/(B)
B24: Bundled Average Rates - ¢/kWh | J24: Total System (Bundled and Unbundled) Average Rates - ¢/kWh
B25: Customer Group | D25: 2025-01-01 | E25: =L3 -> 2025-09-01 | F25: Proposed | G25: ="% Change over "&TEXT(D25,"mm/d/yyyy") -> % Change over 01/1/2025 | H25: ="% Change over "&TEXT(E25,"mm/d/yyyy") -> % Change over 09/1/2025 | J25: Customer Group | L25: =$D$25 -> 2025-01-01 | M25: =$E$25 -> 2025-09-01 | N25: Proposed | O25: =$G$25 -> % Change over 01/1/2025 | P25: =$H$25 -> % Change over 09/1/2025
B26: Residential | D26: =IF($D$5="Y", 'Hypothetical SAR and RAR'!AB45, 'Hypothetical SAR and RAR'!AC45) -> 35.876527 | E26: =IF($D$5="Y", 'Hypothetical SAR and RAR'!AB50, 'Hypothetical SAR and RAR'!AC50) -> 35.65670968 | F26: ='Hypothetical SAR and RAR'!G29 -> 35.65670968 | G26: =$F26/D26-1 -> -0.006127051086 | H26: 0 | J26: Total Residential (RAR) | L26: =IF($D$5="Y", 'Hypothetical SAR and RAR'!AE45, 'Hypothetical SAR and RAR'!AF45) -> 28.12908243 | M26: =IF($D$5="Y", 'Hypothetical SAR and RAR'!AE50, 'Hypothetical SAR and RAR'!AF50) -> 27.88626544 | N26: ='Hypothetical SAR and RAR'!Q29 -> 27.88626544 | O26: =$N26/L26-1 -> -0.00863224013 | P26: 0
C27: B-1 | D27: =IF($D$5="Y", 'Hypothetical SAR and RAR (B-1)'!X31,'Hypothetical SAR and RAR (B-1)'!Y31) -> 43.574454 | E27: =IF($D$5="Y", 'Hypothetical SAR and RAR (B-1)'!X36,'Hypothetical SAR and RAR (B-1)'!Y36) -> 43.25557099 | F27: ='Hypothetical SAR and RAR (B-1)'!G29 -> 43.25557099 | G27: -0.007318118174 | H27: 0 | K27: Total B-1 | L27: =IF($D$5="Y", 'Hypothetical SAR and RAR (B-1)'!AA31,'Hypothetical SAR and RAR (B-1)'!AB31) -> 33.61059084 | M27: =IF($D$5="Y",'Hypothetical SAR and RAR (B-1)'!AA36,'Hypothetical SAR and RAR (B-1)'!AB36) -> 33.29168706 | N27: ='Hypothetical SAR and RAR (B-1)'!Q29 -> 33.29168706 | O27: -0.009488193091 | P27: 0
B28: System | D28: =IF($D$5="Y", 'Hypothetical SAR and RAR'!AB46, 'Hypothetical SAR and RAR'!AC46) -> 35.04098349 | E28: =IF($D$5="Y", 'Hypothetical SAR and RAR'!AB51, 'Hypothetical SAR and RAR'!AC51) -> 34.77817042 | F28: ='Hypothetical SAR and RAR'!G30 -> 34.77817042 | G28: -0.007500162446 | H28: 0 | J28: Total System (SAR) | L28: =IF($D$5="Y", 'Hypothetical SAR and RAR'!AE46, 'Hypothetical SAR and RAR'!AF46) -> 25.25800684 | M28: =IF($D$5="Y", 'Hypothetical SAR and RAR'!AE51, 'Hypothetical SAR and RAR'!AF51) -> 24.98704194 | N28: ='Hypothetical SAR and RAR'!Q30 -> 24.98704194 | O28: -0.01072788128 | P28: 0
B31: Basic Bundled Residential Monthly Average Bills | J31: All-Electric Bundled Residential Monthly Average Bills
D32: =$D$25 -> 2025-01-01 | E32: =$E$25 -> 2025-09-01 | F32: Proposed | G32: =$G$25 -> % Change over 01/1/2025 | H32: =$H$25 -> % Change over 09/1/2025 | L32: =$D$25 -> 2025-01-01 | M32: =$E$25 -> 2025-09-01 | N32: Proposed | O32: =$G$25 -> % Change over 01/1/2025 | P32: =$H$25 -> % Change over 09/1/2025
B33: Non-CARE | D33: =((D40*4)+(D47*8)+($L$8*2))/12 -> 175.9560715 | E33: =((E40*4)+(E47*8)+($L$8*2))/12 -> 174.6537936 | F33: =((F40*4)+(F47*8)+($L$8*2))/12 -> 174.6537936 | G33: =$F33/D33-1 -> -0.007401153388 | H33: 0 | J33: Non-CARE | L33: =((L40*4)+(L47*8)+($L$8*2))/12 -> 184.1774272 | M33: =((M40*4)+(M47*8)+($L$8*2))/12 -> 182.8047785 | N33: =((N40*4)+(N47*8)+($L$8*2))/12 -> 182.8047785 | O33: =$N33/L33-1 -> -0.007452860878 | P33: 0
B34: CARE | D34: =((D41*4)+(D48*8)+($L$8*2))/12 -> 95.44169792 | E34: 95.06070559 | F34: 95.06070559 | G34: -0.003991885583 | H34: 0 | J34: CARE | L34: =((L41*4)+(L48*8)+($L$8*2))/12 -> 99.29405484 | M34: 98.90482344 | N34: 98.90482344 | O34: -0.00391998699 | P34: 0
B35: Total | D35: 155.32584 | E35: 154.2596235 | F35: 154.2596235 | G35: -0.006864385846 | H35: 0 | J35: Total | L35: 162.4277253 | M35: 161.307058 | N35: 161.307058 | O35: -0.006899482862 | P35: 0
D37: 2 | E37: 4 | F37: 6 | L37: 2 | M37: 4 | N37: 6
B38: Basic Bundled Residential Monthly Average Bills - Summer | J38: All-Electric Bundled Residential Monthly Average Bills - Summer
D39: =$D$25 -> 2025-01-01 | E39: =$E$25 -> 2025-09-01 | F39: Proposed | G39: =$G$25 -> % Change over 01/1/2025 | H39: =$H$25 -> % Change over 09/1/2025 | L39: =$D$25 -> 2025-01-01 | M39: =$E$25 -> 2025-09-01 | N39: Proposed | O39: =$G$25 -> % Change over 01/1/2025 | P39: =$H$25 -> % Change over 09/1/2025
B40: Non-CARE | D40: =VLOOKUP($D$4,'Hypothetical Res Bill Impact'!$B$37:$H$47,D37,FALSE) -> 211.8816594 | E40: =VLOOKUP($D$4,'Hypothetical Res Bill Impact'!$B$37:$H$47,E37,FALSE) -> 210.4023754 | F40: =VLOOKUP($D$4,'Hypothetical Res Bill Impact'!$B$37:$H$47,F37,FALSE) -> 210.4023754 | G40: =$F40/D40-1 -> -0.006981651782 | H40: 0 | J40: Non-CARE | L40: =VLOOKUP($D$4,'Hypothetical Res Bill Impact'!$J$37:$P$47,L37,FALSE) -> 206.4687647 | M40: =VLOOKUP($D$4,'Hypothetical Res Bill Impact'!$J$37:$P$47,M37,FALSE) -> 205.0328223 | N40: =VLOOKUP($D$4,'Hypothetical Res Bill Impact'!$J$37:$P$47,N37,FALSE) -> 205.0328223 | O40: =$N40/L40-1 -> -0.00695476803 | P40: 0
B41: CARE | D41: =VLOOKUP($D$4,'Hypothetical Res Bill Impact'!$B$53:$H$63,D37,FALSE) -> 116.762897 | E41: =VLOOKUP($D$4,'Hypothetical Res Bill Impact'!$B$53:$H$63,E37,FALSE) -> 116.3373601 | F41: =VLOOKUP($D$4,'Hypothetical Res Bill Impact'!$B$53:$H$63,F37,FALSE) -> 116.3373601 | G41: -0.003644452845 | H41: 0 | J41: CARE | L41: =VLOOKUP($D$4,'Hypothetical Res Bill Impact'!$J$53:$P$63,L37,FALSE) -> 111.6657537 | M41: =VLOOKUP($D$4,'Hypothetical Res Bill Impact'!$J$53:$P$63,M37,FALSE) -> 111.2566732 | N41: =VLOOKUP($D$4,'Hypothetical Res Bill Impact'!$J$53:$P$63,N37,FALSE) -> 111.2566732 | O41: -0.00366343758 | P41: 0
B42: Total | D42: =D40*(1-'Hypothetical SAR and RAR'!$Y$16)+D41*'Hypothetical SAR and RAR'!$Y$16 -> 187.5093392 | E42: =E40*(1-'Hypothetical SAR and RAR'!$Y$16)+E41*'Hypothetical SAR and RAR'!$Y$16 -> 186.3000573 | F42: =F40*(1-'Hypothetical SAR and RAR'!$Y$16)+F41*'Hypothetical SAR and RAR'!$Y$16 -> 186.3000573 | G42: -0.006449182279 | H42: 0 | J42: Total | L42: =L40*(1-'Hypothetical SAR and RAR'!$Y$16)+L41*'Hypothetical SAR and RAR'!$Y$16 -> 182.1773497 | M42: =M40*(1-'Hypothetical SAR and RAR'!$Y$16)+M41*'Hypothetical SAR and RAR'!$Y$16 -> 181.0045205 | N42: =N40*(1-'Hypothetical SAR and RAR'!$Y$16)+N41*'Hypothetical SAR and RAR'!$Y$16 -> 181.0045205 | O42: -0.006437842724 | P42: 0
D44: 3 | E44: 5 | F44: 7 | L44: 3 | M44: 5 | N44: 7
B45: Basic Bundled Residential Monthly Average Bills - Winter | J45: All-Electric Bundled Residential Monthly Average Bills - Winter
D46: =$D$25 -> 2025-01-01 | E46: =$E$25 -> 2025-09-01 | F46: Proposed | G46: =$G$25 -> % Change over 01/1/2025 | H46: =$H$25 -> % Change over 09/1/2025 | L46: =$D$25 -> 2025-01-01 | M46: =$E$25 -> 2025-09-01 | N46: Proposed | O46: =$G$25 -> % Change over 01/1/2025 | P46: =$H$25 -> % Change over 09/1/2025
B47: Non-CARE | D47: =VLOOKUP($D$4,'Hypothetical Res Bill Impact'!$B$37:$H$47,D44,FALSE) -> 172.5499347 | E47: =VLOOKUP($D$4,'Hypothetical Res Bill Impact'!$B$37:$H$47,E44,FALSE) -> 171.3361599 | F47: =VLOOKUP($D$4,'Hypothetical Res Bill Impact'!$B$37:$H$47,F44,FALSE) -> 171.3361599 | G47: =$F47/D47-1 -> -0.00703433955 | H47: 0 | J47: Non-CARE | L47: =VLOOKUP($D$4,'Hypothetical Res Bill Impact'!$J$37:$P$47,L44,FALSE) -> 187.5884156 | M47: =VLOOKUP($D$4,'Hypothetical Res Bill Impact'!$J$37:$P$47,M44,FALSE) -> 186.2474137 | N47: =VLOOKUP($D$4,'Hypothetical Res Bill Impact'!$J$37:$P$47,N44,FALSE) -> 186.2474137 | O47: =$N47/L47-1 -> -0.007148639359 | P47: 0
B48: CARE | D48: =VLOOKUP($D$4,'Hypothetical Res Bill Impact'!$B$53:$H$63,D44,FALSE) -> 99.3377555 | E48: =VLOOKUP($D$4,'Hypothetical Res Bill Impact'!$B$53:$H$63,E44,FALSE) -> 98.97903543 | F48: =VLOOKUP($D$4,'Hypothetical Res Bill Impact'!$B$53:$H$63,F44,FALSE) -> 98.97903543 | G48: -0.00361111512 | H48: 0 | J48: CARE | L48: =VLOOKUP($D$4,'Hypothetical Res Bill Impact'!$J$53:$P$63,L44,FALSE) -> 107.6648625 | M48: =VLOOKUP($D$4,'Hypothetical Res Bill Impact'!$J$53:$P$63,M44,FALSE) -> 107.2855557 | N48: =VLOOKUP($D$4,'Hypothetical Res Bill Impact'!$J$53:$P$63,N44,FALSE) -> 107.2855557 | O48: -0.003523032832 | P48: 0
B49: Total | D49: =D47*(1-'Hypothetical SAR and RAR'!$Y$16)+D48*'Hypothetical SAR and RAR'!$Y$16 -> 153.7907475 | E49: =E47*(1-'Hypothetical SAR and RAR'!$Y$16)+E48*'Hypothetical SAR and RAR'!$Y$16 -> 152.7960637 | F49: =F47*(1-'Hypothetical SAR and RAR'!$Y$16)+F48*'Hypothetical SAR and RAR'!$Y$16 -> 152.7960637 | G49: -0.006467773964 | H49: 0 | J49: Total | L49: =L47*(1-'Hypothetical SAR and RAR'!$Y$16)+L48*'Hypothetical SAR and RAR'!$Y$16 -> 167.1095703 | M49: =M47*(1-'Hypothetical SAR and RAR'!$Y$16)+M48*'Hypothetical SAR and RAR'!$Y$16 -> 166.0149839 | N49: =N47*(1-'Hypothetical SAR and RAR'!$Y$16)+N48*'Hypothetical SAR and RAR'!$Y$16 -> 166.0149839 | O49: -0.00655011198 | P49: 0
B52: Essential Use Basic Bundled Residential Monthly Average Bills | J52: Essential Use All-Electric Bundled Residential Monthly Average Bills
D53: =$D$25 -> 2025-01-01 | E53: =$E$25 -> 2025-09-01 | F53: Proposed | G53: =$G$25 -> % Change over 01/1/2025 | H53: =$H$25 -> % Change over 09/1/2025 | L53: =$D$25 -> 2025-01-01 | M53: =$E$25 -> 2025-09-01 | N53: Proposed | O53: =$G$25 -> % Change over 01/1/2025 | P53: =$H$25 -> % Change over 09/1/2025
B54: Basic Essential Use - Non-CARE | D54: =((D61*4)+(D68*8)+($L$8*2))/12 -> 109.1603304 | E54: =((E61*4)+(E68*8)+($L$8*2))/12 -> 108.3080597 | F54: =((F61*4)+(F68*8)+($L$8*2))/12 -> 108.3080597 | G54: =$F54/D54-1 -> -0.007807513345 | H54: 0 | J54: Basic Essential Use - Non-CARE | L54: =((L61*4)+(L68*8)+($L$8*2))/12 -> 143.761376 | M54: =((M61*4)+(M68*8)+($L$8*2))/12 -> 142.6610128 | N54: =((N61*4)+(N68*8)+($L$8*2))/12 -> 142.6610128 | O54: =$N54/L54-1 -> -0.00765409511 | P54: 0
B55: Basic Essential Use - CARE | D55: =((D62*4)+(D69*8)+($L$8*2))/12 -> 62.99439434 | E55: 62.73827397 | F55: 62.73827397 | G55: -0.00406576452 | H55: 0 | J55: Basic Essential Use - CARE | L55: =((L62*4)+(L69*8)+($L$8*2))/12 -> 84.15672569 | M55: 83.82604973 | N55: 83.82604973 | O55: -0.003929287397 | P55: 0
B56: Total | D56: 97.33121337 | E56: 96.63169449 | F56: 96.63169449 | G56: -0.007186994348 | H56: 0 | J56: Total | L56: 128.4888516 | M56: 127.5857057 | N56: 127.5857057 | O56: -0.007028982983 | P56: 0
D58: 2 | E58: 4 | F58: 6 | L58: 2 | M58: 4 | N58: 6
B59: Essential Use Basic Bundled Residential Monthly Average Bills - Summer | J59: Essential Use All-Electric Bundled Residential Monthly Average Bills - Summer
D60: =$D$25 -> 2025-01-01 | E60: =$E$25 -> 2025-09-01 | F60: Proposed | G60: =$G$25 -> % Change over 01/1/2025 | H60: =$H$25 -> % Change over 09/1/2025 | L60: =$D$25 -> 2025-01-01 | M60: =$E$25 -> 2025-09-01 | N60: Proposed | O60: =$G$25 -> % Change over 01/1/2025 | P60: =$H$25 -> % Change over 09/1/2025
B61: Basic Essential Use - Non-CARE | D61: =VLOOKUP($D$4,'Hypothetical Res Bill Impact'!$B$69:$H$79,D58,FALSE) -> 119.6789108 | E61: =VLOOKUP($D$4,'Hypothetical Res Bill Impact'!$B$69:$H$79,E58,FALSE) -> 118.8208025 | F61: =VLOOKUP($D$4,'Hypothetical Res Bill Impact'!$B$69:$H$79,F58,FALSE) -> 118.8208025 | G61: =$F61/D61-1 -> -0.007170087043 | H61: 0 | J61: Basic Essential Use - Non-CARE | L61: =VLOOKUP($D$4,'Hypothetical Res Bill Impact'!$J$69:$P$79,L58,FALSE) -> 103.8031369 | M61: =VLOOKUP($D$4,'Hypothetical Res Bill Impact'!$J$69:$P$79,M58,FALSE) -> 103.0588593 | N61: =VLOOKUP($D$4,'Hypothetical Res Bill Impact'!$J$69:$P$79,N58,FALSE) -> 103.0588593 | O61: =$N61/L61-1 -> -0.007170087043 | P61: 0
B62: Basic Essential Use - CARE | D62: =VLOOKUP($D$4,'Hypothetical Res Bill Impact'!$B$85:$H$95,D58,FALSE) -> 73.19676963 | E62: =VLOOKUP($D$4,'Hypothetical Res Bill Impact'!$B$85:$H$95,E58,FALSE) -> 72.938895 | F62: =VLOOKUP($D$4,'Hypothetical Res Bill Impact'!$B$85:$H$95,F58,FALSE) -> 72.938895 | G62: -0.003523032832 | H62: 0 | J62: Basic Essential Use - CARE | L62: =VLOOKUP($D$4,'Hypothetical Res Bill Impact'!$J$85:$P$95,L58,FALSE) -> 63.48699406 | M62: =VLOOKUP($D$4,'Hypothetical Res Bill Impact'!$J$85:$P$95,M58,FALSE) -> 63.2633273 | N62: =VLOOKUP($D$4,'Hypothetical Res Bill Impact'!$J$85:$P$95,N58,FALSE) -> 63.2633273 | O62: -0.003523032832 | P62: 0
B63: Total | D63: =D61*(1-'Hypothetical SAR and RAR'!$Y$16)+D62*'Hypothetical SAR and RAR'!$Y$16 -> 107.7687723 | E63: =E61*(1-'Hypothetical SAR and RAR'!$Y$16)+E62*'Hypothetical SAR and RAR'!$Y$16 -> 107.0644622 | F63: =F61*(1-'Hypothetical SAR and RAR'!$Y$16)+F62*'Hypothetical SAR and RAR'!$Y$16 -> 107.0644622 | G63: -0.006535382098 | H63: 0 | J63: Total | L63: =L61*(1-'Hypothetical SAR and RAR'!$Y$16)+L62*'Hypothetical SAR and RAR'!$Y$16 -> 93.47291479 | M63: =M61*(1-'Hypothetical SAR and RAR'!$Y$16)+M62*'Hypothetical SAR and RAR'!$Y$16 -> 92.86203357 | N63: =N61*(1-'Hypothetical SAR and RAR'!$Y$16)+N62*'Hypothetical SAR and RAR'!$Y$16 -> 92.86203357 | O63: -0.006535382098 | P63: 0
D65: 3 | E65: 5 | F65: 7 | L65: 3 | M65: 5 | N65: 7
B66: Essential Use Basic Bundled Residential Monthly Average Bills - Winter | J66: Essential Use All-Electric Bundled Residential Monthly Average Bills - Winter
D67: =$D$25 -> 2025-01-01 | E67: =$E$25 -> 2025-09-01 | F67: Proposed | G67: =$G$25 -> % Change over 01/1/2025 | H67: =$H$25 -> % Change over 09/1/2025 | L67: =$D$25 -> 2025-01-01 | M67: =$E$25 -> 2025-09-01 | N67: Proposed | O67: =$G$25 -> % Change over 01/1/2025 | P67: =$H$25 -> % Change over 09/1/2025
B68: Basic Essential Use - Non-CARE | D68: =VLOOKUP($D$4,'Hypothetical Res Bill Impact'!$B$69:$H$79,D65,FALSE) -> 118.4576974 | E68: =VLOOKUP($D$4,'Hypothetical Res Bill Impact'!$B$69:$H$79,E65,FALSE) -> 117.6083454 | F68: =VLOOKUP($D$4,'Hypothetical Res Bill Impact'!$B$69:$H$79,F65,FALSE) -> 117.6083454 | G68: =$F68/D68-1 -> -0.007170087043 | H68: 0 | J68: Basic Essential Use - Non-CARE | L68: =VLOOKUP($D$4,'Hypothetical Res Bill Impact'!$J$69:$P$79,L65,FALSE) -> 178.2971528 | M68: =VLOOKUP($D$4,'Hypothetical Res Bill Impact'!$J$69:$P$79,M65,FALSE) -> 177.0187466 | N68: =VLOOKUP($D$4,'Hypothetical Res Bill Impact'!$J$69:$P$79,N65,FALSE) -> 177.0187466 | O68: =$N68/L68-1 -> -0.007170087043 | P68: 0
B69: Basic Essential Use - CARE | D69: =VLOOKUP($D$4,'Hypothetical Res Bill Impact'!$B$85:$H$95,D65,FALSE) -> 72.44986381 | E69: =VLOOKUP($D$4,'Hypothetical Res Bill Impact'!$B$85:$H$95,E65,FALSE) -> 72.19462056 | F69: =VLOOKUP($D$4,'Hypothetical Res Bill Impact'!$B$85:$H$95,F65,FALSE) -> 72.19462056 | G69: -0.003523032832 | H69: 0 | J69: Basic Essential Use - CARE | L69: =VLOOKUP($D$4,'Hypothetical Res Bill Impact'!$J$85:$P$95,L65,FALSE) -> 109.0482486 | M69: =VLOOKUP($D$4,'Hypothetical Res Bill Impact'!$J$85:$P$95,M65,FALSE) -> 108.6640681 | N69: =VLOOKUP($D$4,'Hypothetical Res Bill Impact'!$J$85:$P$95,N65,FALSE) -> 108.6640681 | O69: -0.003523032832 | P69: 0
B70: Total | D70: =D68*(1-'Hypothetical SAR and RAR'!$Y$16)+D69*'Hypothetical SAR and RAR'!$Y$16 -> 106.669091 | E70: =E68*(1-'Hypothetical SAR and RAR'!$Y$16)+E69*'Hypothetical SAR and RAR'!$Y$16 -> 105.9719677 | F70: =F68*(1-'Hypothetical SAR and RAR'!$Y$16)+F69*'Hypothetical SAR and RAR'!$Y$16 -> 105.9719677 | G70: -0.006535382098 | H70: 0 | J70: Total | L70: =L68*(1-'Hypothetical SAR and RAR'!$Y$16)+L69*'Hypothetical SAR and RAR'!$Y$16 -> 160.5534772 | M70: =M68*(1-'Hypothetical SAR and RAR'!$Y$16)+M69*'Hypothetical SAR and RAR'!$Y$16 -> 159.5041988 | N70: =N68*(1-'Hypothetical SAR and RAR'!$Y$16)+N69*'Hypothetical SAR and RAR'!$Y$16 -> 159.5041988 | O70: -0.006535382098 | P70: 0
B73: Typical Customer Basic Bundled Residential Monthly Average Bills | J73: Typical Customer All-Electric Bundled Residential Monthly Average Bills
D74: =$D$25 -> 2025-01-01 | E74: =$E$25 -> 2025-09-01 | F74: Proposed | G74: =$G$25 -> % Change over 01/1/2025 | H74: =$H$25 -> % Change over 09/1/2025 | L74: =$D$25 -> 2025-01-01 | M74: =$E$25 -> 2025-09-01 | N74: Proposed | O74: =$G$25 -> % Change over 01/1/2025 | P74: =$H$25 -> % Change over 09/1/2025
B75: =$D$3&"kWh Monthly Usage - Non-CARE" -> 500kWh Monthly Usage - Non-CARE | D75: =((D82*4)+(D89*8)+($L$8*2))/12 -> 211.5547798 | E75: =((E82*4)+(E89*8)+($L$8*2))/12 -> 210.0126712 | F75: =((F82*4)+(F89*8)+($L$8*2))/12 -> 210.0126712 | G75: =$F75/D75-1 -> -0.007289405745 | H75: 0 | J75: =$D$3&"kWh Monthly Usage - Non-CARE" -> 500kWh Monthly Usage - Non-CARE | L75: =((L82*4)+(L89*8)+($L$8*2))/12 -> 202.8143981 | M75: =((M82*4)+(M89*8)+($L$8*2))/12 -> 201.3161909 | N75: =((N82*4)+(N89*8)+($L$8*2))/12 -> 201.3161909 | O75: =$N75/L75-1 -> -0.007387084987 | P75: 0
B76: =$D$3&"kWh Monthly Usage - CARE" -> 500kWh Monthly Usage - CARE | D76: =((D83*4)+(D90*8)+($L$8*2))/12 -> 126.4130629 | E76: 125.9128787 | F76: 125.9128787 | G76: -0.003956744729 | H76: 0 | J76: =$D$3&"kWh Monthly Usage - CARE" -> 500kWh Monthly Usage - CARE | L76: =((L83*4)+(L90*8)+($L$8*2))/12 -> 120.7315992 | M76: 120.2601665 | N76: 120.2601665 | O76: -0.003904799518 | P76: 0
B77: Total | D77: 189.7388822 | E77: 188.4637463 | F77: 188.4637463 | G77: -0.006720477571 | H77: 0 | J77: Total | L77: 181.7822883 | M77: 180.5471719 | N77: 180.5471719 | O77: -0.006794481174 | P77: 0
D79: 2 | E79: 4 | F79: 6 | L79: 2 | M79: 4 | N79: 6
B80: Typical Customer Basic Bundled Residential Monthly Average Bills - Summer | J80: Typical Customer All-Electric Bundled Residential Monthly Average Bills - Summer
D81: =$D$25 -> 2025-01-01 | E81: =$E$25 -> 2025-09-01 | F81: Proposed | G81: =$G$25 -> % Change over 01/1/2025 | H81: =$H$25 -> % Change over 09/1/2025 | L81: =$D$25 -> 2025-01-01 | M81: =$E$25 -> 2025-09-01 | N81: Proposed | O81: =$G$25 -> % Change over 01/1/2025 | P81: =$H$25 -> % Change over 09/1/2025
B82: =$D$3&"kWh Monthly Usage - Non-CARE" -> 500kWh Monthly Usage - Non-CARE | D82: =VLOOKUP($D$4,'Hypothetical Res Bill Impact'!$B$101:$H$111,D79,FALSE) -> 221.0535619 | E82: =VLOOKUP($D$4,'Hypothetical Res Bill Impact'!$B$101:$H$111,E79,FALSE) -> 219.5124862 | F82: =VLOOKUP($D$4,'Hypothetical Res Bill Impact'!$B$101:$H$111,F79,FALSE) -> 219.5124862 | G82: =$F82/D82-1 -> -0.006971503375 | H82: 0 | J82: =$D$3&"kWh Monthly Usage - Non-CARE" -> 500kWh Monthly Usage - Non-CARE | L82: =VLOOKUP($D$4,'Hypothetical Res Bill Impact'!$J$101:$P$111,L79,FALSE) -> 225.0638547 | M82: =VLOOKUP($D$4,'Hypothetical Res Bill Impact'!$J$101:$P$111,M79,FALSE) -> 223.502636 | N82: =VLOOKUP($D$4,'Hypothetical Res Bill Impact'!$J$101:$P$111,N79,FALSE) -> 223.502636 | O82: =$N82/L82-1 -> -0.006936780965 | P82: 0
B83: =$D$3&"kWh Monthly Usage - CARE" -> 500kWh Monthly Usage - CARE | D83: =VLOOKUP($D$4,'Hypothetical Res Bill Impact'!$B$116:$H$126,D79,FALSE) -> 135.9838195 | E83: =VLOOKUP($D$4,'Hypothetical Res Bill Impact'!$B$116:$H$126,E79,FALSE) -> 135.4843118 | F83: =VLOOKUP($D$4,'Hypothetical Res Bill Impact'!$B$116:$H$126,F79,FALSE) -> 135.4843118 | G83: -0.003673287863 | H83: 0 | J83: =$D$3&"kWh Monthly Usage - CARE" -> 500kWh Monthly Usage - CARE | L83: =VLOOKUP($D$4,'Hypothetical Res Bill Impact'!$J$116:$P$126,L79,FALSE) -> 138.5906088 | M83: =VLOOKUP($D$4,'Hypothetical Res Bill Impact'!$J$116:$P$126,M79,FALSE) -> 138.0779092 | N83: =VLOOKUP($D$4,'Hypothetical Res Bill Impact'!$J$116:$P$126,N79,FALSE) -> 138.0779092 | O83: -0.00369938192 | P83: 0
B84: Total | D84: =D82*(1-'Hypothetical SAR and RAR'!$Y$16)+D83*'Hypothetical SAR and RAR'!$Y$16 -> 199.2561063 | E84: =E82*(1-'Hypothetical SAR and RAR'!$Y$16)+E83*'Hypothetical SAR and RAR'!$Y$16 -> 197.981912 | F84: =F82*(1-'Hypothetical SAR and RAR'!$Y$16)+F83*'Hypothetical SAR and RAR'!$Y$16 -> 197.981912 | G84: -0.006394756422 | H84: 0 | J84: Total | L84: =L82*(1-'Hypothetical SAR and RAR'!$Y$16)+L83*'Hypothetical SAR and RAR'!$Y$16 -> 202.9067788 | M84: =M82*(1-'Hypothetical SAR and RAR'!$Y$16)+M83*'Hypothetical SAR and RAR'!$Y$16 -> 201.6142226 | N84: =N82*(1-'Hypothetical SAR and RAR'!$Y$16)+N83*'Hypothetical SAR and RAR'!$Y$16 -> 201.6142226 | O84: -0.00637019715 | P84: 0
D86: 3 | E86: 5 | F86: 7 | L86: 3 | M86: 5 | N86: 7
B87: Typical Customer Basic Bundled Residential Monthly Average Bills - Winter | J87: Typical Customer All-Electric Bundled Residential Monthly Average Bills - Winter
D88: =$D$25 -> 2025-01-01 | E88: =$E$25 -> 2025-09-01 | F88: Proposed | G88: =$G$25 -> % Change over 01/1/2025 | H88: =$H$25 -> % Change over 09/1/2025 | L88: =$D$25 -> 2025-01-01 | M88: =$E$25 -> 2025-09-01 | N88: Proposed | O88: =$G$25 -> % Change over 01/1/2025 | P88: =$H$25 -> % Change over 09/1/2025
B89: =$D$3&"kWh Monthly Usage - Non-CARE" -> 500kWh Monthly Usage - Non-CARE | D89: =VLOOKUP($D$4,'Hypothetical Res Bill Impact'!$B$101:$H$111,D86,FALSE) -> 221.3620459 | E89: =VLOOKUP($D$4,'Hypothetical Res Bill Impact'!$B$101:$H$111,E86,FALSE) -> 219.8194208 | F89: =VLOOKUP($D$4,'Hypothetical Res Bill Impact'!$B$101:$H$111,F86,FALSE) -> 219.8194208 | G89: =$F89/D89-1 -> -0.006968787755 | H89: 0 | J89: =$D$3&"kWh Monthly Usage - Non-CARE" -> 500kWh Monthly Usage - Non-CARE | L89: =VLOOKUP($D$4,'Hypothetical Res Bill Impact'!$J$101:$P$111,L86,FALSE) -> 206.2463269 | M89: =VLOOKUP($D$4,'Hypothetical Res Bill Impact'!$J$101:$P$111,M86,FALSE) -> 204.7796254 | N89: =VLOOKUP($D$4,'Hypothetical Res Bill Impact'!$J$101:$P$111,N86,FALSE) -> 204.7796254 | O89: =$N89/L89-1 -> -0.007111406459 | P89: 0
B90: =$D$3&"kWh Monthly Usage - CARE" -> 500kWh Monthly Usage - CARE | D90: =VLOOKUP($D$4,'Hypothetical Res Bill Impact'!$B$116:$H$126,D86,FALSE) -> 136.1843417 | E90: =VLOOKUP($D$4,'Hypothetical Res Bill Impact'!$B$116:$H$126,E86,FALSE) -> 135.6838193 | F90: =VLOOKUP($D$4,'Hypothetical Res Bill Impact'!$B$116:$H$126,F86,FALSE) -> 135.6838193 | G90: -0.003675330565 | H90: 0 | J90: =$D$3&"kWh Monthly Usage - CARE" -> 500kWh Monthly Usage - CARE | L90: =VLOOKUP($D$4,'Hypothetical Res Bill Impact'!$J$116:$P$126,L86,FALSE) -> 126.3587515 | M90: =VLOOKUP($D$4,'Hypothetical Res Bill Impact'!$J$116:$P$126,M86,FALSE) -> 125.9079523 | N90: =VLOOKUP($D$4,'Hypothetical Res Bill Impact'!$J$116:$P$126,N86,FALSE) -> 125.9079523 | O90: -0.003567613907 | P90: 0
B91: Total | D91: =D89*(1-'Hypothetical SAR and RAR'!$Y$16)+D90*'Hypothetical SAR and RAR'!$Y$16 -> 199.5369273 | E91: =E89*(1-'Hypothetical SAR and RAR'!$Y$16)+E90*'Hypothetical SAR and RAR'!$Y$16 -> 198.2613205 | F91: =F89*(1-'Hypothetical SAR and RAR'!$Y$16)+F90*'Hypothetical SAR and RAR'!$Y$16 -> 198.2613205 | G91: -0.006392835342 | H91: 0 | J91: Total | L91: =L89*(1-'Hypothetical SAR and RAR'!$Y$16)+L90*'Hypothetical SAR and RAR'!$Y$16 -> 185.7767001 | M91: =M89*(1-'Hypothetical SAR and RAR'!$Y$16)+M90*'Hypothetical SAR and RAR'!$Y$16 -> 184.5703037 | N91: =N89*(1-'Hypothetical SAR and RAR'!$Y$16)+N90*'Hypothetical SAR and RAR'!$Y$16 -> 184.5703037 | O91: -0.006493798255 | P91: 0
B93: Small Commercial Monthly Average Bills
D94: =$D$25 -> 2025-01-01 | E94: =$E$25 -> 2025-09-01 | F94: Proposed | G94: =$G$25 -> % Change over 01/1/2025 | H94: =$H$25 -> % Change over 09/1/2025
C95: NAICS 531 | D95: =('Hypo. Bill Impact (B-1)'!C33*4+'Hypo. Bill Impact (B-1)'!D33*8)/12 -> 431.8657987 | E95: =('Hypo. Bill Impact (B-1)'!E33*4+'Hypo. Bill Impact (B-1)'!F33*8)/12 -> 428.728087 | F95: =('Hypo. Bill Impact (B-1)'!G33*4+'Hypo. Bill Impact (B-1)'!H33*8)/12 -> 428.728087 | G95: =$F95/D95-1 -> -0.007265478594 | H95: 0
C96: NAICS 621 | D96: =('Hypo. Bill Impact (B-1)'!C34*4+'Hypo. Bill Impact (B-1)'!D34*8)/12 -> 530.4655252 | E96: =('Hypo. Bill Impact (B-1)'!E34*4+'Hypo. Bill Impact (B-1)'!F34*8)/12 -> 526.599715 | F96: =('Hypo. Bill Impact (B-1)'!G34*4+'Hypo. Bill Impact (B-1)'!H34*8)/12 -> 526.599715 | G96: -0.007287580489 | H96: 0
C97: NAICS 722 | D97: =('Hypo. Bill Impact (B-1)'!C35*4+'Hypo. Bill Impact (B-1)'!D35*8)/12 -> 1332.737904 | E97: =('Hypo. Bill Impact (B-1)'!E35*4+'Hypo. Bill Impact (B-1)'!F35*8)/12 -> 1322.961845 | F97: =('Hypo. Bill Impact (B-1)'!G35*4+'Hypo. Bill Impact (B-1)'!H35*8)/12 -> 1322.961845 | G97: -0.007335320187 | H97: 0
B99: Small Commercial Monthly Average Bills - Summer
D100: =$D$25 -> 2025-01-01 | E100: =$E$25 -> 2025-09-01 | F100: Proposed | G100: =$G$25 -> % Change over 01/1/2025 | H100: =$H$25 -> % Change over 09/1/2025
C101: NAICS 531 | D101: ='Hypo. Bill Impact (B-1)'!C33 -> 497.1077164 | E101: ='Hypo. Bill Impact (B-1)'!E33 -> 493.6860715 | F101: ='Hypo. Bill Impact (B-1)'!G33 -> 493.6860715 | G101: =$F101/D101-1 -> -0.006883105599 | H101: 0
C102: NAICS 621 | D102: ='Hypo. Bill Impact (B-1)'!C34 -> 663.6905542 | E102: ='Hypo. Bill Impact (B-1)'!E34 -> 659.0953675 | F102: ='Hypo. Bill Impact (B-1)'!G34 -> 659.0953675 | G102: -0.006923688613 | H102: 0
C103: NAICS 722 | D103: ='Hypo. Bill Impact (B-1)'!C35 -> 1657.299057 | E103: ='Hypo. Bill Impact (B-1)'!E35 -> 1645.814442 | F103: ='Hypo. Bill Impact (B-1)'!G35 -> 1645.814442 | G103: -0.006929718183 | H103: 0
B105: Small Commercial Monthly Average Bills - Winter
D106: =$D$25 -> 2025-01-01 | E106: =$E$25 -> 2025-09-01 | F106: Proposed | G106: =$G$25 -> % Change over 01/1/2025 | H106: =$H$25 -> % Change over 09/1/2025
C107: NAICS 531 | D107: ='Hypo. Bill Impact (B-1)'!D33 -> 399.2448399 | E107: ='Hypo. Bill Impact (B-1)'!F33 -> 396.2490948 | F107: ='Hypo. Bill Impact (B-1)'!H33 -> 396.2490948 | G107: =$F107/D107-1 -> -0.007503528717 | H107: 0
C108: NAICS 621 | D108: ='Hypo. Bill Impact (B-1)'!D34 -> 463.8530107 | E108: ='Hypo. Bill Impact (B-1)'!F34 -> 460.3518887 | F108: ='Hypo. Bill Impact (B-1)'!H34 -> 460.3518887 | G108: -0.007547912528 | H108: 0
C109: NAICS 722 | D109: ='Hypo. Bill Impact (B-1)'!D35 -> 1170.457328 | E109: ='Hypo. Bill Impact (B-1)'!F35 -> 1161.535547 | F109: ='Hypo. Bill Impact (B-1)'!H35 -> 1161.535547 | G109: -0.007622474535 | H109: 0

Sheet Hypothetical SAR and RAR (hidden)
C3: Revenue Change
B4: Generation | C4: ='Hypothetical Summary'!D7 -> 0 | F4: Allocation
B5: NSGC | C5: ='Hypothetical Summary'!D8 -> 0 | F5: Generation | G5: Distribution | H5: NDC | I5: PPPC | J5: NSGC | K5: Transmission | L5: CTC | M5: ECRA | N5: FERC BAs | O5: GHG Rev | P5: DWRBC | Q5: WHC | R5: PCIA | S5: Distribution (Wildfire)
B6: Distribution | C6: ='Hypothetical Summary'!D9 -> 0 | E6: Residential | F6: ='SAR and RAR'!G35 -> 0.4090066703 | G6: ='SAR and RAR'!H35 -> 0.410340482 | H6: ='SAR and RAR'!I35 -> 0.3376983711 | I6: ='SAR and RAR'!J35 -> 0.3471319897 | J6: ='SAR and RAR'!K35 -> 0.4665606931 | K6: ='SAR and RAR'!L35 -> 0.4669269084 | L6: ='SAR and RAR'!M35 -> 0.3666164112 | M6: ='SAR and RAR'!N35 -> 0.3451080292 | N6: ='SAR and RAR'!O35 -> 0.5110428467 | O6: ='SAR and RAR'!P35 -> 0.8767643459 | P6: ='SAR and RAR'!Q35 -> 0.2711478062 | Q6: ='SAR and RAR'!R35 -> 0.3367928254 | R6: ='SAR and RAR'!S35 -> 0.4672584499 | S6: ='SAR and RAR'!T35 -> 0.3972330884
B7: GHG Revenue | C7: ='Hypothetical Summary'!D10 -> 0
B8: CTC | C8: ='Hypothetical Summary'!D11 -> 0 | F8: Revenue Change ($000) - System
B9: NDC | C9: ='Hypothetical Summary'!D12 -> 0 | F9: Generation | G9: Distribution | H9: NDC | I9: Public Purpose Program | J9: NSGC | K9: Transmission | L9: CTC | M9: ECRA | N9: FERC BAs | O9: GHG Revenue | P9: DWR BC | Q9: WHC | R9: PCIA | S9: Distribution (Wildfire) | T9: Total
B10: Public Purpose Program | C10: ='Hypothetical Summary'!D13 -> 0 | E10: Residential | F10: =F6*F11 -> 0 | G10: =G6*G11 -> 0 | H10: =H6*H11 -> 0 | I10: 0 | J10: 0 | K10: 0 | L10: 0 | M10: 0 | N10: 0 | O10: 0 | P10: 0 | Q10: =Q6*Q11 -> 0 | R10: =R6*R11 -> 0 | S10: =S6*S11 -> 0 | T10: =SUM(F10:S10) -> 0
B11: DWR BC | C11: ='Hypothetical Summary'!D14 -> 0 | E11: Total System | F11: =VLOOKUP(F9,$B$4:$C$17,2,FALSE) -> 0 | G11: =VLOOKUP(G9,$B$4:$C$17,2,FALSE) -> 0 | H11: 0 | I11: 0 | J11: 0 | K11: 0 | L11: 0 | M11: 0 | N11: 0 | O11: 0 | P11: 0 | Q11: 0 | R11: 0 | S11: 0 | T11: =SUM(F11:S11) -> 0
B12: ECRA | C12: ='Hypothetical Summary'!D15 -> 0
B13: Transmission | C13: ='Hypothetical Summary'!D16 -> 0
B14: FERC BAs | C14: ='Hypothetical Summary'!D17 -> 0
B15: PCIA | C15: ='Hypothetical Summary'!D18 -> 0
B16: WHC | C16: ='Hypothetical Summary'!D19 -> 0 | X16: % of CARE Sales | Y16: 0.2562304171
B17: Distribution (Wildfire) | C17: ='Hypothetical Summary'!D20 -> 0
B18: Total | C18: =SUM(C4:C17) -> 0 | F18: Revenue Split - Bundled | T18: Bundled Revenue Change | X18: CARE Line Item Discount | Y18: 0.35
F19: Generation | G19: Distribution | H19: NDC | I19: PPPC | J19: NSGC | K19: Transmission | L19: CTC | M19: ECRA | N19: FERC BAs | O19: GHG Rev | P19: DWRBC | Q19: WHC | R19: PCIA | S19: Distribution (Wildfire) | T19: Total | U19: CARE Adj | X19: CARE Discount | Y19: =SUM(G10:N10,R10:S10,F10/G20)*Y16*Y18 -> 0
E20: Residential | F20: 1 | G20: =$E29/$O29 -> 0.381421134 | H20: =$E29/$O29 -> 0.381421134 | I20: 0.381421134 | J20: 0.381421134 | K20: 0.381421134 | L20: 0.381421134 | M20: 0.381421134 | N20: 0.381421134 | O20: 0.381421134 | P20: 0.381421134 | Q20: =$E29/$O29 -> 0.381421134 | R20: 0.381421134 | S20: 0.381421134 | T20: =SUMPRODUCT(F10:S10,F20:S20) -> 0 | U20: =T20-((Y19+Y22)*G20) -> 0 | X20: non-CARE Sales | Y20: 19682427.31
E21: Total System | F21: 1 | G21: =$E30/$O30 -> 0.3432499007 | H21: =$E30/$O30 -> 0.3432499007 | I21: 0.3432499007 | J21: 0.3432499007 | K21: 0.3432499007 | L21: 0.3432499007 | M21: 0.3432499007 | N21: 0.3432499007 | O21: 0.3432499007 | P21: 0.3432499007 | Q21: 0.3432499007 | R21: 0.3432499007 | S21: 0.3432499007 | T21: =SUMPRODUCT(F11:S11,F21:S21) -> 0 | U21: =T21 -> 0 | X21: non-exempt Sales | Y21: 69174483.39
X22: Res CARE Surcharge | Y22: =Y19*Y20/Y21 -> 0
E23: ="Notes: Allocation and bundled/unbundled split based on "&'Hypothetical Summary'!L4&" sales forecast" -> Notes: Allocation and bundled/unbundled split based on 2025 sales forecast
S24: Res GHG | T24: =O10*O20 -> 0
S25: Bundled Total System GHG | T25: =O11*O21 -> 0
E27: Bundled | O27: System (Bundled and Unbundled)
E28: ='Hypothetical Summary'!L4&" Sales" -> 2025 Sales | F28: =TEXT(Summary!L3,"mm/dd/yyyy")&" Avg Rates" -> 09/01/2025 Avg Rates | G28: Proposed Avg Rates | H28: % Change | O28: ='Hypothetical Summary'!L4&" Sales" -> 2025 Sales | P28: =F28 -> 09/01/2025 Avg Rates | Q28: Proposed Avg Rates | R28: % Change
D29: Residential | E29: 10093574.57 | F29: =IF('Hypothetical Summary'!D5="Y",AB50,AC50) -> 35.65670968 | G29: =IF('Hypothetical Summary'!D5="Y",U20/E29*100+F29,SUM(U20-T24)/E29*100+F29) -> 35.65670968 | H29: =G29/F29-1 -> 0 | N29: Residential | O29: 26463071.05 | P29: =IF('Hypothetical Summary'!D5="Y",AE50,AF50) -> 27.88626544 | Q29: =IF('Hypothetical Summary'!D5="Y",T10/O29*100+P29,SUM(T10-O10)/O29*100+P29) -> 27.88626544 | R29: =Q29/P29-1 -> 0
D30: Total System | E30: 26204056.23 | F30: =IF('Hypothetical Summary'!D5="Y",AB51,AC51) -> 34.77817042 | G30: =IF('Hypothetical Summary'!D5="Y",U21/E30*100+F30,SUM(U21-T25)/E30*100+F30) -> 34.77817042 | H30: =G30/F30-1 -> 0 | N30: Total System | O30: 76341045.34 | P30: =IF('Hypothetical Summary'!D5="Y",AE51,AF51) -> 24.98704194 | Q30: =IF('Hypothetical Summary'!D5="Y",T11/O30*100+P30,SUM(T11-O11)/O30*100+P30) -> 24.98704194 | R30: =Q30/P30-1 -> 0
AB43: 1/1/25 Bundled w/Credit | AC43: 1/1/25 Bundled w/out Credit | AE43: 1/1/25 System w/Credit | AF43: 1/1/25 System w/out Credit
AA45: Residential | AB45: 35.876527 | AC45: 38.03212458 | AD45: Residential | AE45: 28.12908243 | AF45: 30.51773164
AA46: System | AB46: 35.04098349 | AC46: 35.95033555 | AD46: Total System | AE46: 25.25800684 | AF46: 26.14276773
AB48: ='SAR and RAR'!AB48 -> 9/1/25 Bundled w/Credit | AC48: ='SAR and RAR'!AC48 -> 9/1/25 Bundled w/out Credit | AE48: ='SAR and RAR'!AE48 -> 9/1/25 System w/Credit | AF48: ='SAR and RAR'!AF48 -> 9/1/25 System w/out Credit
AA50: Residential | AB50: ='SAR and RAR'!AB50 -> 35.65670968 | AC50: ='SAR and RAR'!AC50 -> 37.81230726 | AD50: Residential | AE50: ='SAR and RAR'!AE50 -> 27.88626544 | AF50: ='SAR and RAR'!AF50 -> 30.27491465
AA51: System | AB51: ='SAR and RAR'!AB51 -> 34.77817042 | AC51: ='SAR and RAR'!AC51 -> 35.68752248 | AD51: Total System | AE51: ='SAR and RAR'!AE51 -> 24.98704194 | AF51: ='SAR and RAR'!AF51 -> 25.87180283

Sheet Hypothetical Res Bill Impact (hidden)
E3: Schedule E-1 | P3: Schedule EL-1
E4: ='Hypothetical Summary'!$L$4 -> 2025 | F4: ='Hypothetical Summary'!$L$3 -> 2025-09-01 | G4: ='Hypothetical Summary'!$L$3 -> 2025-09-01 | H4: Proposed | I4: Proposed | P4: ='Hypothetical Summary'!$L$4 -> 2025 | Q4: ='Hypothetical Summary'!$L$3 -> 2025-09-01 | R4: ='Hypothetical Summary'!$L$3 -> 2025-09-01 | S4: Proposed | T4: Proposed
E5: Sales Forecast | F5: Rates | G5: Revenue | H5: Rates | I5: Revenue | P5: Sales Forecast | Q5: Rates | R5: Revenue | S5: Rates | T5: Revenue
D7: Baseline - Summer | E7: ='Res Bill Impact'!Y39 -> 1539742612 | F7: 0.3983432177 | G7: =F7*E7 -> 613346026.3 | H7: =(Y10/SUM(SUM(E7:E8),F9/F7*SUM(E9:E10),F11/F7*SUM(E11:E12),SUM(P7:P8)*(1+(Q7/F7-1)),SUM(P9:P10)*(1+(Q9/F9-1))*F9/F7,SUM(P11:P12)*(1+(Q11/F11-1))*F11/F7)) -> 0.3983432177 | I7: =E7*H7 -> 613346026.3 | O7: Baseline - Summer | P7: ='Res Bill Impact'!Y50 -> 917088578.4 | Q7: 0.244525483 | R7: =Q7*P7 -> 224251527.6 | S7: =H7*(1+(Q7/F7-1)) -> 0.244525483 | T7: =P7*S7 -> 224251527.6 | X7: Bundled Residential Rev Req
D8: - Winter | E8: ='Res Bill Impact'!Y40 -> 2087811425 | F8: 0.3983432177 | G8: 831665520.9 | H8: =H7 -> 0.3983432177 | I8: 831665520.9 | O8: - Winter | P8: ='Res Bill Impact'!Y51 -> 1518299195 | Q8: 0.244525483 | R8: 371262843.9 | S8: 0.244525483 | T8: 371262843.9 | X8: Current | Y8: =SUM(G7:G12)+SUM(R7:R12) -> 3802420458
D9: 101% - 400% of Baseline - Summer | E9: ='Res Bill Impact'!Y41 -> 1193550818 | F9: 0.4991841541 | G9: 595801655.2 | H9: =F9/F$7*H$7 -> 0.4991841541 | I9: 595801655.2 | O9: 101% - 400% of Baseline - Summer | P9: ='Res Bill Impact'!Y52 -> 561993596.3 | Q9: 0.3100720916 | R9: 174258529.9 | S9: 0.3100720916 | T9: 174258529.9 | X9: Change | Y9: =('Hypothetical SAR and RAR'!U20-('Hypothetical SAR and RAR'!O10*'Hypothetical SAR and RAR'!O20))*1000 -> 0
D10: - Winter | E10: ='Res Bill Impact'!Y42 -> 1514443135 | F10: 0.4991841541 | G10: 755986015.1 | H10: =H9 -> 0.4991841541 | I10: 755986015.1 | O10: - Winter | P10: ='Res Bill Impact'!Y53 -> 760624209 | Q10: 0.3100720916 | R10: 235848339.4 | S10: 0.3100720916 | T10: 235848339.4 | X10: Proposed | Y10: =Y8+Y9 -> 3802420458
D11: 401% of Baseline - Summer | E11: 0 | F11: 0.4991841541 | G11: 0 | H11: =F11/F$7*H$7 -> 0.4991841541 | I11: 0 | O11: 401% of Baseline - Summer | P11: =0 -> 0 | Q11: 0.3100720916 | R11: 0 | S11: 0.3100720916 | T11: 0
D12: - Winter | E12: 0 | F12: 0.4991841541 | G12: 0 | H12: =H11 -> 0.4991841541 | I12: 0 | O12: - Winter | P12: 0 | Q12: 0.3100720916 | R12: 0 | S12: 0.3100720916 | T12: 0
P19: ='Res Bill Impact'!P19 -> 2024 Recorded Average Monthly Usage (kWh) - Bundled/Basic/non-medical/non-FERA | X19: ='Res Bill Impact'!X19 -> 2024 Recorded Average Monthly Usage (kWh) - Bundled/All Electric/non-medical/non-FERA
B20: SCHEDULE E-1 RATES ($/kWh) | H20: MONTHLY BASELINE QUANTITIES -BASIC (kWh) | L20: MONTHLY BASELINE QUANTITIES -ALL-ELECTRIC (kWh) | P20: Climate Zone | Q20: Summer | R20: Winter | S20: Summer | T20: Winter | U20: Sample Population Weight | X20: Climate Zone | Y20: Summer | Z20: Winter | AA20: Summer | AB20: Winter | AC20: Sample Population Weight
B21: Rates | C21: 2025-01-01 | D21: =F4 -> 2025-09-01 | E21: Proposed | H21: Climate Zone | I21: Summer | J21: Winter | L21: Climate Zone | M21: Summer | N21: Winter | Q21: Non-CARE | S21: CARE | U21: Non-CARE | V21: CARE | Y21: Non-CARE | AA21: CARE | AC21: Non-CARE | AD21: CARE
B22: Tier 1 | C22: 0.40122 | D22: =F7 -> 0.3983432177 | E22: =H7 -> 0.3983432177 | H22: P - Hot | I22: =13.5*$R$33 -> 410.90625 | J22: =11*$R$33 -> 334.8125 | L22: P - Hot | M22: =15.2*$R$33 -> 462.65 | N22: =26*$R$33 -> 791.375 | P22: P - Hot | Q22: ='Res Bill Impact'!Q22 -> 570.5 | R22: ='Res Bill Impact'!R22 -> 411.375 | S22: ='Res Bill Impact'!S22 -> 645.25 | T22: ='Res Bill Impact'!T22 -> 520.5 | U22: ='Res Bill Impact'!U22 -> 0.04556940043 | V22: ='Res Bill Impact'!V22 -> 0.02385333539 | X22: P - Hot | Y22: ='Res Bill Impact'!Y22 -> 624.5 | Z22: ='Res Bill Impact'!Z22 -> 556.375 | AA22: ='Res Bill Impact'!AA22 -> 716.25 | AB22: ='Res Bill Impact'!AB22 -> 717 | AC22: ='Res Bill Impact'!AC22 -> 0.2017889599 | AD22: ='Res Bill Impact'!AD22 -> 0.1854560745
B23: Tier 2 | C23: 0.50257 | D23: =F9 -> 0.4991841541 | E23: =H9 -> 0.4991841541 | H23: Q - Warm | I23: =9.8*$R$33 -> 298.2875 | J23: =11*$R$33 -> 334.8125 | L23: Q - Warm | M23: =8.5*$R$33 -> 258.71875 | N23: =26*$R$33 -> 791.375 | P23: Q - Warm | Q23: ='Res Bill Impact'!Q23 -> 379.25 | R23: ='Res Bill Impact'!R23 -> 437.5 | S23: ='Res Bill Impact'!S23 -> 352.75 | T23: ='Res Bill Impact'!T23 -> 419 | U23: ='Res Bill Impact'!U23 -> 0.0003245801591 | V23: ='Res Bill Impact'!V23 -> 0.0001033668774 | X23: Q - Warm | Y23: ='Res Bill Impact'!Y23 -> 478 | Z23: ='Res Bill Impact'!Z23 -> 604.625 | AA23: ='Res Bill Impact'!AA23 -> 462.25 | AB23: ='Res Bill Impact'!AB23 -> 603.125 | AC23: ='Res Bill Impact'!AC23 -> 0.00128660591 | AD23: ='Res Bill Impact'!AD23 -> 0.0005359659824
B24: HUS | C24: 0.50257 | D24: =F11 -> 0.4991841541 | E24: =H11 -> 0.4991841541 | H24: R - Hot | I24: =17.7*$R$33 -> 538.74375 | J24: =10.4*$R$33 -> 316.55 | L24: R - Hot | M24: =19.9*$R$33 -> 605.70625 | N24: =26.7*$R$33 -> 812.68125 | P24: R - Hot | Q24: ='Res Bill Impact'!Q24 -> 830.75 | R24: ='Res Bill Impact'!R24 -> 409.75 | S24: ='Res Bill Impact'!S24 -> 934.25 | T24: ='Res Bill Impact'!T24 -> 448.625 | U24: ='Res Bill Impact'!U24 -> 0.2800164289 | V24: ='Res Bill Impact'!V24 -> 0.3781048696 | X24: R - Hot | Y24: ='Res Bill Impact'!Y24 -> 799.25 | Z24: ='Res Bill Impact'!Z24 -> 529.125 | AA24: ='Res Bill Impact'!AA24 -> 922.5 | AB24: ='Res Bill Impact'!AB24 -> 611.125 | AC24: ='Res Bill Impact'!AC24 -> 0.2527488248 | AD24: ='Res Bill Impact'!AD24 -> 0.3301476423
H25: S - Hot | I25: =15*$R$33 -> 456.5625 | J25: =10.2*$R$33 -> 310.4625 | L25: S - Hot | M25: =17.8*$R$33 -> 541.7875 | N25: =23.7*$R$33 -> 721.36875 | P25: S - Hot | Q25: ='Res Bill Impact'!Q25 -> 715 | R25: ='Res Bill Impact'!R25 -> 409 | S25: ='Res Bill Impact'!S25 -> 792.75 | T25: ='Res Bill Impact'!T25 -> 446.375 | U25: ='Res Bill Impact'!U25 -> 0.3631316909 | V25: ='Res Bill Impact'!V25 -> 0.3077390366 | X25: S - Hot | Y25: ='Res Bill Impact'!Y25 -> 707.5 | Z25: ='Res Bill Impact'!Z25 -> 500.375 | AA25: ='Res Bill Impact'!AA25 -> 769.25 | AB25: ='Res Bill Impact'!AB25 -> 558.125 | AC25: ='Res Bill Impact'!AC25 -> 0.2541243835 | AD25: ='Res Bill Impact'!AD25 -> 0.2542818056
B26: SCHEDULE EL-1 ($/kWh) | H26: T - Cool | I26: =6.5*$R$33 -> 197.84375 | J26: =7.5*$R$33 -> 228.28125 | L26: T - Cool | M26: =7.1*$R$33 -> 216.10625 | N26: =12.9*$R$33 -> 392.64375 | P26: T - Cool | Q26: ='Res Bill Impact'!Q26 -> 260.5 | R26: ='Res Bill Impact'!R26 -> 303 | S26: ='Res Bill Impact'!S26 -> 266.25 | T26: ='Res Bill Impact'!T26 -> 303.125 | U26: ='Res Bill Impact'!U26 -> 0.04952293838 | V26: ='Res Bill Impact'!V26 -> 0.02141044883 | X26: T - Cool | Y26: ='Res Bill Impact'!Y26 -> 292.25 | Z26: ='Res Bill Impact'!Z26 -> 369 | AA26: ='Res Bill Impact'!AA26 -> 269.25 | AB26: ='Res Bill Impact'!AB26 -> 338 | AC26: ='Res Bill Impact'!AC26 -> 0.03888612758 | AD26: ='Res Bill Impact'!AD26 -> 0.02639706492
B27: Rates | C27: =$C$21 -> 2025-01-01 | D27: =D21 -> 2025-09-01 | E27: Proposed | H27: V - Cool | I27: =7.1*$R$33 -> 216.10625 | J27: =8.1*$R$33 -> 246.54375 | L27: V - Cool | M27: =10.4*$R$33 -> 316.55 | N27: =19.1*$R$33 -> 581.35625 | P27: V - Cool | Q27: ='Res Bill Impact'!Q27 -> 313.75 | R27: ='Res Bill Impact'!R27 -> 367.5 | S27: ='Res Bill Impact'!S27 -> 292 | T27: ='Res Bill Impact'!T27 -> 349 | U27: ='Res Bill Impact'!U27 -> 0.001733850701 | V27: ='Res Bill Impact'!V27 -> 0.001240142813 | X27: V - Cool | Y27: ='Res Bill Impact'!Y27 -> 418.25 | Z27: ='Res Bill Impact'!Z27 -> 527.5 | AA27: ='Res Bill Impact'!AA27 -> 404.75 | AB27: ='Res Bill Impact'!AB27 -> 559.375 | AC27: ='Res Bill Impact'!AC27 -> 0.001976219341 | AD27: ='Res Bill Impact'!AD27 -> 0.001442074218
B28: Tier 1 | C28: 0.24539 | D28: =Q7 -> 0.244525483 | E28: =S7 -> 0.244525483 | H28: W - Hot | I28: =19.2*$R$33 -> 584.4 | J28: =9.8*$R$33 -> 298.2875 | L28: W - Hot | M28: =22.4*$R$33 -> 681.8 | N28: =19*$R$33 -> 578.3125 | P28: W - Hot | Q28: ='Res Bill Impact'!Q28 -> 915.5 | R28: ='Res Bill Impact'!R28 -> 376.875 | S28: ='Res Bill Impact'!S28 -> 1012.25 | T28: ='Res Bill Impact'!T28 -> 422.125 | U28: ='Res Bill Impact'!U28 -> 0.1305703514 | V28: ='Res Bill Impact'!V28 -> 0.2311361292 | X28: W - Hot | Y28: ='Res Bill Impact'!Y28 -> 914 | Z28: ='Res Bill Impact'!Z28 -> 439.875 | AA28: ='Res Bill Impact'!AA28 -> 1030.75 | AB28: ='Res Bill Impact'!AB28 -> 484.25 | AC28: ='Res Bill Impact'!AC28 -> 0.0703570767 | AD28: ='Res Bill Impact'!AD28 -> 0.1315293093
B29: Tier 2 | C29: 0.31127 | D29: =Q9 -> 0.3100720916 | E29: =S9 -> 0.3100720916 | H29: X - Warm | I29: =9.8*$R$33 -> 298.2875 | J29: =9.7*$R$33 -> 295.24375 | L29: X - Warm | M29: =8.5*$R$33 -> 258.71875 | N29: =14.6*$R$33 -> 444.3875 | P29: X - Warm | Q29: ='Res Bill Impact'!Q29 -> 481.75 | R29: ='Res Bill Impact'!R29 -> 402.875 | S29: ='Res Bill Impact'!S29 -> 438.25 | T29: ='Res Bill Impact'!T29 -> 381.625 | U29: ='Res Bill Impact'!U29 -> 0.1082595428 | V29: ='Res Bill Impact'!V29 -> 0.03220034059 | X29: X - Warm | Y29: ='Res Bill Impact'!Y29 -> 463 | Z29: ='Res Bill Impact'!Z29 -> 462.875 | AA29: ='Res Bill Impact'!AA29 -> 413.5 | AB29: ='Res Bill Impact'!AB29 -> 438.75 | AC29: ='Res Bill Impact'!AC29 -> 0.06288504181 | AD29: ='Res Bill Impact'!AD29 -> 0.03974439457
B30: HUS | C30: 0.31127 | D30: =Q11 -> 0.3100720916 | E30: =S12 -> 0.3100720916 | H30: Y - Warm | I30: =10.5*$R$33 -> 319.59375 | J30: =11.1*$R$33 -> 337.85625 | L30: Y - Warm | M30: =12*$R$33 -> 365.25 | N30: =24*$R$33 -> 730.5 | P30: Y - Warm | Q30: ='Res Bill Impact'!Q30 -> 382 | R30: ='Res Bill Impact'!R30 -> 326 | S30: ='Res Bill Impact'!S30 -> 522 | T30: ='Res Bill Impact'!T30 -> 516.25 | U30: ='Res Bill Impact'!U30 -> 0.01918468588 | V30: ='Res Bill Impact'!V30 -> 0.004155971788 | X30: Y - Warm | Y30: ='Res Bill Impact'!Y30 -> 376.75 | Z30: ='Res Bill Impact'!Z30 -> 360.5 | AA30: ='Res Bill Impact'!AA30 -> 603.25 | AB30: ='Res Bill Impact'!AB30 -> 670.75 | AC30: ='Res Bill Impact'!AC30 -> 0.1036520167 | AD30: ='Res Bill Impact'!AD30 -> 0.03000373103
H31: Z - Cool | I31: =5.9*$R$33 -> 179.58125 | J31: =7.8*$R$33 -> 237.4125 | L31: Z - Cool | M31: =6.7*$R$33 -> 203.93125 | N31: =15.7*$R$33 -> 477.86875 | P31: Z - Cool | Q31: ='Res Bill Impact'!Q31 -> 192.25 | R31: ='Res Bill Impact'!R31 -> 173.125 | S31: ='Res Bill Impact'!S31 -> 223.25 | T31: ='Res Bill Impact'!T31 -> 239.5 | U31: ='Res Bill Impact'!U31 -> 0.001686530452 | V31: ='Res Bill Impact'!V31 -> 5.635832258e-05 | X31: Z - Cool | Y31: ='Res Bill Impact'!Y31 -> 202.25 | Z31: ='Res Bill Impact'!Z31 -> 172.625 | AA31: ='Res Bill Impact'!AA31 -> 348.25 | AB31: ='Res Bill Impact'!AB31 -> 451.375 | AC31: ='Res Bill Impact'!AC31 -> 0.01229474372 | AD31: ='Res Bill Impact'!AD31 -> 0.0004619375318
Q33: Daily to Monthly Conversion Factor | R33: =365.25/12 -> 30.4375
C34: Basic NON-CARE | K34: All-Electric NON-CARE
C35: =$C$21 -> 2025-01-01 | E35: =D27 -> 2025-09-01 | G35: =E21 -> Proposed | K35: =$C$21 -> 2025-01-01 | M35: =$D$21 -> 2025-09-01 | O35: =$E$21 -> Proposed
C36: Summer | D36: Winter | E36: Summer | F36: Winter | G36: Summer | H36: Winter | K36: Summer | L36: Winter | M36: Summer | N36: Winter | O36: Summer | P36: Winter
B37: P - Hot | C37: =IF(I22<Q22,$C$22*I22+$C$23*(Q22-I22),$C$22*Q22) -> 245.0708366 | D37: =IF(J22<R22,$C$22*J22+$C$23*(R22-J22),$C$22*R22) -> 172.8114869 | E37: =IF(I22<Q22,$D$22*I22+$D$23*(Q22-I22),$D$22*Q22) -> 243.3483889 | F37: =IF(J22<R22,$D$22*J22+$D$23*(R22-J22),$D$22*R22) -> 171.5890754 | G37: =IF(I22<Q22,$E$22*I22+$E$23*(Q22-I22),$E$22*Q22) -> 243.3483889 | H37: =IF(J22<R22,$E$22*J22+$E$23*(R22-J22),$E$22*R22) -> 171.5890754 | J37: P - Hot | K37: =IF(M22<Y22,$C$22*M22+$C$23*(Y22-M22),$C$22*Y22) -> 266.9653875 | L37: =IF(N22<Z22,$C$22*N22+$C$23*(Z22-N22),$C$22*Z22) -> 223.2287775 | M37: =IF(M22<Y22,$D$22*M22+$D$23*(Y22-M22),$D$22*Y22) -> 265.086445 | N37: =IF(N22<Z22,$D$22*N22+$D$23*(Z22-N22),$D$22*Z22) -> 221.6282077 | O37: =IF(M22<Y22,$E$22*M22+$E$23*(Y22-M22),$E$22*Y22) -> 265.086445 | P37: =IF(N22<Z22,$E$22*N22+$E$23*(Z22-N22),$E$22*Z22) -> 221.6282077
B38: Q - Warm | C38: =IF(I23<Q23,$C$22*I23+$C$23*(Q23-I23),$C$22*Q23) -> 160.3682344 | D38: =IF(J23<R23,$C$22*J23+$C$23*(R23-J23),$C$22*R23) -> 185.9411281 | E38: =IF(I23<Q23,$D$22*I23+$D$23*(Q23-I23),$D$22*Q23) -> 159.2359996 | F38: =IF(J23<R23,$D$22*J23+$D$23*(R23-J23),$D$22*R23) -> 184.6302614 | G38: =IF(I23<Q23,$E$22*I23+$E$23*(Q23-I23),$E$22*Q23) -> 159.2359996 | H38: =IF(J23<R23,$E$22*J23+$E$23*(R23-J23),$E$22*R23) -> 184.6302614 | J38: Q - Warm | K38: =IF(M23<Y23,$C$22*M23+$C$23*(Y23-M23),$C$22*Y23) -> 214.0073147 | L38: =IF(N23<Z23,$C$22*N23+$C$23*(Z23-N23),$C$22*Z23) -> 242.5876425 | M38: =IF(M23<Y23,$D$22*M23+$D$23*(Y23-M23),$D$22*Y23) -> 212.5205846 | N38: =IF(N23<Z23,$D$22*N23+$D$23*(Z23-N23),$D$22*Z23) -> 240.848268 | O38: =IF(M23<Y23,$E$22*M23+$E$23*(Y23-M23),$E$22*Y23) -> 212.5205846 | P38: =IF(N23<Z23,$E$22*N23+$E$23*(Z23-N23),$E$22*Z23) -> 240.848268
B39: R - Hot | C39: 362.9083484 | D39: 173.845715 | E39: 360.3698118 | F39: 172.6195087 | G39: 360.3698118 | H39: 172.6195087 | J39: R - Hot | K39: 340.2907441 | L39: 212.2955325 | M39: 337.8929497 | N39: 210.7733551 | O39: 337.8929497 | P39: 210.7733551
B40: S - Hot | C40: 313.0649406 | D40: 174.0857556 | E40: 310.8764801 | F40: 172.8589898 | G40: 310.8764801 | H40: 172.8589898 | J40: S - Hot | K40: 300.6581119 | L40: 200.7604575 | M40: 298.5384302 | N40: 199.3209875 | O40: 298.5384302 | P40: 199.3209875
B41: T - Cool | C41: 110.8680209 | D41: 129.1424053 | E41: 110.0867231 | F41: 128.2327037 | G41: 110.0867231 | H41: 128.2327037 | J41: T - Cool | K41: 124.9737141 | L41: 148.05018 | M41: 124.0942124 | N41: 146.9886473 | O41: 124.0942124 | P41: 146.9886473
B42: V - Cool | C42: 135.7789691 | D42: 159.7072659 | E42: 134.8266717 | F42: 158.588474 | G42: 134.8266717 | H42: 158.588474 | J42: V - Cool | K42: 178.11756 | L42: 211.64355 | M42: 176.862574 | N42: 210.1260473 | O42: 176.862574 | P42: 210.1260473
B43: W - Hot | C43: 400.873895 | D43: 159.1746306 | E43: 398.0716498 | F43: 158.0504373 | G43: 398.0716498 | H43: 158.0504373 | J43: W - Hot | K43: 390.24855 | L43: 176.4866475 | M43: 387.5009664 | N43: 175.2212229 | O43: 387.5009664 | P43: 175.2212229
B44: X - Warm | C44: 211.8816594 | D44: 172.5499347 | E44: 210.4023754 | F44: 171.3361599 | G44: 210.4023754 | H44: 171.3361599 | J44: X - Warm | K44: 206.4687647 | L44: 187.5884156 | M44: 205.0328223 | N44: 186.2474137 | O44: 205.0328223 | P44: 186.2474137
B45: Y - Warm | C45: 159.5909134 | D45: 130.79772 | E45: 158.4602138 | F45: 129.859889 | G45: 158.4602138 | H45: 129.859889 | J45: Y - Warm | K45: 152.32516 | L45: 144.63981 | M45: 151.235478 | N45: 143.60273 | O45: 151.235478 | P45: 143.60273
B46: Z - Cool | C46: 78.41852281 | D46: 69.4612125 | E46: 77.85901221 | F46: 68.96316956 | G46: 77.85901221 | H46: 68.96316956 | J46: Z - Cool | K46: 81.146745 | L46: 69.2606025 | M46: 80.56491578 | N46: 68.76399795 | O46: 80.56491578 | P46: 68.76399795
B47: ALL | C47: =SUMPRODUCT(C37:C46,$U$22:$U$31) -> 310.7242287 | D47: 168.5935258 | E47: 308.5508232 | F47: 167.4045484 | G47: 308.5508232 | H47: 167.4045484 | J47: ALL | K47: =SUMPRODUCT(K37:K46,$AC$22:$AC$31) -> 278.9974296 | L47: 196.265483 | M47: 277.0312715 | N47: 194.8584954 | O47: 277.0312715 | P47: 194.8584954
C50: Basic CARE | K50: All-Electric CARE
C51: =$C$21 -> 2025-01-01 | E51: =D27 -> 2025-09-01 | G51: =E27 -> Proposed | K51: =$C$21 -> 2025-01-01 | M51: =$D$21 -> 2025-09-01 | O51: =$E$21 -> Proposed
C52: Summer | D52: Winter | E52: Summer | F52: Winter | G52: Summer | H52: Winter | K52: Summer | L52: Winter | M52: Summer | N52: Winter | O52: Summer | P52: Winter
B53: P - Hot | C53: =IF(I22<S22,$C$28*I22+$C$29*(S22-I22),$C$28*S22) -> 173.7764638 | D53: =IF(J22<T22,$C$28*J22+$C$29*(T22-J22),$C$28*T22) -> 139.9585875 | E53: =IF(I22<S22,$D$28*I22+$D$29*(S22-I22),$D$28*S22) -> 173.140506 | F53: =IF(J22<T22,$D$28*J22+$D$29*(T22-J22),$D$28*T22) -> 139.4466998 | G53: =IF(I22<S22,$E$28*I22+$E$29*(S22-I22),$E$28*S22) -> 173.140506 | H53: =IF(J22<T22,$E$28*J22+$E$29*(T22-J22),$E$28*T22) -> 139.4466998 | J53: P - Hot | K53: =IF(M22<AA22,$C$28*M22+$C$29*(AA22-M22),$C$28*AA22) -> 192.4677555 | L53: =IF(N22<AB22,$C$28*N22+$C$29*(AB22-N22),$C$28*AB22) -> 175.94463 | M53: =IF(M22<AA22,$D$28*M22+$D$29*(AA22-M22),$D$28*AA22) -> 191.7639971 | N53: =IF(N22<AB22,$D$28*N22+$D$29*(AB22-N22),$D$28*AB22) -> 175.3247713 | O53: =IF(M22<AA22,$E$28*M22+$E$29*(AA22-M22),$E$28*AA22) -> 191.7639971 | P53: =IF(N22<AB22,$E$28*N22+$E$29*(AB22-N22),$E$28*AB22) -> 175.3247713
B54: Q - Warm | C54: =IF(I23<S23,$C$28*I23+$C$29*(S23-I23),$C$28*S23) -> 90.149312 | D54: =IF(J23<T23,$C$28*J23+$C$29*(T23-J23),$C$28*T23) -> 108.3646825 | E54: =IF(I23<S23,$D$28*I23+$D$29*(S23-I23),$D$28*S23) -> 89.82619629 | F54: =IF(J23<T23,$D$28*J23+$D$29*(T23-J23),$D$28*T23) -> 107.9743825 | G54: =IF(I23<S23,$E$28*I23+$E$29*(S23-I23),$E$28*S23) -> 89.82619629 | H54: =IF(J23<T23,$E$28*J23+$E$29*(T23-J23),$E$28*T23) -> 107.9743825 | J54: Q - Warm | K54: =IF(M23<AA23,$C$28*M23+$C$29*(AA23-M23),$C$28*AA23) -> 126.8401663 | L54: =IF(N23<AB23,$C$28*N23+$C$29*(AB23-N23),$C$28*AB23) -> 148.0008438 | M54: =IF(M23<AA23,$D$28*M23+$D$29*(AA23-M23),$D$28*AA23) -> 126.3726877 | N54: =IF(N23<AB23,$D$28*N23+$D$29*(AB23-N23),$D$28*AB23) -> 147.4794319 | O54: =IF(M23<AA23,$E$28*M23+$E$29*(AA23-M23),$E$28*AA23) -> 126.3726877 | P54: =IF(N23<AB23,$E$28*N23+$E$29*(AB23-N23),$E$28*AB23) -> 147.4794319
B55: R - Hot | C55: 255.3115592 | D55: 118.7891898 | E55: 254.3720259 | F55: 118.3573131 | G55: 254.3720259 | H55: 118.3573131 | J55: R - Hot | K55: 247.2426473 | L55: 149.9639638 | M55: 246.339514 | N55: 149.4356358 | O55: 246.339514 | P55: 149.4356358
B56: S - Hot | C56: 216.680955 | D56: 118.4898768 | E56: 215.8835271 | F56: 118.0586659 | G56: 215.8835271 | H56: 118.0586659 | J56: S - Hot | K56: 203.751487 | L56: 136.9582937 | M56: 203.0106232 | N56: 136.4757852 | O56: 203.0106232 | P56: 136.4757852
B57: T - Cool | C57: 69.84169125 | D57: 79.31455 | E57: 69.58870754 | F57: 79.02754102 | G57: 69.58870754 | H57: 79.02754102 | J57: T - Cool | K57: 69.57236775 | L57: 82.94182 | M57: 69.32187887 | N57: 82.64961324 | O57: 69.32187887 | P57: 82.64961324
B58: V - Cool | C58: 76.65376025 | D58: 92.39092775 | E58: 76.37601896 | F58: 92.05505328 | G58: 76.37601896 | H58: 92.05505328 | J58: V - Cool | K58: 105.1322185 | L58: 137.2650312 | M58: 104.7529001 | N58: 136.781442 | O58: 104.7529001 | P58: 136.781442
B59: W - Hot | C59: 276.5827855 | D59: 111.7436682 | E59: 275.5650367 | F59: 111.3374477 | G59: 275.5650367 | H59: 111.3374477 | J59: W - Hot | K59: 275.9245685 | L59: 118.8301075 | M59: 274.9171307 | N59: 118.4114651 | O59: 274.9171307 | P59: 118.4114651
B60: X - Warm | C60: 116.762897 | D60: 99.3377555 | E60: 116.3373601 | F60: 98.97903543 | G60: 116.3373601 | H60: 98.97903543 | J60: X - Warm | K60: 111.6657537 | L60: 107.6648625 | M60: 111.2566732 | N60: 107.2855557 | O60: 111.2566732 | P60: 107.2855557
B61: Y - Warm | C61: 141.4281037 | D61: 138.4351678 | E61: 140.9093454 | F61: 137.9293859 | G61: 140.9093454 | H61: 137.9293859 | J61: Y - Warm | K61: 163.7109575 | L61: 164.5953425 | M61: 163.1100905 | N61: 164.0154677 | O61: 163.1100905 | P61: 164.0154677
B62: Z - Cool | C62: 57.66021475 | D62: 58.9084295 | E62: 57.45265254 | F62: 58.70068172 | G62: 57.45265254 | H62: 58.70068172 | J62: Z - Cool | K62: 94.96478675 | L62: 110.7629113 | M62: 94.61560407 | N62: 110.3726899 | O62: 94.61560407 | P62: 110.3726899
B63: ALL | C63: =SUMPRODUCT(C53:C62,$V$22:$V$31) -> 237.2397028 | D63: 116.1465113 | E63: 236.3669883 | F63: 115.7241472 | G63: 236.3669883 | H63: 115.7241472 | J63: ALL | K63: =SUMPRODUCT(K53:K62,$AD$22:$AD$31) -> 216.8733473 | L63: 144.3312988 | M63: 216.08191 | N63: 143.8228149 | O63: 216.08191 | P63: 143.8228149
C66: Basic Essential Usage NON-CARE | K66: All-Electric Essential Usage NON-CARE
C67: =$C$27 -> 2025-01-01 | E67: =$D$27 -> 2025-09-01 | G67: =$E$21 -> Proposed | K67: =$C$27 -> 2025-01-01 | M67: =$D$21 -> 2025-09-01 | O67: =$E$21 -> Proposed
C68: Summer | D68: Winter | E68: Summer | F68: Winter | G68: Summer | H68: Winter | K68: Summer | L68: Winter | M68: Summer | N68: Winter | O68: Summer | P68: Winter
B69: P - Hot | C69: =C$22*I22 -> 164.8638056 | D69: =C$22*J22 -> 134.3334713 | E69: =D$22*I22 -> 163.6817178 | F69: =D$22*J22 -> 133.3702886 | G69: =E$22*I22 -> 163.6817178 | H69: =E$22*J22 -> 133.3702886 | J69: P - Hot | K69: =$C$22*M22 -> 185.624433 | L69: =$C$22*N22 -> 317.5154775 | M69: =$D$22*M22 -> 184.2934897 | N69: =$D$22*N22 -> 315.2388639 | O69: =$E$22*M22 -> 184.2934897 | P69: =$E$22*N22 -> 315.2388639
B70: Q - Warm | C70: =C$22*I23 -> 119.6789108 | D70: =C$22*J23 -> 134.3334713 | E70: =D$22*I23 -> 118.8208025 | F70: =D$22*J23 -> 133.3702886 | G70: =E$22*I23 -> 118.8208025 | H70: =E$22*J23 -> 133.3702886 | J70: Q - Warm | K70: =$C$22*M23 -> 103.8031369 | L70: 317.5154775 | M70: =$D$22*M23 -> 103.0588593 | N70: 315.2388639 | O70: =$E$22*M23 -> 103.0588593 | P70: 315.2388639
B71: R - Hot | C71: 216.1547674 | D71: 127.006191 | E71: 214.6049189 | F71: 126.0955456 | G71: 214.6049189 | H71: 126.0955456 | J71: R - Hot | K71: 243.0214616 | L71: 326.0639711 | M71: 241.2789766 | N71: 323.7260641 | O71: 241.2789766 | P71: 323.7260641
B72: S - Hot | C72: 183.1820063 | D72: 124.5637642 | E72: 181.8685753 | F72: 123.6706312 | G72: 181.8685753 | H72: 123.6706312 | J72: S - Hot | K72: 217.3759808 | L72: 289.4275699 | M72: 215.817376 | N72: 287.352349 | O72: 215.817376 | P72: 287.352349
B73: T - Cool | C73: 79.37886938 | D73: 91.59100313 | E73: 78.80971597 | F73: 90.93428766 | G73: 78.80971597 | H73: 90.93428766 | J73: T - Cool | K73: 86.70614962 | L73: 157.5365254 | M73: 86.08445899 | N73: 156.4069748 | O73: 86.08445899 | P73: 156.4069748
B74: V - Cool | C74: 86.70614962 | D74: 98.91828338 | E74: 86.08445899 | F74: 98.20903067 | G74: 86.08445899 | H74: 98.20903067 | J74: V - Cool | K74: 127.006191 | L74: 233.2517546 | M74: 126.0955456 | N74: 231.5793192 | O74: 126.0955456 | P74: 231.5793192
B75: W - Hot | C75: 234.472968 | D75: 119.6789108 | E75: 232.7917764 | F75: 118.8208025 | G75: 232.7917764 | H75: 118.8208025 | J75: W - Hot | K75: 273.551796 | L75: 232.0305412 | M75: 271.5904058 | N75: 230.3668621 | O75: 271.5904058 | P75: 230.3668621
B76: X - Warm | C76: 119.6789108 | D76: 118.4576974 | E76: 118.8208025 | F76: 117.6083454 | G76: 118.8208025 | H76: 117.6083454 | J76: X - Warm | K76: 103.8031369 | L76: 178.2971528 | M76: 103.0588593 | N76: 177.0187466 | O76: 103.0588593 | P76: 177.0187466
B77: Y - Warm | C77: 128.2274044 | D77: 135.5546846 | E77: 127.3080027 | F77: 134.5827457 | G77: 127.3080027 | H77: 134.5827457 | J77: Y - Warm | K77: 146.545605 | L77: 293.09121 | M77: 145.4948603 | N77: 290.9897205 | O77: 145.4948603 | P77: 290.9897205
B78: Z - Cool | C78: 72.05158913 | D78: 95.25464325 | E78: 71.53497296 | F78: 94.57165917 | G78: 71.53497296 | H78: 94.57165917 | J78: Z - Cool | K78: 81.82129613 | L78: 191.7304999 | M78: 81.23463031 | N78: 190.3557755 | O78: 81.23463031 | P78: 190.3557755
B79: ALL | C79: =SUMPRODUCT(C69:C78,$U$22:$U$31) -> 184.8321999 | D79: 122.8812507 | E79: 183.506937 | F79: 122.0001815 | G79: 183.506937 | H79: 122.0001815 | J79: ALL | K79: =SUMPRODUCT(K69:K78,$AC$22:$AC$31) -> 199.8467881 | L79: 287.3034524 | M79: 198.4138692 | N79: 285.2434617 | O79: 198.4138692 | P79: 285.2434617
C82: Basic Essential Usage CARE | K82: All-Electric Essential Usage CARE
C83: =$C$27 -> 2025-01-01 | E83: =$D$27 -> 2025-09-01 | G83: =$E$21 -> Proposed | K83: =$C$27 -> 2025-01-01 | M83: =$D$21 -> 2025-09-01 | O83: =$E$21 -> Proposed
C84: Summer | D84: Winter | E84: Summer | F84: Winter | G84: Summer | H84: Winter | K84: Summer | L84: Winter | M84: Summer | N84: Winter | O84: Summer | P84: Winter
B85: P - Hot | C85: =C$28*I22 -> 100.8322847 | D85: =C$28*J22 -> 82.15963937 | E85: =D$28*I22 -> 100.4770492 | F85: =D$28*J22 -> 81.87018827 | G85: =E$28*I22 -> 100.4770492 | H85: =E$28*J22 -> 81.87018827 | J85: P - Hot | K85: =$C$28*M22 -> 113.5296835 | L85: =$C$28*N22 -> 194.1955113 | M85: =$D$28*M22 -> 113.1297147 | N85: =$D$28*N22 -> 193.5113541 | O85: =$E$28*M22 -> 113.1297147 | P85: =$E$28*N22 -> 193.5113541
B86: Q - Warm | C86: =C$28*I23 -> 73.19676963 | D86: =C$28*J23 -> 82.15963937 | E86: =D$28*I23 -> 72.938895 | F86: =D$28*J23 -> 81.87018827 | G86: =E$28*I23 -> 72.938895 | H86: =E$28*J23 -> 81.87018827 | J86: Q - Warm | K86: =$C$28*M23 -> 63.48699406 | L86: 194.1955113 | M86: =$D$28*M23 -> 63.2633273 | N86: 193.5113541 | O86: =$E$28*M23 -> 63.2633273 | P86: 193.5113541
B87: R - Hot | C87: 132.2023288 | D87: 77.6782045 | E87: 131.7365757 | F87: 77.40454164 | G87: 131.7365757 | H87: 77.40454164 | J87: R - Hot | K87: 148.6342567 | L87: 199.4238519 | M87: 148.1106133 | N87: 198.7212752 | O87: 148.1106133 | P87: 198.7212752
B88: S - Hot | C88: 112.0358719 | D88: 76.18439288 | E88: 111.6411658 | F88: 75.91599276 | G88: 111.6411658 | H88: 75.91599276 | J88: S - Hot | K88: 132.9492346 | L88: 177.0166776 | M88: 132.4808501 | N88: 176.393042 | O88: 132.4808501 | P88: 176.393042
B89: T - Cool | C89: 48.54887781 | D89: 56.01793594 | E89: 48.37783852 | F89: 55.82058291 | G89: 48.37783852 | H89: 55.82058291 | J89: T - Cool | K89: 53.03031269 | L89: 96.35084981 | M89: 52.84348515 | N89: 96.01140261 | O89: 52.84348515 | P89: 96.01140261
B90: V - Cool | C90: 53.03031269 | D90: 60.49937081 | E90: 52.84348515 | F90: 60.28622954 | G90: 52.84348515 | H90: 60.28622954 | J90: V - Cool | K90: 77.6782045 | L90: 142.6590102 | M90: 77.40454164 | N90: 142.1564178 | O90: 77.40454164 | P90: 142.1564178
B91: W - Hot | C91: 143.405916 | D91: 73.19676963 | E91: 142.9006922 | F91: 72.938895 | G91: 142.9006922 | H91: 72.938895 | J91: W - Hot | K91: 167.306902 | L91: 141.9121044 | M91: 166.7174743 | N91: 141.4121434 | O91: 166.7174743 | P91: 141.4121434
